Workbook

Sheet ListaP (hidden)
B3: Zonas
B4: Urbano | C4: U
B5: Rural | C5: R
B6: Mixto | C6: M
B8: ¡Esta dispuesto a realizar el proyecto?
B9: Si | C9: S
B10: No | C10: N
B12: Clasificación por costo medio
B13: Menor o igual al costo medio de la CREG | D13: SI
B14: Mayor al costo medio de la CREG | D14: No
B17: Conexión a la Red propia
B18: Conexión a la Red no propia

Sheet Deptos (hidden)
A1: Departamentos
A2: Cod_Dane | B2: Nombre Departamento
A3: 91 | B3: Amazonas
A4: 05 | B4: Antioquia
A5: 81 | B5: Arauca
A6: 08 | B6: Atlántico
A7: 11 | B7: BOGOTÁ D.C.
A8: 13 | B8: Bolívar
A9: 15 | B9: Boyacá
A10: 17 | B10: Caldas
A11: 18 | B11: Caquetá
A12: 85 | B12: Casanare
A13: 19 | B13: Cauca
A14: 20 | B14: Cesar
A15: 27 | B15: Chocó
A16: 23 | B16: Córdoba
A17: 25 | B17: Cundinamarca
A18: 94 | B18: Guainía
A19: 95 | B19: Guaviare
A20: 41 | B20: Huila
A21: 44 | B21: La Guajira
A22: 47 | B22: Magdalena
A23: 50 | B23: Meta
A24: 52 | B24: Nariño
A25: 54 | B25: Norte de Santander
A26: 86 | B26: Putumayo
A27: 63 | B27: Quindío
A28: 66 | B28: Risaralda
A29: 88 | B29: San Andrés y Providencia
A30: 68 | B30: Santander
A31: 70 | B31: Sucre
A32: 73 | B32: Tolima
A33: 76 | B33: Valle del Cauca
A34: 97 | B34: Vaupés
A35: 99 | B35: Vichada

Sheet Indice
C1: =HYPERLINK("#"&B1&"!A1","Ir a "&B1) -> Ir a
C2: =HYPERLINK("#"&B2&"!A1","Ir a "&B2) -> Ir a
C3: Ir a
B4: Subestaciones | C4: =HYPERLINK("#"&B4&"!A1","Ir a "&B4) -> Ir a Subestaciones
B5: Consumo | C5: Ir a Consumo
B6: curva | C6: Ir a curva
B7: asnm | C7: Ir a asnm
B8: CU_OR | C8: Ir a CU_OR
B9: datosB | C9: Ir a datosB
B10: UC_Res015 | C10: Ir a UC_Res015
B11: Formulario1 | C11: Ir a Formulario1
B12: Formulario2 | C12: Ir a Formulario2
B13: Formulario3 | C13: Ir a Formulario3
B14: Formulario4 | C14: Ir a Formulario4
B15: Formulario5_UC | C15: Ir a Formulario5_UC
B16: Formulario6_Res | C16: Ir a Formulario6_Res
B17: concepto | C17: Ir a concepto

Sheet Subestaciones
A1: Subestaciones de Energía Eléctrica Reportadas a la UPME
A3: Operador | B3: ID | C3: NOMBRE | D3: COD_DEPARTAMENTO | E3: COD_MPIO | F3: LATITUD | G3: LONGITUD | H3: FECHA_ENTRADA_OPERACION | I3: CAPACIDAD_NOMINAL | J3: NIVEL_DE_TENSION | K3: RELACION_DE_TANSFORMACION | L3: CARGABILIDAD | M3: POSIBILIDAD_DE_AMPLIACION | N3: ESTADO | O3: OBSERVACION | W3: OR;Subestacion; tensión
W4: =CONCATENATE(A4,";", C4,";",K4) -> ;;
W5: =CONCATENATE(A5,";", C5,";",K5) -> ;;
W6: =CONCATENATE(A6,";", C6,";",K6) -> ;;
W7: ;;
W8: ;;
W9: ;;
W10: ;;
W11: ;;
W12: ;;
W13: ;;
W14: ;;
W15: ;;
W16: ;;
W17: ;;
W18: ;;
W19: ;;
W20: ;;
W21: ;;
W22: ;;
W23: ;;
W24: ;;
W25: ;;
W26: ;;
W27: ;;
W28: ;;
W29: ;;
W30: ;;
W31: ;;
W32: ;;
W33: ;;
W34: ;;
W35: ;;
W36: ;;
W37: ;;
W38: ;;
W39: ;;
W40: ;;
W41: ;;
W42: ;;
W43: ;;
W44: ;;
W45: ;;
W46: ;;
W47: ;;
W48: ;;
W49: ;;
W50: ;;
W51: ;;
W52: ;;
W53: ;;
W54: ;;
W55: ;;
W56: ;;
W57: ;;
W58: ;;
W59: ;;
W60: ;;
W61: ;;
W62: ;;
W63: ;;
W64: ;;
W65: ;;
W66: ;;
W67: ;;
W68: ;;
W69: ;;
W70: =CONCATENATE(A70,";", C70,";",K70) -> ;;
W71: ;;
W72: ;;
W73: ;;
W74: ;;
W75: ;;
W76: ;;
W77: ;;
W78: ;;
W79: ;;
W80: ;;
W81: ;;
W82: ;;
W83: ;;
W84: ;;
W85: ;;
W86: ;;
W87: ;;
W88: ;;
W89: ;;
W90: ;;
W91: ;;
W92: ;;
W93: ;;
W94: ;;
W95: ;;
W96: ;;
W97: ;;
W98: ;;
W99: ;;
W100: ;;
W101: ;;
W102: ;;
W103: ;;
W104: ;;
W105: ;;
W106: ;;
W107: ;;
W108: ;;
W109: ;;
W110: ;;
W111: ;;
W112: ;;
W113: ;;
W114: ;;
W115: ;;
W116: ;;
W117: ;;
W118: ;;
W119: ;;
W120: ;;
W121: ;;
W122: ;;
W123: ;;
W124: ;;
W125: ;;
W126: ;;
W127: ;;
W128: ;;
W129: ;;
W130: ;;
W131: ;;
W132: ;;
W133: ;;
W134: =CONCATENATE(A134,";", C134,";",K134) -> ;;
W135: ;;
W136: ;;
W137: ;;
W138: ;;
W139: ;;
W140: ;;
W141: ;;
W142: ;;
W143: ;;
W144: ;;
W145: ;;
W146: ;;
W147: ;;
W148: ;;
W149: ;;
W150: ;;
W151: ;;
W152: ;;
W153: ;;
W154: ;;
W155: ;;
W156: ;;
W157: ;;
W158: ;;
W159: ;;
W160: ;;
W161: ;;
W162: ;;
W163: ;;
W164: ;;
W165: ;;
W166: ;;
W167: ;;
W168: ;;
W169: ;;
W170: ;;
W171: ;;
W172: ;;
W173: ;;
W174: ;;
W175: ;;
W176: ;;
W177: ;;
W178: ;;
W179: ;;
W180: ;;
W181: ;;
W182: ;;
W183: ;;
W184: ;;
W185: ;;
W186: ;;
W187: ;;
W188: ;;
W189: ;;
W190: ;;
W191: ;;
W192: ;;
W193: ;;
W194: ;;
W195: ;;
W196: ;;
W197: ;;
W198: =CONCATENATE(A198,";", C198,";",K198) -> ;;
W199: ;;
W200: ;;
W201: ;;
... 301 more rows

Sheet Consumo
B1: Consumo residencial rural a nivel municipal [kWh]
B2: Cod_Dane | C2: Depto | D2: Cod_Dane | E2: Municipio | F2: Nombre compuesto Depto-Mpio | G2: 2013 | H2: 2014 | I2: 2015 | J2: 2016 | K2: 2017
B3: 91 | C3: Amazonas | D3: 91263 | E3: CD. El Encanto | F3: =CONCATENATE(C3,"-",E3) -> Amazonas-CD. El Encanto
B4: 91 | C4: Amazonas | D4: 91405 | E4: CD. La Chorrera | F4: =CONCATENATE(C4,"-",E4) -> Amazonas-CD. La Chorrera
B5: 91 | C5: Amazonas | D5: 91407 | E5: CD. La Pedrera | F5: Amazonas-CD. La Pedrera
B6: 91 | C6: Amazonas | D6: 91430 | E6: CD. La Victoria1 | F6: Amazonas-CD. La Victoria1
B7: 91 | C7: Amazonas | D7: 91460 | E7: CD. Miriti-Parana | F7: Amazonas-CD. Miriti-Parana
B8: 91 | C8: Amazonas | D8: 91536 | E8: CD. Puerto Arica3 | F8: Amazonas-CD. Puerto Arica3
B9: 91 | C9: Amazonas | D9: 91669 | E9: CD. Puerto Santander | F9: Amazonas-CD. Puerto Santander
B10: 91 | C10: Amazonas | D10: 91798 | E10: CD. Tarapaca | F10: Amazonas-CD. Tarapaca
B11: 91 | C11: Amazonas | D11: 91530 | E11: CD.Puerto Alegría2 | F11: =CONCATENATE(C11,"-",E11) -> Amazonas-CD.Puerto Alegría2
B12: 91 | C12: Amazonas | D12: 91001 | E12: Leticia | F12: Amazonas-Leticia
B13: 91 | C13: Amazonas | D13: 91540 | E13: Puerto Nariño | F13: Amazonas-Puerto Nariño
B14: 05 | C14: Antioquia | D14: 05002 | E14: Abejorral | F14: Antioquia-Abejorral
B15: 05 | C15: Antioquia | D15: 05004 | E15: Abriaqui | F15: Antioquia-Abriaqui
B16: 05 | C16: Antioquia | D16: 05021 | E16: Alejandría | F16: Antioquia-Alejandría
B17: 05 | C17: Antioquia | D17: 05030 | E17: Amaga | F17: Antioquia-Amaga
B18: 05 | C18: Antioquia | D18: 05031 | E18: Amalfi | F18: Antioquia-Amalfi
B19: 05 | C19: Antioquia | D19: 05034 | E19: Andes | F19: Antioquia-Andes
B20: 05 | C20: Antioquia | D20: 05036 | E20: Angelopolis | F20: Antioquia-Angelopolis
B21: 05 | C21: Antioquia | D21: 05038 | E21: Angostura | F21: Antioquia-Angostura
B22: 05 | C22: Antioquia | D22: 05040 | E22: Anorí | F22: Antioquia-Anorí
B23: 05 | C23: Antioquia | D23: 05042 | E23: Antioquia | F23: Antioquia-Antioquia
B24: 05 | C24: Antioquia | D24: 05044 | E24: Anza | F24: Antioquia-Anza
B25: 05 | C25: Antioquia | D25: 05045 | E25: Apartado | F25: Antioquia-Apartado
B26: 05 | C26: Antioquia | D26: 05051 | E26: Arboletes | F26: Antioquia-Arboletes
B27: 05 | C27: Antioquia | D27: 05055 | E27: Argelia | F27: Antioquia-Argelia
B28: 05 | C28: Antioquia | D28: 05059 | E28: Armenia | F28: Antioquia-Armenia
B29: 05 | C29: Antioquia | D29: 05079 | E29: Barbosa | F29: Antioquia-Barbosa
B30: 05 | C30: Antioquia | D30: 05088 | E30: Bello | F30: Antioquia-Bello
B31: 05 | C31: Antioquia | D31: 05086 | E31: Belmira | F31: Antioquia-Belmira
B32: 05 | C32: Antioquia | D32: 05091 | E32: Betania | F32: Antioquia-Betania
B33: 05 | C33: Antioquia | D33: 05093 | E33: Betulia | F33: Antioquia-Betulia
B34: 05 | C34: Antioquia | D34: 05101 | E34: Bolívar | F34: Antioquia-Bolívar
B35: 05 | C35: Antioquia | D35: 05107 | E35: Briceño | F35: Antioquia-Briceño
B36: 05 | C36: Antioquia | D36: 05113 | E36: Buritica | F36: Antioquia-Buritica
B37: 05 | C37: Antioquia | D37: 05120 | E37: Cáceres | F37: Antioquia-Cáceres
B38: 05 | C38: Antioquia | D38: 05125 | E38: Caicedo | F38: Antioquia-Caicedo
B39: 05 | C39: Antioquia | D39: 05129 | E39: Caldas | F39: Antioquia-Caldas
B40: 05 | C40: Antioquia | D40: 05134 | E40: Campamento | F40: Antioquia-Campamento
B41: 05 | C41: Antioquia | D41: 05138 | E41: Cañasgordas | F41: Antioquia-Cañasgordas
B42: 05 | C42: Antioquia | D42: 05142 | E42: Caracolí | F42: Antioquia-Caracolí
B43: 05 | C43: Antioquia | D43: 05145 | E43: Caramanta | F43: Antioquia-Caramanta
B44: 05 | C44: Antioquia | D44: 05147 | E44: Carepa | F44: Antioquia-Carepa
B45: 05 | C45: Antioquia | D45: 05148 | E45: Carmen De Viboral | F45: Antioquia-Carmen De Viboral
B46: 05 | C46: Antioquia | D46: 05150 | E46: Carolina | F46: Antioquia-Carolina
B47: 05 | C47: Antioquia | D47: 05154 | E47: Caucasia | F47: Antioquia-Caucasia
B48: 05 | C48: Antioquia | D48: 05172 | E48: Chigorodó | F48: Antioquia-Chigorodó
B49: 05 | C49: Antioquia | D49: 05190 | E49: Cisneros | F49: Antioquia-Cisneros
B50: 05 | C50: Antioquia | D50: 05197 | E50: Cocorná | F50: Antioquia-Cocorná
B51: 05 | C51: Antioquia | D51: 05206 | E51: Concepción | F51: Antioquia-Concepción
B52: 05 | C52: Antioquia | D52: 05209 | E52: Concordia | F52: Antioquia-Concordia
B53: 05 | C53: Antioquia | D53: 05212 | E53: Copacabana | F53: Antioquia-Copacabana
B54: 05 | C54: Antioquia | D54: 05234 | E54: Dabeiba | F54: Antioquia-Dabeiba
B55: 05 | C55: Antioquia | D55: 05237 | E55: Don Matías | F55: Antioquia-Don Matías
B56: 05 | C56: Antioquia | D56: 05240 | E56: Ebejico | F56: Antioquia-Ebejico
B57: 05 | C57: Antioquia | D57: 05250 | E57: El Bagre | F57: Antioquia-El Bagre
B58: 05 | C58: Antioquia | D58: 05264 | E58: Entrerrios | F58: Antioquia-Entrerrios
B59: 05 | C59: Antioquia | D59: 05266 | E59: Envigado | F59: Antioquia-Envigado
B60: 05 | C60: Antioquia | D60: 05282 | E60: Fredonia | F60: Antioquia-Fredonia
B61: 05 | C61: Antioquia | D61: 05284 | E61: Frontino | F61: Antioquia-Frontino
B62: 05 | C62: Antioquia | D62: 05306 | E62: Giraldo | F62: Antioquia-Giraldo
B63: 05 | C63: Antioquia | D63: 05308 | E63: Girardota | F63: Antioquia-Girardota
B64: 05 | C64: Antioquia | D64: 05310 | E64: Gómez Plata | F64: Antioquia-Gómez Plata
B65: 05 | C65: Antioquia | D65: 05313 | E65: Granada | F65: Antioquia-Granada
B66: 05 | C66: Antioquia | D66: 05315 | E66: Guadalupe | F66: Antioquia-Guadalupe
B67: 05 | C67: Antioquia | D67: 05318 | E67: Guarne | F67: =CONCATENATE(C67,"-",E67) -> Antioquia-Guarne
B68: 05 | C68: Antioquia | D68: 05321 | E68: Guatapé | F68: Antioquia-Guatapé
B69: 05 | C69: Antioquia | D69: 05347 | E69: Heliconia | F69: Antioquia-Heliconia
B70: 05 | C70: Antioquia | D70: 05353 | E70: Hispania | F70: Antioquia-Hispania
B71: 05 | C71: Antioquia | D71: 05360 | E71: Itagui | F71: Antioquia-Itagui
B72: 05 | C72: Antioquia | D72: 05361 | E72: Ituango | F72: Antioquia-Ituango
B73: 05 | C73: Antioquia | D73: 05364 | E73: Jardín | F73: Antioquia-Jardín
B74: 05 | C74: Antioquia | D74: 05368 | E74: Jericó | F74: Antioquia-Jericó
B75: 05 | C75: Antioquia | D75: 05376 | E75: La Ceja | F75: Antioquia-La Ceja
B76: 05 | C76: Antioquia | D76: 05380 | E76: La Estrella | F76: Antioquia-La Estrella
B77: 05 | C77: Antioquia | D77: 05390 | E77: La Pintada4 | F77: Antioquia-La Pintada4
B78: 05 | C78: Antioquia | D78: 05400 | E78: La Unión | F78: Antioquia-La Unión
B79: 05 | C79: Antioquia | D79: 05411 | E79: Liborina | F79: Antioquia-Liborina
B80: 05 | C80: Antioquia | D80: 05425 | E80: Maceo | F80: Antioquia-Maceo
B81: 05 | C81: Antioquia | D81: 05440 | E81: Marinilla | F81: Antioquia-Marinilla
B82: 05 | C82: Antioquia | D82: 05001 | E82: Medellín | F82: Antioquia-Medellín
B83: 05 | C83: Antioquia | D83: 05467 | E83: Montebello | F83: Antioquia-Montebello
B84: 05 | C84: Antioquia | D84: 05475 | E84: Murindó | F84: Antioquia-Murindó
B85: 05 | C85: Antioquia | D85: 05480 | E85: Mutatá | F85: Antioquia-Mutatá
B86: 05 | C86: Antioquia | D86: 05483 | E86: Nariño | F86: Antioquia-Nariño
B87: 05 | C87: Antioquia | D87: 05495 | E87: Nechí | F87: Antioquia-Nechí
B88: 05 | C88: Antioquia | D88: 05490 | E88: Necoclí | F88: Antioquia-Necoclí
B89: 05 | C89: Antioquia | D89: 05501 | E89: Olaya | F89: Antioquia-Olaya
B90: 05 | C90: Antioquia | D90: 05541 | E90: Peñol | F90: Antioquia-Peñol
B91: 05 | C91: Antioquia | D91: 05543 | E91: Peque | F91: Antioquia-Peque
B92: 05 | C92: Antioquia | D92: 05576 | E92: Pueblorrico | F92: Antioquia-Pueblorrico
B93: 05 | C93: Antioquia | D93: 05579 | E93: Puerto Berrío | F93: Antioquia-Puerto Berrío
B94: 05 | C94: Antioquia | D94: 05585 | E94: Puerto Nare (La Magdalena) | F94: Antioquia-Puerto Nare (La Magdalena)
B95: 05 | C95: Antioquia | D95: 05591 | E95: Puerto Triunfo | F95: Antioquia-Puerto Triunfo
B96: 05 | C96: Antioquia | D96: 05604 | E96: Remedios | F96: Antioquia-Remedios
B97: 05 | C97: Antioquia | D97: 05607 | E97: Retiro | F97: Antioquia-Retiro
B98: 05 | C98: Antioquia | D98: 05615 | E98: Rionegro | F98: Antioquia-Rionegro
B99: 05 | C99: Antioquia | D99: 05628 | E99: Sabanalarga | F99: Antioquia-Sabanalarga
B100: 05 | C100: Antioquia | D100: 05631 | E100: Sabaneta | F100: Antioquia-Sabaneta
B101: 05 | C101: Antioquia | D101: 05642 | E101: Salgar | F101: Antioquia-Salgar
B102: 05 | C102: Antioquia | D102: 05647 | E102: San Andrés | F102: Antioquia-San Andrés
B103: 05 | C103: Antioquia | D103: 05649 | E103: San Carlos | F103: Antioquia-San Carlos
B104: 05 | C104: Antioquia | D104: 05652 | E104: San Francisco | F104: Antioquia-San Francisco
B105: 05 | C105: Antioquia | D105: 05656 | E105: San Jerónimo | F105: Antioquia-San Jerónimo
B106: 05 | C106: Antioquia | D106: 05658 | E106: San José De La Montaña | F106: Antioquia-San José De La Montaña
B107: 05 | C107: Antioquia | D107: 05659 | E107: San Juan De Uraba | F107: Antioquia-San Juan De Uraba
B108: 05 | C108: Antioquia | D108: 05660 | E108: San Luis | F108: Antioquia-San Luis
B109: 05 | C109: Antioquia | D109: 05664 | E109: San Pedro | F109: Antioquia-San Pedro
B110: 05 | C110: Antioquia | D110: 05665 | E110: San Pedro De Uraba | F110: Antioquia-San Pedro De Uraba
B111: 05 | C111: Antioquia | D111: 05667 | E111: San Rafael | F111: Antioquia-San Rafael
B112: 05 | C112: Antioquia | D112: 05670 | E112: San Roque | F112: Antioquia-San Roque
B113: 05 | C113: Antioquia | D113: 05674 | E113: San Vicente | F113: Antioquia-San Vicente
B114: 05 | C114: Antioquia | D114: 05679 | E114: Santa Bárbara | F114: Antioquia-Santa Bárbara
B115: 05 | C115: Antioquia | D115: 05686 | E115: Santa Rosa De Osos | F115: Antioquia-Santa Rosa De Osos
B116: 05 | C116: Antioquia | D116: 05690 | E116: Santo Domingo | F116: Antioquia-Santo Domingo
B117: 05 | C117: Antioquia | D117: 05697 | E117: Santuario | F117: Antioquia-Santuario
B118: 05 | C118: Antioquia | D118: 05736 | E118: Segovia | F118: Antioquia-Segovia
B119: 05 | C119: Antioquia | D119: 05756 | E119: Sonson | F119: Antioquia-Sonson
B120: 05 | C120: Antioquia | D120: 05761 | E120: Sopetrán | F120: Antioquia-Sopetrán
B121: 05 | C121: Antioquia | D121: 05789 | E121: Támesis | F121: Antioquia-Támesis
B122: 05 | C122: Antioquia | D122: 05790 | E122: Taraza | F122: Antioquia-Taraza
B123: 05 | C123: Antioquia | D123: 05792 | E123: Tarso | F123: Antioquia-Tarso
B124: 05 | C124: Antioquia | D124: 05809 | E124: Titiribí | F124: Antioquia-Titiribí
B125: 05 | C125: Antioquia | D125: 05819 | E125: Toledo | F125: Antioquia-Toledo
B126: 05 | C126: Antioquia | D126: 05837 | E126: Turbo | F126: Antioquia-Turbo
B127: 05 | C127: Antioquia | D127: 05842 | E127: Uramita | F127: Antioquia-Uramita
B128: 05 | C128: Antioquia | D128: 05847 | E128: Urrao | F128: Antioquia-Urrao
B129: 05 | C129: Antioquia | D129: 05854 | E129: Valdivia | F129: Antioquia-Valdivia
B130: 05 | C130: Antioquia | D130: 05856 | E130: Valparaíso | F130: Antioquia-Valparaíso
B131: 05 | C131: Antioquia | D131: 05858 | E131: Vegachi | F131: =CONCATENATE(C131,"-",E131) -> Antioquia-Vegachi
B132: 05 | C132: Antioquia | D132: 05861 | E132: Venecia | F132: Antioquia-Venecia
B133: 05 | C133: Antioquia | D133: 05873 | E133: Vigía Del Fuerte | F133: Antioquia-Vigía Del Fuerte
B134: 05 | C134: Antioquia | D134: 05885 | E134: Yali | F134: Antioquia-Yali
B135: 05 | C135: Antioquia | D135: 05887 | E135: Yarumal | F135: Antioquia-Yarumal
B136: 05 | C136: Antioquia | D136: 05890 | E136: Yolombó | F136: Antioquia-Yolombó
B137: 05 | C137: Antioquia | D137: 05893 | E137: Yondó | F137: Antioquia-Yondó
B138: 05 | C138: Antioquia | D138: 05895 | E138: Zaragoza | F138: Antioquia-Zaragoza
B139: 81 | C139: Arauca | D139: 81001 | E139: Arauca | F139: Arauca-Arauca
B140: 81 | C140: Arauca | D140: 81065 | E140: Arauquita | F140: Arauca-Arauquita
B141: 81 | C141: Arauca | D141: 81220 | E141: Cravo Norte | F141: Arauca-Cravo Norte
B142: 81 | C142: Arauca | D142: 81300 | E142: Fortul | F142: Arauca-Fortul
B143: 81 | C143: Arauca | D143: 81591 | E143: Puerto Rondón | F143: Arauca-Puerto Rondón
B144: 81 | C144: Arauca | D144: 81736 | E144: Saravena | F144: Arauca-Saravena
B145: 81 | C145: Arauca | D145: 81794 | E145: Tame | F145: Arauca-Tame
B146: 08 | C146: Atlántico | D146: 08078 | E146: Baranoa | F146: Atlántico-Baranoa
B147: 08 | C147: Atlántico | D147: 08001 | E147: Barranquilla | F147: Atlántico-Barranquilla
B148: 08 | C148: Atlántico | D148: 08137 | E148: Campo de la Cruz | F148: Atlántico-Campo de la Cruz
B149: 08 | C149: Atlántico | D149: 08141 | E149: Candelaria | F149: Atlántico-Candelaria
B150: 08 | C150: Atlántico | D150: 08296 | E150: Galapa | F150: Atlántico-Galapa
B151: 08 | C151: Atlántico | D151: 08372 | E151: Juan de Acosta | F151: Atlántico-Juan de Acosta
B152: 08 | C152: Atlántico | D152: 08421 | E152: Luruaco | F152: Atlántico-Luruaco
B153: 08 | C153: Atlántico | D153: 08433 | E153: Malambo | F153: Atlántico-Malambo
B154: 08 | C154: Atlántico | D154: 08436 | E154: Manatí | F154: Atlántico-Manatí
B155: 08 | C155: Atlántico | D155: 08520 | E155: Palmar De Varela | F155: Atlántico-Palmar De Varela
B156: 08 | C156: Atlántico | D156: 08549 | E156: Piojó | F156: Atlántico-Piojó
B157: 08 | C157: Atlántico | D157: 08558 | E157: Polo Nuevo | F157: Atlántico-Polo Nuevo
B158: 08 | C158: Atlántico | D158: 08560 | E158: Ponedera | F158: Atlántico-Ponedera
B159: 08 | C159: Atlántico | D159: 08573 | E159: Puerto Colombia | F159: Atlántico-Puerto Colombia
B160: 08 | C160: Atlántico | D160: 08606 | E160: Repelón | F160: Atlántico-Repelón
B161: 08 | C161: Atlántico | D161: 08634 | E161: Sabanagrande | F161: Atlántico-Sabanagrande
B162: 08 | C162: Atlántico | D162: 08638 | E162: Sabanalarga | F162: Atlántico-Sabanalarga
B163: 08 | C163: Atlántico | D163: 08675 | E163: Santa Lucia | F163: Atlántico-Santa Lucia
B164: 08 | C164: Atlántico | D164: 08685 | E164: Santo Tomas | F164: Atlántico-Santo Tomas
B165: 08 | C165: Atlántico | D165: 08758 | E165: Soledad | F165: Atlántico-Soledad
B166: 08 | C166: Atlántico | D166: 08770 | E166: Suan | F166: Atlántico-Suan
B167: 08 | C167: Atlántico | D167: 08832 | E167: Tubará | F167: Atlántico-Tubará
B168: 08 | C168: Atlántico | D168: 08849 | E168: Usiacurí | F168: Atlántico-Usiacurí
B169: 11 | C169: BOGOTA D.C. | D169: 11001 | E169: Bogotá | F169: BOGOTA D.C.-Bogotá
B170: 13 | C170: Bolívar | D170: 13006 | E170: Achí5a | F170: Bolívar-Achí5a
B171: 13 | C171: Bolívar | D171: 13030 | E171: Altos del Rosario5 | F171: Bolívar-Altos del Rosario5
B172: 13 | C172: Bolívar | D172: 13042 | E172: Arenal6 | F172: Bolívar-Arenal6
B173: 13 | C173: Bolívar | D173: 13052 | E173: Arjona | F173: Bolívar-Arjona
B174: 13 | C174: Bolívar | D174: 13062 | E174: Arroyohondo7 | F174: Bolívar-Arroyohondo7
B175: 13 | C175: Bolívar | D175: 13074 | E175: Barranco de Loba | F175: Bolívar-Barranco de Loba
B176: 13 | C176: Bolívar | D176: 13140 | E176: Calamar | F176: Bolívar-Calamar
B177: 13 | C177: Bolívar | D177: 13160 | E177: Cantagallo8 | F177: Bolívar-Cantagallo8
B178: 13 | C178: Bolívar | D178: 13001 | E178: Cartagena | F178: Bolívar-Cartagena
B179: 13 | C179: Bolívar | D179: 13188 | E179: Cicuco9 | F179: Bolívar-Cicuco9
B180: 13 | C180: Bolívar | D180: 13222 | E180: Clemencia10 | F180: Bolívar-Clemencia10
B181: 13 | C181: Bolívar | D181: 13212 | E181: Córdoba | F181: Bolívar-Córdoba
B182: 13 | C182: Bolívar | D182: 13244 | E182: El Carmen de Bolívar | F182: Bolívar-El Carmen de Bolívar
B183: 13 | C183: Bolívar | D183: 13248 | E183: El Guamo | F183: Bolívar-El Guamo
B184: 13 | C184: Bolívar | D184: 13268 | E184: El Peñon11 | F184: Bolívar-El Peñon11
B185: 13 | C185: Bolívar | D185: 13300 | E185: Hatillo de Loba12 | F185: Bolívar-Hatillo de Loba12
B186: 13 | C186: Bolívar | D186: 13430 | E186: Magangue | F186: Bolívar-Magangue
B187: 13 | C187: Bolívar | D187: 13433 | E187: Mahates | F187: Bolívar-Mahates
B188: 13 | C188: Bolívar | D188: 13440 | E188: Margarita | F188: Bolívar-Margarita
B189: 13 | C189: Bolívar | D189: 13442 | E189: Maria la Baja | F189: Bolívar-Maria la Baja
B190: 13 | C190: Bolívar | D190: 13468 | E190: Mompos | F190: Bolívar-Mompos
B191: 13 | C191: Bolívar | D191: 13458 | E191: Montecristo13 | F191: Bolívar-Montecristo13
B192: 13 | C192: Bolívar | D192: 13473 | E192: Morales | F192: Bolívar-Morales
B193: 13 | C193: Bolívar | D193: 13490 | E193: Norosi | F193: Bolívar-Norosi
B194: 13 | C194: Bolívar | D194: 13549 | E194: Pinillos5a | F194: Bolívar-Pinillos5a
B195: 13 | C195: Bolívar | D195: 13580 | E195: Regidor14 | F195: =CONCATENATE(C195,"-",E195) -> Bolívar-Regidor14
B196: 13 | C196: Bolívar | D196: 13600 | E196: Río Viejo | F196: Bolívar-Río Viejo
B197: 13 | C197: Bolívar | D197: 13620 | E197: San Cristobal15 | F197: Bolívar-San Cristobal15
B198: 13 | C198: Bolívar | D198: 13647 | E198: San Estanislao | F198: Bolívar-San Estanislao
B199: 13 | C199: Bolívar | D199: 13650 | E199: San Fernando | F199: Bolívar-San Fernando
B200: 13 | C200: Bolívar | D200: 13654 | E200: San Jacinto | F200: Bolívar-San Jacinto
... 930 more rows

Sheet curva
C2: Curva de carga | N2: Factor de diversidad= | P2: 0.5
C4: Hora | D4: Potencia [kW]
C5: 0 | D5: 0.09165
C6: 1 | D6: 0.08813
C7: 2 | D7: 0.08658
C8: 3 | D8: 0.08609
C9: 4 | D9: 0.09082
C10: 5 | D10: 0.09872
C11: 6 | D11: 0.11321
C12: 7 | D12: 0.11334
C13: 8 | D13: 0.11154
C14: 9 | D14: 0.11674
C15: 10 | D15: 0.11857
C16: 11 | D16: 0.12294
C17: 12 | D17: 0.12001
C18: 13 | D18: 0.11718
C19: 14 | D19: 0.11596
C20: 15 | D20: 0.11773
C21: 16 | D21: 0.12246
C22: 17 | D22: 0.12396
C23: 18 | D23: 0.13507
C24: 19 | D24: 0.14985
C25: 20 | D25: 0.13709
C26: 21 | D26: 0.13499
C27: 22 | D27: 0.11189
C28: 23 | D28: 0.10036

Sheet asnm
B1: Altura sobre el nivel del mar
B5: cod_dane | C5: id_sitio | D5: Nombre_Sitio | E5: a.s.n.m upme | F5: a.s.n.m OR
B6: 05001 | C6: 51634 | D6: LA SUCIA | E6: 1433.778888
B7: 05001 | C7: 8969 | D7: MEDELLIN | E7: 1484.233399
B8: 05001 | C8: 12454 | D8: LOS POMOS | E8: 1507.878451
B9: 05001 | C9: 9772 | D9: AGUAS FR-AS | E9: 1680.359238
B10: 05001 | C10: 9776 | D10: SAN JOS+ DEL MANZANILLO | E10: 1707.15906
B11: 05001 | C11: 51635 | D11: LA ALDEA | E11: 1713.076505
B12: 05001 | C12: 9773 | D12: ALTAVISTA | E12: 1742.7645
B13: 05001 | C13: 51631 | D13: SAN PABLO | E13: 1774.807134
B14: 05001 | C14: 9774 | D14: LA LOMA | E14: 1843.769957
B15: 05001 | C15: 51625 | D15: LA ESPERANZA | E15: 1845.440702
B16: 05001 | C16: 51623 | D16: LA VERDE | E16: 1890.118382
B17: 05001 | C17: 51653 | D17: PAJARITO | E17: 1918.263619
B18: 05001 | C18: 51626 | D18: BUGA PATIO BONITO | E18: 1919.666835
B19: 05001 | C19: 51619 | D19: SAN JOS╔ | E19: 1932.293293
B20: 05001 | C20: 51627 | D20: EL SALADO | E20: 1957.48161
B21: 05001 | C21: 51624 | D21: EL JARD═N | E21: 1960.736796
B22: 05001 | C22: 51648 | D22: LA PLAYAS | E22: 1988.214419
B23: 05001 | C23: 51630 | D23: EL CORAZËN EL MORRO | E23: 2010.575666
B24: 05001 | C24: 51652 | D24: EL PICACHO | E24: 2078.219131
B25: 05001 | C25: 51622 | D25: MONTANITA | E25: 2086.471418
B26: 05001 | C26: 9775 | D26: PEDREGAL ALTO | E26: 2086.77752
B27: 05001 | C27: 9778 | D27: TRAVESIAS | E27: 2098.487746
B28: 05001 | C28: 51644 | D28: EL LLANO | E28: 2099.540681
B29: 05001 | C29: 51637 | D29: LA SUIZA | E29: 2125.929007
B30: 05001 | C30: 51660 | D30: MEDIA LUNA | E30: 2146.826297
B31: 05001 | C31: 51633 | D31: POTRERA MISERENGA | E31: 2191.619109
B32: 05001 | C32: 51659 | D32: LAS PALMAS | E32: 2200.549639
B33: 05001 | C33: 51647 | D33: LA PALMA | E33: 2227.101785
B34: 05001 | C34: 51620 | D34: LA FLORIDA | E34: 2236.645367
B35: 05001 | C35: 51643 | D35: LA CUCHILLA | E35: 2245.428192
B36: 05001 | C36: 51621 | D36: POTRERITO | E36: 2247.872558
B37: 05001 | C37: 51628 | D37: YARUMALITO | E37: 2250.224474
B38: 05001 | C38: 51638 | D38: LA FRISOLA | E38: 2251.710703
B39: 05001 | C39: 51636 | D39: SECTOR CENTRAL | E39: 2252.715831
B40: 05001 | C40: 51629 | D40: EL ASTILLERO | E40: 2258.712941
B41: 05001 | C41: 51645 | D41: EL UVITO | E41: 2269.679516
B42: 05001 | C42: 51651 | D42: EL CARMELO | E42: 2302.536397
B43: 05001 | C43: 51641 | D43: NARANJAL | E43: 2307.433199
B44: 05001 | C44: 51649 | D44: LA ILUSIËN | E44: 2374.96032
B45: 05001 | C45: 51640 | D45: BOQUERON | E45: 2378.487277
B46: 05001 | C46: 51646 | D46: EL PATIO | E46: 2410.633443
B47: 05001 | C47: 51639 | D47: VOLCANA GUAYABAL | E47: 2416.772993
B48: 05001 | C48: 51632 | D48: URQUITA | E48: 2418.327378
B49: 05001 | C49: 51655 | D49: MAZO | E49: 2451.124746
B50: 05001 | C50: 51650 | D50: EL YOLOMBO | E50: 2457.357558
B51: 05001 | C51: 51642 | D51: SAN JOS╔ DE LA MONTAÐA | E51: 2459.381964
B52: 05001 | C52: 51654 | D52: PIEDRAS BLANCAS-MATASANO | E52: 2502.226916
B53: 05001 | C53: 4956 | D53: PALMITAS | E53: 2505.023944
B54: 05001 | C54: 51663 | D54: BARRO BLANCO | E54: 2509.417392
B55: 05001 | C55: 51662 | D55: PIEDRA GORDA | E55: 2545.622708
B56: 05001 | C56: 51661 | D56: EL PLACER | E56: 2567.747507
B57: 05001 | C57: 51657 | D57: EL LLANO (SANTA ELENA) | E57: 2588.837297
B58: 05001 | C58: 51656 | D58: EL CERRO | E58: 2590.063101
B59: 05001 | C59: 9777 | D59: SANTA ELENA | E59: 2590.505737
B60: 05001 | C60: 51658 | D60: EL PLAN | E60: 2634.904806
B61: 05002 | C61: 51667 | D61: LLANADAS | E61: 855.733631
B62: 05002 | C62: 12687 | D62: LA LOMA PARTE ALTA | E62: 1107.287466
B63: 05002 | C63: 40351 | D63: EL VESUBIO | E63: 1170.45002
B64: 05002 | C64: 12725 | D64: MATA DE GUADUA | E64: 1191.606619
B65: 05002 | C65: 4410 | D65: Pantanillo | E65: 1232.541463
B66: 05002 | C66: 12684 | D66: CAÐAVERAL | E66: 1248.093884
B67: 05002 | C67: 12704 | D67: ALTO BONITO | E67: 1268.631663
B68: 05002 | C68: 12683 | D68: LA LOMA PARTE BAJA | E68: 1304.657014
B69: 05002 | C69: 12668 | D69: MORROGORDO | E69: 1332.527367
B70: 05002 | C70: 40492 | D70: LLANO GRANDE | E70: 1394.911898
B71: 05002 | C71: 12757 | D71: EL CARMELO | E71: 1456.305679
B72: 05002 | C72: 12742 | D72: PURIMA | E72: 1466.221894
B73: 05002 | C73: 12669 | D73: LA PRIMAVERA | E73: 1483.368299
B74: 05002 | C74: 40383 | D74: LA SALTADERA | E74: 1564.389623
B75: 05002 | C75: 9595 | D75: GUAYABAL | E75: 1685.07948
B76: 05002 | C76: 40495 | D76: LA PERDIDA | E76: 1769.707992
B77: 05002 | C77: 40499 | D77: LA NUBIA | E77: 1816.413866
B78: 05002 | C78: 40496 | D78: MONTEL ORO - EL REPOSO | E78: 1818.404587
B79: 05002 | C79: 12713 | D79: SAN BERNARDO | E79: 1821.092159
B80: 05002 | C80: 12709 | D80: LOS RASTROJOS | E80: 1824.493043
B81: 05002 | C81: 40385 | D81: EL GUAICO | E81: 1857.900165
B82: 05002 | C82: 12720 | D82: LA SAMARIA | E82: 1870.429326
B83: 05002 | C83: 40498 | D83: EL VOLCAN | E83: 1872.962379
B84: 05002 | C84: 12688 | D84: NARANJAL | E84: 1878.24468
B85: 05002 | C85: 40384 | D85: VEREDA ALTAMIRA | E85: 1885.048614
B86: 05002 | C86: 12715 | D86: SAN JOSE | E86: 1941.641165
B87: 05002 | C87: 12707 | D87: CORINTO | E87: 1961.085214
B88: 05002 | C88: 40382 | D88: EL MORRON | E88: 1978.192472
B89: 05002 | C89: 12702 | D89: SANTA ANA | E89: 2028.059997
B90: 05002 | C90: 51664 | D90: SAN PEDRO | E90: 2048.534701
B91: 05002 | C91: 40500 | D91: LA POLKA | E91: 2056.500929
B92: 05002 | C92: 12705 | D92: SOTAYAC | E92: 2076.277011
B93: 05002 | C93: 192 | D93: GUARANGO | E93: 2079.723052
B94: 05002 | C94: 40086 | D94: EL GRANADILLO | E94: 2083.560561
B95: 05002 | C95: 12716 | D95: LA CASCADA | E95: 2098.128764
B96: 05002 | C96: 6452 | D96: ABEJORRAL | E96: 2150.252597
B97: 05002 | C97: 40502 | D97: PIEDRA CANELA | E97: 2151.273324
B98: 05002 | C98: 51665 | D98: EL CARRIZAL | E98: 2153.432206
B99: 05002 | C99: 12813 | D99: CARRIZALES | E99: 2158.687312
B100: 05002 | C100: 12733 | D100: LA VICTORIA | E100: 2175.60441
B101: 05002 | C101: 12699 | D101: LA PE¡A | E101: 2187.15559
B102: 05002 | C102: 12799 | D102: QUEBRADONA ABAJO | E102: 2213.954468
B103: 05002 | C103: 12748 | D103: AURES EL SILENCIO | E103: 2214.252772
B104: 05002 | C104: 12853 | D104: AURES ARRIBA | E104: 2216.390006
B105: 05002 | C105: 3399 | D105: PORTUGAL | E105: 2218.046528
B106: 05002 | C106: 40501 | D106: LA ESPERANZA | E106: 2240.218116
B107: 05002 | C107: 51666 | D107: VEREDA ALTO DE LETRAS | E107: 2242.06097
B108: 05002 | C108: 12759 | D108: LA LABOR | E108: 2250.67886
B109: 05002 | C109: 12696 | D109: LA FLORIDA | E109: 2273.21284
B110: 05002 | C110: 12706 | D110: SAN VICENTE | E110: 2280.457168
B111: 05002 | C111: 12734 | D111: LA CIRCITA | E111: 2291.146984
B112: 05002 | C112: 40055 | D112: EL CHAGUALO | E112: 2293.470161
B113: 05002 | C113: 3411 | D113: EL ERIZO | E113: 2312.106913
B114: 05002 | C114: 12820 | D114: EL BUEY - COLMENAS | E114: 2323.309935
B115: 05002 | C115: 12731 | D115: LA BETULIA | E115: 2362.35276
B116: 05002 | C116: 12732 | D116: SAN LUIS | E116: 2364.924324
B117: 05002 | C117: 9131 | D117: CHAGUALA | E117: 2382.437475
B118: 05002 | C118: 12858 | D118: SAN BARTOLOME | E118: 2393.406764
B119: 05002 | C119: 40056 | D119: COMBIA | E119: 2406.675387
B120: 05002 | C120: 40058 | D120: EL BUEY | E120: 2422.358888
B121: 05002 | C121: 40504 | D121: GUAYAQUIL | E121: 2433.902842
B122: 05002 | C122: 40497 | D122: PANTANO NEGRO | E122: 2437.886426
B123: 05002 | C123: 40057 | D123: VEREDA YARUMAL | E123: 2442
B124: 05002 | C124: 12749 | D124: SANTA CATALINA | E124: 2467.297584
B125: 05002 | C125: 12783 | D125: QUEBRADANEGRA | E125: 2615.603801
B126: 05002 | C126: 40353 | D126: VEREDA QUEBRADONA ARRIBA | E126: 2726.927085
B127: 05002 | C127: 40503 | D127: LA CORDILLERA | E127: 2837.56732
B128: 05004 | C128: 41269 | D128: LAS JUNTAS | E128: 1847.787729
B129: 05004 | C129: 12007 | D129: POTREROS | E129: 1912.435453
B130: 05004 | C130: 2996 | D130: LA ANTIGUA | E130: 1945.782124
B131: 05004 | C131: 7039 | D131: ABRIAQUI | E131: 1947.516901
B132: 05004 | C132: 12006 | D132: LA TIMOTEA | E132: 1949.670532
B133: 05004 | C133: 12016 | D133: SANTA TERESA | E133: 1988.738171
B134: 05004 | C134: 11967 | D134: LA NANCUI | E134: 2007.471992
B135: 05004 | C135: 12014 | D135: EL EDEN | E135: 2121.819745
B136: 05004 | C136: 11970 | D136: PIEDRAS | E136: 2307.323047
B137: 05004 | C137: 12011 | D137: EL CEJEN | E137: 2322.116142
B138: 05004 | C138: 41270 | D138: SAN RUPERTO | E138: 2368.48001
B139: 05004 | C139: 41268 | D139: MONOS | E139: 2405.270502
B140: 05004 | C140: 12025 | D140: CORCOBADO | E140: 2454.818014
B141: 05004 | C141: 11968 | D141: SAN JOSE | E141: 2498.908537
B142: 05021 | C142: 40905 | D142: EL RESPALDO | E142: 1257.888893
B143: 05021 | C143: 41568 | D143: SAN JOSE | E143: 1335.227596
B144: 05021 | C144: 41557 | D144: EL CERRO | E144: 1348.212285
B145: 05021 | C145: 41566 | D145: LA INMACULADA | E145: 1389.450242
B146: 05021 | C146: 41564 | D146: LA PAVA | E146: 1410.520702
B147: 05021 | C147: 41570 | D147: SAN LORENZO | E147: 1411.678154
B148: 05021 | C148: 41565 | D148: PIEDRAS | E148: 1464.697999
B149: 05021 | C149: 41571 | D149: SAN MIGUEL | E149: 1583.201776
B150: 05021 | C150: 41572 | D150: EL POPO | E150: 1635.906644
B151: 05021 | C151: 5882 | D151: ALEJANDRIA | E151: 1648.833612
B152: 05021 | C152: 41569 | D152: TOCAIMA | E152: 1674.729844
B153: 05021 | C153: 40775 | D153: EL CARBON | E153: 1693.070622
B154: 05021 | C154: 41567 | D154: CRUCES | E154: 1701.574548
B155: 05021 | C155: 40908 | D155: REMOLINO | E155: 1792.504817
B156: 05021 | C156: 916 | D156: SANTA RITA | E156: 1848.734254
B157: 05021 | C157: 40954 | D157: SAN PEDRO | E157: 1916.84646
B158: 05030 | C158: 41106 | D158: NECHI | E158: 1280.041207
B159: 05030 | C159: 41093 | D159: EL GUAIMARAL | E159: 1305.308557
B160: 05030 | C160: 41121 | D160: LA FERRERIA | E160: 1341.519156
B161: 05030 | C161: 12440 | D161: TRAVESIAS | E161: 1344.631981
B162: 05030 | C162: 41114 | D162: PIEDECUESTA | E162: 1391.361408
B163: 05030 | C163: 41120 | D163: LA GUALI | E163: 1391.596957
B164: 05030 | C164: 12424 | D164: PUEBLITO DE SAN JOSE | E164: 1408.934319
B165: 05030 | C165: 12495 | D165: CARRILERA LOS ALTICOS | E165: 1426.359595
B166: 05030 | C166: 228 | D166: CAMILOCE | E166: 1476.953242
B167: 05030 | C167: 41109 | D167: LA DELGADITA | E167: 1515.633618
B168: 05030 | C168: 229 | D168: LA CLARITA | E168: 1517.305342
B169: 05030 | C169: 2255 | D169: AMAGA | E169: 1526.267355
B170: 05030 | C170: 41111 | D170: EL MORRO | E170: 1550.547386
B171: 05030 | C171: 41122 | D171: EL CEDRO | E171: 1567.349626
B172: 05030 | C172: 41113 | D172: LAS PEÐAS | E172: 1627.529966
B173: 05030 | C173: 12475 | D173: PUEBLITO DE LOS SANCHEZ | E173: 1734.252904
B174: 05030 | C174: 41112 | D174: MANI DEL CARDAL | E174: 1735.044814
B175: 05030 | C175: 41132 | D175: MINAS | E175: 1741.108239
B176: 05030 | C176: 40976 | D176: MALABRIGO | E176: 1781.458029
B177: 05030 | C177: 41110 | D177: YARUMAL | E177: 1785.285395
B178: 05030 | C178: 41098 | D178: PUEBLITO DE LOS BOLIVARES | E178: 1879.42741
B179: 05030 | C179: 41124 | D179: NICANOR RESTREPO | E179: 1889.710382
B180: 05031 | C180: 13176 | D180: EL CA¡AL | E180: 308.4154552
B181: 05031 | C181: 13184 | D181: LOS TOROS | E181: 488.6259514
B182: 05031 | C182: 13244 | D182: SAN MIGUEL | E182: 528.5759183
B183: 05031 | C183: 13209 | D183: LA VETILLA | E183: 536.7924599
B184: 05031 | C184: 41292 | D184: CRUCERO MATA | E184: 562.4077428
B185: 05031 | C185: 13145 | D185: EL NARANJAL | E185: 709.9297552
B186: 05031 | C186: 13243 | D186: PAVAS | E186: 717.5596223
B187: 05031 | C187: 13219 | D187: EL TIGRILLO | E187: 792.5333827
B188: 05031 | C188: 13202 | D188: JARDIN | E188: 845.4679869
B189: 05031 | C189: 13180 | D189: CRUCES | E189: 858.9707327
B190: 05031 | C190: 13178 | D190: TINITA | E190: 859.6407119
B191: 05031 | C191: 7386 | D191: EL TIGRE | E191: 868.5561184
B192: 05031 | C192: 13130 | D192: TINITACITA | E192: 906
B193: 05031 | C193: 13200 | D193: EL DORADO | E193: 950
B194: 05031 | C194: 13230 | D194: EL CASTILLO | E194: 991.4128794
B195: 05031 | C195: 13217 | D195: LA PICARDIA | E195: 1000.266839
B196: 05031 | C196: 13040 | D196: MARIA TERESA | E196: 1009.419051
B197: 05031 | C197: 13095 | D197: EL ENCANTO | E197: 1035.35483
B198: 05031 | C198: 4490 | D198: RIO MONOS | E198: 1074.791539
B199: 05031 | C199: 13227 | D199: ARENAS BLANCAS | E199: 1134.354008
B200: 05031 | C200: 13189 | D200: MONDRAGON | E200: 1139.281913
B201: 05031 | C201: 13157 | D201: ROMAZON | E201: 1140.936592
B202: 05031 | C202: 51670 | D202: EL LAGARTO | E202: 1150.746432
B203: 05031 | C203: 917 | D203: LA MANGUITA | E203: 1181.461404
... 4297 more rows

Sheet CU_OR
A1: CU a diciembre 2017
A2: Operador de Red | B2: G | C2: T | D2: D4 | E2: D3 | F2: D2 | G2: D1 | H2: Cv | I2: Pr1 | J2: Rm | K2: CU MAX $/KWh | L2: AOM | M2: Cargo N1 AOM $/KWh | O2: Pérdidas N1 | P2: Pérdidas N2 | R2: CU - (D2+D1) | T2: Resolución | U2: Nueva Resolución Recurso de Reposición | V2: Mercado | W2: Fecha | Y2: PR1 referidas al STN | Z2: PR2 referidas al STN
A3: CEDENAR | B3: 180.56 | C3: 29.69 | D3: 18.14 | E3: 29.10793378 | F3: 97.53585857 | G3: 49.31780929 | H3: 102.42 | I3: 34.03 | J3: 27.41 | K3: 568.2116016 | L3: 0.0227 | M3: 7.949339207 | R3: =+K3-F3-G3 -> 421.3579338 | T3: CREG 019-2010 | U3: NA | V3: NARIÑO | W3: Diciembre de 2017
A4: CODENSA | B4: 166.4274 | C4: 29.6865 | D4: 18.1358 | E4: 42.37646689 | F4: 65.17149256 | G4: 49.13213552 | H4: 42.0833 | I4: 30.5592 | J4: 25.6544 | K4: 469.226695 | L4: 0.0244 | M4: 9.815286885 | R4: 354.9230669 | T4: CREG 100-2009 | U4: CREG 199-2016 | V4: BOGOTA | W4: Diciembre de 2017
A5: CETSA | B5: 170.05 | C5: 29.69 | D5: 18.14 | E5: 38.2345136 | F5: 81.28226258 | G5: 44.24748717 | H5: 50.56 | I5: 29.09 | J5: 24.72 | K5: 486.0142633 | L5: 0.0354 | M5: 5.56 | R5: 360.4845136 | T5: CREG 115-2009 | U5: NA | V5: TULUA | W5: Diciembre de 2017
A6: ENERTOLIMA | B6: 178.1058 | C6: 29.6864 | D6: 18.1358 | E6: 31.96445329 | F6: 129.0861165 | G6: 42.24792351 | H6: 65.8168 | I6: 33.6555 | J6: 27.024 | K6: 555.7227933 | L6: 0.0262 | M6: 3.606183206 | R6: 384.3887533 | T6: CREG 112-2009 | U6: CREG 015-2012, CREG 027 2010 (AOM) | V6: TOLIMA | W6: Diciembre de 2017
A7: ELECTROHUILA | B7: 164.8395 | C7: 29.6865 | D7: 18.1358 | E7: 41.00533753 | F7: 153.8664233 | G7: 60.20114861 | H7: 73.5022 | I7: 31.4608 | J7: 24.9307 | K7: 597.6284094 | L7: 0.0243 | M7: 11.36 | R7: 383.5608375 | T7: CREG 111-2009 | U7: NA | V7: HUILA | W7: Diciembre de 2017
A8: EMSA | B8: 171.66 | C8: 29.69 | D8: 18.14 | E8: 42.904923 | F8: 107.6907854 | G8: 40.5911422 | H8: 56.99 | I8: 32.57 | J8: 27.53 | K8: 527.7668506 | L8: 0.0335 | M8: 6.16 | R8: 379.484923 | T8: CREG 102-2009 | U8: CREG 234-2015 | V8: META | W8: Diciembre de 2017
A9: ENELAR | B9: 177.16 | C9: 29.69 | D9: 17.9708 | E9: 113.3038463 | F9: 296.9494854 | G9: 58.03019379 | H9: 108.52 | I9: 33.5 | J9: 33.11 | K9: 868.2343254 | L9: 0.023 | M9: 7.98 | R9: =+K9-F9-G9 -> 513.2546463 | T9: CREG 142-2009 | U9: NA | V9: ARAUCA | W9: Diciembre de 2017
A10: ENERCA | B10: 186.6146 | C10: 29.6865 | D10: 17.2759 | E10: 79.56835087 | F10: 109.976001 | G10: 61.85792993 | H10: 55.0908 | I10: 35.0311 | J10: 27.3054 | K10: 602.4065818 | L10: 0.0293 | M10: 13.33 | R10: 430.5726509 | T10: CREG 123-2009 | U10: CREG 084-2012 | V10: CASANARE | W10: Diciembre de 2017
A11: EDEQ | B11: 174.88 | C11: 29.69 | D11: 18.14 | E11: 38.70583932 | F11: 132.0283316 | G11: 64.60018866 | H11: 60.51 | I11: 30.22 | J11: 25.52 | K11: 574.2943596 | L11: 0.0465 | M11: 15.03 | R11: 377.6658393 | T11: CREG 106-2009 | U11: CREG 173-2009 | V11: QUINDIO | W11: Diciembre de 2017
A12: EMEVASI | B12: 174.7635 | C12: 29.6865 | E12: 66.6568827 | F12: 209.9970316 | G12: 79.43980749 | H12: 139.503 | I12: 33.1095 | J12: 28.5521 | K12: 761.7083218 | L12: 0.026 | M12: 15.58 | R12: 472.2714827 | T12: CREG 143-2009 | U12: NA | V12: SIBUNDOY | W12: Diciembre de 2017
A13: ENERGUAVIARE | B13: 168.2262 | C13: 29.6865 | D13: 17.08 | E13: 125.9725103 | F13: 84.25304286 | G13: 31.26460601 | H13: 107.9632 | I13: 32.0018 | J13: 23.5757 | K13: 620.0235591 | L13: 0.0418 | M13: 3.03 | R13: 504.5059103 | T13: CREG 089-2010 | U13: NA | V13: GUAVIARE | W13: Diciembre de 2017
A14: EEPEREIRA-Caldas | B14: 184.8 | C14: 29.69 | D14: 18.14 | E14: 31.96445329 | F14: 73.08405159 | G14: 49.01787474 | H14: 15.35 | I14: 34.73 | J14: 23.99 | K14: 460.7663796 | L14: 0.0347 | M14: 8.392132565 | R14: 338.6644533 | T14: CREG 107-2009 | U14: CREG 012-2015 | V14: CALDAS | W14: Diciembre de 2017
A15: EEPEREIRA-Pereira | B15: 183.65 | C15: 29.69 | D15: 18.14 | E15: 31.96445329 | F15: 73.08405159 | G15: 49.01787474 | H15: 61.17 | I15: 34.54 | J15: 23.99 | K15: 505.2463796 | L15: 0.0347 | M15: 8.392132565 | R15: 383.1444533 | T15: CREG 107-2009 | U15: CREG 012-2015 | V15: PEREIRA | W15: Diciembre de 2017
A16: EMCALI | B16: 196.5051 | C16: 29.6865 | D16: 18.14 | E16: 19.95278876 | F16: 45.96139887 | G16: 35.54938527 | H16: 39.601 | I16: 36.7052 | J16: 26.297 | K16: 448.3983729 | L16: 0.0412 | M16: 5.32 | R16: 366.8875888 | T16: CREG 116-2009 | U16: CREG 167-2009 | V16: CALI | W16: Diciembre de 2017
A17: EPSA | B17: 171.45 | C17: 29.69 | D17: 18.14 | E17: 46.56126797 | F17: 131.1428106 | G17: 56.90186858 | H17: 73.06 | I17: 32.53 | J17: 25.33 | K17: 584.8059471 | L17: 0.0341 | M17: 7.73 | R17: 396.761268 | T17: CREG 114-2009 | U17: CREG 024-2010 | V17: CAUCA | W17: Diciembre de 2017
A18: DISPAC | B18: 188.86 | C18: 29.69 | D18: 17.13 | E18: 0 | F18: 65.44286191 | G18: 36.84910164 | H18: 121.35 | I18: 35.46 | J18: 29.34 | K18: 524.1219636 | L18: 0.0329 | M18: 4.24 | R18: 421.83 | T18: CREG 108-2009 | U18: CREG 133-2014 | V18: CHOCO | W18: Diciembre de 2017
A19: EMCARTAGO | B19: 128.19 | C19: 29.69 | D19: 18.14 | E19: 19.38148486 | F19: 41.10531571 | G19: 52.50282854 | H19: 45.01 | I19: 25.43 | J19: 28.08 | K19: 387.5296291 | L19: 0.0356 | M19: 11.39 | R19: 293.9214849 | T19: CREG 117-2009 | U19: NA | V19: CARTAGO | W19: Diciembre de 2017
A20: EPM | B20: 168 | C20: 29.69 | D20: 16.65 | E20: 28.06530416 | F20: 93.02255775 | G20: 51.13169918 | H20: 40.91 | I20: 31.62 | J20: 24.29 | K20: 483.3795611 | L20: 0.0359 | M20: 9.604902507 | R20: 339.2253042 | T20: CREG 105-2009 | U20: CREG 026-2010 | V20: ANTIOQUIA UNIFICADO CREG078 | W20: Diciembre de 2017
A21: EEC | B21: 166.4274 | C21: 29.6865 | D21: 18.1358 | E21: 42.37646689 | F21: 65.17149256 | G21: 49.13213552 | H21: 42.0833 | I21: 30.5592 | J21: 25.6544 | K21: 469.226695 | L21: 0.0244 | M21: 9.815286885 | R21: 354.9230669 | T21: CREG 101-2009 | U21: CREG 199-2016 | V21: CUNDINAMARCA | W21: Diciembre de 2017
A22: ELECTRICARIBE | B22: 153.2 | C22: 29.98 | D22: 18.68595 | E22: 34.50675565 | F22: 55.85923896 | G22: 48.77507059 | H22: 62.96 | I22: 29.91 | J22: 23.56 | K22: 457.4370152 | L22: 0.0456 | M22: 9.9 | R22: 352.8027056 | T22: CREG 110-2009 | U22: NA | V22: COSTA ATLANTICA | W22: Febrero de 2018
A23: EBSA | B23: 175.7496 | C23: 29.6865 | D23: 18.1358 | E23: 56.2020213 | F23: 178.503904 | G23: 70.29894507 | H23: 84.5716 | I23: 33.2288 | J23: 26.7912 | K23: 673.1683704 | L23: 0.0264 | M23: 13.03 | R23: 424.3655213 | T23: CREG 120-2009 | U23: CREG 029-2015 | V23: BOYACA | W23: Diciembre de 2017
A24: EEBP | B24: 173.779 | C24: 29.686 | D24: 18.1358 | E24: 77.32598306 | F24: 145.996712 | G24: 39.53422998 | H24: 83.71 | I24: 32.934 | J24: 28.453 | K24: 629.5547251 | L24: 0.0138 | M24: 2.84 | R24: 444.0237831 | T24: CREG 104-2009 | U24: NA | V24: BAJO PUTUMAYO | W24: Diciembre de 2017
A25: EEPUTUMAYO | B25: 182.4877 | C25: 29.6865 | D25: 18.1358 | E25: 47.21826745 | F25: 154.2377708 | G25: 45.96139887 | H25: 64.0911 | I25: 34.3976 | J25: 29.1296 | K25: 605.3457371 | L25: 0.0292 | M25: 4.45 | R25: 405.1465675 | T25: CREG 103-2009 | U25: NA | V25: PUTUMAYO | W25: Diciembre de 2017
A26: CENS | B26: 170.48 | C26: 29.69 | D26: 17.13 | E26: 37.17760139 | F26: 93.93664399 | G26: 52.61708932 | H26: 51.41 | I26: 32.39 | J26: 26.53 | K26: 511.3613347 | L26: 0.0419 | M26: 13.4 | R26: 364.8076014 | T26: CREG 122-2009 | U26: NA | V26: NORTE DE SANTANDER | W26: Diciembre de 2017
A27: ESSA | B27: 173.2892 | C27: 29.6865 | D27: 18.1358 | E27: 26.6798922 | F27: 135.3418943 | G27: 74.66941992 | H27: 53.9615 | I27: 32.8403 | J27: 26.7949 | K27: 571.3994064 | L27: 0.0223 | M27: 9.410044843 | R27: 361.3880922 | T27: CREG 121-2009 | U27: CREG 172-2009 | V27: SANTANDER | W27: Diciembre de 2017
A28: CHEC | B28: 169.2323 | C28: 29.6864 | D28: 18.1358 | E28: 28.56519507 | F28: 124.4157071 | G28: 73.39826874 | H28: 79.2854 | I28: 32.1625 | J28: 26.9706 | K28: 581.8521709 | L28: 0.0205 | M28: 25.91707317 | R28: 384.0381951 | T28: CREG 109-2009 | U28: CREG 170-2009 | V28: CALDAS | W28: Diciembre de 2017
A29: CEO | B29: 171.7393 | C29: 29.6865 | D29: 18.1358 | E29: 48.47513604 | F29: 156.9943121 | G29: 65.32860113 | H29: 114.7925 | I29: 32.6366 | J29: 26.8485 | K29: 664.6372493 | L29: 0.0304 | M29: 10.2 | R29: 442.314336 | T29: CREG 118-2009 | U29: CREG 061-2014 | V29: CAUCA | W29: Diciembre de 2017
A30: RUITOQUE | B30: 229.63 | C30: 29.69 | D30: 18.14 | E30: 27.72252182 | F30: 138.3840875 | G30: 101.9634638 | H30: 37.72 | I30: 41.21 | J30: 24.48 | K30: 648.9400732 | L30: 0.0484 | M30: 39 | R30: 408.5925218 | T30: CREG 124 -2009 | U30: CREG 172-2009 | V30: SANTANDER | W30: Diciembre de 2017
A31: ELECTROCAQUETA | B31: 155.3 | C31: 29.687 | D31: 17.131 | E31: 43.96183522 | F31: 148.3961884 | G31: 63.12908111 | H31: 91.798 | I31: 29.88 | J31: 27.112 | K31: 606.3951047 | L31: 0.0226 | M31: 11.78 | R31: 394.8698352 | T31: CREG 113-2009 | U31: NA | V31: CAQUETÁ | W31: Diciembre de 2017
A32: EMPRESA MUNICIPAL

Sheet datosB (hidden)
D6: Tasa retorno SDL | E6: 0.124
D7: meses del año | E7: 12
D8: IPP con base 2016: | E8: 1
D9: años para atender la demanda | E9: 30
D13: Vida util N1 años | E13: 30
D14: Vida util N2 años | E14: 30

Sheet UC_Res015
A1: Unidades Constructivas Res. CREG 015 DE 2018
A2: Tabla | B2: UC | C2: Vida Útil | D2: DESCRIPCIÓN | E2: VALOR INSTALADO [$ dic 2017] | F2: =+datosB!F8 -> 0
A3: 11 | B3: N2S1 | C3: 30 | D3: Bahía de línea - configuración barra sencilla - tipo convencional | E3: 227716000 | F3: =+E3*datosB!$E$8 -> 227716000
A4: 11 | B4: N2S2 | C4: 30 | D4: Bahía de transformador - configuración barra sencilla - tipo convencional | E4: 178793000 | F4: =+E4*datosB!$E$8 -> 178793000
A5: 11 | B5: N2S3 | C5: 30 | D5: Bahía de línea - configuración barra doble - tipo convencional | E5: 278297000 | F5: =+E5*datosB!$E$8 -> 278297000
A6: 11 | B6: N2S4 | C6: 30 | D6: Bahía de transformador - configuración barra doble - tipo convencional | E6: 281220000 | F6: =+E6*datosB!$E$8 -> 281220000
A7: 11 | B7: N2S5 | C7: 30 | D7: Bahía de línea - configuración barra principal y transferencia - tipo convencional | E7: 281194000 | F7: =+E7*datosB!$E$8 -> 281194000
A8: 11 | B8: N2S6 | C8: 30 | D8: Bahía de transformador - configuración barra principal y transferencia - tipo convencional | E8: 284177000 | F8: =+E8*datosB!$E$8 -> 284177000
A9: 11 | B9: N2S7 | C9: 30 | D9: Bahía de línea - subestación reducida | E9: 84103000 | F9: =+E9*datosB!$E$8 -> 84103000
A10: 11 | B10: N2S8 | C10: 30 | D10: Bahía de acople o seccionamiento (configuraciones en que aplica) - tipo convencional | E10: 221565000 | F10: =+E10*datosB!$E$8 -> 221565000
A11: 11 | B11: N2S9 | C11: 30 | D11: Celda de salida de circuito - subestación tipo interior | E11: 100599000 | F11: =+E11*datosB!$E$8 -> 100599000
A12: 11 | B12: N2S10 | C12: 30 | D12: Celda de llegada de transformador - barra sencilla - subestación tipo interior-aire | E12: 100599000 | F12: =+E12*datosB!$E$8 -> 100599000
A13: 11 | B13: N2S11 | C13: 30 | D13: Celda de interconexión o de acople - barra sencilla - subestación tipo interior-aire | E13: 100599000 | F13: =+E13*datosB!$E$8 -> 100599000
A14: 11 | B14: N2S12 | C14: 30 | D14: Celda de medida o auxiliares - barra sencilla - subestación tipo interior-aire | E14: 49624000 | F14: =+E14*datosB!$E$8 -> 49624000
A15: 11 | B15: N2S14 | C15: 30 | D15: Cables llegada transformador - subestación tipo interior-aire | E15: 85610000 | F15: =+E15*datosB!$E$8 -> 85610000
A16: 11 | B16: N2S15 | C16: 30 | D16: Celda de salida de circuito - doble barra - subestación tipo interior-aire | E16: 100599000 | F16: =+E16*datosB!$E$8 -> 100599000
A17: 11 | B17: N2S16 | C17: 30 | D17: Celda de llegada de transformador - doble barra - subestación tipo interior-aire | E17: 100599000 | F17: =+E17*datosB!$E$8 -> 100599000
A18: 11 | B18: N2S17 | C18: 30 | D18: Celda de interconexión o de acople - doble barra - subestación tipo interior-aire | E18: 100599000 | F18: =+E18*datosB!$E$8 -> 100599000
A19: 11 | B19: N2S18 | C19: 30 | D19: Celda de medida o auxiliares - doble barra - subestación tipo interior-aire | E19: 49446000 | F19: =+E19*datosB!$E$8 -> 49446000
A20: 11 | B20: N2S20 | C20: 30 | D20: Módulo de barraje - barra sencilla tipo 1 | E20: 49786000 | F20: =+E20*datosB!$E$8 -> 49786000
A21: 11 | B21: N2S21 | C21: 30 | D21: Módulo de barraje - barra sencilla tipo 2 | E21: 70931000 | F21: =+E21*datosB!$E$8 -> 70931000
A22: 11 | B22: N2S22 | C22: 30 | D22: Módulo de barraje - barra sencilla tipo 3 | E22: 70980000 | F22: =+E22*datosB!$E$8 -> 70980000
A23: 11 | B23: N2S23 | C23: 30 | D23: Módulo de barraje - barra doble tipo 1 | E23: 56761000 | F23: =+E23*datosB!$E$8 -> 56761000
A24: 11 | B24: N2S24 | C24: 30 | D24: Módulo de barraje - barra doble tipo 2 | E24: 107702000 | F24: =+E24*datosB!$E$8 -> 107702000
A25: 11 | B25: N2S25 | C25: 30 | D25: Módulo de barraje - barra doble tipo 3 | E25: 133221000 | F25: =+E25*datosB!$E$8 -> 133221000
A26: 11 | B26: N2S26 | C26: 30 | D26: Módulo de barraje - barra principal y transferencia - tipo 1 | E26: 56761000 | F26: =+E26*datosB!$E$8 -> 56761000
A27: 11 | B27: N2S27 | C27: 30 | D27: Módulo de barraje - barra principal y transferencia - tipo 2 | E27: 107702000 | F27: =+E27*datosB!$E$8 -> 107702000
A28: 11 | B28: N2S28 | C28: 30 | D28: Módulo de barraje - barra principal y transferencia - tipo 3 | E28: 133221000 | F28: =+E28*datosB!$E$8 -> 133221000
A29: 11 | B29: N2S60 | C29: 45 | D29: Gabinete de salida - subestación aislada en SF6 - barra sencilla | E29: 223191000 | F29: =+E29*datosB!$E$8 -> 223191000
A30: 11 | B30: N2S61 | C30: 45 | D30: Módulo común/bahía - tipo 1 (1 a 3 bahías) tipo convencional o encapsulada exterior | E30: 73167000 | F30: =+E30*datosB!$E$8 -> 73167000
A31: 11 | B31: N2S62 | C31: 45 | D31: Módulo común/bahía - tipo 2 (4 a 6 bahías) tipo convencional o encapsulada exterior | E31: 58337000 | F31: =+E31*datosB!$E$8 -> 58337000
A32: 11 | B32: N2S63 | C32: 45 | D32: Módulo común/bahía - tipo 3 (más de 6 bahías) tipo convencional o encapsulada exterior | E32: 56926000 | F32: =+E32*datosB!$E$8 -> 56926000
A33: 11 | B33: N2S64 | C33: 45 | D33: Módulo común/bahía - tipo 4 - tipo interior | E33: 40513000 | F33: =+E33*datosB!$E$8 -> 40513000
A34: 14 | B34: N2L70 | C34: 45 | D34: Poste de concreto de 12 m 510 kg - suspensión | E34: 3215000 | F34: =+E34*datosB!$E$8 -> 3215000
A35: 14 | B35: N2L71 | C35: 45 | D35: Poste de concreto de 12 m 1050 kg - retención | E35: 4226000 | F35: =+E35*datosB!$E$8 -> 4226000
A36: 14 | B36: N2L72 | C36: 45 | D36: Poste de concreto de 12 m 750 kg - retención | E36: 4086000 | F36: =+E36*datosB!$E$8 -> 4086000
A37: 14 | B37: N2L73 | C37: 45 | D37: Poste de PRFV de 12 m 510 kg - suspensión | E37: 5315000 | F37: =+E37*datosB!$E$8 -> 5315000
A38: 14 | B38: N2L74 | C38: 45 | D38: Poste de PRFV de 12 m 1050 kg - retención | E38: 7383000 | F38: =+E38*datosB!$E$8 -> 7383000
A39: 14 | B39: N2L75 | C39: 45 | D39: Poste de PRFV de 12 m 750 kg - retención | E39: 6029000 | F39: =+E39*datosB!$E$8 -> 6029000
A40: 14 | B40: N2L76 | C40: 45 | D40: Canalización urbana 2x4" | E40: 369585000 | F40: =+E40*datosB!$E$8 -> 369585000
A41: 14 | B41: N2L77 | C41: 45 | D41: Canalización urbana 4x4" | E41: 525751000 | F41: =+E41*datosB!$E$8 -> 525751000
A42: 14 | B42: N2L78 | C42: 45 | D42: Canalización urbana 6x4" | E42: 550569000 | F42: =+E42*datosB!$E$8 -> 550569000
A43: 14 | B43: N2L79 | C43: 45 | D43: Canalización urbana 6x4" y 3x6" | E43: 828685000 | F43: =+E43*datosB!$E$8 -> 828685000
A44: 14 | B44: N2L80 | C44: 45 | D44: km de conductor (3 fases) ACSR 4 AWG | E44: 10968000 | F44: =+E44*datosB!$E$8 -> 10968000
A45: 14 | B45: N2L81 | C45: 45 | D45: km de conductor (3 fases) ACSR 2 AWG | E45: 12347000 | F45: =+E45*datosB!$E$8 -> 12347000
A46: 14 | B46: N2L82 | C46: 45 | D46: km de conductor (3 fases) ACSR 1 AWG | E46: 13383000 | F46: =+E46*datosB!$E$8 -> 13383000
A47: 14 | B47: N2L83 | C47: 45 | D47: km de conductor (3 fases) ACSR 1/0 AWG | E47: 14814000 | F47: =+E47*datosB!$E$8 -> 14814000
A48: 14 | B48: N2L84 | C48: 45 | D48: km de conductor (3 fases) ACSR 2/0 AWG | E48: 16647000 | F48: =+E48*datosB!$E$8 -> 16647000
A49: 14 | B49: N2L85 | C49: 45 | D49: km de conductor (3 fases) ACSR 3/0 AWG | E49: 21807000 | F49: =+E49*datosB!$E$8 -> 21807000
A50: 14 | B50: N2L86 | C50: 45 | D50: km de conductor (3 fases) ACSR 4/0 AWG | E50: 25134000 | F50: =+E50*datosB!$E$8 -> 25134000
A51: 14 | B51: N2L87 | C51: 45 | D51: km de conductor (3 fases) ACSR 266 kcmil | E51: 29314000 | F51: =+E51*datosB!$E$8 -> 29314000
A52: 14 | B52: N2L88 | C52: 45 | D52: km de conductor (3 fases) ACSR 336 kcmil | E52: 34942000 | F52: =+E52*datosB!$E$8 -> 34942000
A53: 14 | B53: N2L89 | C53: 45 | D53: km de conductor (3 fases) ACSR 397 kcmil | E53: 40231000 | F53: =+E53*datosB!$E$8 -> 40231000
A54: 14 | B54: N2L90 | C54: 45 | D54: km de conductor (3 fases) ACSR 477 kcmil | E54: 47372000 | F54: =+E54*datosB!$E$8 -> 47372000
A55: 14 | B55: N2L91 | C55: 45 | D55: km de conductor (3 fases) ACSR 605 kcmil | E55: 55555000 | F55: =+E55*datosB!$E$8 -> 55555000
A56: 14 | B56: N2L92 | C56: 45 | D56: km de conductor (3 fases) ACSR 795 kcmil | E56: 72689000 | F56: =+E56*datosB!$E$8 -> 72689000
A57: 14 | B57: N2L93 | C57: 45 | D57: km de conductor (3 fases) semiaislado 4 AWG | E57: 11668000 | F57: =+E57*datosB!$E$8 -> 11668000
A58: 14 | B58: N2L94 | C58: 45 | D58: km de conductor (3 fases) semiaislado 2 AWG | E58: 15099000 | F58: =+E58*datosB!$E$8 -> 15099000
A59: 14 | B59: N2L95 | C59: 45 | D59: km de conductor (3 fases) semiaislado 1 AWG | E59: 18277000 | F59: =+E59*datosB!$E$8 -> 18277000
A60: 14 | B60: N2L96 | C60: 45 | D60: km de conductor (3 fases) semiaislado 1/0 AWG | E60: 23386000 | F60: =+E60*datosB!$E$8 -> 23386000
A61: 14 | B61: N2L97 | C61: 45 | D61: km de conductor (3 fases) semiaislado 2/0 AWG | E61: 30990000 | F61: =+E61*datosB!$E$8 -> 30990000
A62: 14 | B62: N2L98 | C62: 45 | D62: km de conductor (3 fases) semiaislado 3/0 AWG | E62: 54035000 | F62: =+E62*datosB!$E$8 -> 54035000
A63: 14 | B63: N2L99 | C63: 45 | D63: km de conductor (3 fases) semiaislado 4/0 AWG | E63: 72635000 | F63: =+E63*datosB!$E$8 -> 72635000
A64: 14 | B64: N2L100 | C64: 45 | D64: km de conductor (3 fases) semiaislado 266 kcmil | E64: 99764000 | F64: =+E64*datosB!$E$8 -> 99764000
A65: 14 | B65: N2L101 | C65: 45 | D65: km de conductor (3 fases) semiaislado 336 kcmil | E65: 142081000 | F65: =+E65*datosB!$E$8 -> 142081000
A66: 14 | B66: N2L102 | C66: 45 | D66: km de conductor (3 fases) semiaislado 477 kcmil | E66: 255642000 | F66: =+E66*datosB!$E$8 -> 255642000
A67: 14 | B67: N2L103 | C67: 45 | D67: km de conductor (3 fases) semiaislado 795 kcmil | E67: 556564000 | F67: =+E67*datosB!$E$8 -> 556564000
A68: 14 | B68: N2L104 | C68: 45 | D68: km de conductor (3 fases) cobre 2 AWG | E68: 50629000 | F68: =+E68*datosB!$E$8 -> 50629000
A69: 14 | B69: N2L105 | C69: 45 | D69: km de conductor (3 fases) cobre 1/0 AWG | E69: 63813000 | F69: =+E69*datosB!$E$8 -> 63813000
A70: 14 | B70: N2L106 | C70: 45 | D70: km de conductor (3 fases) cobre 2/0 AWG | E70: 70839000 | F70: =+E70*datosB!$E$8 -> 70839000
A71: 14 | B71: N2L107 | C71: 45 | D71: km de conductor (3 fases) EPR 2 AWG | E71: 141574000 | F71: =+E71*datosB!$E$8 -> 141574000
A72: 14 | B72: N2L108 | C72: 45 | D72: km de conductor (3 fases) EPR 1 AWG | E72: 146874000 | F72: =+E72*datosB!$E$8 -> 146874000
A73: 14 | B73: N2L109 | C73: 45 | D73: km de conductor (3 fases) EPR 1/0 AWG | E73: 153109000 | F73: =+E73*datosB!$E$8 -> 153109000
A74: 14 | B74: N2L110 | C74: 45 | D74: km de conductor (3 fases) EPR 2/0 AWG | E74: 160129000 | F74: =+E74*datosB!$E$8 -> 160129000
A75: 14 | B75: N2L111 | C75: 45 | D75: km de conductor (3 fases) EPR 3/0 AWG | E75: 170883000 | F75: =+E75*datosB!$E$8 -> 170883000
A76: 14 | B76: N2L112 | C76: 45 | D76: km de conductor (3 fases) EPR 4/0 AWG | E76: 179806000 | F76: =+E76*datosB!$E$8 -> 179806000
A77: 14 | B77: N2L113 | C77: 45 | D77: km de conductor (3 fases) EPR 250 kcmil | E77: 188373000 | F77: =+E77*datosB!$E$8 -> 188373000
A78: 14 | B78: N2L114 | C78: 45 | D78: km de conductor (3 fases) EPR 300 kcmil | E78: 196640000 | F78: =+E78*datosB!$E$8 -> 196640000
A79: 14 | B79: N2L115 | C79: 45 | D79: km de conductor (3 fases) EPR 350 kcmil | E79: 204216000 | F79: =+E79*datosB!$E$8 -> 204216000
A80: 14 | B80: N2L116 | C80: 45 | D80: km de conductor (3 fases) EPR 400 kcmil | E80: 211219000 | F80: =+E80*datosB!$E$8 -> 211219000
A81: 14 | B81: N2L117 | C81: 45 | D81: km de conductor (3 fases) EPR 500 kcmil | E81: 223874000 | F81: =+E81*datosB!$E$8 -> 223874000
A82: 14 | B82: N2L118 | C82: 45 | D82: km de conductor (3 fases) EPR 600 kcmil | E82: 235460000 | F82: =+E82*datosB!$E$8 -> 235460000
A83: 14 | B83: N2L119 | C83: 45 | D83: km de conductor (3 fases) EPR 750 kcmil | E83: 253195000 | F83: =+E83*datosB!$E$8 -> 253195000
A84: 14 | B84: N2L120 | C84: 45 | D84: km de conductor (3 fases) aluminio 2 AWG | E84: 61657000 | F84: =+E84*datosB!$E$8 -> 61657000
A85: 14 | B85: N2L121 | C85: 45 | D85: km de conductor (3 fases) aluminio 1/0 AWG | E85: 73820000 | F85: =+E85*datosB!$E$8 -> 73820000
A86: 14 | B86: N2L122 | C86: 45 | D86: km de conductor (3 fases) aluminio 4/0 AWG | E86: 112173000 | F86: =+E86*datosB!$E$8 -> 112173000
A87: 14 | B87: N2L123 | C87: 45 | D87: km de conductor (3 fases) aluminio 500 kcmil | E87: 167631000 | F87: =+E87*datosB!$E$8 -> 167631000
A88: 14 | B88: N2L124 | C88: 45 | D88: km de conductor (3 fases) aluminio 750 kcmil | E88: 225110000 | F88: =+E88*datosB!$E$8 -> 225110000
A89: 14 | B89: N2L125 | C89: 45 | D89: km de conductor (3 fases) de cobre aislado XLP o EPR, 15 kV- 4 AWG | E89: 180956000 | F89: =+E89*datosB!$E$8 -> 180956000
A90: 14 | B90: N2L126 | C90: 45 | D90: km de conductor (3 fases) de cobre aislado XLP o EPR, 15 kV- 2 AWG | E90: 186256000 | F90: =+E90*datosB!$E$8 -> 186256000
A91: 14 | B91: N2L127 | C91: 45 | D91: km de conductor (3 fases) de cobre aislado XLP o EPR, 15 kV- 1/0 AWG | E91: 192490000 | F91: =+E91*datosB!$E$8 -> 192490000
A92: 14 | B92: N2L128 | C92: 45 | D92: km de conductor (3 fases) de cobre aislado XLP o EPR, 15 kV- 2/0 AWG | E92: 199510000 | F92: =+E92*datosB!$E$8 -> 199510000
A93: 14 | B93: N2L129 | C93: 45 | D93: km de conductor (3 fases) de cobre aislado XLP o EPR, 15 kV- 3/0 AWG | E93: 207720000 | F93: =+E93*datosB!$E$8 -> 207720000
A94: 14 | B94: N2L130 | C94: 45 | D94: km de conductor (3 fases) de cobre aislado XLP o EPR, 15 kV- 4/0 AWG | E94: 216643000 | F94: =+E94*datosB!$E$8 -> 216643000
A95: 14 | B95: N2L131 | C95: 45 | D95: km de conductor (3 fases) de cobre aislado XLP o EPR, 15 kV- 300 Kcmil | E95: 225210000 | F95: =+E95*datosB!$E$8 -> 225210000
A96: 14 | B96: N2L132 | C96: 45 | D96: km de conductor (3 fases) de cobre aislado XLP o EPR, 15 kV- 350 Kcmil | E96: 233477000 | F96: =+E96*datosB!$E$8 -> 233477000
A97: 14 | B97: N2L133 | C97: 45 | D97: km de conductor (3 fases) de cobre aislado XLP o EPR, 15 kV- 400 Kcmil | E97: 241053000 | F97: =+E97*datosB!$E$8 -> 241053000
A98: 14 | B98: N2L134 | C98: 45 | D98: km de conductor (3 fases) AAAC aislado XLP o EPR, 15 kV- 500 Kcmil | E98: 248056000 | F98: =+E98*datosB!$E$8 -> 248056000
A99: 14 | B99: N2L135 | C99: 45 | D99: km de conductor (3 fases) AAAC aislado XLP o EPR, 15 kV- 750 Kcmil | E99: 260711000 | F99: =+E99*datosB!$E$8 -> 260711000
A100: 14 | B100: N2L136 | C100: 45 | D100: Cable de Guarda | E100: 2960000 | F100: =+E100*datosB!$E$8 -> 2960000
A101: 14 | B101: N2L137 | C101: 45 | D101: Sistema de puesta a tierra diseño típico | E101: 270000 | F101: =+E101*datosB!$E$8 -> 270000
A102: 14 | B102: N2L138 | C102: 45 | D102: Poste metálico de 12 m 750 kg | E102: 3778000 | F102: =+E102*datosB!$E$8 -> 3778000
A103: 14 | B103: N2L139 | C103: 45 | D103: Poste metálico de 12 m 1050 kg | E103: 5111000 | F103: =+E103*datosB!$E$8 -> 5111000
A104: 19 | B104: N2EQ1 | C104: 45 | D104: Barraje de derivación subterráneo - N2 | E104: 3199000 | F104: =+E104*datosB!$E$8 -> 3199000
A105: 19 | B105: N2EQ2 | C105: 45 | D105: Caja de maniobra - N2 | E105: 21684000 | F105: =+E105*datosB!$E$8 -> 21684000
A106: 19 | B106: N2EQ3 | C106: 10 | D106: Control de bancos de capacitores | E106: 44429000 | F106: =+E106*datosB!$E$8 -> 44429000
A107: 19 | B107: N2EQ4 | C107: 45 | D107: Banco de condensadores montaje en poste 150 kVAr | E107: 10061000 | F107: =+E107*datosB!$E$8 -> 10061000
A108: 19 | B108: N2EQ5 | C108: 45 | D108: Banco de condensadores montaje en poste 300 kVAr | E108: 19187000 | F108: =+E108*datosB!$E$8 -> 19187000
A109: 19 | B109: N2EQ6 | C109: 45 | D109: Banco de condensadores montaje en poste 450 kVAr | E109: 28312000 | F109: =+E109*datosB!$E$8 -> 28312000
A110: 19 | B110: N2EQ7 | C110: 45 | D110: Banco de condensadores montaje en poste 600 kVAr | E110: 37437000 | F110: =+E110*datosB!$E$8 -> 37437000
A111: 19 | B111: N2EQ8 | C111: 45 | D111: Banco de condensadores montaje en poste 900 kVAr | E111: 55688000 | F111: =+E111*datosB!$E$8 -> 55688000
A112: 19 | B112: N2EQ9 | C112: 45 | D112: Cortacircuitos monopolar - N2 | E112: 484000 | F112: =+E112*datosB!$E$8 -> 484000
A113: 19 | B113: N2EQ10 | C113: 10 | D113: Equipo de medida - N2 | E113: 1023000 | F113: =+E113*datosB!$E$8 -> 1023000
A114: 19 | B114: N2EQ11 | C114: 45 | D114: Indicador falla - N2 | E114: 1124000 | F114: =+E114*datosB!$E$8 -> 1124000
A115: 19 | B115: N2EQ12 | C115: 45 | D115: Juego cortacircuitos - N2 | E115: 1200000 | F115: =+E115*datosB!$E$8 -> 1200000
A116: 19 | B116: N2EQ13 | C116: 45 | D116: Juego cuchillas de operación sin carga - N2 | E116: 1003000 | F116: =+E116*datosB!$E$8 -> 1003000
A117: 19 | B117: N2EQ14 | C117: 45 | D117: Pararrayos - N2 | E117: 482000 | F117: =+E117*datosB!$E$8 -> 482000
A118: 19 | B118: N2EQ15 | C118: 45 | D118: Juego pararrayos - N2 | E118: 962000 | F118: =+E118*datosB!$E$8 -> 962000
A119: 19 | B119: N2EQ16 | C119: 45 | D119: Juego de seccionadores tripolar bajo carga - N2 | E119: 27881000 | F119: =+E119*datosB!$E$8 -> 27881000
A120: 19 | B120: N2EQ18 | C120: 45 | D120: Regulador de voltaje trifásicos de distribución - N2 | E120: 197054000 | F120: =+E120*datosB!$E$8 -> 197054000
A121: 19 | B121: N2EQ19 | C121: 45 | D121: Regulador de voltaje monofásico hasta 50 kVA - N2 | E121: 31678000 | F121: =+E121*datosB!$E$8 -> 31678000
A122: 19 | B122: N2EQ20 | C122: 45 | D122: Regulador de voltaje monofásico hasta 150 kVA - N2 | E122: 39037000 | F122: =+E122*datosB!$E$8 -> 39037000
A123: 19 | B123: N2EQ21 | C123: 45 | D123: Regulador de voltaje monofásico hasta 276 kVA - N2 | E123: 48929000 | F123: =+E123*datosB!$E$8 -> 48929000
A124: 19 | B124: N2EQ22 | C124: 45 | D124: Regulador de voltaje monofásico hasta 500 kVA - N2 | E124: 78916000 | F124: =+E124*datosB!$E$8 -> 78916000
A125: 19 | B125: N2EQ23 | C125: 45 | D125: Regulador de voltaje monofásico hasta 1000 kVA - N2 | E125: 122089000 | F125: =+E125*datosB!$E$8 -> 122089000
A126: 19 | B126: N2EQ24 | C126: 45 | D126: Seccionador monopolar - N2 | E126: 655000 | F126: =+E126*datosB!$E$8 -> 655000
A127: 19 | B127: N2EQ25 | C127: 45 | D127: Seccionador trifásico vacío - N2 | E127: 1060000 | F127: =+E127*datosB!$E$8 -> 1060000
A128: 19 | B128: N2EQ26 | C128: 45 | D128: Seccionalizador con control inteligente, 400 A - N2 | E128: 24698000 | F128: =+E128*datosB!$E$8 -> 24698000
A129: 19 | B129: N2EQ27 | C129: 45 | D129: Seccionalizador eléctrico en SF6, 400 A -N2 | E129: 20843000 | F129: =+E129*datosB!$E$8 -> 20843000
A130: 19 | B130: N2EQ28 | C130: 45 | D130: Seccionalizador motorizado - N2 | E130: 24174000 | F130: =+E130*datosB!$E$8 -> 24174000
A131: 19 | B131: N2EQ29 | C131: 45 | D131: Seccionalizador manual (bajo carga), 400 A - N2 | E131: 20319000 | F131: =+E131*datosB!$E$8 -> 20319000
A132: 19 | B132: N2EQ30 | C132: 45 | D132: Interruptor en aire bajo carga - N2 | E132: 10329000 | F132: =+E132*datosB!$E$8 -> 10329000
A133: 19 | B133: N2EQ31 | C133: 45 | D133: Transición aérea - subterránea - N2 | E133: 1260000 | F133: =+E133*datosB!$E$8 -> 1260000
A134: 19 | B134: N2EQ34 | C134: 10 | D134: Unidad de calidad de potencia (PQ) CREG 024 de 2005 | E134: 23943000 | F134: =+E134*datosB!$E$8 -> 23943000
A135: 19 | B135: N2EQ35 | C135: 45 | D135: Reconectador - N2 | E135: 45399000 | F135: =+E135*datosB!$E$8 -> 45399000
A136: 19 | B136: N2EQ36 | C136: 30 | D136: Interruptor de transferencia en SF6 - N2 | E136: 68018000 | F136: =+E136*datosB!$E$8 -> 68018000
A137: 19 | B137: N2EQ37 | C137: 30 | D137: Transformador de puesta a tierra | E137: 140528000 | F137: =+E137*datosB!$E$8 -> 140528000
A138: 19 | B138: N2EQ38 | C138: 30 | D138: Transformador de tensión - N2 | E138: 5571000 | F138: =+E138*datosB!$E$8 -> 5571000
A139: 19 | B139: N2EQ39 | C139: 15 | D139: Transformador de tensión (pedestal) - N2 | E139: 7121000 | F139: =+E139*datosB!$E$8 -> 7121000
A140: 19 | B140: N2EQ40 | C140: 30 | D140: Transformador de corriente - N2 | E140: 3570000 | F140: =+E140*datosB!$E$8 -> 3570000
A141: 25 | B141: N1P1 | C141: 35 | D141: Poste de concreto - 8 m - urbano - suspensión - red común | E141: 654000 | F141: =+E141*datosB!$E$8 -> 654000
A142: 25 | B142: N1P2 | C142: 35 | D142: Poste de concreto - 10 m - urbano - suspensión - red común | E142: 820000 | F142: =+E142*datosB!$E$8 -> 820000
A143: 25 | B143: N1P3 | C143: 35 | D143: Poste de concreto - 12 m - urbano- suspensión - red común | E143: 1019000 | F143: =+E143*datosB!$E$8 -> 1019000
A144: 25 | B144: N1P4 | C144: 35 | D144: Poste de madera - 8 m - urbano - suspensión - red común | E144: 671000 | F144: =+E144*datosB!$E$8 -> 671000
A145: 25 | B145: N1P5 | C145: 35 | D145: Poste de madera - 10 m - urbano- suspensión - red común | E145: 813000 | F145: =+E145*datosB!$E$8 -> 813000
A146: 25 | B146: N1P6 | C146: 35 | D146: Poste de madera - 12 m - urbano- suspensión - red común | E146: 911000 | F146: =+E146*datosB!$E$8 -> 911000
A147: 25 | B147: N1P7 | C147: 35 | D147: Poste de metálico - 8 m -urbano- suspensión - red común | E147: 846000 | F147: =+E147*datosB!$E$8 -> 846000
A148: 25 | B148: N1P8 | C148: 35 | D148: Poste de metálico - 10 m - urbano- suspensión - red común | E148: 1054000 | F148: =+E148*datosB!$E$8 -> 1054000
A149: 25 | B149: N1P9 | C149: 35 | D149: Poste de metálico - 12 m - urbano- suspensión - red común | E149: 1263000 | F149: =+E149*datosB!$E$8 -> 1263000
A150: 25 | B150: N1P10 | C150: 35 | D150: Poste de fibra de vidrio - 8 m - urbano- suspensión - red común | E150: 1234000 | F150: =+E150*datosB!$E$8 -> 1234000
A151: 25 | B151: N1P11 | C151: 35 | D151: Poste de fibra de vidrio - 10 m - urbano- suspensión - red común | E151: 1883000 | F151: =+E151*datosB!$E$8 -> 1883000
A152: 25 | B152: N1P12 | C152: 35 | D152: Poste de fibra de vidrio - 12 m - urbano- suspensión - red común | E152: 2109000 | F152: =+E152*datosB!$E$8 -> 2109000
A153: 25 | B153: N1P13 | C153: 35 | D153: Poste de concreto - 8 m - rural- suspensión - red común | E153: 758000 | F153: =+E153*datosB!$E$8 -> 758000
A154: 25 | B154: N1P14 | C154: 35 | D154: Poste de concreto -10 m - rural- suspensión - red común | E154: 925000 | F154: =+E154*datosB!$E$8 -> 925000
A155: 25 | B155: N1P15 | C155: 35 | D155: Poste de concreto - 12 m - rural- suspensión - red común | E155: 1123000 | F155: =+E155*datosB!$E$8 -> 1123000
A156: 25 | B156: N1P16 | C156: 35 | D156: Poste de madera - 8 m - rural- suspensión - red común | E156: 775000 | F156: =+E156*datosB!$E$8 -> 775000
A157: 25 | B157: N1P17 | C157: 35 | D157: Poste de madera - 10 m - rural- suspensión - red común | E157: 917000 | F157: =+E157*datosB!$E$8 -> 917000
A158: 25 | B158: N1P18 | C158: 35 | D158: Poste de madera - 12 m - rural- suspensión - red común | E158: 1015000 | F158: =+E158*datosB!$E$8 -> 1015000
A159: 25 | B159: N1P19 | C159: 35 | D159: Poste de metálico - 8 m - rural- suspensión - red común | E159: 950000 | F159: =+E159*datosB!$E$8 -> 950000
A160: 25 | B160: N1P20 | C160: 35 | D160: Poste de metálico - 10 m - rural- suspensión - red común | E160: 1159000 | F160: =+E160*datosB!$E$8 -> 1159000
A161: 25 | B161: N1P21 | C161: 35 | D161: Poste de metálico - 12 m - rural- suspensión - red común | E161: 1367000 | F161: =+E161*datosB!$E$8 -> 1367000
A162: 25 | B162: N1P22 | C162: 35 | D162: Poste de fibra de vidrio - 8 m - rural- suspensión - red común | E162: 1338000 | F162: =+E162*datosB!$E$8 -> 1338000
A163: 25 | B163: N1P23 | C163: 35 | D163: Poste de fibra de vidrio - 10 m - rural- suspensión - red común | E163: 1987000 | F163: =+E163*datosB!$E$8 -> 1987000
A164: 25 | B164: N1P24 | C164: 35 | D164: Poste de fibra de vidrio - 12 m - rural- suspensión - red común | E164: 2214000 | F164: =+E164*datosB!$E$8 -> 2214000
A165: 25 | B165: N1P25 | C165: 35 | D165: Poste de concreto - 8 m - urbano - retención - red común | E165: 697000 | F165: =+E165*datosB!$E$8 -> 697000
A166: 25 | B166: N1P26 | C166: 35 | D166: Poste de concreto - 10 m - urbano - retención - red común | E166: =864*1000 -> 864000 | F166: =+E166*datosB!$E$8 -> 864000
A167: 25 | B167: N1P27 | C167: 35 | D167: Poste de concreto - 12 m - urbano- retención - red común | E167: 1063000 | F167: =+E167*datosB!$E$8 -> 1063000
A168: 25 | B168: N1P28 | C168: 35 | D168: Poste de madera - 8 m - urbano - retención - red común | E168: 715000 | F168: =+E168*datosB!$E$8 -> 715000
A169: 25 | B169: N1P29 | C169: 35 | D169: Poste de madera - 10 m - urbano- retención - red común | E169: 857000 | F169: =+E169*datosB!$E$8 -> 857000
A170: 25 | B170: N1P30 | C170: 35 | D170: Poste de madera - 12 m - urbano- retención - red común | E170: 954000 | F170: =+E170*datosB!$E$8 -> 954000
A171: 25 | B171: N1P31 | C171: 35 | D171: Poste de metálico - 8 m -urbano- retención - red común | E171: 1102000 | F171: =+E171*datosB!$E$8 -> 1102000
A172: 25 | B172: N1P32 | C172: 35 | D172: Poste de metálico - 10 m - urbano- retención - red común | E172: 1757000 | F172: =+E172*datosB!$E$8 -> 1757000
A173: 25 | B173: N1P33 | C173: 35 | D173: Poste de metálico - 12 m - urbano- retención - red común | E173: 2412000 | F173: =+E173*datosB!$E$8 -> 2412000
A174: 25 | B174: N1P34 | C174: 35 | D174: Poste de fibra de vidrio - 8 m - urbano- retención - red común | E174: 1277000 | F174: =+E174*datosB!$E$8 -> 1277000
A175: 25 | B175: N1P35 | C175: 35 | D175: Poste de fibra de vidrio - 10 m - urbano- retención - red común | E175: 1927000 | F175: =+E175*datosB!$E$8 -> 1927000
A176: 25 | B176: N1P36 | C176: 35 | D176: Poste de fibra de vidrio - 12 m - urbano- retención - red común | E176: 2153000 | F176: =+E176*datosB!$E$8 -> 2153000
A177: 25 | B177: N1P37 | C177: 35 | D177: Poste de concreto - 8 m - rural- retención - red común | E177: 801000 | F177: =+E177*datosB!$E$8 -> 801000
A178: 25 | B178: N1P38 | C178: 35 | D178: Poste de concreto -10 m - rural- retención - red común | E178: 968000 | F178: =+E178*datosB!$E$8 -> 968000
A179: 25 | B179: N1P39 | C179: 35 | D179: Poste de concreto - 12 m - rural- retención - red común | E179: 1167000 | F179: =+E179*datosB!$E$8 -> 1167000
A180: 25 | B180: N1P40 | C180: 35 | D180: Poste de madera - 8 m - rural- retención - red común | E180: 819000 | F180: =+E180*datosB!$E$8 -> 819000
A181: 25 | B181: N1P41 | C181: 35 | D181: Poste de madera - 10 m - rural- retención - red común | E181: 961000 | F181: =+E181*datosB!$E$8 -> 961000
A182: 25 | B182: N1P42 | C182: 35 | D182: Poste de madera - 12 m - rural- retención - red común | E182: 1058000 | F182: =+E182*datosB!$E$8 -> 1058000
A183: 25 | B183: N1P43 | C183: 35 | D183: Poste de metálico - 8 m - rural- retención - red común | E183: 1206000 | F183: =+E183*datosB!$E$8 -> 1206000
A184: 25 | B184: N1P44 | C184: 35 | D184: Poste de metálico - 10 m - rural- retención - red común | E184: 1861000 | F184: =+E184*datosB!$E$8 -> 1861000
A185: 25 | B185: N1P45 | C185: 35 | D185: Poste de metálico - 12 m - rural- retención - red común | E185: 2516000 | F185: =+E185*datosB!$E$8 -> 2516000
A186: 25 | B186: N1P46 | C186: 35 | D186: Poste de fibra de vidrio - 8 m - rural- retención - red común | E186: 1381000 | F186: =+E186*datosB!$E$8 -> 1381000
A187: 25 | B187: N1P47 | C187: 35 | D187: Poste de fibra de vidrio - 10 m - rural- retención - red común | E187: 2031000 | F187: =+E187*datosB!$E$8 -> 2031000
A188: 25 | B188: N1P48 | C188: 35 | D188: Poste de fibra de vidrio - 12 m - rural- retención - red común | E188: 2257000 | F188: =+E188*datosB!$E$8 -> 2257000
A189: 25 | B189: N1P49 | C189: 35 | D189: Poste de concreto - 8 m - urbano - suspensión - red trenzada | E189: 646000 | F189: =+E189*datosB!$E$8 -> 646000
A190: 25 | B190: N1P50 | C190: 35 | D190: Poste de concreto - 10 m - urbano - suspensión - red trenzada | E190: 813000 | F190: =+E190*datosB!$E$8 -> 813000
A191: 25 | B191: N1P51 | C191: 35 | D191: Poste de concreto - 12 m - urbano- suspensión - red trenzada | E191: 1011000 | F191: =+E191*datosB!$E$8 -> 1011000
A192: 25 | B192: N1P52 | C192: 35 | D192: Poste de madera - 8 m - urbano - suspensión - red trenzada | E192: 663000 | F192: =+E192*datosB!$E$8 -> 663000
A193: 25 | B193: N1P53 | C193: 35 | D193: Poste de madera - 10 m - urbano- suspensión - red trenzada | E193: 805000 | F193: =+E193*datosB!$E$8 -> 805000
A194: 25 | B194: N1P54 | C194: 35 | D194: Poste de madera - 12 m - urbano- suspensión - red trenzada | E194: 903000 | F194: =+E194*datosB!$E$8 -> 903000
A195: 25 | B195: N1P55 | C195: 35 | D195: Poste de metálico - 8 m -urbano- suspensión - red trenzada | E195: 838000 | F195: =+E195*datosB!$E$8 -> 838000
A196: 25 | B196: N1P56 | C196: 35 | D196: Poste de metálico - 10 m - urbano- suspensión - red trenzada | E196: 1047000 | F196: =+E196*datosB!$E$8 -> 1047000
A197: 25 | B197: N1P57 | C197: 35 | D197: Poste de metálico - 12 m - urbano- suspensión - red trenzada | E197: 1256000 | F197: =+E197*datosB!$E$8 -> 1256000
A198: 25 | B198: N1P58 | C198: 35 | D198: Poste de fibra de vidrio - 8 m - urbano- suspensión - red trenzada | E198: 1226000 | F198: =+E198*datosB!$E$8 -> 1226000
A199: 25 | B199: N1P59 | C199: 35 | D199: Poste de fibra de vidrio - 10 m - urbano- suspensión - red trenzada | E199: 1875000 | F199: =+E199*datosB!$E$8 -> 1875000
A200: 25 | B200: N1P60 | C200: 35 | D200: Poste de fibra de vidrio - 12 m - urbano- suspensión - red trenzada | E200: 2102000 | F200: =+E200*datosB!$E$8 -> 2102000
... 335 more rows

Sheet Formulario1
A1: Formulario 1. Datos de contacto del Operador de Red.
A2: OR_UPME | B2: Razon social del Operador de Red | C2: Dirección | D2: Representante Legal | E2: Responsable del Reporte de información | F2: Cargo | G2: Teléfono | H2: Extensión | I2: celular | J2: correo electrónico

Sheet Formulario2
A1: Formulario 2 Lista de proyectos
A2: Py: proyecto
A3: Operador de Red que reporta | B3: Periodo | D3: Consecutivo | E3: =+Formulario6_Res!B3 -> Código Proyecto
E4: =IF(C4>D4,CONCATENATE(A4,"_",B4,"-Pg-0000",C4),CONCATENATE(A4,"_",B4,"-Py-0000",D4)) -> _-Py-0000
E5: =IF(C5>D5,CONCATENATE(A5,"_",B5,"-Pg-0000",C5),CONCATENATE(A5,"_",B5,"-Py-0000",D5)) -> _-Py-0000
E6: =IF(C6>D6,CONCATENATE(A6,"_",B6,"-Pg-0000",C6),CONCATENATE(A6,"_",B6,"-Py-0000",D6)) -> _-Py-0000
E7: =IF(C7>D7,CONCATENATE(A7,"_",B7,"-Pg-0000",C7),CONCATENATE(A7,"_",B7,"-Py-0000",D7)) -> _-Py-0000
E8: =IF(C8>D8,CONCATENATE(A8,"_",B8,"-Pg-0000",C8),CONCATENATE(A8,"_",B8,"-Py-0000",D8)) -> _-Py-0000
E9: =IF(C9>D9,CONCATENATE(A9,"_",B9,"-Pg-0000",C9),CONCATENATE(A9,"_",B9,"-Py-0000",D9)) -> _-Py-0000
E10: _-Py-0000
E11: _-Py-0000
E12: _-Py-0000
E13: _-Py-0000
E14: _-Py-0000
E15: _-Py-0000
E16: _-Py-0000
E17: _-Py-0000
E18: _-Py-0000
E19: _-Py-0000
E20: _-Py-0000
E21: _-Py-0000
E22: _-Py-0000
E23: _-Py-0000
E24: _-Py-0000
E25: _-Py-0000
E26: _-Py-0000
E27: _-Py-0000
E28: _-Py-0000
E29: _-Py-0000
E30: _-Py-0000
E31: _-Py-0000
E32: _-Py-0000
E33: =IF(C33>D33,CONCATENATE(A33,"_",B33,"-Pg-0000",C33),CONCATENATE(A33,"_",B33,"-Py-0000",D33)) -> _-Py-0000
E34: _-Py-0000
E35: _-Py-0000
E36: _-Py-0000
E37: _-Py-0000
E38: _-Py-0000
E39: _-Py-0000
E40: _-Py-0000
E41: _-Py-0000
E42: _-Py-0000
E43: _-Py-0000
E44: _-Py-0000
E45: _-Py-0000
E46: _-Py-0000
E47: _-Py-0000
E48: _-Py-0000
E49: _-Py-0000
E50: _-Py-0000
E51: _-Py-0000
E52: _-Py-0000
E53: _-Py-0000
E54: _-Py-0000
E55: _-Py-0000
E56: _-Py-0000
E57: _-Py-0000
E58: _-Py-0000
E59: _-Py-0000
E60: _-Py-0000
E61: _-Py-0000
E62: _-Py-0000
E63: _-Py-0000
E64: _-Py-0000
E65: _-Py-0000
E66: _-Py-0000
E67: _-Py-0000
E68: _-Py-0000
E69: _-Py-0000
E70: _-Py-0000
E71: _-Py-0000
E72: _-Py-0000
E73: _-Py-0000
E74: _-Py-0000
E75: _-Py-0000
E76: _-Py-0000
E77: _-Py-0000
E78: _-Py-0000
E79: _-Py-0000
E80: _-Py-0000
E81: _-Py-0000
E82: _-Py-0000
E83: _-Py-0000
E84: _-Py-0000
E85: _-Py-0000
E86: _-Py-0000
E87: _-Py-0000
E88: _-Py-0000
E89: _-Py-0000
E90: _-Py-0000
E91: _-Py-0000
E92: _-Py-0000
E93: _-Py-0000
E94: _-Py-0000
E95: _-Py-0000
E96: _-Py-0000
E97: =IF(C97>D97,CONCATENATE(A97,"_",B97,"-Pg-0000",C97),CONCATENATE(A97,"_",B97,"-Py-0000",D97)) -> _-Py-0000
E98: _-Py-0000
E99: _-Py-0000
E100: _-Py-0000
E101: _-Py-0000
E102: _-Py-0000
E103: _-Py-0000
E104: _-Py-0000
E105: _-Py-0000
E106: _-Py-0000
E107: _-Py-0000
E108: _-Py-0000
E109: _-Py-0000
E110: _-Py-0000
E111: _-Py-0000
E112: _-Py-0000
E113: _-Py-0000
E114: _-Py-0000
E115: _-Py-0000
E116: _-Py-0000
E117: _-Py-0000
E118: _-Py-0000
E119: _-Py-0000
E120: _-Py-0000
E121: _-Py-0000
E122: _-Py-0000
E123: _-Py-0000
E124: _-Py-0000
E125: _-Py-0000
E126: _-Py-0000
E127: _-Py-0000
E128: _-Py-0000
E129: _-Py-0000
E130: _-Py-0000
E131: _-Py-0000
E132: _-Py-0000
E133: _-Py-0000
E134: _-Py-0000
E135: _-Py-0000
E136: _-Py-0000
E137: _-Py-0000
E138: _-Py-0000
E139: _-Py-0000
E140: _-Py-0000
E141: _-Py-0000
E142: _-Py-0000
E143: _-Py-0000
E144: _-Py-0000
E145: _-Py-0000
E146: _-Py-0000
E147: _-Py-0000
E148: _-Py-0000
E149: _-Py-0000
E150: _-Py-0000
E151: _-Py-0000
E152: _-Py-0000
E153: _-Py-0000
E154: _-Py-0000
E155: _-Py-0000
E156: _-Py-0000
E157: _-Py-0000
E158: _-Py-0000
E159: _-Py-0000
E160: _-Py-0000
E161: =IF(C161>D161,CONCATENATE(A161,"_",B161,"-Pg-0000",C161),CONCATENATE(A161,"_",B161,"-Py-0000",D161)) -> _-Py-0000
E162: _-Py-0000
E163: _-Py-0000
E164: _-Py-0000
E165: _-Py-0000
E166: _-Py-0000
E167: _-Py-0000
E168: _-Py-0000
E169: _-Py-0000
E170: _-Py-0000
E171: _-Py-0000
E172: _-Py-0000
E173: _-Py-0000
E174: _-Py-0000
E175: _-Py-0000
E176: _-Py-0000
E177: _-Py-0000
E178: _-Py-0000
E179: _-Py-0000
E180: _-Py-0000
E181: _-Py-0000
E182: _-Py-0000
E183: _-Py-0000
E184: _-Py-0000
E185: _-Py-0000
E186: _-Py-0000
E187: _-Py-0000
E188: _-Py-0000
E189: _-Py-0000
E190: _-Py-0000
E191: _-Py-0000
E192: _-Py-0000
E193: _-Py-0000
E194: _-Py-0000
E195: _-Py-0000
E196: _-Py-0000
E197: _-Py-0000
E198: _-Py-0000
E199: _-Py-0000
E200: _-Py-0000
... 801 more rows

Sheet Formulario3
B1: Formulario 3. SITIOS UPME
A2: CodDane | B2: ID | C2: NOMBRE | D2: COD_DEPARTAMENTO | E2: COD_MUNICIPIO | F2: LATITUD | G2: LONGITUD | H2: TIPO | I2: CLASE | J2: FUENTE | K2: VIGENCIA | L2: TOTAL_VIVIENDAS | M2: VIVIENDAS_SIN_SERVICIO | N2: OBSERVACION | O2: Viviendas sin servicio a beneficiarse | P2: Verificación | R2: Código proyecto que beneficiara los Sitios | T2: ASNM | U2: Demanda mensual por vivienda [kWh] | V2: Demanda mensual Total del proyecto [kWh] | X2: Promedio de la dispersión de las viviendas [metros]
P3: =IF(M3<O3,"Revisar","ok") -> ok | T3: =IF((VLOOKUP($B3,asnm!$C$6:$F$34726,4,FALSE))<>0,VLOOKUP($B3,asnm!$C$6:$F$34726,4,FALSE),VLOOKUP($B3,asnm!$C$6:$F$34726,3,FALSE)) ->  | U3: =IF(T3>=1000,60,90) ->  | V3: =+O3*U3 -> 
P4: =IF(M4<O4,"Revisar","ok") -> ok | T4: =IF((VLOOKUP($B4,asnm!$C$6:$F$34726,4,FALSE))<>0,VLOOKUP($B4,asnm!$C$6:$F$34726,4,FALSE),VLOOKUP($B4,asnm!$C$6:$F$34726,3,FALSE)) ->  | U4: =IF(T4>=1000,60,90) ->  | V4: =+O4*U4 -> 
P5: =IF(M5<O5,"Revisar","ok") -> ok | T5: =IF((VLOOKUP($B5,asnm!$C$6:$F$34726,4,FALSE))<>0,VLOOKUP($B5,asnm!$C$6:$F$34726,4,FALSE),VLOOKUP($B5,asnm!$C$6:$F$34726,3,FALSE)) ->  | U5: =IF(T5>=1000,60,90) ->  | V5: =+O5*U5 -> 
P6: =IF(M6<O6,"Revisar","ok") -> ok | T6: =IF((VLOOKUP($B6,asnm!$C$6:$F$34726,4,FALSE))<>0,VLOOKUP($B6,asnm!$C$6:$F$34726,4,FALSE),VLOOKUP($B6,asnm!$C$6:$F$34726,3,FALSE)) ->  | U6: =IF(T6>=1000,60,90) ->  | V6: =+O6*U6 -> 
P7: =IF(M7<O7,"Revisar","ok") -> ok | T7: =IF((VLOOKUP($B7,asnm!$C$6:$F$34726,4,FALSE))<>0,VLOOKUP($B7,asnm!$C$6:$F$34726,4,FALSE),VLOOKUP($B7,asnm!$C$6:$F$34726,3,FALSE)) ->  | U7: =IF(T7>=1000,60,90) ->  | V7: =+O7*U7 -> 
P8: ok | T8: =IF((VLOOKUP($B8,asnm!$C$6:$F$34726,4,FALSE))<>0,VLOOKUP($B8,asnm!$C$6:$F$34726,4,FALSE),VLOOKUP($B8,asnm!$C$6:$F$34726,3,FALSE)) -> 
P9: ok | T9: =IF((VLOOKUP($B9,asnm!$C$6:$F$34726,4,FALSE))<>0,VLOOKUP($B9,asnm!$C$6:$F$34726,4,FALSE),VLOOKUP($B9,asnm!$C$6:$F$34726,3,FALSE)) -> 
P10: ok | T10: =IF((VLOOKUP($B10,asnm!$C$6:$F$34726,4,FALSE))<>0,VLOOKUP($B10,asnm!$C$6:$F$34726,4,FALSE),VLOOKUP($B10,asnm!$C$6:$F$34726,3,FALSE)) -> 
P11: ok | T11: =IF((VLOOKUP($B11,asnm!$C$6:$F$34726,4,FALSE))<>0,VLOOKUP($B11,asnm!$C$6:$F$34726,4,FALSE),VLOOKUP($B11,asnm!$C$6:$F$34726,3,FALSE)) -> 
P12: ok | T12: =IF((VLOOKUP($B12,asnm!$C$6:$F$34726,4,FALSE))<>0,VLOOKUP($B12,asnm!$C$6:$F$34726,4,FALSE),VLOOKUP($B12,asnm!$C$6:$F$34726,3,FALSE)) -> 
P13: ok | T13: =IF((VLOOKUP($B13,asnm!$C$6:$F$34726,4,FALSE))<>0,VLOOKUP($B13,asnm!$C$6:$F$34726,4,FALSE),VLOOKUP($B13,asnm!$C$6:$F$34726,3,FALSE)) -> 
P14: ok | T14: =IF((VLOOKUP($B14,asnm!$C$6:$F$34726,4,FALSE))<>0,VLOOKUP($B14,asnm!$C$6:$F$34726,4,FALSE),VLOOKUP($B14,asnm!$C$6:$F$34726,3,FALSE)) -> 
P15: ok | T15: =IF((VLOOKUP($B15,asnm!$C$6:$F$34726,4,FALSE))<>0,VLOOKUP($B15,asnm!$C$6:$F$34726,4,FALSE),VLOOKUP($B15,asnm!$C$6:$F$34726,3,FALSE)) -> 
P16: ok | T16: =IF((VLOOKUP($B16,asnm!$C$6:$F$34726,4,FALSE))<>0,VLOOKUP($B16,asnm!$C$6:$F$34726,4,FALSE),VLOOKUP($B16,asnm!$C$6:$F$34726,3,FALSE)) -> 
P17: ok | T17: =IF((VLOOKUP($B17,asnm!$C$6:$F$34726,4,FALSE))<>0,VLOOKUP($B17,asnm!$C$6:$F$34726,4,FALSE),VLOOKUP($B17,asnm!$C$6:$F$34726,3,FALSE)) -> 
P18: ok | T18: =IF((VLOOKUP($B18,asnm!$C$6:$F$34726,4,FALSE))<>0,VLOOKUP($B18,asnm!$C$6:$F$34726,4,FALSE),VLOOKUP($B18,asnm!$C$6:$F$34726,3,FALSE)) -> 
P19: ok | T19: =IF((VLOOKUP($B19,asnm!$C$6:$F$34726,4,FALSE))<>0,VLOOKUP($B19,asnm!$C$6:$F$34726,4,FALSE),VLOOKUP($B19,asnm!$C$6:$F$34726,3,FALSE)) -> 
P20: ok | T20: =IF((VLOOKUP($B20,asnm!$C$6:$F$34726,4,FALSE))<>0,VLOOKUP($B20,asnm!$C$6:$F$34726,4,FALSE),VLOOKUP($B20,asnm!$C$6:$F$34726,3,FALSE)) -> 
P21: ok | T21: =IF((VLOOKUP($B21,asnm!$C$6:$F$34726,4,FALSE))<>0,VLOOKUP($B21,asnm!$C$6:$F$34726,4,FALSE),VLOOKUP($B21,asnm!$C$6:$F$34726,3,FALSE)) -> 
P22: ok | T22: =IF((VLOOKUP($B22,asnm!$C$6:$F$34726,4,FALSE))<>0,VLOOKUP($B22,asnm!$C$6:$F$34726,4,FALSE),VLOOKUP($B22,asnm!$C$6:$F$34726,3,FALSE)) -> 
P23: ok | T23: =IF((VLOOKUP($B23,asnm!$C$6:$F$34726,4,FALSE))<>0,VLOOKUP($B23,asnm!$C$6:$F$34726,4,FALSE),VLOOKUP($B23,asnm!$C$6:$F$34726,3,FALSE)) -> 
P24: ok | T24: =IF((VLOOKUP($B24,asnm!$C$6:$F$34726,4,FALSE))<>0,VLOOKUP($B24,asnm!$C$6:$F$34726,4,FALSE),VLOOKUP($B24,asnm!$C$6:$F$34726,3,FALSE)) -> 
P25: ok | T25: =IF((VLOOKUP($B25,asnm!$C$6:$F$34726,4,FALSE))<>0,VLOOKUP($B25,asnm!$C$6:$F$34726,4,FALSE),VLOOKUP($B25,asnm!$C$6:$F$34726,3,FALSE)) -> 
P26: ok | T26: =IF((VLOOKUP($B26,asnm!$C$6:$F$34726,4,FALSE))<>0,VLOOKUP($B26,asnm!$C$6:$F$34726,4,FALSE),VLOOKUP($B26,asnm!$C$6:$F$34726,3,FALSE)) -> 
P27: ok | T27: =IF((VLOOKUP($B27,asnm!$C$6:$F$34726,4,FALSE))<>0,VLOOKUP($B27,asnm!$C$6:$F$34726,4,FALSE),VLOOKUP($B27,asnm!$C$6:$F$34726,3,FALSE)) -> 
P28: ok | T28: =IF((VLOOKUP($B28,asnm!$C$6:$F$34726,4,FALSE))<>0,VLOOKUP($B28,asnm!$C$6:$F$34726,4,FALSE),VLOOKUP($B28,asnm!$C$6:$F$34726,3,FALSE)) -> 
P29: ok | T29: =IF((VLOOKUP($B29,asnm!$C$6:$F$34726,4,FALSE))<>0,VLOOKUP($B29,asnm!$C$6:$F$34726,4,FALSE),VLOOKUP($B29,asnm!$C$6:$F$34726,3,FALSE)) -> 
P30: ok | T30: =IF((VLOOKUP($B30,asnm!$C$6:$F$34726,4,FALSE))<>0,VLOOKUP($B30,asnm!$C$6:$F$34726,4,FALSE),VLOOKUP($B30,asnm!$C$6:$F$34726,3,FALSE)) -> 
P31: ok | T31: =IF((VLOOKUP($B31,asnm!$C$6:$F$34726,4,FALSE))<>0,VLOOKUP($B31,asnm!$C$6:$F$34726,4,FALSE),VLOOKUP($B31,asnm!$C$6:$F$34726,3,FALSE)) -> 
P32: ok | T32: =IF((VLOOKUP($B32,asnm!$C$6:$F$34726,4,FALSE))<>0,VLOOKUP($B32,asnm!$C$6:$F$34726,4,FALSE),VLOOKUP($B32,asnm!$C$6:$F$34726,3,FALSE)) -> 
P33: ok | T33: =IF((VLOOKUP($B33,asnm!$C$6:$F$34726,4,FALSE))<>0,VLOOKUP($B33,asnm!$C$6:$F$34726,4,FALSE),VLOOKUP($B33,asnm!$C$6:$F$34726,3,FALSE)) -> 
P34: ok | T34: =IF((VLOOKUP($B34,asnm!$C$6:$F$34726,4,FALSE))<>0,VLOOKUP($B34,asnm!$C$6:$F$34726,4,FALSE),VLOOKUP($B34,asnm!$C$6:$F$34726,3,FALSE)) -> 
P35: ok | T35: =IF((VLOOKUP($B35,asnm!$C$6:$F$34726,4,FALSE))<>0,VLOOKUP($B35,asnm!$C$6:$F$34726,4,FALSE),VLOOKUP($B35,asnm!$C$6:$F$34726,3,FALSE)) -> 
P36: ok | T36: =IF((VLOOKUP($B36,asnm!$C$6:$F$34726,4,FALSE))<>0,VLOOKUP($B36,asnm!$C$6:$F$34726,4,FALSE),VLOOKUP($B36,asnm!$C$6:$F$34726,3,FALSE)) -> 
P37: ok | T37: =IF((VLOOKUP($B37,asnm!$C$6:$F$34726,4,FALSE))<>0,VLOOKUP($B37,asnm!$C$6:$F$34726,4,FALSE),VLOOKUP($B37,asnm!$C$6:$F$34726,3,FALSE)) -> 
P38: ok | T38: =IF((VLOOKUP($B38,asnm!$C$6:$F$34726,4,FALSE))<>0,VLOOKUP($B38,asnm!$C$6:$F$34726,4,FALSE),VLOOKUP($B38,asnm!$C$6:$F$34726,3,FALSE)) -> 
P39: ok | T39: =IF((VLOOKUP($B39,asnm!$C$6:$F$34726,4,FALSE))<>0,VLOOKUP($B39,asnm!$C$6:$F$34726,4,FALSE),VLOOKUP($B39,asnm!$C$6:$F$34726,3,FALSE)) -> 
P40: ok | T40: =IF((VLOOKUP($B40,asnm!$C$6:$F$34726,4,FALSE))<>0,VLOOKUP($B40,asnm!$C$6:$F$34726,4,FALSE),VLOOKUP($B40,asnm!$C$6:$F$34726,3,FALSE)) -> 
P41: ok | T41: =IF((VLOOKUP($B41,asnm!$C$6:$F$34726,4,FALSE))<>0,VLOOKUP($B41,asnm!$C$6:$F$34726,4,FALSE),VLOOKUP($B41,asnm!$C$6:$F$34726,3,FALSE)) -> 
P42: ok | T42: =IF((VLOOKUP($B42,asnm!$C$6:$F$34726,4,FALSE))<>0,VLOOKUP($B42,asnm!$C$6:$F$34726,4,FALSE),VLOOKUP($B42,asnm!$C$6:$F$34726,3,FALSE)) -> 
P43: ok | T43: =IF((VLOOKUP($B43,asnm!$C$6:$F$34726,4,FALSE))<>0,VLOOKUP($B43,asnm!$C$6:$F$34726,4,FALSE),VLOOKUP($B43,asnm!$C$6:$F$34726,3,FALSE)) -> 
P44: ok | T44: =IF((VLOOKUP($B44,asnm!$C$6:$F$34726,4,FALSE))<>0,VLOOKUP($B44,asnm!$C$6:$F$34726,4,FALSE),VLOOKUP($B44,asnm!$C$6:$F$34726,3,FALSE)) -> 
P45: ok | T45: =IF((VLOOKUP($B45,asnm!$C$6:$F$34726,4,FALSE))<>0,VLOOKUP($B45,asnm!$C$6:$F$34726,4,FALSE),VLOOKUP($B45,asnm!$C$6:$F$34726,3,FALSE)) -> 
P46: ok | T46: =IF((VLOOKUP($B46,asnm!$C$6:$F$34726,4,FALSE))<>0,VLOOKUP($B46,asnm!$C$6:$F$34726,4,FALSE),VLOOKUP($B46,asnm!$C$6:$F$34726,3,FALSE)) -> 
P47: ok | T47: =IF((VLOOKUP($B47,asnm!$C$6:$F$34726,4,FALSE))<>0,VLOOKUP($B47,asnm!$C$6:$F$34726,4,FALSE),VLOOKUP($B47,asnm!$C$6:$F$34726,3,FALSE)) -> 
P48: ok | T48: =IF((VLOOKUP($B48,asnm!$C$6:$F$34726,4,FALSE))<>0,VLOOKUP($B48,asnm!$C$6:$F$34726,4,FALSE),VLOOKUP($B48,asnm!$C$6:$F$34726,3,FALSE)) -> 
P49: ok | T49: =IF((VLOOKUP($B49,asnm!$C$6:$F$34726,4,FALSE))<>0,VLOOKUP($B49,asnm!$C$6:$F$34726,4,FALSE),VLOOKUP($B49,asnm!$C$6:$F$34726,3,FALSE)) -> 
P50: ok | T50: =IF((VLOOKUP($B50,asnm!$C$6:$F$34726,4,FALSE))<>0,VLOOKUP($B50,asnm!$C$6:$F$34726,4,FALSE),VLOOKUP($B50,asnm!$C$6:$F$34726,3,FALSE)) -> 
P51: ok | T51: =IF((VLOOKUP($B51,asnm!$C$6:$F$34726,4,FALSE))<>0,VLOOKUP($B51,asnm!$C$6:$F$34726,4,FALSE),VLOOKUP($B51,asnm!$C$6:$F$34726,3,FALSE)) -> 
P52: ok | T52: =IF((VLOOKUP($B52,asnm!$C$6:$F$34726,4,FALSE))<>0,VLOOKUP($B52,asnm!$C$6:$F$34726,4,FALSE),VLOOKUP($B52,asnm!$C$6:$F$34726,3,FALSE)) -> 
P53: ok | T53: =IF((VLOOKUP($B53,asnm!$C$6:$F$34726,4,FALSE))<>0,VLOOKUP($B53,asnm!$C$6:$F$34726,4,FALSE),VLOOKUP($B53,asnm!$C$6:$F$34726,3,FALSE)) -> 
P54: ok | T54: =IF((VLOOKUP($B54,asnm!$C$6:$F$34726,4,FALSE))<>0,VLOOKUP($B54,asnm!$C$6:$F$34726,4,FALSE),VLOOKUP($B54,asnm!$C$6:$F$34726,3,FALSE)) -> 
P55: ok | T55: =IF((VLOOKUP($B55,asnm!$C$6:$F$34726,4,FALSE))<>0,VLOOKUP($B55,asnm!$C$6:$F$34726,4,FALSE),VLOOKUP($B55,asnm!$C$6:$F$34726,3,FALSE)) -> 
P56: ok | T56: =IF((VLOOKUP($B56,asnm!$C$6:$F$34726,4,FALSE))<>0,VLOOKUP($B56,asnm!$C$6:$F$34726,4,FALSE),VLOOKUP($B56,asnm!$C$6:$F$34726,3,FALSE)) -> 
P57: ok | T57: =IF((VLOOKUP($B57,asnm!$C$6:$F$34726,4,FALSE))<>0,VLOOKUP($B57,asnm!$C$6:$F$34726,4,FALSE),VLOOKUP($B57,asnm!$C$6:$F$34726,3,FALSE)) -> 
P58: ok | T58: =IF((VLOOKUP($B58,asnm!$C$6:$F$34726,4,FALSE))<>0,VLOOKUP($B58,asnm!$C$6:$F$34726,4,FALSE),VLOOKUP($B58,asnm!$C$6:$F$34726,3,FALSE)) -> 
P59: ok | T59: =IF((VLOOKUP($B59,asnm!$C$6:$F$34726,4,FALSE))<>0,VLOOKUP($B59,asnm!$C$6:$F$34726,4,FALSE),VLOOKUP($B59,asnm!$C$6:$F$34726,3,FALSE)) -> 
P60: ok | T60: =IF((VLOOKUP($B60,asnm!$C$6:$F$34726,4,FALSE))<>0,VLOOKUP($B60,asnm!$C$6:$F$34726,4,FALSE),VLOOKUP($B60,asnm!$C$6:$F$34726,3,FALSE)) -> 
P61: ok | T61: =IF((VLOOKUP($B61,asnm!$C$6:$F$34726,4,FALSE))<>0,VLOOKUP($B61,asnm!$C$6:$F$34726,4,FALSE),VLOOKUP($B61,asnm!$C$6:$F$34726,3,FALSE)) -> 
P62: ok | T62: =IF((VLOOKUP($B62,asnm!$C$6:$F$34726,4,FALSE))<>0,VLOOKUP($B62,asnm!$C$6:$F$34726,4,FALSE),VLOOKUP($B62,asnm!$C$6:$F$34726,3,FALSE)) -> 
P63: ok | T63: =IF((VLOOKUP($B63,asnm!$C$6:$F$34726,4,FALSE))<>0,VLOOKUP($B63,asnm!$C$6:$F$34726,4,FALSE),VLOOKUP($B63,asnm!$C$6:$F$34726,3,FALSE)) -> 
P64: ok | T64: =IF((VLOOKUP($B64,asnm!$C$6:$F$34726,4,FALSE))<>0,VLOOKUP($B64,asnm!$C$6:$F$34726,4,FALSE),VLOOKUP($B64,asnm!$C$6:$F$34726,3,FALSE)) -> 
P65: ok | T65: =IF((VLOOKUP($B65,asnm!$C$6:$F$34726,4,FALSE))<>0,VLOOKUP($B65,asnm!$C$6:$F$34726,4,FALSE),VLOOKUP($B65,asnm!$C$6:$F$34726,3,FALSE)) -> 
P66: ok | T66: =IF((VLOOKUP($B66,asnm!$C$6:$F$34726,4,FALSE))<>0,VLOOKUP($B66,asnm!$C$6:$F$34726,4,FALSE),VLOOKUP($B66,asnm!$C$6:$F$34726,3,FALSE)) -> 
P67: ok | T67: =IF((VLOOKUP($B67,asnm!$C$6:$F$34726,4,FALSE))<>0,VLOOKUP($B67,asnm!$C$6:$F$34726,4,FALSE),VLOOKUP($B67,asnm!$C$6:$F$34726,3,FALSE)) -> 
P68: ok | T68: =IF((VLOOKUP($B68,asnm!$C$6:$F$34726,4,FALSE))<>0,VLOOKUP($B68,asnm!$C$6:$F$34726,4,FALSE),VLOOKUP($B68,asnm!$C$6:$F$34726,3,FALSE)) -> 
P69: ok | T69: =IF((VLOOKUP($B69,asnm!$C$6:$F$34726,4,FALSE))<>0,VLOOKUP($B69,asnm!$C$6:$F$34726,4,FALSE),VLOOKUP($B69,asnm!$C$6:$F$34726,3,FALSE)) -> 
P70: ok | T70: =IF((VLOOKUP($B70,asnm!$C$6:$F$34726,4,FALSE))<>0,VLOOKUP($B70,asnm!$C$6:$F$34726,4,FALSE),VLOOKUP($B70,asnm!$C$6:$F$34726,3,FALSE)) -> 
P71: =IF(M71<O71,"Revisar","ok") -> ok | T71: =IF((VLOOKUP($B71,asnm!$C$6:$F$34726,4,FALSE))<>0,VLOOKUP($B71,asnm!$C$6:$F$34726,4,FALSE),VLOOKUP($B71,asnm!$C$6:$F$34726,3,FALSE)) ->  | U71: =IF(T71>=1000,60,90) ->  | V71: =+O71*U71 -> 
P72: ok | T72: =IF((VLOOKUP($B72,asnm!$C$6:$F$34726,4,FALSE))<>0,VLOOKUP($B72,asnm!$C$6:$F$34726,4,FALSE),VLOOKUP($B72,asnm!$C$6:$F$34726,3,FALSE)) -> 
P73: ok | T73: =IF((VLOOKUP($B73,asnm!$C$6:$F$34726,4,FALSE))<>0,VLOOKUP($B73,asnm!$C$6:$F$34726,4,FALSE),VLOOKUP($B73,asnm!$C$6:$F$34726,3,FALSE)) -> 
P74: ok | T74: =IF((VLOOKUP($B74,asnm!$C$6:$F$34726,4,FALSE))<>0,VLOOKUP($B74,asnm!$C$6:$F$34726,4,FALSE),VLOOKUP($B74,asnm!$C$6:$F$34726,3,FALSE)) -> 
P75: ok | T75: =IF((VLOOKUP($B75,asnm!$C$6:$F$34726,4,FALSE))<>0,VLOOKUP($B75,asnm!$C$6:$F$34726,4,FALSE),VLOOKUP($B75,asnm!$C$6:$F$34726,3,FALSE)) -> 
P76: ok | T76: =IF((VLOOKUP($B76,asnm!$C$6:$F$34726,4,FALSE))<>0,VLOOKUP($B76,asnm!$C$6:$F$34726,4,FALSE),VLOOKUP($B76,asnm!$C$6:$F$34726,3,FALSE)) -> 
P77: ok | T77: =IF((VLOOKUP($B77,asnm!$C$6:$F$34726,4,FALSE))<>0,VLOOKUP($B77,asnm!$C$6:$F$34726,4,FALSE),VLOOKUP($B77,asnm!$C$6:$F$34726,3,FALSE)) -> 
P78: ok | T78: =IF((VLOOKUP($B78,asnm!$C$6:$F$34726,4,FALSE))<>0,VLOOKUP($B78,asnm!$C$6:$F$34726,4,FALSE),VLOOKUP($B78,asnm!$C$6:$F$34726,3,FALSE)) -> 
P79: ok | T79: =IF((VLOOKUP($B79,asnm!$C$6:$F$34726,4,FALSE))<>0,VLOOKUP($B79,asnm!$C$6:$F$34726,4,FALSE),VLOOKUP($B79,asnm!$C$6:$F$34726,3,FALSE)) -> 
P80: ok | T80: =IF((VLOOKUP($B80,asnm!$C$6:$F$34726,4,FALSE))<>0,VLOOKUP($B80,asnm!$C$6:$F$34726,4,FALSE),VLOOKUP($B80,asnm!$C$6:$F$34726,3,FALSE)) -> 
P81: ok | T81: =IF((VLOOKUP($B81,asnm!$C$6:$F$34726,4,FALSE))<>0,VLOOKUP($B81,asnm!$C$6:$F$34726,4,FALSE),VLOOKUP($B81,asnm!$C$6:$F$34726,3,FALSE)) -> 
P82: ok | T82: =IF((VLOOKUP($B82,asnm!$C$6:$F$34726,4,FALSE))<>0,VLOOKUP($B82,asnm!$C$6:$F$34726,4,FALSE),VLOOKUP($B82,asnm!$C$6:$F$34726,3,FALSE)) -> 
P83: ok | T83: =IF((VLOOKUP($B83,asnm!$C$6:$F$34726,4,FALSE))<>0,VLOOKUP($B83,asnm!$C$6:$F$34726,4,FALSE),VLOOKUP($B83,asnm!$C$6:$F$34726,3,FALSE)) -> 
P84: ok | T84: =IF((VLOOKUP($B84,asnm!$C$6:$F$34726,4,FALSE))<>0,VLOOKUP($B84,asnm!$C$6:$F$34726,4,FALSE),VLOOKUP($B84,asnm!$C$6:$F$34726,3,FALSE)) -> 
O85: 0 | P85: ok | T85: =IF((VLOOKUP($B85,asnm!$C$6:$F$34726,4,FALSE))<>0,VLOOKUP($B85,asnm!$C$6:$F$34726,4,FALSE),VLOOKUP($B85,asnm!$C$6:$F$34726,3,FALSE)) -> 
P86: ok | T86: =IF((VLOOKUP($B86,asnm!$C$6:$F$34726,4,FALSE))<>0,VLOOKUP($B86,asnm!$C$6:$F$34726,4,FALSE),VLOOKUP($B86,asnm!$C$6:$F$34726,3,FALSE)) -> 
P87: ok | T87: =IF((VLOOKUP($B87,asnm!$C$6:$F$34726,4,FALSE))<>0,VLOOKUP($B87,asnm!$C$6:$F$34726,4,FALSE),VLOOKUP($B87,asnm!$C$6:$F$34726,3,FALSE)) -> 
P88: ok | T88: =IF((VLOOKUP($B88,asnm!$C$6:$F$34726,4,FALSE))<>0,VLOOKUP($B88,asnm!$C$6:$F$34726,4,FALSE),VLOOKUP($B88,asnm!$C$6:$F$34726,3,FALSE)) -> 
P89: ok | T89: =IF((VLOOKUP($B89,asnm!$C$6:$F$34726,4,FALSE))<>0,VLOOKUP($B89,asnm!$C$6:$F$34726,4,FALSE),VLOOKUP($B89,asnm!$C$6:$F$34726,3,FALSE)) -> 
P90: ok | T90: =IF((VLOOKUP($B90,asnm!$C$6:$F$34726,4,FALSE))<>0,VLOOKUP($B90,asnm!$C$6:$F$34726,4,FALSE),VLOOKUP($B90,asnm!$C$6:$F$34726,3,FALSE)) -> 
P91: ok | T91: =IF((VLOOKUP($B91,asnm!$C$6:$F$34726,4,FALSE))<>0,VLOOKUP($B91,asnm!$C$6:$F$34726,4,FALSE),VLOOKUP($B91,asnm!$C$6:$F$34726,3,FALSE)) -> 
P92: ok | T92: =IF((VLOOKUP($B92,asnm!$C$6:$F$34726,4,FALSE))<>0,VLOOKUP($B92,asnm!$C$6:$F$34726,4,FALSE),VLOOKUP($B92,asnm!$C$6:$F$34726,3,FALSE)) -> 
P93: ok | T93: =IF((VLOOKUP($B93,asnm!$C$6:$F$34726,4,FALSE))<>0,VLOOKUP($B93,asnm!$C$6:$F$34726,4,FALSE),VLOOKUP($B93,asnm!$C$6:$F$34726,3,FALSE)) -> 
P94: ok | T94: =IF((VLOOKUP($B94,asnm!$C$6:$F$34726,4,FALSE))<>0,VLOOKUP($B94,asnm!$C$6:$F$34726,4,FALSE),VLOOKUP($B94,asnm!$C$6:$F$34726,3,FALSE)) -> 
P95: ok | T95: =IF((VLOOKUP($B95,asnm!$C$6:$F$34726,4,FALSE))<>0,VLOOKUP($B95,asnm!$C$6:$F$34726,4,FALSE),VLOOKUP($B95,asnm!$C$6:$F$34726,3,FALSE)) -> 
P96: ok | T96: =IF((VLOOKUP($B96,asnm!$C$6:$F$34726,4,FALSE))<>0,VLOOKUP($B96,asnm!$C$6:$F$34726,4,FALSE),VLOOKUP($B96,asnm!$C$6:$F$34726,3,FALSE)) -> 
P97: ok | T97: =IF((VLOOKUP($B97,asnm!$C$6:$F$34726,4,FALSE))<>0,VLOOKUP($B97,asnm!$C$6:$F$34726,4,FALSE),VLOOKUP($B97,asnm!$C$6:$F$34726,3,FALSE)) -> 
P98: ok | T98: =IF((VLOOKUP($B98,asnm!$C$6:$F$34726,4,FALSE))<>0,VLOOKUP($B98,asnm!$C$6:$F$34726,4,FALSE),VLOOKUP($B98,asnm!$C$6:$F$34726,3,FALSE)) -> 
P99: ok | T99: =IF((VLOOKUP($B99,asnm!$C$6:$F$34726,4,FALSE))<>0,VLOOKUP($B99,asnm!$C$6:$F$34726,4,FALSE),VLOOKUP($B99,asnm!$C$6:$F$34726,3,FALSE)) -> 
P100: ok | T100: =IF((VLOOKUP($B100,asnm!$C$6:$F$34726,4,FALSE))<>0,VLOOKUP($B100,asnm!$C$6:$F$34726,4,FALSE),VLOOKUP($B100,asnm!$C$6:$F$34726,3,FALSE)) -> 
P101: ok | T101: =IF((VLOOKUP($B101,asnm!$C$6:$F$34726,4,FALSE))<>0,VLOOKUP($B101,asnm!$C$6:$F$34726,4,FALSE),VLOOKUP($B101,asnm!$C$6:$F$34726,3,FALSE)) -> 
P102: ok | T102: =IF((VLOOKUP($B102,asnm!$C$6:$F$34726,4,FALSE))<>0,VLOOKUP($B102,asnm!$C$6:$F$34726,4,FALSE),VLOOKUP($B102,asnm!$C$6:$F$34726,3,FALSE)) -> 
P103: ok | T103: =IF((VLOOKUP($B103,asnm!$C$6:$F$34726,4,FALSE))<>0,VLOOKUP($B103,asnm!$C$6:$F$34726,4,FALSE),VLOOKUP($B103,asnm!$C$6:$F$34726,3,FALSE)) -> 
P104: ok | T104: =IF((VLOOKUP($B104,asnm!$C$6:$F$34726,4,FALSE))<>0,VLOOKUP($B104,asnm!$C$6:$F$34726,4,FALSE),VLOOKUP($B104,asnm!$C$6:$F$34726,3,FALSE)) -> 
P105: ok | T105: =IF((VLOOKUP($B105,asnm!$C$6:$F$34726,4,FALSE))<>0,VLOOKUP($B105,asnm!$C$6:$F$34726,4,FALSE),VLOOKUP($B105,asnm!$C$6:$F$34726,3,FALSE)) -> 
P106: ok | T106: =IF((VLOOKUP($B106,asnm!$C$6:$F$34726,4,FALSE))<>0,VLOOKUP($B106,asnm!$C$6:$F$34726,4,FALSE),VLOOKUP($B106,asnm!$C$6:$F$34726,3,FALSE)) -> 
P107: ok | T107: =IF((VLOOKUP($B107,asnm!$C$6:$F$34726,4,FALSE))<>0,VLOOKUP($B107,asnm!$C$6:$F$34726,4,FALSE),VLOOKUP($B107,asnm!$C$6:$F$34726,3,FALSE)) -> 
P108: ok | T108: =IF((VLOOKUP($B108,asnm!$C$6:$F$34726,4,FALSE))<>0,VLOOKUP($B108,asnm!$C$6:$F$34726,4,FALSE),VLOOKUP($B108,asnm!$C$6:$F$34726,3,FALSE)) -> 
P109: ok | T109: =IF((VLOOKUP($B109,asnm!$C$6:$F$34726,4,FALSE))<>0,VLOOKUP($B109,asnm!$C$6:$F$34726,4,FALSE),VLOOKUP($B109,asnm!$C$6:$F$34726,3,FALSE)) -> 
P110: ok | T110: =IF((VLOOKUP($B110,asnm!$C$6:$F$34726,4,FALSE))<>0,VLOOKUP($B110,asnm!$C$6:$F$34726,4,FALSE),VLOOKUP($B110,asnm!$C$6:$F$34726,3,FALSE)) -> 
P111: ok | T111: =IF((VLOOKUP($B111,asnm!$C$6:$F$34726,4,FALSE))<>0,VLOOKUP($B111,asnm!$C$6:$F$34726,4,FALSE),VLOOKUP($B111,asnm!$C$6:$F$34726,3,FALSE)) -> 
P112: ok | T112: =IF((VLOOKUP($B112,asnm!$C$6:$F$34726,4,FALSE))<>0,VLOOKUP($B112,asnm!$C$6:$F$34726,4,FALSE),VLOOKUP($B112,asnm!$C$6:$F$34726,3,FALSE)) -> 
P113: ok | T113: =IF((VLOOKUP($B113,asnm!$C$6:$F$34726,4,FALSE))<>0,VLOOKUP($B113,asnm!$C$6:$F$34726,4,FALSE),VLOOKUP($B113,asnm!$C$6:$F$34726,3,FALSE)) -> 
P114: ok | T114: =IF((VLOOKUP($B114,asnm!$C$6:$F$34726,4,FALSE))<>0,VLOOKUP($B114,asnm!$C$6:$F$34726,4,FALSE),VLOOKUP($B114,asnm!$C$6:$F$34726,3,FALSE)) -> 
P115: ok | T115: =IF((VLOOKUP($B115,asnm!$C$6:$F$34726,4,FALSE))<>0,VLOOKUP($B115,asnm!$C$6:$F$34726,4,FALSE),VLOOKUP($B115,asnm!$C$6:$F$34726,3,FALSE)) -> 
P116: ok | T116: =IF((VLOOKUP($B116,asnm!$C$6:$F$34726,4,FALSE))<>0,VLOOKUP($B116,asnm!$C$6:$F$34726,4,FALSE),VLOOKUP($B116,asnm!$C$6:$F$34726,3,FALSE)) -> 
P117: ok | T117: =IF((VLOOKUP($B117,asnm!$C$6:$F$34726,4,FALSE))<>0,VLOOKUP($B117,asnm!$C$6:$F$34726,4,FALSE),VLOOKUP($B117,asnm!$C$6:$F$34726,3,FALSE)) -> 
P118: ok | T118: =IF((VLOOKUP($B118,asnm!$C$6:$F$34726,4,FALSE))<>0,VLOOKUP($B118,asnm!$C$6:$F$34726,4,FALSE),VLOOKUP($B118,asnm!$C$6:$F$34726,3,FALSE)) -> 
P119: ok | T119: =IF((VLOOKUP($B119,asnm!$C$6:$F$34726,4,FALSE))<>0,VLOOKUP($B119,asnm!$C$6:$F$34726,4,FALSE),VLOOKUP($B119,asnm!$C$6:$F$34726,3,FALSE)) -> 
P120: ok | T120: =IF((VLOOKUP($B120,asnm!$C$6:$F$34726,4,FALSE))<>0,VLOOKUP($B120,asnm!$C$6:$F$34726,4,FALSE),VLOOKUP($B120,asnm!$C$6:$F$34726,3,FALSE)) -> 
P121: ok | T121: =IF((VLOOKUP($B121,asnm!$C$6:$F$34726,4,FALSE))<>0,VLOOKUP($B121,asnm!$C$6:$F$34726,4,FALSE),VLOOKUP($B121,asnm!$C$6:$F$34726,3,FALSE)) -> 
P122: ok | T122: =IF((VLOOKUP($B122,asnm!$C$6:$F$34726,4,FALSE))<>0,VLOOKUP($B122,asnm!$C$6:$F$34726,4,FALSE),VLOOKUP($B122,asnm!$C$6:$F$34726,3,FALSE)) -> 
P123: ok | T123: =IF((VLOOKUP($B123,asnm!$C$6:$F$34726,4,FALSE))<>0,VLOOKUP($B123,asnm!$C$6:$F$34726,4,FALSE),VLOOKUP($B123,asnm!$C$6:$F$34726,3,FALSE)) -> 
P124: ok | T124: =IF((VLOOKUP($B124,asnm!$C$6:$F$34726,4,FALSE))<>0,VLOOKUP($B124,asnm!$C$6:$F$34726,4,FALSE),VLOOKUP($B124,asnm!$C$6:$F$34726,3,FALSE)) -> 
P125: ok | T125: =IF((VLOOKUP($B125,asnm!$C$6:$F$34726,4,FALSE))<>0,VLOOKUP($B125,asnm!$C$6:$F$34726,4,FALSE),VLOOKUP($B125,asnm!$C$6:$F$34726,3,FALSE)) -> 
P126: ok | T126: =IF((VLOOKUP($B126,asnm!$C$6:$F$34726,4,FALSE))<>0,VLOOKUP($B126,asnm!$C$6:$F$34726,4,FALSE),VLOOKUP($B126,asnm!$C$6:$F$34726,3,FALSE)) -> 
P127: ok | T127: =IF((VLOOKUP($B127,asnm!$C$6:$F$34726,4,FALSE))<>0,VLOOKUP($B127,asnm!$C$6:$F$34726,4,FALSE),VLOOKUP($B127,asnm!$C$6:$F$34726,3,FALSE)) -> 
P128: ok | T128: =IF((VLOOKUP($B128,asnm!$C$6:$F$34726,4,FALSE))<>0,VLOOKUP($B128,asnm!$C$6:$F$34726,4,FALSE),VLOOKUP($B128,asnm!$C$6:$F$34726,3,FALSE)) -> 
P129: ok | T129: =IF((VLOOKUP($B129,asnm!$C$6:$F$34726,4,FALSE))<>0,VLOOKUP($B129,asnm!$C$6:$F$34726,4,FALSE),VLOOKUP($B129,asnm!$C$6:$F$34726,3,FALSE)) -> 
P130: ok | T130: =IF((VLOOKUP($B130,asnm!$C$6:$F$34726,4,FALSE))<>0,VLOOKUP($B130,asnm!$C$6:$F$34726,4,FALSE),VLOOKUP($B130,asnm!$C$6:$F$34726,3,FALSE)) -> 
P131: ok | T131: =IF((VLOOKUP($B131,asnm!$C$6:$F$34726,4,FALSE))<>0,VLOOKUP($B131,asnm!$C$6:$F$34726,4,FALSE),VLOOKUP($B131,asnm!$C$6:$F$34726,3,FALSE)) -> 
P132: ok | T132: =IF((VLOOKUP($B132,asnm!$C$6:$F$34726,4,FALSE))<>0,VLOOKUP($B132,asnm!$C$6:$F$34726,4,FALSE),VLOOKUP($B132,asnm!$C$6:$F$34726,3,FALSE)) -> 
P133: ok | T133: =IF((VLOOKUP($B133,asnm!$C$6:$F$34726,4,FALSE))<>0,VLOOKUP($B133,asnm!$C$6:$F$34726,4,FALSE),VLOOKUP($B133,asnm!$C$6:$F$34726,3,FALSE)) -> 
P134: ok | T134: =IF((VLOOKUP($B134,asnm!$C$6:$F$34726,4,FALSE))<>0,VLOOKUP($B134,asnm!$C$6:$F$34726,4,FALSE),VLOOKUP($B134,asnm!$C$6:$F$34726,3,FALSE)) -> 
P135: =IF(M135<O135,"Revisar","ok") -> ok | T135: =IF((VLOOKUP($B135,asnm!$C$6:$F$34726,4,FALSE))<>0,VLOOKUP($B135,asnm!$C$6:$F$34726,4,FALSE),VLOOKUP($B135,asnm!$C$6:$F$34726,3,FALSE)) ->  | U135: =IF(T135>=1000,60,90) ->  | V135: =+O135*U135 -> 
P136: ok | T136: =IF((VLOOKUP($B136,asnm!$C$6:$F$34726,4,FALSE))<>0,VLOOKUP($B136,asnm!$C$6:$F$34726,4,FALSE),VLOOKUP($B136,asnm!$C$6:$F$34726,3,FALSE)) -> 
P137: ok | T137: =IF((VLOOKUP($B137,asnm!$C$6:$F$34726,4,FALSE))<>0,VLOOKUP($B137,asnm!$C$6:$F$34726,4,FALSE),VLOOKUP($B137,asnm!$C$6:$F$34726,3,FALSE)) -> 
P138: ok | T138: =IF((VLOOKUP($B138,asnm!$C$6:$F$34726,4,FALSE))<>0,VLOOKUP($B138,asnm!$C$6:$F$34726,4,FALSE),VLOOKUP($B138,asnm!$C$6:$F$34726,3,FALSE)) -> 
P139: ok | T139: =IF((VLOOKUP($B139,asnm!$C$6:$F$34726,4,FALSE))<>0,VLOOKUP($B139,asnm!$C$6:$F$34726,4,FALSE),VLOOKUP($B139,asnm!$C$6:$F$34726,3,FALSE)) -> 
P140: ok | T140: =IF((VLOOKUP($B140,asnm!$C$6:$F$34726,4,FALSE))<>0,VLOOKUP($B140,asnm!$C$6:$F$34726,4,FALSE),VLOOKUP($B140,asnm!$C$6:$F$34726,3,FALSE)) -> 
P141: ok | T141: =IF((VLOOKUP($B141,asnm!$C$6:$F$34726,4,FALSE))<>0,VLOOKUP($B141,asnm!$C$6:$F$34726,4,FALSE),VLOOKUP($B141,asnm!$C$6:$F$34726,3,FALSE)) -> 
P142: ok | T142: =IF((VLOOKUP($B142,asnm!$C$6:$F$34726,4,FALSE))<>0,VLOOKUP($B142,asnm!$C$6:$F$34726,4,FALSE),VLOOKUP($B142,asnm!$C$6:$F$34726,3,FALSE)) -> 
P143: ok | T143: =IF((VLOOKUP($B143,asnm!$C$6:$F$34726,4,FALSE))<>0,VLOOKUP($B143,asnm!$C$6:$F$34726,4,FALSE),VLOOKUP($B143,asnm!$C$6:$F$34726,3,FALSE)) -> 
P144: ok | T144: =IF((VLOOKUP($B144,asnm!$C$6:$F$34726,4,FALSE))<>0,VLOOKUP($B144,asnm!$C$6:$F$34726,4,FALSE),VLOOKUP($B144,asnm!$C$6:$F$34726,3,FALSE)) -> 
P145: ok | T145: =IF((VLOOKUP($B145,asnm!$C$6:$F$34726,4,FALSE))<>0,VLOOKUP($B145,asnm!$C$6:$F$34726,4,FALSE),VLOOKUP($B145,asnm!$C$6:$F$34726,3,FALSE)) -> 
P146: ok | T146: =IF((VLOOKUP($B146,asnm!$C$6:$F$34726,4,FALSE))<>0,VLOOKUP($B146,asnm!$C$6:$F$34726,4,FALSE),VLOOKUP($B146,asnm!$C$6:$F$34726,3,FALSE)) -> 
P147: ok | T147: =IF((VLOOKUP($B147,asnm!$C$6:$F$34726,4,FALSE))<>0,VLOOKUP($B147,asnm!$C$6:$F$34726,4,FALSE),VLOOKUP($B147,asnm!$C$6:$F$34726,3,FALSE)) -> 
P148: ok | T148: =IF((VLOOKUP($B148,asnm!$C$6:$F$34726,4,FALSE))<>0,VLOOKUP($B148,asnm!$C$6:$F$34726,4,FALSE),VLOOKUP($B148,asnm!$C$6:$F$34726,3,FALSE)) -> 
P149: ok | T149: =IF((VLOOKUP($B149,asnm!$C$6:$F$34726,4,FALSE))<>0,VLOOKUP($B149,asnm!$C$6:$F$34726,4,FALSE),VLOOKUP($B149,asnm!$C$6:$F$34726,3,FALSE)) -> 
P150: ok | T150: =IF((VLOOKUP($B150,asnm!$C$6:$F$34726,4,FALSE))<>0,VLOOKUP($B150,asnm!$C$6:$F$34726,4,FALSE),VLOOKUP($B150,asnm!$C$6:$F$34726,3,FALSE)) -> 
P151: ok | T151: =IF((VLOOKUP($B151,asnm!$C$6:$F$34726,4,FALSE))<>0,VLOOKUP($B151,asnm!$C$6:$F$34726,4,FALSE),VLOOKUP($B151,asnm!$C$6:$F$34726,3,FALSE)) -> 
P152: ok | T152: =IF((VLOOKUP($B152,asnm!$C$6:$F$34726,4,FALSE))<>0,VLOOKUP($B152,asnm!$C$6:$F$34726,4,FALSE),VLOOKUP($B152,asnm!$C$6:$F$34726,3,FALSE)) -> 
P153: ok | T153: =IF((VLOOKUP($B153,asnm!$C$6:$F$34726,4,FALSE))<>0,VLOOKUP($B153,asnm!$C$6:$F$34726,4,FALSE),VLOOKUP($B153,asnm!$C$6:$F$34726,3,FALSE)) -> 
P154: ok | T154: =IF((VLOOKUP($B154,asnm!$C$6:$F$34726,4,FALSE))<>0,VLOOKUP($B154,asnm!$C$6:$F$34726,4,FALSE),VLOOKUP($B154,asnm!$C$6:$F$34726,3,FALSE)) -> 
P155: ok | T155: =IF((VLOOKUP($B155,asnm!$C$6:$F$34726,4,FALSE))<>0,VLOOKUP($B155,asnm!$C$6:$F$34726,4,FALSE),VLOOKUP($B155,asnm!$C$6:$F$34726,3,FALSE)) -> 
P156: ok | T156: =IF((VLOOKUP($B156,asnm!$C$6:$F$34726,4,FALSE))<>0,VLOOKUP($B156,asnm!$C$6:$F$34726,4,FALSE),VLOOKUP($B156,asnm!$C$6:$F$34726,3,FALSE)) -> 
P157: ok | T157: =IF((VLOOKUP($B157,asnm!$C$6:$F$34726,4,FALSE))<>0,VLOOKUP($B157,asnm!$C$6:$F$34726,4,FALSE),VLOOKUP($B157,asnm!$C$6:$F$34726,3,FALSE)) -> 
P158: ok | T158: =IF((VLOOKUP($B158,asnm!$C$6:$F$34726,4,FALSE))<>0,VLOOKUP($B158,asnm!$C$6:$F$34726,4,FALSE),VLOOKUP($B158,asnm!$C$6:$F$34726,3,FALSE)) -> 
P159: ok | T159: =IF((VLOOKUP($B159,asnm!$C$6:$F$34726,4,FALSE))<>0,VLOOKUP($B159,asnm!$C$6:$F$34726,4,FALSE),VLOOKUP($B159,asnm!$C$6:$F$34726,3,FALSE)) -> 
P160: ok | T160: =IF((VLOOKUP($B160,asnm!$C$6:$F$34726,4,FALSE))<>0,VLOOKUP($B160,asnm!$C$6:$F$34726,4,FALSE),VLOOKUP($B160,asnm!$C$6:$F$34726,3,FALSE)) -> 
P161: ok | T161: =IF((VLOOKUP($B161,asnm!$C$6:$F$34726,4,FALSE))<>0,VLOOKUP($B161,asnm!$C$6:$F$34726,4,FALSE),VLOOKUP($B161,asnm!$C$6:$F$34726,3,FALSE)) -> 
P162: ok | T162: =IF((VLOOKUP($B162,asnm!$C$6:$F$34726,4,FALSE))<>0,VLOOKUP($B162,asnm!$C$6:$F$34726,4,FALSE),VLOOKUP($B162,asnm!$C$6:$F$34726,3,FALSE)) -> 
P163: ok | T163: =IF((VLOOKUP($B163,asnm!$C$6:$F$34726,4,FALSE))<>0,VLOOKUP($B163,asnm!$C$6:$F$34726,4,FALSE),VLOOKUP($B163,asnm!$C$6:$F$34726,3,FALSE)) -> 
P164: ok | T164: =IF((VLOOKUP($B164,asnm!$C$6:$F$34726,4,FALSE))<>0,VLOOKUP($B164,asnm!$C$6:$F$34726,4,FALSE),VLOOKUP($B164,asnm!$C$6:$F$34726,3,FALSE)) -> 
P165: ok | T165: =IF((VLOOKUP($B165,asnm!$C$6:$F$34726,4,FALSE))<>0,VLOOKUP($B165,asnm!$C$6:$F$34726,4,FALSE),VLOOKUP($B165,asnm!$C$6:$F$34726,3,FALSE)) -> 
P166: ok | T166: =IF((VLOOKUP($B166,asnm!$C$6:$F$34726,4,FALSE))<>0,VLOOKUP($B166,asnm!$C$6:$F$34726,4,FALSE),VLOOKUP($B166,asnm!$C$6:$F$34726,3,FALSE)) -> 
P167: ok | T167: =IF((VLOOKUP($B167,asnm!$C$6:$F$34726,4,FALSE))<>0,VLOOKUP($B167,asnm!$C$6:$F$34726,4,FALSE),VLOOKUP($B167,asnm!$C$6:$F$34726,3,FALSE)) -> 
P168: ok | T168: =IF((VLOOKUP($B168,asnm!$C$6:$F$34726,4,FALSE))<>0,VLOOKUP($B168,asnm!$C$6:$F$34726,4,FALSE),VLOOKUP($B168,asnm!$C$6:$F$34726,3,FALSE)) -> 
P169: ok | T169: =IF((VLOOKUP($B169,asnm!$C$6:$F$34726,4,FALSE))<>0,VLOOKUP($B169,asnm!$C$6:$F$34726,4,FALSE),VLOOKUP($B169,asnm!$C$6:$F$34726,3,FALSE)) -> 
P170: ok | T170: =IF((VLOOKUP($B170,asnm!$C$6:$F$34726,4,FALSE))<>0,VLOOKUP($B170,asnm!$C$6:$F$34726,4,FALSE),VLOOKUP($B170,asnm!$C$6:$F$34726,3,FALSE)) -> 
P171: ok | T171: =IF((VLOOKUP($B171,asnm!$C$6:$F$34726,4,FALSE))<>0,VLOOKUP($B171,asnm!$C$6:$F$34726,4,FALSE),VLOOKUP($B171,asnm!$C$6:$F$34726,3,FALSE)) -> 
P172: ok | T172: =IF((VLOOKUP($B172,asnm!$C$6:$F$34726,4,FALSE))<>0,VLOOKUP($B172,asnm!$C$6:$F$34726,4,FALSE),VLOOKUP($B172,asnm!$C$6:$F$34726,3,FALSE)) -> 
P173: ok | T173: =IF((VLOOKUP($B173,asnm!$C$6:$F$34726,4,FALSE))<>0,VLOOKUP($B173,asnm!$C$6:$F$34726,4,FALSE),VLOOKUP($B173,asnm!$C$6:$F$34726,3,FALSE)) -> 
P174: ok | T174: =IF((VLOOKUP($B174,asnm!$C$6:$F$34726,4,FALSE))<>0,VLOOKUP($B174,asnm!$C$6:$F$34726,4,FALSE),VLOOKUP($B174,asnm!$C$6:$F$34726,3,FALSE)) -> 
P175: ok | T175: =IF((VLOOKUP($B175,asnm!$C$6:$F$34726,4,FALSE))<>0,VLOOKUP($B175,asnm!$C$6:$F$34726,4,FALSE),VLOOKUP($B175,asnm!$C$6:$F$34726,3,FALSE)) -> 
P176: ok | T176: =IF((VLOOKUP($B176,asnm!$C$6:$F$34726,4,FALSE))<>0,VLOOKUP($B176,asnm!$C$6:$F$34726,4,FALSE),VLOOKUP($B176,asnm!$C$6:$F$34726,3,FALSE)) -> 
P177: ok | T177: =IF((VLOOKUP($B177,asnm!$C$6:$F$34726,4,FALSE))<>0,VLOOKUP($B177,asnm!$C$6:$F$34726,4,FALSE),VLOOKUP($B177,asnm!$C$6:$F$34726,3,FALSE)) -> 
P178: ok | T178: =IF((VLOOKUP($B178,asnm!$C$6:$F$34726,4,FALSE))<>0,VLOOKUP($B178,asnm!$C$6:$F$34726,4,FALSE),VLOOKUP($B178,asnm!$C$6:$F$34726,3,FALSE)) -> 
P179: ok | T179: =IF((VLOOKUP($B179,asnm!$C$6:$F$34726,4,FALSE))<>0,VLOOKUP($B179,asnm!$C$6:$F$34726,4,FALSE),VLOOKUP($B179,asnm!$C$6:$F$34726,3,FALSE)) -> 
P180: ok | T180: =IF((VLOOKUP($B180,asnm!$C$6:$F$34726,4,FALSE))<>0,VLOOKUP($B180,asnm!$C$6:$F$34726,4,FALSE),VLOOKUP($B180,asnm!$C$6:$F$34726,3,FALSE)) -> 
P181: ok | T181: =IF((VLOOKUP($B181,asnm!$C$6:$F$34726,4,FALSE))<>0,VLOOKUP($B181,asnm!$C$6:$F$34726,4,FALSE),VLOOKUP($B181,asnm!$C$6:$F$34726,3,FALSE)) -> 
P182: ok | T182: =IF((VLOOKUP($B182,asnm!$C$6:$F$34726,4,FALSE))<>0,VLOOKUP($B182,asnm!$C$6:$F$34726,4,FALSE),VLOOKUP($B182,asnm!$C$6:$F$34726,3,FALSE)) -> 
P183: ok | T183: =IF((VLOOKUP($B183,asnm!$C$6:$F$34726,4,FALSE))<>0,VLOOKUP($B183,asnm!$C$6:$F$34726,4,FALSE),VLOOKUP($B183,asnm!$C$6:$F$34726,3,FALSE)) -> 
P184: ok | T184: =IF((VLOOKUP($B184,asnm!$C$6:$F$34726,4,FALSE))<>0,VLOOKUP($B184,asnm!$C$6:$F$34726,4,FALSE),VLOOKUP($B184,asnm!$C$6:$F$34726,3,FALSE)) -> 
P185: ok | T185: =IF((VLOOKUP($B185,asnm!$C$6:$F$34726,4,FALSE))<>0,VLOOKUP($B185,asnm!$C$6:$F$34726,4,FALSE),VLOOKUP($B185,asnm!$C$6:$F$34726,3,FALSE)) -> 
P186: ok | T186: =IF((VLOOKUP($B186,asnm!$C$6:$F$34726,4,FALSE))<>0,VLOOKUP($B186,asnm!$C$6:$F$34726,4,FALSE),VLOOKUP($B186,asnm!$C$6:$F$34726,3,FALSE)) -> 
P187: ok | T187: =IF((VLOOKUP($B187,asnm!$C$6:$F$34726,4,FALSE))<>0,VLOOKUP($B187,asnm!$C$6:$F$34726,4,FALSE),VLOOKUP($B187,asnm!$C$6:$F$34726,3,FALSE)) -> 
P188: ok | T188: =IF((VLOOKUP($B188,asnm!$C$6:$F$34726,4,FALSE))<>0,VLOOKUP($B188,asnm!$C$6:$F$34726,4,FALSE),VLOOKUP($B188,asnm!$C$6:$F$34726,3,FALSE)) -> 
P189: ok | T189: =IF((VLOOKUP($B189,asnm!$C$6:$F$34726,4,FALSE))<>0,VLOOKUP($B189,asnm!$C$6:$F$34726,4,FALSE),VLOOKUP($B189,asnm!$C$6:$F$34726,3,FALSE)) -> 
P190: ok | T190: =IF((VLOOKUP($B190,asnm!$C$6:$F$34726,4,FALSE))<>0,VLOOKUP($B190,asnm!$C$6:$F$34726,4,FALSE),VLOOKUP($B190,asnm!$C$6:$F$34726,3,FALSE)) -> 
P191: ok | T191: =IF((VLOOKUP($B191,asnm!$C$6:$F$34726,4,FALSE))<>0,VLOOKUP($B191,asnm!$C$6:$F$34726,4,FALSE),VLOOKUP($B191,asnm!$C$6:$F$34726,3,FALSE)) -> 
P192: ok | T192: =IF((VLOOKUP($B192,asnm!$C$6:$F$34726,4,FALSE))<>0,VLOOKUP($B192,asnm!$C$6:$F$34726,4,FALSE),VLOOKUP($B192,asnm!$C$6:$F$34726,3,FALSE)) -> 
P193: ok | T193: =IF((VLOOKUP($B193,asnm!$C$6:$F$34726,4,FALSE))<>0,VLOOKUP($B193,asnm!$C$6:$F$34726,4,FALSE),VLOOKUP($B193,asnm!$C$6:$F$34726,3,FALSE)) -> 
P194: ok | T194: =IF((VLOOKUP($B194,asnm!$C$6:$F$34726,4,FALSE))<>0,VLOOKUP($B194,asnm!$C$6:$F$34726,4,FALSE),VLOOKUP($B194,asnm!$C$6:$F$34726,3,FALSE)) -> 
P195: ok | T195: =IF((VLOOKUP($B195,asnm!$C$6:$F$34726,4,FALSE))<>0,VLOOKUP($B195,asnm!$C$6:$F$34726,4,FALSE),VLOOKUP($B195,asnm!$C$6:$F$34726,3,FALSE)) -> 
P196: ok | T196: =IF((VLOOKUP($B196,asnm!$C$6:$F$34726,4,FALSE))<>0,VLOOKUP($B196,asnm!$C$6:$F$34726,4,FALSE),VLOOKUP($B196,asnm!$C$6:$F$34726,3,FALSE)) -> 
P197: ok | T197: =IF((VLOOKUP($B197,asnm!$C$6:$F$34726,4,FALSE))<>0,VLOOKUP($B197,asnm!$C$6:$F$34726,4,FALSE),VLOOKUP($B197,asnm!$C$6:$F$34726,3,FALSE)) -> 
P198: ok | T198: =IF((VLOOKUP($B198,asnm!$C$6:$F$34726,4,FALSE))<>0,VLOOKUP($B198,asnm!$C$6:$F$34726,4,FALSE),VLOOKUP($B198,asnm!$C$6:$F$34726,3,FALSE)) -> 
P199: =IF(M199<O199,"Revisar","ok") -> ok | T199: =IF((VLOOKUP($B199,asnm!$C$6:$F$34726,4,FALSE))<>0,VLOOKUP($B199,asnm!$C$6:$F$34726,4,FALSE),VLOOKUP($B199,asnm!$C$6:$F$34726,3,FALSE)) ->  | U199: =IF(T199>=1000,60,90) ->  | V199: =+O199*U199 -> 
P200: ok | T200: =IF((VLOOKUP($B200,asnm!$C$6:$F$34726,4,FALSE))<>0,VLOOKUP($B200,asnm!$C$6:$F$34726,4,FALSE),VLOOKUP($B200,asnm!$C$6:$F$34726,3,FALSE)) -> 
... 1002 more rows

Sheet Formulario4
B1: Formulario 4. Impacto de cobertura a nivel municipal
C5: Depto | D5: Cod_Dane | E5: Municipio | F5: Nombre compuesto Depto-Mpio | G5: Usuarios 2016 | H5: Viviendas 2016 | I5: ICCE_2016 | J5: Deficit de cobertura 2016 | K5: VSS 2015 | L5: Viviendas a beneficiarse del programa y/o proyecto | M5: % de aumento de cobertura municipal | N5: Verificación | O5: Proyección de viviendas por el OR | P5: El mpio ha recibido recursos en los últimos 5 años? | Q5: Observación
B6: 91 | C6: Amazonas | D6: 91263 | E6: CD. El Encanto | F6: =CONCATENATE(C6,"-",E6) -> Amazonas-CD. El Encanto | G6: 124 | H6: 868 | I6: 0.1428571429 | J6: =100%-I6 -> 0.8571428571 | K6: 744 | L6: =SUMIF(Formulario3!$A$3:$A$50000,Formulario4!$D6,Formulario3!$O$3:$O$50000) -> 0 | M6: =+IFERROR(((G6+L6)/H6),"")-I6 -> 0
B7: 91 | C7: Amazonas | D7: 91405 | E7: CD. La Chorrera | F7: Amazonas-CD. La Chorrera | G7: 402 | H7: 758 | I7: 0.5303430079 | J7: =100%-I7 -> 0.4696569921 | K7: 356 | L7: =SUMIF(Formulario3!$A$3:$A$50000,Formulario4!$D7,Formulario3!$O$3:$O$50000) -> 0 | M7: =+IFERROR(((G7+L7)/H7),"")-I7 -> 0
B8: 91 | C8: Amazonas | D8: 91407 | E8: CD. La Pedrera | F8: Amazonas-CD. La Pedrera | G8: 209 | H8: 891 | I8: 0.2345679012 | J8: 0.7654320988 | K8: 682 | L8: =SUMIF(Formulario3!$A$3:$A$50000,Formulario4!$D8,Formulario3!$O$3:$O$50000) -> 0 | M8: 0
B9: 91 | C9: Amazonas | D9: 91430 | E9: CD. La Victoria1 | F9: Amazonas-CD. La Victoria1 | G9: 36 | H9: 172 | I9: 0.2093023256 | J9: 0.7906976744 | K9: 136 | L9: =SUMIF(Formulario3!$A$3:$A$50000,Formulario4!$D9,Formulario3!$O$3:$O$50000) -> 0 | M9: 0
B10: 91 | C10: Amazonas | D10: 91460 | E10: CD. Miriti-Parana | F10: Amazonas-CD. Miriti-Parana | G10: 41 | H10: 235 | I10: 0.1744680851 | J10: 0.8255319149 | K10: 194 | L10: =SUMIF(Formulario3!$A$3:$A$50000,Formulario4!$D10,Formulario3!$O$3:$O$50000) -> 0 | M10: 0
B11: 91 | C11: Amazonas | D11: 91536 | E11: CD. Puerto Arica3 | F11: Amazonas-CD. Puerto Arica3 | G11: 90 | H11: 209 | I11: 0.4306220096 | J11: 0.5693779904 | K11: 119 | L11: =SUMIF(Formulario3!$A$3:$A$50000,Formulario4!$D11,Formulario3!$O$3:$O$50000) -> 0 | M11: 0
B12: 91 | C12: Amazonas | D12: 91669 | E12: CD. Puerto Santander | F12: Amazonas-CD. Puerto Santander | G12: 68 | H12: 588 | I12: 0.1156462585 | J12: 0.8843537415 | K12: 520 | L12: =SUMIF(Formulario3!$A$3:$A$50000,Formulario4!$D12,Formulario3!$O$3:$O$50000) -> 0 | M12: 0
B13: 91 | C13: Amazonas | D13: 91798 | E13: CD. Tarapaca | F13: Amazonas-CD. Tarapaca | G13: 272 | H13: 713 | I13: 0.381486676 | J13: 0.618513324 | K13: 441 | L13: =SUMIF(Formulario3!$A$3:$A$50000,Formulario4!$D13,Formulario3!$O$3:$O$50000) -> 0 | M13: 0
B14: 91 | C14: Amazonas | D14: 91530 | E14: CD.Puerto Alegría2 | F14: Amazonas-CD.Puerto Alegría2 | G14: 50 | H14: 508 | I14: 0.09842519685 | J14: 0.9015748031 | K14: 458 | L14: =SUMIF(Formulario3!$A$3:$A$50000,Formulario4!$D14,Formulario3!$O$3:$O$50000) -> 0 | M14: 0
B15: 91 | C15: Amazonas | D15: 91001 | E15: Leticia | F15: Amazonas-Leticia | G15: 11027 | H15: 12559 | I15: 0.8780157656 | J15: 0.1219842344 | K15: 1532 | L15: =SUMIF(Formulario3!$A$3:$A$50000,Formulario4!$D15,Formulario3!$O$3:$O$50000) -> 0 | M15: 0
B16: 91 | C16: Amazonas | D16: 91540 | E16: Puerto Nariño | F16: Amazonas-Puerto Nariño | G16: 1392 | H16: 1742 | I16: 0.7990815155 | J16: 0.2009184845 | K16: 350 | L16: =SUMIF(Formulario3!$A$3:$A$50000,Formulario4!$D16,Formulario3!$O$3:$O$50000) -> 0 | M16: 0
B17: 05 | C17: Antioquia | D17: 05002 | E17: Abejorral | F17: Antioquia-Abejorral | G17: 7163 | H17: 7341 | I17: 0.9757526223 | J17: 0.02424737774 | K17: 178 | L17: =SUMIF(Formulario3!$A$3:$A$50000,Formulario4!$D17,Formulario3!$O$3:$O$50000) -> 0 | M17: 0
B18: 05 | C18: Antioquia | D18: 05004 | E18: Abriaqui | F18: Antioquia-Abriaqui | G18: 888 | H18: 991 | I18: 0.8960645812 | J18: 0.1039354188 | K18: 103 | L18: =SUMIF(Formulario3!$A$3:$A$50000,Formulario4!$D18,Formulario3!$O$3:$O$50000) -> 0 | M18: 0
B19: 05 | C19: Antioquia | D19: 05021 | E19: Alejandría | F19: Antioquia-Alejandría | G19: 1895 | H19: 1962 | I19: 0.9658511723 | J19: 0.03414882773 | K19: 67 | L19: =SUMIF(Formulario3!$A$3:$A$50000,Formulario4!$D19,Formulario3!$O$3:$O$50000) -> 0 | M19: 0
B20: 05 | C20: Antioquia | D20: 05030 | E20: Amaga | F20: Antioquia-Amaga | G20: 9633 | H20: 9683 | I20: 0.9948363111 | J20: 0.005163688939 | K20: 50 | L20: =SUMIF(Formulario3!$A$3:$A$50000,Formulario4!$D20,Formulario3!$O$3:$O$50000) -> 0 | M20: 0
B21: 05 | C21: Antioquia | D21: 05031 | E21: Amalfi | F21: Antioquia-Amalfi | G21: 7562 | H21: 8119 | I21: 0.9313954921 | J21: 0.06860450794 | K21: 557 | L21: =SUMIF(Formulario3!$A$3:$A$50000,Formulario4!$D21,Formulario3!$O$3:$O$50000) -> 0 | M21: 0
B22: 05 | C22: Antioquia | D22: 05034 | E22: Andes | F22: Antioquia-Andes | G22: 13507 | H22: 13623 | I22: 0.9914849886 | J22: 0.008515011378 | K22: 116 | L22: =SUMIF(Formulario3!$A$3:$A$50000,Formulario4!$D22,Formulario3!$O$3:$O$50000) -> 0 | M22: 0
B23: 05 | C23: Antioquia | D23: 05036 | E23: Angelopolis | F23: Antioquia-Angelopolis | G23: 1987 | H23: 2011 | I23: 0.988065639 | J23: 0.01193436101 | K23: 24 | L23: =SUMIF(Formulario3!$A$3:$A$50000,Formulario4!$D23,Formulario3!$O$3:$O$50000) -> 0 | M23: 0
B24: 05 | C24: Antioquia | D24: 05038 | E24: Angostura | F24: Antioquia-Angostura | G24: 4247 | H24: 4339 | I24: 0.9787969578 | J24: 0.02120304218 | K24: 92 | L24: =SUMIF(Formulario3!$A$3:$A$50000,Formulario4!$D24,Formulario3!$O$3:$O$50000) -> 0 | M24: 0
B25: 05 | C25: Antioquia | D25: 05040 | E25: Anorí | F25: Antioquia-Anorí | G25: 4352 | H25: 4885 | I25: 0.8908904811 | J25: 0.1091095189 | K25: 533 | L25: =SUMIF(Formulario3!$A$3:$A$50000,Formulario4!$D25,Formulario3!$O$3:$O$50000) -> 0 | M25: 0
B26: 05 | C26: Antioquia | D26: 05042 | E26: Antioquia | F26: Antioquia-Antioquia | G26: 11553 | H26: 11681 | I26: 0.9890420341 | J26: 0.01095796593 | K26: 128 | L26: =SUMIF(Formulario3!$A$3:$A$50000,Formulario4!$D26,Formulario3!$O$3:$O$50000) -> 0 | M26: 0
B27: 05 | C27: Antioquia | D27: 05044 | E27: Anza | F27: Antioquia-Anza | G27: 2621 | H27: 2748 | I27: 0.9537845706 | J27: 0.0462154294 | K27: 127 | L27: =SUMIF(Formulario3!$A$3:$A$50000,Formulario4!$D27,Formulario3!$O$3:$O$50000) -> 0 | M27: 0
B28: 05 | C28: Antioquia | D28: 05045 | E28: Apartado | F28: Antioquia-Apartado | G28: 35896 | H28: 36355 | I28: 0.9873745014 | J28: 0.01262549856 | K28: 459 | L28: =SUMIF(Formulario3!$A$3:$A$50000,Formulario4!$D28,Formulario3!$O$3:$O$50000) -> 0 | M28: 0
B29: 05 | C29: Antioquia | D29: 05051 | E29: Arboletes | F29: Antioquia-Arboletes | G29: 8771 | H29: 8893 | I29: 0.9862813449 | J29: 0.01371865512 | K29: 122 | L29: =SUMIF(Formulario3!$A$3:$A$50000,Formulario4!$D29,Formulario3!$O$3:$O$50000) -> 0 | M29: 0
B30: 05 | C30: Antioquia | D30: 05055 | E30: Argelia | F30: Antioquia-Argelia | G30: 2803 | H30: 3004 | I30: 0.9330892144 | J30: 0.06691078562 | K30: 201 | L30: =SUMIF(Formulario3!$A$3:$A$50000,Formulario4!$D30,Formulario3!$O$3:$O$50000) -> 0 | M30: 0
B31: 05 | C31: Antioquia | D31: 05059 | E31: Armenia | F31: Antioquia-Armenia | G31: 1749 | H31: 1767 | I31: 0.9898132428 | J31: 0.01018675722 | K31: 18 | L31: =SUMIF(Formulario3!$A$3:$A$50000,Formulario4!$D31,Formulario3!$O$3:$O$50000) -> 0 | M31: 0
B32: 05 | C32: Antioquia | D32: 05079 | E32: Barbosa | F32: Antioquia-Barbosa | G32: 16919 | H32: 16919 | I32: 1 | J32: 0 | K32: 0 | L32: =SUMIF(Formulario3!$A$3:$A$50000,Formulario4!$D32,Formulario3!$O$3:$O$50000) -> 0 | M32: 0
B33: 05 | C33: Antioquia | D33: 05088 | E33: Bello | F33: Antioquia-Bello | G33: 146899 | H33: 146899 | I33: 1 | J33: 0 | K33: 0 | L33: =SUMIF(Formulario3!$A$3:$A$50000,Formulario4!$D33,Formulario3!$O$3:$O$50000) -> 0 | M33: 0
B34: 05 | C34: Antioquia | D34: 05086 | E34: Belmira | F34: Antioquia-Belmira | G34: 1996 | H34: 2042 | I34: 0.9774730656 | J34: 0.02252693438 | K34: 46 | L34: =SUMIF(Formulario3!$A$3:$A$50000,Formulario4!$D34,Formulario3!$O$3:$O$50000) -> 0 | M34: 0
B35: 05 | C35: Antioquia | D35: 05091 | E35: Betania | F35: Antioquia-Betania | G35: 2881 | H35: 2900 | I35: 0.9934482759 | J35: 0.006551724138 | K35: 19 | L35: =SUMIF(Formulario3!$A$3:$A$50000,Formulario4!$D35,Formulario3!$O$3:$O$50000) -> 0 | M35: 0
B36: 05 | C36: Antioquia | D36: 05093 | E36: Betulia | F36: Antioquia-Betulia | G36: 5993 | H36: 6117 | I36: 0.9797286251 | J36: 0.02027137486 | K36: 124 | L36: =SUMIF(Formulario3!$A$3:$A$50000,Formulario4!$D36,Formulario3!$O$3:$O$50000) -> 0 | M36: 0
B37: 05 | C37: Antioquia | D37: 05101 | E37: Bolívar | F37: Antioquia-Bolívar | G37: 8535 | H37: 8569 | I37: 0.9960322091 | J37: 0.003967790874 | K37: 34 | L37: =SUMIF(Formulario3!$A$3:$A$50000,Formulario4!$D37,Formulario3!$O$3:$O$50000) -> 0 | M37: 0
B38: 05 | C38: Antioquia | D38: 05107 | E38: Briceño | F38: Antioquia-Briceño | G38: 2690 | H38: 2760 | I38: 0.9746376812 | J38: 0.02536231884 | K38: 70 | L38: =SUMIF(Formulario3!$A$3:$A$50000,Formulario4!$D38,Formulario3!$O$3:$O$50000) -> 0 | M38: 0
B39: 05 | C39: Antioquia | D39: 05113 | E39: Buritica | F39: Antioquia-Buritica | G39: 2577 | H39: 2682 | I39: 0.9608501119 | J39: 0.03914988814 | K39: 105 | L39: =SUMIF(Formulario3!$A$3:$A$50000,Formulario4!$D39,Formulario3!$O$3:$O$50000) -> 0 | M39: 0
B40: 05 | C40: Antioquia | D40: 05120 | E40: Cáceres | F40: Antioquia-Cáceres | G40: 8107 | H40: 8749 | I40: 0.9266201852 | J40: 0.07337981484 | K40: 642 | L40: =SUMIF(Formulario3!$A$3:$A$50000,Formulario4!$D40,Formulario3!$O$3:$O$50000) -> 0 | M40: 0
B41: 05 | C41: Antioquia | D41: 05125 | E41: Caicedo | F41: Antioquia-Caicedo | G41: 2944 | H41: 3011 | I41: 0.9777482564 | J41: 0.02225174361 | K41: 67 | L41: =SUMIF(Formulario3!$A$3:$A$50000,Formulario4!$D41,Formulario3!$O$3:$O$50000) -> 0 | M41: 0
B42: 05 | C42: Antioquia | D42: 05129 | E42: Caldas | F42: Antioquia-Caldas | G42: 24816 | H42: 24821 | I42: 0.9997985577 | J42: 0.0002014423271 | K42: 5 | L42: =SUMIF(Formulario3!$A$3:$A$50000,Formulario4!$D42,Formulario3!$O$3:$O$50000) -> 0 | M42: 0
B43: 05 | C43: Antioquia | D43: 05134 | E43: Campamento | F43: Antioquia-Campamento | G43: 2632 | H43: 2726 | I43: 0.9655172414 | J43: 0.03448275862 | K43: 94 | L43: =SUMIF(Formulario3!$A$3:$A$50000,Formulario4!$D43,Formulario3!$O$3:$O$50000) -> 0 | M43: 0
B44: 05 | C44: Antioquia | D44: 05138 | E44: Cañasgordas | F44: Antioquia-Cañasgordas | G44: 5577 | H44: 5790 | I44: 0.9632124352 | J44: 0.03678756477 | K44: 213 | L44: =SUMIF(Formulario3!$A$3:$A$50000,Formulario4!$D44,Formulario3!$O$3:$O$50000) -> 0 | M44: 0
B45: 05 | C45: Antioquia | D45: 05142 | E45: Caracolí | F45: Antioquia-Caracolí | G45: 1806 | H45: 1824 | I45: 0.9901315789 | J45: 0.009868421053 | K45: 18 | L45: =SUMIF(Formulario3!$A$3:$A$50000,Formulario4!$D45,Formulario3!$O$3:$O$50000) -> 0 | M45: 0
B46: 05 | C46: Antioquia | D46: 05145 | E46: Caramanta | F46: Antioquia-Caramanta | G46: 1982 | H46: 2012 | I46: 0.9850894632 | J46: 0.01491053678 | K46: 30 | L46: =SUMIF(Formulario3!$A$3:$A$50000,Formulario4!$D46,Formulario3!$O$3:$O$50000) -> 0 | M46: 0
B47: 05 | C47: Antioquia | D47: 05147 | E47: Carepa | F47: Antioquia-Carepa | G47: 14208 | H47: 14496 | I47: 0.9801324503 | J47: 0.01986754967 | K47: 288 | L47: =SUMIF(Formulario3!$A$3:$A$50000,Formulario4!$D47,Formulario3!$O$3:$O$50000) -> 0 | M47: 0
B48: 05 | C48: Antioquia | D48: 05148 | E48: Carmen De Viboral | F48: Antioquia-Carmen De Viboral | G48: 16243 | H48: 16382 | I48: 0.9915150775 | J48: 0.008484922476 | K48: 139 | L48: =SUMIF(Formulario3!$A$3:$A$50000,Formulario4!$D48,Formulario3!$O$3:$O$50000) -> 0 | M48: 0
B49: 05 | C49: Antioquia | D49: 05150 | E49: Carolina | F49: Antioquia-Carolina | G49: 1648 | H49: 1659 | I49: 0.9933694997 | J49: 0.006630500301 | K49: 11 | L49: =SUMIF(Formulario3!$A$3:$A$50000,Formulario4!$D49,Formulario3!$O$3:$O$50000) -> 0 | M49: 0
B50: 05 | C50: Antioquia | D50: 05154 | E50: Caucasia | F50: Antioquia-Caucasia | G50: 27676 | H50: 28347 | I50: 0.9763290648 | J50: 0.0236709352 | K50: 671 | L50: =SUMIF(Formulario3!$A$3:$A$50000,Formulario4!$D50,Formulario3!$O$3:$O$50000) -> 0 | M50: 0
B51: 05 | C51: Antioquia | D51: 05172 | E51: Chigorodó | F51: Antioquia-Chigorodó | G51: 18001 | H51: 18452 | I51: 0.9755582051 | J51: 0.02444179493 | K51: 451 | L51: =SUMIF(Formulario3!$A$3:$A$50000,Formulario4!$D51,Formulario3!$O$3:$O$50000) -> 0 | M51: 0
B52: 05 | C52: Antioquia | D52: 05190 | E52: Cisneros | F52: Antioquia-Cisneros | G52: 3850 | H52: 3896 | I52: 0.9881930185 | J52: 0.01180698152 | K52: 46 | L52: =SUMIF(Formulario3!$A$3:$A$50000,Formulario4!$D52,Formulario3!$O$3:$O$50000) -> 0 | M52: 0
B53: 05 | C53: Antioquia | D53: 05197 | E53: Cocorná | F53: Antioquia-Cocorná | G53: 7344 | H53: 7704 | I53: 0.953271028 | J53: 0.04672897196 | K53: 360 | L53: =SUMIF(Formulario3!$A$3:$A$50000,Formulario4!$D53,Formulario3!$O$3:$O$50000) -> 0 | M53: 0
B54: 05 | C54: Antioquia | D54: 05206 | E54: Concepción | F54: Antioquia-Concepción | G54: 2155 | H54: 2171 | I54: 0.9926301244 | J54: 0.007369875633 | K54: 16 | L54: =SUMIF(Formulario3!$A$3:$A$50000,Formulario4!$D54,Formulario3!$O$3:$O$50000) -> 0 | M54: 0
B55: 05 | C55: Antioquia | D55: 05209 | E55: Concordia | F55: Antioquia-Concordia | G55: 6176 | H55: 6305 | I55: 0.9795400476 | J55: 0.02045995242 | K55: 129 | L55: =SUMIF(Formulario3!$A$3:$A$50000,Formulario4!$D55,Formulario3!$O$3:$O$50000) -> 0 | M55: 0
B56: 05 | C56: Antioquia | D56: 05212 | E56: Copacabana | F56: Antioquia-Copacabana | G56: 25202 | H56: 25202 | I56: 1 | J56: 0 | K56: 0 | L56: =SUMIF(Formulario3!$A$3:$A$50000,Formulario4!$D56,Formulario3!$O$3:$O$50000) -> 0 | M56: 0
B57: 05 | C57: Antioquia | D57: 05234 | E57: Dabeiba | F57: Antioquia-Dabeiba | G57: 6427 | H57: 6874 | I57: 0.9349723596 | J57: 0.06502764038 | K57: 447 | L57: =SUMIF(Formulario3!$A$3:$A$50000,Formulario4!$D57,Formulario3!$O$3:$O$50000) -> 0 | M57: 0
B58: 05 | C58: Antioquia | D58: 05237 | E58: Don Matías | F58: Antioquia-Don Matías | G58: 7173 | H58: 7187 | I58: 0.9980520384 | J58: 0.001947961597 | K58: 14 | L58: =SUMIF(Formulario3!$A$3:$A$50000,Formulario4!$D58,Formulario3!$O$3:$O$50000) -> 0 | M58: 0
B59: 05 | C59: Antioquia | D59: 05240 | E59: Ebejico | F59: Antioquia-Ebejico | G59: 5053 | H59: 5152 | I59: 0.9807841615 | J59: 0.01921583851 | K59: 99 | L59: =SUMIF(Formulario3!$A$3:$A$50000,Formulario4!$D59,Formulario3!$O$3:$O$50000) -> 0 | M59: 0
B60: 05 | C60: Antioquia | D60: 05250 | E60: El Bagre | F60: Antioquia-El Bagre | G60: 16591 | H60: 17347 | I60: 0.9564189773 | J60: 0.04358102266 | K60: 756 | L60: =SUMIF(Formulario3!$A$3:$A$50000,Formulario4!$D60,Formulario3!$O$3:$O$50000) -> 0 | M60: 0
B61: 05 | C61: Antioquia | D61: 05264 | E61: Entrerrios | F61: Antioquia-Entrerrios | G61: 3470 | H61: 3474 | I61: 0.9988485895 | J61: 0.001151410478 | K61: 4 | L61: =SUMIF(Formulario3!$A$3:$A$50000,Formulario4!$D61,Formulario3!$O$3:$O$50000) -> 0 | M61: 0
B62: 05 | C62: Antioquia | D62: 05266 | E62: Envigado | F62: Antioquia-Envigado | G62: 74250 | H62: 74250 | I62: 1 | J62: 0 | K62: 0 | L62: =SUMIF(Formulario3!$A$3:$A$50000,Formulario4!$D62,Formulario3!$O$3:$O$50000) -> 0 | M62: 0
B63: 05 | C63: Antioquia | D63: 05282 | E63: Fredonia | F63: Antioquia-Fredonia | G63: 7716 | H63: 7781 | I63: 0.991646318 | J63: 0.008353682046 | K63: 65 | L63: =SUMIF(Formulario3!$A$3:$A$50000,Formulario4!$D63,Formulario3!$O$3:$O$50000) -> 0 | M63: 0
B64: 05 | C64: Antioquia | D64: 05284 | E64: Frontino | F64: Antioquia-Frontino | G64: 6548 | H64: 6920 | I64: 0.9462427746 | J64: 0.05375722543 | K64: 372 | L64: =SUMIF(Formulario3!$A$3:$A$50000,Formulario4!$D64,Formulario3!$O$3:$O$50000) -> 0 | M64: 0
B65: 05 | C65: Antioquia | D65: 05306 | E65: Giraldo | F65: Antioquia-Giraldo | G65: 1890 | H65: 1938 | I65: 0.9752321981 | J65: 0.02476780186 | K65: 48 | L65: =SUMIF(Formulario3!$A$3:$A$50000,Formulario4!$D65,Formulario3!$O$3:$O$50000) -> 0 | M65: 0
B66: 05 | C66: Antioquia | D66: 05308 | E66: Girardota | F66: Antioquia-Girardota | G66: 15524 | H66: 15524 | I66: 1 | J66: 0 | K66: 0 | L66: =SUMIF(Formulario3!$A$3:$A$50000,Formulario4!$D66,Formulario3!$O$3:$O$50000) -> 0 | M66: 0
B67: 05 | C67: Antioquia | D67: 05310 | E67: Gómez Plata | F67: Antioquia-Gómez Plata | G67: 4162 | H67: 4200 | I67: 0.990952381 | J67: 0.009047619048 | K67: 38 | L67: =SUMIF(Formulario3!$A$3:$A$50000,Formulario4!$D67,Formulario3!$O$3:$O$50000) -> 0 | M67: 0
B68: 05 | C68: Antioquia | D68: 05313 | E68: Granada | F68: Antioquia-Granada | G68: 5690 | H68: 5797 | I68: 0.981542177 | J68: 0.01845782301 | K68: 107 | L68: =SUMIF(Formulario3!$A$3:$A$50000,Formulario4!$D68,Formulario3!$O$3:$O$50000) -> 0 | M68: 0
B69: 05 | C69: Antioquia | D69: 05315 | E69: Guadalupe | F69: Antioquia-Guadalupe | G69: 2323 | H69: 2378 | I69: 0.9768713204 | J69: 0.02312867956 | K69: 55 | L69: =SUMIF(Formulario3!$A$3:$A$50000,Formulario4!$D69,Formulario3!$O$3:$O$50000) -> 0 | M69: 0
B70: 05 | C70: Antioquia | D70: 05318 | E70: Guarne | F70: =CONCATENATE(C70,"-",E70) -> Antioquia-Guarne | G70: 17259 | H70: 17550 | I70: 0.9834188034 | J70: 0.01658119658 | K70: 291 | L70: =SUMIF(Formulario3!$A$3:$A$50000,Formulario4!$D70,Formulario3!$O$3:$O$50000) -> 0 | M70: 0
B71: 05 | C71: Antioquia | D71: 05321 | E71: Guatapé | F71: Antioquia-Guatapé | G71: 3299 | H71: 3316 | I71: 0.9948733414 | J71: =100%-I71 -> 0.005126658625 | K71: 17 | L71: =SUMIF(Formulario3!$A$3:$A$50000,Formulario4!$D71,Formulario3!$O$3:$O$50000) -> 0 | M71: =+IFERROR(((G71+L71)/H71),"")-I71 -> 0
B72: 05 | C72: Antioquia | D72: 05347 | E72: Heliconia | F72: Antioquia-Heliconia | G72: 2607 | H72: 2663 | I72: 0.9789710852 | J72: 0.02102891476 | K72: 56 | L72: =SUMIF(Formulario3!$A$3:$A$50000,Formulario4!$D72,Formulario3!$O$3:$O$50000) -> 0 | M72: 0
B73: 05 | C73: Antioquia | D73: 05353 | E73: Hispania | F73: Antioquia-Hispania | G73: 1928 | H73: 1960 | I73: 0.9836734694 | J73: 0.01632653061 | K73: 32 | L73: =SUMIF(Formulario3!$A$3:$A$50000,Formulario4!$D73,Formulario3!$O$3:$O$50000) -> 0 | M73: 0
B74: 05 | C74: Antioquia | D74: 05360 | E74: Itagui | F74: Antioquia-Itagui | G74: 82286 | H74: 82286 | I74: 1 | J74: 0 | K74: 0 | L74: =SUMIF(Formulario3!$A$3:$A$50000,Formulario4!$D74,Formulario3!$O$3:$O$50000) -> 0 | M74: 0
B75: 05 | C75: Antioquia | D75: 05361 | E75: Ituango | F75: Antioquia-Ituango | G75: 7122 | H75: 7628 | I75: 0.9336654431 | J75: 0.0663345569 | K75: 506 | L75: =SUMIF(Formulario3!$A$3:$A$50000,Formulario4!$D75,Formulario3!$O$3:$O$50000) -> 0 | M75: 0
B76: 05 | C76: Antioquia | D76: 05364 | E76: Jardín | F76: Antioquia-Jardín | G76: 5628 | H76: 5709 | I76: 0.985811876 | J76: 0.01418812401 | K76: 81 | L76: =SUMIF(Formulario3!$A$3:$A$50000,Formulario4!$D76,Formulario3!$O$3:$O$50000) -> 0 | M76: 0
B77: 05 | C77: Antioquia | D77: 05368 | E77: Jericó | F77: Antioquia-Jericó | G77: 4603 | H77: 4690 | I77: 0.9814498934 | J77: 0.01855010661 | K77: 87 | L77: =SUMIF(Formulario3!$A$3:$A$50000,Formulario4!$D77,Formulario3!$O$3:$O$50000) -> 0 | M77: 0
B78: 05 | C78: Antioquia | D78: 05376 | E78: La Ceja | F78: Antioquia-La Ceja | G78: 18855 | H78: 18886 | I78: 0.9983585725 | J78: 0.001641427512 | K78: 31 | L78: =SUMIF(Formulario3!$A$3:$A$50000,Formulario4!$D78,Formulario3!$O$3:$O$50000) -> 0 | M78: 0
B79: 05 | C79: Antioquia | D79: 05380 | E79: La Estrella | F79: Antioquia-La Estrella | G79: 20229 | H79: 20229 | I79: 1 | J79: 0 | K79: 0 | L79: =SUMIF(Formulario3!$A$3:$A$50000,Formulario4!$D79,Formulario3!$O$3:$O$50000) -> 0 | M79: 0
B80: 05 | C80: Antioquia | D80: 05390 | E80: La Pintada4 | F80: Antioquia-La Pintada4 | G80: 2864 | H80: 2864 | I80: 1 | J80: 0 | K80: 0 | L80: =SUMIF(Formulario3!$A$3:$A$50000,Formulario4!$D80,Formulario3!$O$3:$O$50000) -> 0 | M80: 0
B81: 05 | C81: Antioquia | D81: 05400 | E81: La Unión | F81: Antioquia-La Unión | G81: 7359 | H81: 7450 | I81: 0.9877852349 | J81: 0.0122147651 | K81: 91 | L81: =SUMIF(Formulario3!$A$3:$A$50000,Formulario4!$D81,Formulario3!$O$3:$O$50000) -> 0 | M81: 0
B82: 05 | C82: Antioquia | D82: 05411 | E82: Liborina | F82: Antioquia-Liborina | G82: 4013 | H82: 4137 | I82: 0.9700265893 | J82: 0.02997341068 | K82: 124 | L82: =SUMIF(Formulario3!$A$3:$A$50000,Formulario4!$D82,Formulario3!$O$3:$O$50000) -> 0 | M82: 0
B83: 05 | C83: Antioquia | D83: 05425 | E83: Maceo | F83: Antioquia-Maceo | G83: 3444 | H83: 3616 | I83: 0.9524336283 | J83: 0.04756637168 | K83: 172 | L83: =SUMIF(Formulario3!$A$3:$A$50000,Formulario4!$D83,Formulario3!$O$3:$O$50000) -> 0 | M83: 0
B84: 05 | C84: Antioquia | D84: 05440 | E84: Marinilla | F84: Antioquia-Marinilla | G84: 19210 | H84: 19356 | I84: 0.9924571192 | J84: 0.00754288076 | K84: 146 | L84: =SUMIF(Formulario3!$A$3:$A$50000,Formulario4!$D84,Formulario3!$O$3:$O$50000) -> 0 | M84: 0
B85: 05 | C85: Antioquia | D85: 05001 | E85: Medellín | F85: Antioquia-Medellín | G85: 818901 | H85: 818901 | I85: 1 | J85: 0 | K85: 0 | L85: =SUMIF(Formulario3!$A$3:$A$50000,Formulario4!$D85,Formulario3!$O$3:$O$50000) -> 0 | M85: 0
B86: 05 | C86: Antioquia | D86: 05467 | E86: Montebello | F86: Antioquia-Montebello | G86: 3033 | H86: 3065 | I86: 0.9895595432 | J86: 0.01044045677 | K86: 32 | L86: =SUMIF(Formulario3!$A$3:$A$50000,Formulario4!$D86,Formulario3!$O$3:$O$50000) -> 0 | M86: 0
B87: 05 | C87: Antioquia | D87: 05475 | E87: Murindó | F87: Antioquia-Murindó | G87: 608 | H87: 974 | I87: 0.6242299795 | J87: 0.3757700205 | K87: 366 | L87: =SUMIF(Formulario3!$A$3:$A$50000,Formulario4!$D87,Formulario3!$O$3:$O$50000) -> 0 | M87: 0
B88: 05 | C88: Antioquia | D88: 05480 | E88: Mutatá | F88: Antioquia-Mutatá | G88: 5990 | H88: 6485 | I88: 0.9236700077 | J88: 0.07632999229 | K88: 495 | L88: =SUMIF(Formulario3!$A$3:$A$50000,Formulario4!$D88,Formulario3!$O$3:$O$50000) -> 0 | M88: 0
B89: 05 | C89: Antioquia | D89: 05483 | E89: Nariño | F89: Antioquia-Nariño | G89: 3236 | H89: 3322 | I89: 0.9741119807 | J89: 0.02588801927 | K89: 86 | L89: =SUMIF(Formulario3!$A$3:$A$50000,Formulario4!$D89,Formulario3!$O$3:$O$50000) -> 0 | M89: 0
B90: 05 | C90: Antioquia | D90: 05495 | E90: Nechí | F90: Antioquia-Nechí | G90: 7342 | H90: 7833 | I90: 0.9373164816 | J90: 0.06268351845 | K90: 491 | L90: =SUMIF(Formulario3!$A$3:$A$50000,Formulario4!$D90,Formulario3!$O$3:$O$50000) -> 0 | M90: 0
B91: 05 | C91: Antioquia | D91: 05490 | E91: Necoclí | F91: Antioquia-Necoclí | G91: 14791 | H91: 15146 | I91: 0.9765614684 | J91: 0.02343853163 | K91: 355 | L91: =SUMIF(Formulario3!$A$3:$A$50000,Formulario4!$D91,Formulario3!$O$3:$O$50000) -> 0 | M91: 0
B92: 05 | C92: Antioquia | D92: 05501 | E92: Olaya | F92: Antioquia-Olaya | G92: 1622 | H92: 1657 | I92: 0.9788774894 | J92: 0.02112251056 | K92: 35 | L92: =SUMIF(Formulario3!$A$3:$A$50000,Formulario4!$D92,Formulario3!$O$3:$O$50000) -> 0 | M92: 0
B93: 05 | C93: Antioquia | D93: 05541 | E93: Peñol | F93: Antioquia-Peñol | G93: 8569 | H93: 8712 | I93: 0.9835858586 | J93: 0.01641414141 | K93: 143 | L93: =SUMIF(Formulario3!$A$3:$A$50000,Formulario4!$D93,Formulario3!$O$3:$O$50000) -> 0 | M93: 0
B94: 05 | C94: Antioquia | D94: 05543 | E94: Peque | F94: Antioquia-Peque | G94: 3040 | H94: 3191 | I94: 0.9526794108 | J94: 0.04732058916 | K94: 151 | L94: =SUMIF(Formulario3!$A$3:$A$50000,Formulario4!$D94,Formulario3!$O$3:$O$50000) -> 0 | M94: 0
B95: 05 | C95: Antioquia | D95: 05576 | E95: Pueblorrico | F95: Antioquia-Pueblorrico | G95: 2752 | H95: 2769 | I95: 0.9938605995 | J95: 0.006139400506 | K95: 17 | L95: =SUMIF(Formulario3!$A$3:$A$50000,Formulario4!$D95,Formulario3!$O$3:$O$50000) -> 0 | M95: 0
B96: 05 | C96: Antioquia | D96: 05579 | E96: Puerto Berrío | F96: Antioquia-Puerto Berrío | G96: 13197 | H96: 13229 | I96: 0.9975810719 | J96: 0.002418928112 | K96: 32 | L96: =SUMIF(Formulario3!$A$3:$A$50000,Formulario4!$D96,Formulario3!$O$3:$O$50000) -> 0 | M96: 0
B97: 05 | C97: Antioquia | D97: 05585 | E97: Puerto Nare (La Magdalena) | F97: Antioquia-Puerto Nare (La Magdalena) | G97: 5054 | H97: 5123 | I97: 0.9865313293 | J97: 0.0134686707 | K97: 69 | L97: =SUMIF(Formulario3!$A$3:$A$50000,Formulario4!$D97,Formulario3!$O$3:$O$50000) -> 0 | M97: 0
B98: 05 | C98: Antioquia | D98: 05591 | E98: Puerto Triunfo | F98: Antioquia-Puerto Triunfo | G98: 5877 | H98: 5919 | I98: 0.9929042068 | J98: 0.007095793208 | K98: 42 | L98: =SUMIF(Formulario3!$A$3:$A$50000,Formulario4!$D98,Formulario3!$O$3:$O$50000) -> 0 | M98: 0
B99: 05 | C99: Antioquia | D99: 05604 | E99: Remedios | F99: Antioquia-Remedios | G99: 10039 | H99: 10877 | I99: 0.9229566976 | J99: 0.07704330238 | K99: 838 | L99: =SUMIF(Formulario3!$A$3:$A$50000,Formulario4!$D99,Formulario3!$O$3:$O$50000) -> 0 | M99: 0
B100: 05 | C100: Antioquia | D100: 05607 | E100: Retiro | F100: Antioquia-Retiro | G100: 8787 | H100: 8868 | I100: 0.9908660352 | J100: 0.009133964817 | K100: 81 | L100: =SUMIF(Formulario3!$A$3:$A$50000,Formulario4!$D100,Formulario3!$O$3:$O$50000) -> 0 | M100: 0
B101: 05 | C101: Antioquia | D101: 05615 | E101: Rionegro | F101: Antioquia-Rionegro | G101: 40123 | H101: 40254 | I101: 0.996745665 | J101: 0.003254334973 | K101: 131 | L101: =SUMIF(Formulario3!$A$3:$A$50000,Formulario4!$D101,Formulario3!$O$3:$O$50000) -> 0 | M101: 0
B102: 05 | C102: Antioquia | D102: 05628 | E102: Sabanalarga | F102: Antioquia-Sabanalarga | G102: 3801 | H102: 3876 | I102: 0.9806501548 | J102: 0.0193498452 | K102: 75 | L102: =SUMIF(Formulario3!$A$3:$A$50000,Formulario4!$D102,Formulario3!$O$3:$O$50000) -> 0 | M102: 0
B103: 05 | C103: Antioquia | D103: 05631 | E103: Sabaneta | F103: Antioquia-Sabaneta | G103: 29903 | H103: 29903 | I103: 1 | J103: 0 | K103: 0 | L103: =SUMIF(Formulario3!$A$3:$A$50000,Formulario4!$D103,Formulario3!$O$3:$O$50000) -> 0 | M103: 0
B104: 05 | C104: Antioquia | D104: 05642 | E104: Salgar | F104: Antioquia-Salgar | G104: 5581 | H104: 5704 | I104: 0.9784361851 | J104: 0.02156381487 | K104: 123 | L104: =SUMIF(Formulario3!$A$3:$A$50000,Formulario4!$D104,Formulario3!$O$3:$O$50000) -> 0 | M104: 0
B105: 05 | C105: Antioquia | D105: 05647 | E105: San Andrés | F105: Antioquia-San Andrés | G105: 2567 | H105: 2598 | I105: 0.9880677444 | J105: 0.01193225558 | K105: 31 | L105: =SUMIF(Formulario3!$A$3:$A$50000,Formulario4!$D105,Formulario3!$O$3:$O$50000) -> 0 | M105: 0
B106: 05 | C106: Antioquia | D106: 05649 | E106: San Carlos | F106: Antioquia-San Carlos | G106: 6467 | H106: 6754 | I106: 0.9575066627 | J106: 0.04249333728 | K106: 287 | L106: =SUMIF(Formulario3!$A$3:$A$50000,Formulario4!$D106,Formulario3!$O$3:$O$50000) -> 0 | M106: 0
B107: 05 | C107: Antioquia | D107: 05652 | E107: San Francisco | F107: Antioquia-San Francisco | G107: 1858 | H107: 2121 | I107: 0.8760018859 | J107: 0.1239981141 | K107: 263 | L107: =SUMIF(Formulario3!$A$3:$A$50000,Formulario4!$D107,Formulario3!$O$3:$O$50000) -> 0 | M107: 0
B108: 05 | C108: Antioquia | D108: 05656 | E108: San Jerónimo | F108: Antioquia-San Jerónimo | G108: 7061 | H108: 7174 | I108: 0.9842486758 | J108: 0.01575132423 | K108: 113 | L108: =SUMIF(Formulario3!$A$3:$A$50000,Formulario4!$D108,Formulario3!$O$3:$O$50000) -> 0 | M108: 0
B109: 05 | C109: Antioquia | D109: 05658 | E109: San José De La Montaña | F109: Antioquia-San José De La Montaña | G109: 1570 | H109: 1571 | I109: 0.9993634628 | J109: 0.0006365372374 | K109: 1 | L109: =SUMIF(Formulario3!$A$3:$A$50000,Formulario4!$D109,Formulario3!$O$3:$O$50000) -> 0 | M109: 0
B110: 05 | C110: Antioquia | D110: 05659 | E110: San Juan De Uraba | F110: Antioquia-San Juan De Uraba | G110: 6609 | H110: 6776 | I110: 0.9753541913 | J110: 0.02464580874 | K110: 167 | L110: =SUMIF(Formulario3!$A$3:$A$50000,Formulario4!$D110,Formulario3!$O$3:$O$50000) -> 0 | M110: 0
B111: 05 | C111: Antioquia | D111: 05660 | E111: San Luis | F111: Antioquia-San Luis | G111: 5585 | H111: 5886 | I111: 0.9488617057 | J111: 0.05113829426 | K111: 301 | L111: =SUMIF(Formulario3!$A$3:$A$50000,Formulario4!$D111,Formulario3!$O$3:$O$50000) -> 0 | M111: 0
B112: 05 | C112: Antioquia | D112: 05664 | E112: San Pedro | F112: Antioquia-San Pedro | G112: 8376 | H112: 8389 | I112: 0.9984503517 | J112: 0.001549648349 | K112: 13 | L112: =SUMIF(Formulario3!$A$3:$A$50000,Formulario4!$D112,Formulario3!$O$3:$O$50000) -> 0 | M112: 0
B113: 05 | C113: Antioquia | D113: 05665 | E113: San Pedro De Uraba | F113: Antioquia-San Pedro De Uraba | G113: 9652 | H113: 10231 | I113: 0.9434072916 | J113: 0.05659270844 | K113: 579 | L113: =SUMIF(Formulario3!$A$3:$A$50000,Formulario4!$D113,Formulario3!$O$3:$O$50000) -> 0 | M113: 0
B114: 05 | C114: Antioquia | D114: 05667 | E114: San Rafael | F114: Antioquia-San Rafael | G114: 6142 | H114: 6401 | I114: 0.9595375723 | J114: 0.04046242775 | K114: 259 | L114: =SUMIF(Formulario3!$A$3:$A$50000,Formulario4!$D114,Formulario3!$O$3:$O$50000) -> 0 | M114: 0
B115: 05 | C115: Antioquia | D115: 05670 | E115: San Roque | F115: Antioquia-San Roque | G115: 7882 | H115: 7988 | I115: 0.9867300951 | J115: 0.01326990486 | K115: 106 | L115: =SUMIF(Formulario3!$A$3:$A$50000,Formulario4!$D115,Formulario3!$O$3:$O$50000) -> 0 | M115: 0
B116: 05 | C116: Antioquia | D116: 05674 | E116: San Vicente | F116: Antioquia-San Vicente | G116: 7823 | H116: 7949 | I116: 0.9841489496 | J116: 0.01585105045 | K116: 126 | L116: =SUMIF(Formulario3!$A$3:$A$50000,Formulario4!$D116,Formulario3!$O$3:$O$50000) -> 0 | M116: 0
B117: 05 | C117: Antioquia | D117: 05679 | E117: Santa Bárbara | F117: Antioquia-Santa Bárbara | G117: 9200 | H117: 9253 | I117: 0.994272128 | J117: 0.005727872042 | K117: 53 | L117: =SUMIF(Formulario3!$A$3:$A$50000,Formulario4!$D117,Formulario3!$O$3:$O$50000) -> 0 | M117: 0
B118: 05 | C118: Antioquia | D118: 05686 | E118: Santa Rosa De Osos | F118: Antioquia-Santa Rosa De Osos | G118: 12810 | H118: 12879 | I118: 0.9946424412 | J118: 0.005357558817 | K118: 69 | L118: =SUMIF(Formulario3!$A$3:$A$50000,Formulario4!$D118,Formulario3!$O$3:$O$50000) -> 0 | M118: 0
B119: 05 | C119: Antioquia | D119: 05690 | E119: Santo Domingo | F119: Antioquia-Santo Domingo | G119: 5350 | H119: 5439 | I119: 0.9836366979 | J119: 0.01636330208 | K119: 89 | L119: =SUMIF(Formulario3!$A$3:$A$50000,Formulario4!$D119,Formulario3!$O$3:$O$50000) -> 0 | M119: 0
B120: 05 | C120: Antioquia | D120: 05697 | E120: Santuario | F120: Antioquia-Santuario | G120: 11755 | H120: 11826 | I120: 0.9939962794 | J120: 0.006003720616 | K120: 71 | L120: =SUMIF(Formulario3!$A$3:$A$50000,Formulario4!$D120,Formulario3!$O$3:$O$50000) -> 0 | M120: 0
B121: 05 | C121: Antioquia | D121: 05736 | E121: Segovia | F121: Antioquia-Segovia | G121: 11331 | H121: 11883 | I121: 0.9535470841 | J121: 0.04645291593 | K121: 552 | L121: =SUMIF(Formulario3!$A$3:$A$50000,Formulario4!$D121,Formulario3!$O$3:$O$50000) -> 0 | M121: 0
B122: 05 | C122: Antioquia | D122: 05756 | E122: Sonson | F122: Antioquia-Sonson | G122: 12097 | H122: 12336 | I122: 0.9806258106 | J122: 0.01937418936 | K122: 239 | L122: =SUMIF(Formulario3!$A$3:$A$50000,Formulario4!$D122,Formulario3!$O$3:$O$50000) -> 0 | M122: 0
B123: 05 | C123: Antioquia | D123: 05761 | E123: Sopetrán | F123: Antioquia-Sopetrán | G123: 6938 | H123: 7063 | I123: 0.9823021379 | J123: 0.0176978621 | K123: 125 | L123: =SUMIF(Formulario3!$A$3:$A$50000,Formulario4!$D123,Formulario3!$O$3:$O$50000) -> 0 | M123: 0
B124: 05 | C124: Antioquia | D124: 05789 | E124: Támesis | F124: Antioquia-Támesis | G124: 6325 | H124: 6368 | I124: 0.9932474874 | J124: 0.006752512563 | K124: 43 | L124: =SUMIF(Formulario3!$A$3:$A$50000,Formulario4!$D124,Formulario3!$O$3:$O$50000) -> 0 | M124: 0
B125: 05 | C125: Antioquia | D125: 05790 | E125: Taraza | F125: Antioquia-Taraza | G125: 11004 | H125: 11558 | I125: 0.9520678318 | J125: 0.0479321682 | K125: 554 | L125: =SUMIF(Formulario3!$A$3:$A$50000,Formulario4!$D125,Formulario3!$O$3:$O$50000) -> 0 | M125: 0
B126: 05 | C126: Antioquia | D126: 05792 | E126: Tarso | F126: Antioquia-Tarso | G126: 2145 | H126: 2169 | I126: 0.9889349931 | J126: 0.01106500692 | K126: 24 | L126: =SUMIF(Formulario3!$A$3:$A$50000,Formulario4!$D126,Formulario3!$O$3:$O$50000) -> 0 | M126: 0
B127: 05 | C127: Antioquia | D127: 05809 | E127: Titiribí | F127: Antioquia-Titiribí | G127: 3740 | H127: 3751 | I127: 0.9970674487 | J127: 0.00293255132 | K127: 11 | L127: =SUMIF(Formulario3!$A$3:$A$50000,Formulario4!$D127,Formulario3!$O$3:$O$50000) -> 0 | M127: 0
B128: 05 | C128: Antioquia | D128: 05819 | E128: Toledo | F128: Antioquia-Toledo | G128: 2219 | H128: 2249 | I128: 0.9866607381 | J128: 0.01333926189 | K128: 30 | L128: =SUMIF(Formulario3!$A$3:$A$50000,Formulario4!$D128,Formulario3!$O$3:$O$50000) -> 0 | M128: 0
B129: 05 | C129: Antioquia | D129: 05837 | E129: Turbo | F129: Antioquia-Turbo | G129: 40145 | H129: 41242 | I129: 0.973400902 | J129: 0.02659909801 | K129: 1097 | L129: =SUMIF(Formulario3!$A$3:$A$50000,Formulario4!$D129,Formulario3!$O$3:$O$50000) -> 0 | M129: 0
B130: 05 | C130: Antioquia | D130: 05842 | E130: Uramita | F130: Antioquia-Uramita | G130: 2644 | H130: 2736 | I130: 0.966374269 | J130: 0.03362573099 | K130: 92 | L130: =SUMIF(Formulario3!$A$3:$A$50000,Formulario4!$D130,Formulario3!$O$3:$O$50000) -> 0 | M130: 0
B131: 05 | C131: Antioquia | D131: 05847 | E131: Urrao | F131: Antioquia-Urrao | G131: 9919 | H131: 10316 | I131: 0.9615160915 | J131: 0.03848390849 | K131: 397 | L131: =SUMIF(Formulario3!$A$3:$A$50000,Formulario4!$D131,Formulario3!$O$3:$O$50000) -> 0 | M131: 0
B132: 05 | C132: Antioquia | D132: 05854 | E132: Valdivia | F132: Antioquia-Valdivia | G132: 5369 | H132: 5755 | I132: 0.9329278888 | J132: 0.06707211121 | K132: 386 | L132: =SUMIF(Formulario3!$A$3:$A$50000,Formulario4!$D132,Formulario3!$O$3:$O$50000) -> 0 | M132: 0
B133: 05 | C133: Antioquia | D133: 05856 | E133: Valparaíso | F133: Antioquia-Valparaíso | G133: 2290 | H133: 2315 | I133: 0.9892008639 | J133: 0.01079913607 | K133: 25 | L133: =SUMIF(Formulario3!$A$3:$A$50000,Formulario4!$D133,Formulario3!$O$3:$O$50000) -> 0 | M133: 0
B134: 05 | C134: Antioquia | D134: 05858 | E134: Vegachi | F134: =CONCATENATE(C134,"-",E134) -> Antioquia-Vegachi | G134: 4674 | H134: 4754 | I134: 0.9831720656 | J134: 0.01682793437 | K134: 80 | L134: =SUMIF(Formulario3!$A$3:$A$50000,Formulario4!$D134,Formulario3!$O$3:$O$50000) -> 0 | M134: 0
B135: 05 | C135: Antioquia | D135: 05861 | E135: Venecia | F135: Antioquia-Venecia | G135: 4884 | H135: 4895 | I135: 0.997752809 | J135: =100%-I135 -> 0.002247191011 | K135: 11 | L135: =SUMIF(Formulario3!$A$3:$A$50000,Formulario4!$D135,Formulario3!$O$3:$O$50000) -> 0 | M135: =+IFERROR(((G135+L135)/H135),"")-I135 -> 0
B136: 05 | C136: Antioquia | D136: 05873 | E136: Vigía Del Fuerte | F136: Antioquia-Vigía Del Fuerte | G136: 3754 | H136: 3754 | I136: 1 | J136: 0 | K136: 0 | L136: =SUMIF(Formulario3!$A$3:$A$50000,Formulario4!$D136,Formulario3!$O$3:$O$50000) -> 0 | M136: 0
B137: 05 | C137: Antioquia | D137: 05885 | E137: Yali | F137: Antioquia-Yali | G137: 2356 | H137: 2409 | I137: 0.9779991698 | J137: 0.02200083022 | K137: 53 | L137: =SUMIF(Formulario3!$A$3:$A$50000,Formulario4!$D137,Formulario3!$O$3:$O$50000) -> 0 | M137: 0
B138: 05 | C138: Antioquia | D138: 05887 | E138: Yarumal | F138: Antioquia-Yarumal | G138: 13364 | H138: 13449 | I138: 0.9936798275 | J138: 0.006320172504 | K138: 85 | L138: =SUMIF(Formulario3!$A$3:$A$50000,Formulario4!$D138,Formulario3!$O$3:$O$50000) -> 0 | M138: 0
B139: 05 | C139: Antioquia | D139: 05890 | E139: Yolombó | F139: Antioquia-Yolombó | G139: 7268 | H139: 7440 | I139: 0.9768817204 | J139: 0.02311827957 | K139: 172 | L139: =SUMIF(Formulario3!$A$3:$A$50000,Formulario4!$D139,Formulario3!$O$3:$O$50000) -> 0 | M139: 0
B140: 05 | C140: Antioquia | D140: 05893 | E140: Yondó | F140: Antioquia-Yondó | G140: 6081 | H140: 6611 | I140: 0.9198305854 | J140: 0.08016941461 | K140: 530 | L140: =SUMIF(Formulario3!$A$3:$A$50000,Formulario4!$D140,Formulario3!$O$3:$O$50000) -> 0 | M140: 0
B141: 05 | C141: Antioquia | D141: 05895 | E141: Zaragoza | F141: Antioquia-Zaragoza | G141: 8132 | H141: 8933 | I141: 0.9103324751 | J141: 0.08966752491 | K141: 801 | L141: =SUMIF(Formulario3!$A$3:$A$50000,Formulario4!$D141,Formulario3!$O$3:$O$50000) -> 0 | M141: 0
B142: 81 | C142: Arauca | D142: 81001 | E142: Arauca | F142: Arauca-Arauca | G142: 23261 | H142: 23796 | I142: 0.9775172298 | J142: 0.02248277021 | K142: 535 | L142: =SUMIF(Formulario3!$A$3:$A$50000,Formulario4!$D142,Formulario3!$O$3:$O$50000) -> 0 | M142: 0
B143: 81 | C143: Arauca | D143: 81065 | E143: Arauquita | F143: Arauca-Arauquita | G143: 12297 | H143: 12603 | I143: 0.9757200667 | J143: 0.02427993335 | K143: 306 | L143: =SUMIF(Formulario3!$A$3:$A$50000,Formulario4!$D143,Formulario3!$O$3:$O$50000) -> 0 | M143: 0
B144: 81 | C144: Arauca | D144: 81220 | E144: Cravo Norte | F144: Arauca-Cravo Norte | G144: 1105 | H144: 1131 | I144: 0.9770114943 | J144: 0.02298850575 | K144: 26 | L144: =SUMIF(Formulario3!$A$3:$A$50000,Formulario4!$D144,Formulario3!$O$3:$O$50000) -> 0 | M144: 0
B145: 81 | C145: Arauca | D145: 81300 | E145: Fortul | F145: Arauca-Fortul | G145: 4663 | H145: 6244 | I145: 0.746796925 | J145: 0.253203075 | K145: 1581 | L145: =SUMIF(Formulario3!$A$3:$A$50000,Formulario4!$D145,Formulario3!$O$3:$O$50000) -> 0 | M145: 0
B146: 81 | C146: Arauca | D146: 81591 | E146: Puerto Rondón | F146: Arauca-Puerto Rondón | G146: 1226 | H146: 1226 | I146: 1 | J146: 0 | K146: 0 | L146: =SUMIF(Formulario3!$A$3:$A$50000,Formulario4!$D146,Formulario3!$O$3:$O$50000) -> 0 | M146: 0
B147: 81 | C147: Arauca | D147: 81736 | E147: Saravena | F147: Arauca-Saravena | G147: 14003 | H147: 15513 | I147: 0.9026622832 | J147: 0.09733771675 | K147: 1510 | L147: =SUMIF(Formulario3!$A$3:$A$50000,Formulario4!$D147,Formulario3!$O$3:$O$50000) -> 0 | M147: 0
B148: 81 | C148: Arauca | D148: 81794 | E148: Tame | F148: Arauca-Tame | G148: 13910 | H148: 18250 | I148: 0.7621917808 | J148: 0.2378082192 | K148: 4340 | L148: =SUMIF(Formulario3!$A$3:$A$50000,Formulario4!$D148,Formulario3!$O$3:$O$50000) -> 0 | M148: 0
B149: 08 | C149: Atlántico | D149: 08078 | E149: Baranoa | F149: Atlántico-Baranoa | G149: 14858 | H149: 14858 | I149: 1 | J149: 0 | K149: 0 | L149: =SUMIF(Formulario3!$A$3:$A$50000,Formulario4!$D149,Formulario3!$O$3:$O$50000) -> 0 | M149: 0
B150: 08 | C150: Atlántico | D150: 08001 | E150: Barranquilla | F150: Atlántico-Barranquilla | G150: 317446 | H150: 317446 | I150: 1 | J150: 0 | K150: 0 | L150: =SUMIF(Formulario3!$A$3:$A$50000,Formulario4!$D150,Formulario3!$O$3:$O$50000) -> 0 | M150: 0
B151: 08 | C151: Atlántico | D151: 08137 | E151: Campo de la Cruz | F151: Atlántico-Campo de la Cruz | G151: 5019 | H151: 5019 | I151: 1 | J151: 0 | K151: 0 | L151: =SUMIF(Formulario3!$A$3:$A$50000,Formulario4!$D151,Formulario3!$O$3:$O$50000) -> 0 | M151: 0
B152: 08 | C152: Atlántico | D152: 08141 | E152: Candelaria | F152: Atlántico-Candelaria | G152: 3360 | H152: 3360 | I152: 1 | J152: 0 | K152: 0 | L152: =SUMIF(Formulario3!$A$3:$A$50000,Formulario4!$D152,Formulario3!$O$3:$O$50000) -> 0 | M152: 0
B153: 08 | C153: Atlántico | D153: 08296 | E153: Galapa | F153: Atlántico-Galapa | G153: 15909 | H153: 15909 | I153: 1 | J153: 0 | K153: 0 | L153: =SUMIF(Formulario3!$A$3:$A$50000,Formulario4!$D153,Formulario3!$O$3:$O$50000) -> 0 | M153: 0
B154: 08 | C154: Atlántico | D154: 08372 | E154: Juan de Acosta | F154: Atlántico-Juan de Acosta | G154: 5443 | H154: 5553 | I154: 0.9801908878 | J154: 0.01980911219 | K154: 110 | L154: =SUMIF(Formulario3!$A$3:$A$50000,Formulario4!$D154,Formulario3!$O$3:$O$50000) -> 0 | M154: 0
B155: 08 | C155: Atlántico | D155: 08421 | E155: Luruaco | F155: Atlántico-Luruaco | G155: 8699 | H155: 9106 | I155: 0.955304195 | J155: 0.04469580496 | K155: 407 | L155: =SUMIF(Formulario3!$A$3:$A$50000,Formulario4!$D155,Formulario3!$O$3:$O$50000) -> 0 | M155: 0
B156: 08 | C156: Atlántico | D156: 08433 | E156: Malambo | F156: Atlántico-Malambo | G156: 30550 | H156: 30793 | I156: 0.9921085961 | J156: 0.00789140389 | K156: 243 | L156: =SUMIF(Formulario3!$A$3:$A$50000,Formulario4!$D156,Formulario3!$O$3:$O$50000) -> 0 | M156: 0
B157: 08 | C157: Atlántico | D157: 08436 | E157: Manatí | F157: Atlántico-Manatí | G157: 4453 | H157: 4453 | I157: 1 | J157: 0 | K157: 0 | L157: =SUMIF(Formulario3!$A$3:$A$50000,Formulario4!$D157,Formulario3!$O$3:$O$50000) -> 0 | M157: 0
B158: 08 | C158: Atlántico | D158: 08520 | E158: Palmar De Varela | F158: Atlántico-Palmar De Varela | G158: 6245 | H158: 6245 | I158: 1 | J158: 0 | K158: 0 | L158: =SUMIF(Formulario3!$A$3:$A$50000,Formulario4!$D158,Formulario3!$O$3:$O$50000) -> 0 | M158: 0
B159: 08 | C159: Atlántico | D159: 08549 | E159: Piojó | F159: Atlántico-Piojó | G159: 1521 | H159: 1534 | I159: 0.9915254237 | J159: 0.008474576271 | K159: 13 | L159: =SUMIF(Formulario3!$A$3:$A$50000,Formulario4!$D159,Formulario3!$O$3:$O$50000) -> 0 | M159: 0
B160: 08 | C160: Atlántico | D160: 08558 | E160: Polo Nuevo | F160: Atlántico-Polo Nuevo | G160: 3879 | H160: 3879 | I160: 1 | J160: 0 | K160: 0 | L160: =SUMIF(Formulario3!$A$3:$A$50000,Formulario4!$D160,Formulario3!$O$3:$O$50000) -> 0 | M160: 0
B161: 08 | C161: Atlántico | D161: 08560 | E161: Ponedera | F161: Atlántico-Ponedera | G161: 5867 | H161: 6241 | I161: 0.9400737061 | J161: 0.05992629386 | K161: 374 | L161: =SUMIF(Formulario3!$A$3:$A$50000,Formulario4!$D161,Formulario3!$O$3:$O$50000) -> 0 | M161: 0
B162: 08 | C162: Atlántico | D162: 08573 | E162: Puerto Colombia | F162: Atlántico-Puerto Colombia | G162: 12683 | H162: 12683 | I162: 1 | J162: 0 | K162: 0 | L162: =SUMIF(Formulario3!$A$3:$A$50000,Formulario4!$D162,Formulario3!$O$3:$O$50000) -> 0 | M162: 0
B163: 08 | C163: Atlántico | D163: 08606 | E163: Repelón | F163: Atlántico-Repelón | G163: 6771 | H163: 7280 | I163: 0.9300824176 | J163: 0.06991758242 | K163: 509 | L163: =SUMIF(Formulario3!$A$3:$A$50000,Formulario4!$D163,Formulario3!$O$3:$O$50000) -> 0 | M163: 0
B164: 08 | C164: Atlántico | D164: 08634 | E164: Sabanagrande | F164: Atlántico-Sabanagrande | G164: 7192 | H164: 7192 | I164: 1 | J164: 0 | K164: 0 | L164: =SUMIF(Formulario3!$A$3:$A$50000,Formulario4!$D164,Formulario3!$O$3:$O$50000) -> 0 | M164: 0
B165: 08 | C165: Atlántico | D165: 08638 | E165: Sabanalarga | F165: Atlántico-Sabanalarga | G165: 23288 | H165: 23334 | I165: 0.9980286278 | J165: 0.001971372247 | K165: 46 | L165: =SUMIF(Formulario3!$A$3:$A$50000,Formulario4!$D165,Formulario3!$O$3:$O$50000) -> 0 | M165: 0
B166: 08 | C166: Atlántico | D166: 08675 | E166: Santa Lucia | F166: Atlántico-Santa Lucia | G166: 2849 | H166: 2849 | I166: 1 | J166: 0 | K166: 0 | L166: =SUMIF(Formulario3!$A$3:$A$50000,Formulario4!$D166,Formulario3!$O$3:$O$50000) -> 0 | M166: 0
B167: 08 | C167: Atlántico | D167: 08685 | E167: Santo Tomas | F167: Atlántico-Santo Tomas | G167: 6557 | H167: 6557 | I167: 1 | J167: 0 | K167: 0 | L167: =SUMIF(Formulario3!$A$3:$A$50000,Formulario4!$D167,Formulario3!$O$3:$O$50000) -> 0 | M167: 0
B168: 08 | C168: Atlántico | D168: 08758 | E168: Soledad | F168: Atlántico-Soledad | G168: 141371 | H168: 141371 | I168: 1 | J168: 0 | K168: 0 | L168: =SUMIF(Formulario3!$A$3:$A$50000,Formulario4!$D168,Formulario3!$O$3:$O$50000) -> 0 | M168: 0
B169: 08 | C169: Atlántico | D169: 08770 | E169: Suan | F169: Atlántico-Suan | G169: 2356 | H169: 2356 | I169: 1 | J169: 0 | K169: 0 | L169: =SUMIF(Formulario3!$A$3:$A$50000,Formulario4!$D169,Formulario3!$O$3:$O$50000) -> 0 | M169: 0
B170: 08 | C170: Atlántico | D170: 08832 | E170: Tubará | F170: Atlántico-Tubará | G170: 3613 | H170: 4021 | I170: 0.8985327033 | J170: 0.1014672967 | K170: 408 | L170: =SUMIF(Formulario3!$A$3:$A$50000,Formulario4!$D170,Formulario3!$O$3:$O$50000) -> 0 | M170: 0
B171: 08 | C171: Atlántico | D171: 08849 | E171: Usiacurí | F171: Atlántico-Usiacurí | G171: 2201 | H171: 2201 | I171: 1 | J171: 0 | K171: 0 | L171: =SUMIF(Formulario3!$A$3:$A$50000,Formulario4!$D171,Formulario3!$O$3:$O$50000) -> 0 | M171: 0
B172: 11 | C172: BOGOTA D.C. | D172: 11001 | E172: Bogotá | F172: BOGOTA D.C.-Bogotá | G172: 2282416 | H172: 2282453 | I172: 0.9999837894 | J172: 1.621062953e-05 | K172: 37 | L172: =SUMIF(Formulario3!$A$3:$A$50000,Formulario4!$D172,Formulario3!$O$3:$O$50000) -> 0 | M172: 0
B173: 13 | C173: Bolívar | D173: 13006 | E173: Achí5a | F173: Bolívar-Achí5a | G173: 5229 | H173: 7212 | I173: 0.7250415973 | J173: 0.2749584027 | K173: 1983 | L173: =SUMIF(Formulario3!$A$3:$A$50000,Formulario4!$D173,Formulario3!$O$3:$O$50000) -> 0 | M173: 0
B174: 13 | C174: Bolívar | D174: 13030 | E174: Altos del Rosario5 | F174: Bolívar-Altos del Rosario5 | G174: 1924 | H174: 2319 | I174: 0.8296679603 | J174: 0.1703320397 | K174: 395 | L174: =SUMIF(Formulario3!$A$3:$A$50000,Formulario4!$D174,Formulario3!$O$3:$O$50000) -> 0 | M174: 0
B175: 13 | C175: Bolívar | D175: 13042 | E175: Arenal6 | F175: Bolívar-Arenal6 | G175: 2249 | H175: 4828 | I175: 0.4658243579 | J175: 0.5341756421 | K175: 2579 | L175: =SUMIF(Formulario3!$A$3:$A$50000,Formulario4!$D175,Formulario3!$O$3:$O$50000) -> 0 | M175: 0
B176: 13 | C176: Bolívar | D176: 13052 | E176: Arjona | F176: Bolívar-Arjona | G176: 17722 | H176: 17921 | I176: 0.9888957089 | J176: 0.01110429106 | K176: 199 | L176: =SUMIF(Formulario3!$A$3:$A$50000,Formulario4!$D176,Formulario3!$O$3:$O$50000) -> 0 | M176: 0
B177: 13 | C177: Bolívar | D177: 13062 | E177: Arroyohondo7 | F177: Bolívar-Arroyohondo7 | G177: 1325 | H177: 1354 | I177: 0.9785819793 | J177: 0.02141802068 | K177: 29 | L177: =SUMIF(Formulario3!$A$3:$A$50000,Formulario4!$D177,Formulario3!$O$3:$O$50000) -> 0 | M177: 0
B178: 13 | C178: Bolívar | D178: 13074 | E178: Barranco de Loba | F178: Bolívar-Barranco de Loba | G178: 3504 | H178: 4362 | I178: 0.803301238 | J178: 0.196698762 | K178: 858 | L178: =SUMIF(Formulario3!$A$3:$A$50000,Formulario4!$D178,Formulario3!$O$3:$O$50000) -> 0 | M178: 0
B179: 13 | C179: Bolívar | D179: 13140 | E179: Calamar | F179: Bolívar-Calamar | G179: 5086 | H179: 5221 | I179: 0.9741428845 | J179: 0.0258571155 | K179: 135 | L179: =SUMIF(Formulario3!$A$3:$A$50000,Formulario4!$D179,Formulario3!$O$3:$O$50000) -> 0 | M179: 0
B180: 13 | C180: Bolívar | D180: 13160 | E180: Cantagallo8 | F180: Bolívar-Cantagallo8 | G180: 1488 | H180: 2103 | I180: 0.7075606277 | J180: 0.2924393723 | K180: 615 | L180: =SUMIF(Formulario3!$A$3:$A$50000,Formulario4!$D180,Formulario3!$O$3:$O$50000) -> 0 | M180: 0
B181: 13 | C181: Bolívar | D181: 13001 | E181: Cartagena | F181: Bolívar-Cartagena | G181: 286183 | H181: 286183 | I181: 1 | J181: 0 | K181: 0 | L181: =SUMIF(Formulario3!$A$3:$A$50000,Formulario4!$D181,Formulario3!$O$3:$O$50000) -> 0 | M181: 0
B182: 13 | C182: Bolívar | D182: 13188 | E182: Cicuco9 | F182: Bolívar-Cicuco9 | G182: 3280 | H182: 3349 | I182: 0.9793968349 | J182: 0.02060316512 | K182: 69 | L182: =SUMIF(Formulario3!$A$3:$A$50000,Formulario4!$D182,Formulario3!$O$3:$O$50000) -> 0 | M182: 0
B183: 13 | C183: Bolívar | D183: 13222 | E183: Clemencia10 | F183: Bolívar-Clemencia10 | G183: 3091 | H183: 3091 | I183: 1 | J183: 0 | K183: 0 | L183: =SUMIF(Formulario3!$A$3:$A$50000,Formulario4!$D183,Formulario3!$O$3:$O$50000) -> 0 | M183: 0
B184: 13 | C184: Bolívar | D184: 13212 | E184: Córdoba | F184: Bolívar-Córdoba | G184: 3603 | H184: 3603 | I184: 1 | J184: 0 | K184: 0 | L184: =SUMIF(Formulario3!$A$3:$A$50000,Formulario4!$D184,Formulario3!$O$3:$O$50000) -> 0 | M184: 0
B185: 13 | C185: Bolívar | D185: 13244 | E185: El Carmen de Bolívar | F185: Bolívar-El Carmen de Bolívar | G185: 14599 | H185: 14634 | I185: 0.9976083094 | J185: 0.002391690584 | K185: 35 | L185: =SUMIF(Formulario3!$A$3:$A$50000,Formulario4!$D185,Formulario3!$O$3:$O$50000) -> 0 | M185: 0
B186: 13 | C186: Bolívar | D186: 13248 | E186: El Guamo | F186: Bolívar-El Guamo | G186: 2483 | H186: 2483 | I186: 1 | J186: 0 | K186: 0 | L186: =SUMIF(Formulario3!$A$3:$A$50000,Formulario4!$D186,Formulario3!$O$3:$O$50000) -> 0 | M186: 0
B187: 13 | C187: Bolívar | D187: 13268 | E187: El Peñon11 | F187: Bolívar-El Peñon11 | G187: 1637 | H187: 1970 | I187: 0.830964467 | J187: 0.169035533 | K187: 333 | L187: =SUMIF(Formulario3!$A$3:$A$50000,Formulario4!$D187,Formulario3!$O$3:$O$50000) -> 0 | M187: 0
B188: 13 | C188: Bolívar | D188: 13300 | E188: Hatillo de Loba12 | F188: Bolívar-Hatillo de Loba12 | G188: 2571 | H188: 2667 | I188: 0.9640044994 | J188: 0.03599550056 | K188: 96 | L188: =SUMIF(Formulario3!$A$3:$A$50000,Formulario4!$D188,Formulario3!$O$3:$O$50000) -> 0 | M188: 0
B189: 13 | C189: Bolívar | D189: 13430 | E189: Magangue | F189: Bolívar-Magangue | G189: 31911 | H189: 31911 | I189: 1 | J189: 0 | K189: 0 | L189: =SUMIF(Formulario3!$A$3:$A$50000,Formulario4!$D189,Formulario3!$O$3:$O$50000) -> 0 | M189: 0
B190: 13 | C190: Bolívar | D190: 13433 | E190: Mahates | F190: Bolívar-Mahates | G190: 8406 | H190: 8720 | I190: 0.9639908257 | J190: 0.03600917431 | K190: 314 | L190: =SUMIF(Formulario3!$A$3:$A$50000,Formulario4!$D190,Formulario3!$O$3:$O$50000) -> 0 | M190: 0
B191: 13 | C191: Bolívar | D191: 13440 | E191: Margarita | F191: Bolívar-Margarita | G191: 2241 | H191: 2453 | I191: 0.913575214 | J191: 0.08642478598 | K191: 212 | L191: =SUMIF(Formulario3!$A$3:$A$50000,Formulario4!$D191,Formulario3!$O$3:$O$50000) -> 0 | M191: 0
B192: 13 | C192: Bolívar | D192: 13442 | E192: Maria la Baja | F192: Bolívar-Maria la Baja | G192: 10751 | H192: 11222 | I192: 0.9580288719 | J192: 0.04197112814 | K192: 471 | L192: =SUMIF(Formulario3!$A$3:$A$50000,Formulario4!$D192,Formulario3!$O$3:$O$50000) -> 0 | M192: 0
B193: 13 | C193: Bolívar | D193: 13468 | E193: Mompos | F193: Bolívar-Mompos | G193: 12206 | H193: 12458 | I193: 0.979772034 | J193: 0.02022796597 | K193: 252 | L193: =SUMIF(Formulario3!$A$3:$A$50000,Formulario4!$D193,Formulario3!$O$3:$O$50000) -> 0 | M193: 0
B194: 13 | C194: Bolívar | D194: 13458 | E194: Montecristo13 | F194: Bolívar-Montecristo13 | G194: 1288 | H194: 2194 | I194: 0.5870556062 | J194: 0.4129443938 | K194: 906 | L194: =SUMIF(Formulario3!$A$3:$A$50000,Formulario4!$D194,Formulario3!$O$3:$O$50000) -> 0 | M194: 0
B195: 13 | C195: Bolívar | D195: 13473 | E195: Morales | F195: Bolívar-Morales | G195: 3750 | H195: 6419 | I195: 0.5842031469 | J195: 0.4157968531 | K195: 2669 | L195: =SUMIF(Formulario3!$A$3:$A$50000,Formulario4!$D195,Formulario3!$O$3:$O$50000) -> 0 | M195: 0
B196: 13 | C196: Bolívar | D196: 13490 | E196: Norosi | F196: Bolívar-Norosi | G196: 1207 | H196: 1207 | I196: 1 | J196: 0 | K196: 0 | L196: =SUMIF(Formulario3!$A$3:$A$50000,Formulario4!$D196,Formulario3!$O$3:$O$50000) -> 0 | M196: 0
B197: 13 | C197: Bolívar | D197: 13549 | E197: Pinillos5a | F197: Bolívar-Pinillos5a | G197: 4322 | H197: 4953 | I197: 0.8726024632 | J197: 0.1273975368 | K197: 631 | L197: =SUMIF(Formulario3!$A$3:$A$50000,Formulario4!$D197,Formulario3!$O$3:$O$50000) -> 0 | M197: 0
B198: 13 | C198: Bolívar | D198: 13580 | E198: Regidor14 | F198: =CONCATENATE(C198,"-",E198) -> Bolívar-Regidor14 | G198: 5848 | H198: 5848 | I198: 1 | J198: 0 | K198: 0 | L198: =SUMIF(Formulario3!$A$3:$A$50000,Formulario4!$D198,Formulario3!$O$3:$O$50000) -> 0 | M198: 0
B199: 13 | C199: Bolívar | D199: 13600 | E199: Río Viejo | F199: Bolívar-Río Viejo | G199: 5118 | H199: 5706 | I199: 0.8969505783 | J199: =100%-I199 -> 0.1030494217 | K199: 588 | L199: =SUMIF(Formulario3!$A$3:$A$50000,Formulario4!$D199,Formulario3!$O$3:$O$50000) -> 0 | M199: =+IFERROR(((G199+L199)/H199),"")-I199 -> 0
B200: 13 | C200: Bolívar | D200: 13620 | E200: San Cristobal15 | F200: Bolívar-San Cristobal15 | G200: 1745 | H200: 1745 | I200: 1 | J200: 0 | K200: 0 | L200: =SUMIF(Formulario3!$A$3:$A$50000,Formulario4!$D200,Formulario3!$O$3:$O$50000) -> 0 | M200: 0
B201: 13 | C201: Bolívar | D201: 13647 | E201: San Estanislao | F201: Bolívar-San Estanislao | G201: 4359 | H201: 4359 | I201: 1 | J201: 0 | K201: 0 | L201: =SUMIF(Formulario3!$A$3:$A$50000,Formulario4!$D201,Formulario3!$O$3:$O$50000) -> 0 | M201: 0
B202: 13 | C202: Bolívar | D202: 13650 | E202: San Fernando | F202: Bolívar-San Fernando | G202: 2118 | H202: 2611 | I202: 0.8111834546 | J202: 0.1888165454 | K202: 493 | L202: =SUMIF(Formulario3!$A$3:$A$50000,Formulario4!$D202,Formulario3!$O$3:$O$50000) -> 0 | M202: 0
B203: 13 | C203: Bolívar | D203: 13654 | E203: San Jacinto | F203: Bolívar-San Jacinto | G203: 5978 | H203: 5978 | I203: 1 | J203: 0 | K203: 0 | L203: =SUMIF(Formulario3!$A$3:$A$50000,Formulario4!$D203,Formulario3!$O$3:$O$50000) -> 0 | M203: 0
... 925 more rows

Sheet Formulario5_UC
A1: Formulario 5. Presupuesto en UC de cada Proyecto
A3: Operador de Red que reporta | B3: Código Programa/Proyecto | C3: Nivel | D3: Unidad Constructiva | E3: Nombre de la Unidad constructiva | F3: Vida útil | G3: Precio a 2017 | H3: Cantidad de material | I3: RPP | J3: Activos No Eléctricos | K3: Precio Total Unidades Constructivas | L3: % AOM reconocido | M3: VPN Inversión | O3: 1 | P3: 2 | Q3: 3 | R3: 4 | S3: 5 | T3: 6 | U3: 7 | V3: 8 | W3: 9 | X3: 10 | Y3: 11 | Z3: 12 | AA3: 13 | AB3: 14 | AC3: 15 | AD3: 16 | AE3: 17 | AF3: 18 | AG3: 19 | AH3: 20 | AI3: 21 | AJ3: 22 | AK3: 23 | AL3: 24 | AM3: 25 | AN3: 26 | AO3: 27 | AP3: 28 | AQ3: 29 | AR3: 30 | AS3: 31 | AT3: 32 | AU3: 33 | AV3: 34 | AW3: 35 | AX3: 36 | AY3: 37 | AZ3: 38 | BA3: 39 | BB3: 40 | BC3: 41 | BD3: 42 | BE3: 43 | BF3: 44 | BG3: 45 | BK3: VPN AOM | BL3: 1 | BM3: 2 | BN3: 3 | BO3: 4 | BP3: 5 | BQ3: 6 | BR3: 7 | BS3: 8 | BT3: 9 | BU3: 10 | BV3: 11 | BW3: 12 | BX3: 13 | BY3: 14 | BZ3: 15 | CA3: 16 | CB3: 17 | CC3: 18 | CD3: 19 | CE3: 20 | CF3: 21 | CG3: 22 | CH3: 23 | CI3: 24 | CJ3: 25 | CK3: 26 | CL3: 27 | CM3: 28 | CN3: 29 | CO3: 30 | CP3: 31 | CQ3: 32 | CR3: 33 | CS3: 34 | CT3: 35 | CU3: 36 | CV3: 37 | CW3: 38 | CX3: 39 | CY3: 40 | CZ3: 41 | DA3: 42 | DB3: 43 | DC3: 44 | DD3: 45
A4: =Formulario2!$A$4 -> 0 | C4: =LEFT(D4,2) ->  | E4: =VLOOKUP($D4,UC_Res015!$B$3:$D$5000,3,FALSE) ->  | F4: =VLOOKUP($D4,UC_Res015!$B$3:$F$5000,2,FALSE) ->  | G4: =VLOOKUP($D4,UC_Res015!$B$3:$F$5000,4,FALSE) ->  | I4: 0 | K4: =+G4*H4*(1-I4)*(1+J4) ->  | L4: =VLOOKUP(A4,CU_OR!$A$3:$M$31,12,FALSE) ->  | M4: =NPV(datosB!$E$6,Formulario5_UC!O4:BG4) ->  | O4: =+K4 ->  | P4: =IF(P$3<=$F4,0,"") ->  | R4: =IF(R$3<=$F4,0,"") ->  | AR4: =IF(AR$3<=$F4,0,"") ->  | BA4: =IF(BA$3<=$F4,0,"") ->  | BB4: =IF(BB$3<=$F4,0,"") ->  | BK4: =NPV(datosB!$E$6,Formulario5_UC!$BL4:$DD4) ->  | BL4: =+PMT(datosB!$E$6,$F4,-$K4*$L4) ->  | BM4: =IF(BM$3<=$F4,$BL4,"") ->  | BN4: =IF(BN$3<=$F4,$BL4,"") ->  | CZ4: =IF(CZ$3<=$F4,$BL4,"") -> 
A5: =Formulario2!$A$4 -> 0 | C5: =LEFT(D5,2) ->  | E5: =VLOOKUP($D5,UC_Res015!$B$3:$D$5000,3,FALSE) ->  | F5: =VLOOKUP($D5,UC_Res015!$B$3:$F$5000,2,FALSE) ->  | G5: =VLOOKUP($D5,UC_Res015!$B$3:$F$5000,4,FALSE) ->  | I5: 0 | L5: =VLOOKUP(A5,CU_OR!$A$3:$M$31,12,FALSE) ->  | M5: =NPV(datosB!$E$6,Formulario5_UC!O5:BG5) ->  | BK5: =NPV(datosB!$E$6,Formulario5_UC!$BL5:$DD5) ->  | BL5: =+PMT(datosB!$E$6,$F5,-$K5*$L5) -> 
A6: =Formulario2!$A$4 -> 0 | E6: =VLOOKUP($D6,UC_Res015!$B$3:$D$5000,3,FALSE) ->  | F6: =VLOOKUP($D6,UC_Res015!$B$3:$F$5000,2,FALSE) ->  | G6: =VLOOKUP($D6,UC_Res015!$B$3:$F$5000,4,FALSE) ->  | I6: 0 | L6: =VLOOKUP(A6,CU_OR!$A$3:$M$31,12,FALSE) ->  | M6: =NPV(datosB!$E$6,Formulario5_UC!O6:BG6) ->  | X6: =IF(X$3<=$F6,0,"") ->  | Y6: =IF(Y$3<=$F6,0,"") ->  | BK6: =NPV(datosB!$E$6,Formulario5_UC!$BL6:$DD6) ->  | BL6: =+PMT(datosB!$E$6,$F6,-$K6*$L6) ->  | BU6: =IF(BU$3<=$F6,$BL6,"") -> 
A7: =Formulario2!$A$4 -> 0 | E7: =VLOOKUP($D7,UC_Res015!$B$3:$D$5000,3,FALSE) ->  | F7: =VLOOKUP($D7,UC_Res015!$B$3:$F$5000,2,FALSE) ->  | G7: =VLOOKUP($D7,UC_Res015!$B$3:$F$5000,4,FALSE) ->  | I7: 0 | L7: =VLOOKUP(A7,CU_OR!$A$3:$M$31,12,FALSE) ->  | M7: =NPV(datosB!$E$6,Formulario5_UC!O7:BG7) ->  | R7: =IF(R$3<=$F7,0,"") ->  | BB7: =IF(BB$3<=$F7,0,"") ->  | BK7: =NPV(datosB!$E$6,Formulario5_UC!$BL7:$DD7) ->  | BL7: =+PMT(datosB!$E$6,$F7,-$K7*$L7) ->  | BN7: =IF(BN$3<=$F7,$BL7,"") -> 
A8: =Formulario2!$A$4 -> 0 | E8: =VLOOKUP($D8,UC_Res015!$B$3:$D$5000,3,FALSE) ->  | F8: =VLOOKUP($D8,UC_Res015!$B$3:$F$5000,2,FALSE) ->  | G8: =VLOOKUP($D8,UC_Res015!$B$3:$F$5000,4,FALSE) ->  | I8: 0 | L8: =VLOOKUP(A8,CU_OR!$A$3:$M$31,12,FALSE) ->  | M8: =NPV(datosB!$E$6,Formulario5_UC!O8:BG8) ->  | BK8: =NPV(datosB!$E$6,Formulario5_UC!$BL8:$DD8) ->  | BL8: =+PMT(datosB!$E$6,$F8,-$K8*$L8) -> 
A9: =Formulario2!$A$4 -> 0 | E9: =VLOOKUP($D9,UC_Res015!$B$3:$D$5000,3,FALSE) ->  | F9: =VLOOKUP($D9,UC_Res015!$B$3:$F$5000,2,FALSE) ->  | G9: =VLOOKUP($D9,UC_Res015!$B$3:$F$5000,4,FALSE) ->  | I9: 0 | L9: =VLOOKUP(A9,CU_OR!$A$3:$M$31,12,FALSE) ->  | M9: =NPV(datosB!$E$6,Formulario5_UC!O9:BG9) ->  | BK9: =NPV(datosB!$E$6,Formulario5_UC!$BL9:$DD9) ->  | BL9: =+PMT(datosB!$E$6,$F9,-$K9*$L9) -> 
A10: =Formulario2!$A$4 -> 0 | C10: =LEFT(D10,2) ->  | E10: =VLOOKUP($D10,UC_Res015!$B$3:$D$5000,3,FALSE) ->  | F10: =VLOOKUP($D10,UC_Res015!$B$3:$F$5000,2,FALSE) ->  | G10: =VLOOKUP($D10,UC_Res015!$B$3:$F$5000,4,FALSE) ->  | I10: 0 | K10: =+G10*H10*(1-I10)*(1+J10) ->  | L10: =VLOOKUP(A10,CU_OR!$A$3:$M$31,12,FALSE) ->  | M10: =NPV(datosB!$E$6,Formulario5_UC!O10:BG10) ->  | O10: =+K10 ->  | BA10: =IF(BA$3<=$F10,0,"") ->  | BK10: =NPV(datosB!$E$6,Formulario5_UC!$BL10:$DD10) ->  | BL10: =+PMT(datosB!$E$6,$F10,-$K10*$L10) ->  | BM10: =IF(BM$3<=$F10,$BL10,"") -> 
A11: =Formulario2!$A$4 -> 0 | E11: =VLOOKUP($D11,UC_Res015!$B$3:$D$5000,3,FALSE) ->  | F11: =VLOOKUP($D11,UC_Res015!$B$3:$F$5000,2,FALSE) ->  | G11: =VLOOKUP($D11,UC_Res015!$B$3:$F$5000,4,FALSE) ->  | I11: 0 | L11: =VLOOKUP(A11,CU_OR!$A$3:$M$31,12,FALSE) ->  | M11: =NPV(datosB!$E$6,Formulario5_UC!O11:BG11) ->  | BK11: =NPV(datosB!$E$6,Formulario5_UC!$BL11:$DD11) ->  | BL11: =+PMT(datosB!$E$6,$F11,-$K11*$L11) -> 
A12: =Formulario2!$A$4 -> 0 | E12: =VLOOKUP($D12,UC_Res015!$B$3:$D$5000,3,FALSE) ->  | F12: =VLOOKUP($D12,UC_Res015!$B$3:$F$5000,2,FALSE) ->  | G12: =VLOOKUP($D12,UC_Res015!$B$3:$F$5000,4,FALSE) ->  | I12: 0 | L12: =VLOOKUP(A12,CU_OR!A11:M36,12,FALSE) ->  | M12: =NPV(datosB!$E$6,Formulario5_UC!O12:BG12) ->  | BK12: =NPV(datosB!$E$6,Formulario5_UC!$BL12:$DD12) ->  | BL12: =+PMT(datosB!$E$6,$F12,-$K12*$L12) ->  | DB12: =IF(DB$3<=$F12,$BL12,"") ->  | DC12: =IF(DC$3<=$F12,$BL12,"") ->  | DD12: =IF(DD$3<=$F12,$BL12,"") -> 
A13: =Formulario2!$A$4 -> 0 | E13: =VLOOKUP($D13,UC_Res015!$B$3:$D$5000,3,FALSE) ->  | F13: =VLOOKUP($D13,UC_Res015!$B$3:$F$5000,2,FALSE) ->  | G13: =VLOOKUP($D13,UC_Res015!$B$3:$F$5000,4,FALSE) ->  | I13: 0 | K13: =+G13*H13*(1-I13)*(1+J13) ->  | L13: =VLOOKUP(A13,CU_OR!A12:M37,12,FALSE) ->  | M13: =NPV(datosB!$E$6,Formulario5_UC!O13:BG13) ->  | BK13: =NPV(datosB!$E$6,Formulario5_UC!$BL13:$DD13) ->  | BL13: =+PMT(datosB!$E$6,$F13,-$K13*$L13) ->  | CC13: =IF(CC$3<=$F13,$BL13,"") ->  | CS13: =IF(CS$3<=$F13,$BL13,"") -> 
A14: =Formulario2!$A$4 -> 0 | E14: =VLOOKUP($D14,UC_Res015!$B$3:$D$5000,3,FALSE) ->  | F14: =VLOOKUP($D14,UC_Res015!$B$3:$F$5000,2,FALSE) ->  | G14: =VLOOKUP($D14,UC_Res015!$B$3:$F$5000,4,FALSE) ->  | I14: 0 | L14: =VLOOKUP(A14,CU_OR!A13:M38,12,FALSE) ->  | M14: =NPV(datosB!$E$6,Formulario5_UC!O14:BG14) ->  | AB14: =IF(AB$3<=$F14,0,"") ->  | AR14: =IF(AR$3<=$F14,0,"") ->  | BK14: =NPV(datosB!$E$6,Formulario5_UC!$BL14:$DD14) ->  | BL14: =+PMT(datosB!$E$6,$F14,-$K14*$L14) -> 
A15: =Formulario2!$A$4 -> 0 | E15: =VLOOKUP($D15,UC_Res015!$B$3:$D$5000,3,FALSE) ->  | F15: =VLOOKUP($D15,UC_Res015!$B$3:$F$5000,2,FALSE) ->  | G15: =VLOOKUP($D15,UC_Res015!$B$3:$F$5000,4,FALSE) ->  | I15: 0 | L15: =VLOOKUP(A15,CU_OR!A14:M39,12,FALSE) ->  | M15: =NPV(datosB!$E$6,Formulario5_UC!O15:BG15) ->  | R15: =IF(R$3<=$F15,0,"") ->  | BK15: =NPV(datosB!$E$6,Formulario5_UC!$BL15:$DD15) ->  | BL15: =+PMT(datosB!$E$6,$F15,-$K15*$L15) -> 
A16: =Formulario2!$A$4 -> 0 | C16: =LEFT(D16,2) ->  | E16: =VLOOKUP($D16,UC_Res015!$B$3:$D$5000,3,FALSE) ->  | F16: =VLOOKUP($D16,UC_Res015!$B$3:$F$5000,2,FALSE) ->  | G16: =VLOOKUP($D16,UC_Res015!$B$3:$F$5000,4,FALSE) ->  | I16: 0 | L16: =VLOOKUP(A16,CU_OR!A15:M40,12,FALSE) ->  | M16: =NPV(datosB!$E$6,Formulario5_UC!O16:BG16) ->  | BK16: =NPV(datosB!$E$6,Formulario5_UC!$BL16:$DD16) ->  | BL16: =+PMT(datosB!$E$6,$F16,-$K16*$L16) -> 
A17: =Formulario2!$A$4 -> 0 | E17: =VLOOKUP($D17,UC_Res015!$B$3:$D$5000,3,FALSE) ->  | F17: =VLOOKUP($D17,UC_Res015!$B$3:$F$5000,2,FALSE) ->  | G17: =VLOOKUP($D17,UC_Res015!$B$3:$F$5000,4,FALSE) ->  | I17: 0 | L17: =VLOOKUP(A17,CU_OR!A16:M41,12,FALSE) ->  | M17: =NPV(datosB!$E$6,Formulario5_UC!O17:BG17) ->  | BK17: =NPV(datosB!$E$6,Formulario5_UC!$BL17:$DD17) ->  | BL17: =+PMT(datosB!$E$6,$F17,-$K17*$L17) -> 
A18: =Formulario2!$A$4 -> 0 | E18: =VLOOKUP($D18,UC_Res015!$B$3:$D$5000,3,FALSE) ->  | F18: =VLOOKUP($D18,UC_Res015!$B$3:$F$5000,2,FALSE) ->  | G18: =VLOOKUP($D18,UC_Res015!$B$3:$F$5000,4,FALSE) ->  | I18: 0 | L18: =VLOOKUP(A18,CU_OR!A17:M42,12,FALSE) ->  | M18: =NPV(datosB!$E$6,Formulario5_UC!O18:BG18) ->  | BK18: =NPV(datosB!$E$6,Formulario5_UC!$BL18:$DD18) ->  | BL18: =+PMT(datosB!$E$6,$F18,-$K18*$L18) -> 
A19: =Formulario2!$A$4 -> 0 | E19: =VLOOKUP($D19,UC_Res015!$B$3:$D$5000,3,FALSE) ->  | F19: =VLOOKUP($D19,UC_Res015!$B$3:$F$5000,2,FALSE) ->  | G19: =VLOOKUP($D19,UC_Res015!$B$3:$F$5000,4,FALSE) ->  | I19: 0 | L19: =VLOOKUP(A19,CU_OR!A18:M43,12,FALSE) ->  | M19: =NPV(datosB!$E$6,Formulario5_UC!O19:BG19) ->  | BK19: =NPV(datosB!$E$6,Formulario5_UC!$BL19:$DD19) ->  | BL19: =+PMT(datosB!$E$6,$F19,-$K19*$L19) -> 
A20: =Formulario2!$A$4 -> 0 | E20: =VLOOKUP($D20,UC_Res015!$B$3:$D$5000,3,FALSE) ->  | F20: =VLOOKUP($D20,UC_Res015!$B$3:$F$5000,2,FALSE) ->  | G20: =VLOOKUP($D20,UC_Res015!$B$3:$F$5000,4,FALSE) ->  | I20: 0 | L20: =VLOOKUP(A20,CU_OR!A19:M44,12,FALSE) ->  | M20: =NPV(datosB!$E$6,Formulario5_UC!O20:BG20) ->  | P20: =IF(P$3<=$F20,0,"") ->  | BK20: =NPV(datosB!$E$6,Formulario5_UC!$BL20:$DD20) ->  | BL20: =+PMT(datosB!$E$6,$F20,-$K20*$L20) -> 
A21: =Formulario2!$A$4 -> 0 | E21: =VLOOKUP($D21,UC_Res015!$B$3:$D$5000,3,FALSE) ->  | F21: =VLOOKUP($D21,UC_Res015!$B$3:$F$5000,2,FALSE) ->  | G21: =VLOOKUP($D21,UC_Res015!$B$3:$F$5000,4,FALSE) ->  | I21: 0 | L21: =VLOOKUP(A21,CU_OR!A20:M45,12,FALSE) ->  | M21: =NPV(datosB!$E$6,Formulario5_UC!O21:BG21) ->  | BK21: =NPV(datosB!$E$6,Formulario5_UC!$BL21:$DD21) ->  | BL21: =+PMT(datosB!$E$6,$F21,-$K21*$L21) -> 
A22: =Formulario2!$A$4 -> 0 | E22: =VLOOKUP($D22,UC_Res015!$B$3:$D$5000,3,FALSE) ->  | F22: =VLOOKUP($D22,UC_Res015!$B$3:$F$5000,2,FALSE) ->  | G22: =VLOOKUP($D22,UC_Res015!$B$3:$F$5000,4,FALSE) ->  | I22: 0 | L22: =VLOOKUP(A22,CU_OR!A21:M46,12,FALSE) ->  | M22: =NPV(datosB!$E$6,Formulario5_UC!O22:BG22) ->  | BK22: =NPV(datosB!$E$6,Formulario5_UC!$BL22:$DD22) ->  | BL22: =+PMT(datosB!$E$6,$F22,-$K22*$L22) -> 
A23: =Formulario2!$A$4 -> 0 | E23: =VLOOKUP($D23,UC_Res015!$B$3:$D$5000,3,FALSE) ->  | F23: =VLOOKUP($D23,UC_Res015!$B$3:$F$5000,2,FALSE) ->  | G23: =VLOOKUP($D23,UC_Res015!$B$3:$F$5000,4,FALSE) ->  | I23: 0 | L23: =VLOOKUP(A23,CU_OR!A22:M47,12,FALSE) ->  | M23: =NPV(datosB!$E$6,Formulario5_UC!O23:BG23) ->  | BB23: =IF(BB$3<=$F23,0,"") ->  | BK23: =NPV(datosB!$E$6,Formulario5_UC!$BL23:$DD23) ->  | BL23: =+PMT(datosB!$E$6,$F23,-$K23*$L23) -> 
A24: =Formulario2!$A$4 -> 0 | E24: =VLOOKUP($D24,UC_Res015!$B$3:$D$5000,3,FALSE) ->  | F24: =VLOOKUP($D24,UC_Res015!$B$3:$F$5000,2,FALSE) ->  | G24: =VLOOKUP($D24,UC_Res015!$B$3:$F$5000,4,FALSE) ->  | I24: 0 | L24: =VLOOKUP(A24,CU_OR!A23:M48,12,FALSE) ->  | M24: =NPV(datosB!$E$6,Formulario5_UC!O24:BG24) ->  | BK24: =NPV(datosB!$E$6,Formulario5_UC!$BL24:$DD24) ->  | BL24: =+PMT(datosB!$E$6,$F24,-$K24*$L24) -> 
A25: =Formulario2!$A$4 -> 0 | E25: =VLOOKUP($D25,UC_Res015!$B$3:$D$5000,3,FALSE) ->  | F25: =VLOOKUP($D25,UC_Res015!$B$3:$F$5000,2,FALSE) ->  | G25: =VLOOKUP($D25,UC_Res015!$B$3:$F$5000,4,FALSE) ->  | I25: 0 | L25: =VLOOKUP(A25,CU_OR!A24:M49,12,FALSE) ->  | M25: =NPV(datosB!$E$6,Formulario5_UC!O25:BG25) ->  | BK25: =NPV(datosB!$E$6,Formulario5_UC!$BL25:$DD25) ->  | BL25: =+PMT(datosB!$E$6,$F25,-$K25*$L25) -> 
A26: =Formulario2!$A$4 -> 0 | E26: =VLOOKUP($D26,UC_Res015!$B$3:$D$5000,3,FALSE) ->  | F26: =VLOOKUP($D26,UC_Res015!$B$3:$F$5000,2,FALSE) ->  | G26: =VLOOKUP($D26,UC_Res015!$B$3:$F$5000,4,FALSE) ->  | I26: 0 | L26: =VLOOKUP(A26,CU_OR!A25:M50,12,FALSE) ->  | M26: =NPV(datosB!$E$6,Formulario5_UC!O26:BG26) ->  | BK26: =NPV(datosB!$E$6,Formulario5_UC!$BL26:$DD26) ->  | BL26: =+PMT(datosB!$E$6,$F26,-$K26*$L26) ->  | BM26: =IF(BM$3<=$F26,$BL26,"") -> 
A27: =Formulario2!$A$4 -> 0 | E27: =VLOOKUP($D27,UC_Res015!$B$3:$D$5000,3,FALSE) ->  | F27: =VLOOKUP($D27,UC_Res015!$B$3:$F$5000,2,FALSE) ->  | G27: =VLOOKUP($D27,UC_Res015!$B$3:$F$5000,4,FALSE) ->  | I27: 0 | L27: =VLOOKUP(A27,CU_OR!A26:M51,12,FALSE) ->  | M27: =NPV(datosB!$E$6,Formulario5_UC!O27:BG27) ->  | BK27: =NPV(datosB!$E$6,Formulario5_UC!$BL27:$DD27) ->  | BL27: =+PMT(datosB!$E$6,$F27,-$K27*$L27) -> 
A28: =Formulario2!$A$4 -> 0 | E28: =VLOOKUP($D28,UC_Res015!$B$3:$D$5000,3,FALSE) ->  | F28: =VLOOKUP($D28,UC_Res015!$B$3:$F$5000,2,FALSE) ->  | G28: =VLOOKUP($D28,UC_Res015!$B$3:$F$5000,4,FALSE) ->  | I28: 0 | L28: =VLOOKUP(A28,CU_OR!A27:M52,12,FALSE) ->  | M28: =NPV(datosB!$E$6,Formulario5_UC!O28:BG28) ->  | BK28: =NPV(datosB!$E$6,Formulario5_UC!$BL28:$DD28) ->  | BL28: =+PMT(datosB!$E$6,$F28,-$K28*$L28) ->  | CR28: =IF(CR$3<=$F28,$BL28,"") -> 
A29: =Formulario2!$A$4 -> 0 | E29: =VLOOKUP($D29,UC_Res015!$B$3:$D$5000,3,FALSE) ->  | F29: =VLOOKUP($D29,UC_Res015!$B$3:$F$5000,2,FALSE) ->  | G29: =VLOOKUP($D29,UC_Res015!$B$3:$F$5000,4,FALSE) ->  | I29: 0 | L29: =VLOOKUP(A29,CU_OR!A28:M53,12,FALSE) ->  | M29: =NPV(datosB!$E$6,Formulario5_UC!O29:BG29) ->  | BK29: =NPV(datosB!$E$6,Formulario5_UC!$BL29:$DD29) ->  | BL29: =+PMT(datosB!$E$6,$F29,-$K29*$L29) ->  | CC29: =IF(CC$3<=$F29,$BL29,"") -> 
A30: =Formulario2!$A$4 -> 0 | E30: =VLOOKUP($D30,UC_Res015!$B$3:$D$5000,3,FALSE) ->  | F30: =VLOOKUP($D30,UC_Res015!$B$3:$F$5000,2,FALSE) ->  | G30: =VLOOKUP($D30,UC_Res015!$B$3:$F$5000,4,FALSE) ->  | I30: 0 | L30: =VLOOKUP(A30,CU_OR!A29:M54,12,FALSE) ->  | M30: =NPV(datosB!$E$6,Formulario5_UC!O30:BG30) ->  | AF30: =IF(AF$3<=$F30,0,"") ->  | AV30: =IF(AV$3<=$F30,0,"") ->  | BK30: =NPV(datosB!$E$6,Formulario5_UC!$BL30:$DD30) ->  | BL30: =+PMT(datosB!$E$6,$F30,-$K30*$L30) -> 
A31: =Formulario2!$A$4 -> 0 | E31: =VLOOKUP($D31,UC_Res015!$B$3:$D$5000,3,FALSE) ->  | F31: =VLOOKUP($D31,UC_Res015!$B$3:$F$5000,2,FALSE) ->  | G31: =VLOOKUP($D31,UC_Res015!$B$3:$F$5000,4,FALSE) ->  | I31: 0 | L31: =VLOOKUP(A31,CU_OR!A30:M55,12,FALSE) ->  | M31: =NPV(datosB!$E$6,Formulario5_UC!O31:BG31) ->  | BK31: =NPV(datosB!$E$6,Formulario5_UC!$BL31:$DD31) ->  | BL31: =+PMT(datosB!$E$6,$F31,-$K31*$L31) -> 
A32: =Formulario2!$A$4 -> 0 | E32: =VLOOKUP($D32,UC_Res015!$B$3:$D$5000,3,FALSE) ->  | F32: =VLOOKUP($D32,UC_Res015!$B$3:$F$5000,2,FALSE) ->  | G32: =VLOOKUP($D32,UC_Res015!$B$3:$F$5000,4,FALSE) ->  | I32: 0 | L32: =VLOOKUP(A32,CU_OR!A31:M56,12,FALSE) ->  | M32: =NPV(datosB!$E$6,Formulario5_UC!O32:BG32) ->  | BK32: =NPV(datosB!$E$6,Formulario5_UC!$BL32:$DD32) ->  | BL32: =+PMT(datosB!$E$6,$F32,-$K32*$L32) -> 
A33: =Formulario2!$A$4 -> 0 | E33: =VLOOKUP($D33,UC_Res015!$B$3:$D$5000,3,FALSE) ->  | F33: =VLOOKUP($D33,UC_Res015!$B$3:$F$5000,2,FALSE) ->  | G33: =VLOOKUP($D33,UC_Res015!$B$3:$F$5000,4,FALSE) ->  | I33: 0 | L33: =VLOOKUP(A33,CU_OR!A32:M57,12,FALSE) ->  | M33: =NPV(datosB!$E$6,Formulario5_UC!O33:BG33) ->  | BK33: =NPV(datosB!$E$6,Formulario5_UC!$BL33:$DD33) ->  | BL33: =+PMT(datosB!$E$6,$F33,-$K33*$L33) -> 
A34: =Formulario2!$A$4 -> 0 | E34: =VLOOKUP($D34,UC_Res015!$B$3:$D$5000,3,FALSE) ->  | F34: =VLOOKUP($D34,UC_Res015!$B$3:$F$5000,2,FALSE) ->  | G34: =VLOOKUP($D34,UC_Res015!$B$3:$F$5000,4,FALSE) ->  | I34: 0 | L34: =VLOOKUP(A34,CU_OR!A33:M58,12,FALSE) ->  | M34: =NPV(datosB!$E$6,Formulario5_UC!O34:BG34) ->  | BK34: =NPV(datosB!$E$6,Formulario5_UC!$BL34:$DD34) ->  | BL34: =+PMT(datosB!$E$6,$F34,-$K34*$L34) -> 
A35: =Formulario2!$A$4 -> 0 | E35: =VLOOKUP($D35,UC_Res015!$B$3:$D$5000,3,FALSE) ->  | F35: =VLOOKUP($D35,UC_Res015!$B$3:$F$5000,2,FALSE) ->  | G35: =VLOOKUP($D35,UC_Res015!$B$3:$F$5000,4,FALSE) ->  | I35: 0 | L35: =VLOOKUP(A35,CU_OR!A34:M59,12,FALSE) ->  | M35: =NPV(datosB!$E$6,Formulario5_UC!O35:BG35) ->  | AE35: =IF(AE$3<=$F35,0,"") ->  | AU35: =IF(AU$3<=$F35,0,"") ->  | BK35: =NPV(datosB!$E$6,Formulario5_UC!$BL35:$DD35) ->  | BL35: =+PMT(datosB!$E$6,$F35,-$K35*$L35) -> 
A36: =Formulario2!$A$4 -> 0 | E36: =VLOOKUP($D36,UC_Res015!$B$3:$D$5000,3,FALSE) ->  | F36: =VLOOKUP($D36,UC_Res015!$B$3:$F$5000,2,FALSE) ->  | G36: =VLOOKUP($D36,UC_Res015!$B$3:$F$5000,4,FALSE) ->  | I36: 0 | L36: =VLOOKUP(A36,CU_OR!A35:M60,12,FALSE) ->  | M36: =NPV(datosB!$E$6,Formulario5_UC!O36:BG36) ->  | P36: =IF(P$3<=$F36,0,"") ->  | BK36: =NPV(datosB!$E$6,Formulario5_UC!$BL36:$DD36) ->  | BL36: =+PMT(datosB!$E$6,$F36,-$K36*$L36) -> 
A37: =Formulario2!$A$4 -> 0 | E37: =VLOOKUP($D37,UC_Res015!$B$3:$D$5000,3,FALSE) ->  | F37: =VLOOKUP($D37,UC_Res015!$B$3:$F$5000,2,FALSE) ->  | G37: =VLOOKUP($D37,UC_Res015!$B$3:$F$5000,4,FALSE) ->  | I37: 0 | L37: =VLOOKUP(A37,CU_OR!A36:M61,12,FALSE) ->  | M37: =NPV(datosB!$E$6,Formulario5_UC!O37:BG37) ->  | BK37: =NPV(datosB!$E$6,Formulario5_UC!$BL37:$DD37) ->  | BL37: =+PMT(datosB!$E$6,$F37,-$K37*$L37) -> 
A38: =Formulario2!$A$4 -> 0 | E38: =VLOOKUP($D38,UC_Res015!$B$3:$D$5000,3,FALSE) ->  | F38: =VLOOKUP($D38,UC_Res015!$B$3:$F$5000,2,FALSE) ->  | G38: =VLOOKUP($D38,UC_Res015!$B$3:$F$5000,4,FALSE) ->  | I38: 0 | L38: =VLOOKUP(A38,CU_OR!A37:M62,12,FALSE) ->  | M38: =NPV(datosB!$E$6,Formulario5_UC!O38:BG38) ->  | BK38: =NPV(datosB!$E$6,Formulario5_UC!$BL38:$DD38) ->  | BL38: =+PMT(datosB!$E$6,$F38,-$K38*$L38) -> 
A39: =Formulario2!$A$4 -> 0 | E39: =VLOOKUP($D39,UC_Res015!$B$3:$D$5000,3,FALSE) ->  | F39: =VLOOKUP($D39,UC_Res015!$B$3:$F$5000,2,FALSE) ->  | G39: =VLOOKUP($D39,UC_Res015!$B$3:$F$5000,4,FALSE) ->  | I39: 0 | L39: =VLOOKUP(A39,CU_OR!A38:M63,12,FALSE) ->  | M39: =NPV(datosB!$E$6,Formulario5_UC!O39:BG39) ->  | BK39: =NPV(datosB!$E$6,Formulario5_UC!$BL39:$DD39) ->  | BL39: =+PMT(datosB!$E$6,$F39,-$K39*$L39) -> 
A40: =Formulario2!$A$4 -> 0 | E40: =VLOOKUP($D40,UC_Res015!$B$3:$D$5000,3,FALSE) ->  | F40: =VLOOKUP($D40,UC_Res015!$B$3:$F$5000,2,FALSE) ->  | G40: =VLOOKUP($D40,UC_Res015!$B$3:$F$5000,4,FALSE) ->  | I40: 0 | L40: =VLOOKUP(A40,CU_OR!A39:M64,12,FALSE) ->  | M40: =NPV(datosB!$E$6,Formulario5_UC!O40:BG40) ->  | BK40: =NPV(datosB!$E$6,Formulario5_UC!$BL40:$DD40) ->  | BL40: =+PMT(datosB!$E$6,$F40,-$K40*$L40) -> 
A41: =Formulario2!$A$4 -> 0 | E41: =VLOOKUP($D41,UC_Res015!$B$3:$D$5000,3,FALSE) ->  | F41: =VLOOKUP($D41,UC_Res015!$B$3:$F$5000,2,FALSE) ->  | G41: =VLOOKUP($D41,UC_Res015!$B$3:$F$5000,4,FALSE) ->  | I41: 0 | L41: =VLOOKUP(A41,CU_OR!A40:M65,12,FALSE) ->  | M41: =NPV(datosB!$E$6,Formulario5_UC!O41:BG41) ->  | BK41: =NPV(datosB!$E$6,Formulario5_UC!$BL41:$DD41) ->  | BL41: =+PMT(datosB!$E$6,$F41,-$K41*$L41) ->  | CB41: =IF(CB$3<=$F41,$BL41,"") -> 
A42: =Formulario2!$A$4 -> 0 | E42: =VLOOKUP($D42,UC_Res015!$B$3:$D$5000,3,FALSE) ->  | F42: =VLOOKUP($D42,UC_Res015!$B$3:$F$5000,2,FALSE) ->  | G42: =VLOOKUP($D42,UC_Res015!$B$3:$F$5000,4,FALSE) ->  | I42: 0 | L42: =VLOOKUP(A42,CU_OR!A41:M66,12,FALSE) ->  | M42: =NPV(datosB!$E$6,Formulario5_UC!O42:BG42) ->  | BK42: =NPV(datosB!$E$6,Formulario5_UC!$BL42:$DD42) ->  | BL42: =+PMT(datosB!$E$6,$F42,-$K42*$L42) ->  | BM42: =IF(BM$3<=$F42,$BL42,"") -> 
A43: =Formulario2!$A$4 -> 0 | E43: =VLOOKUP($D43,UC_Res015!$B$3:$D$5000,3,FALSE) ->  | F43: =VLOOKUP($D43,UC_Res015!$B$3:$F$5000,2,FALSE) ->  | G43: =VLOOKUP($D43,UC_Res015!$B$3:$F$5000,4,FALSE) ->  | I43: 0 | L43: =VLOOKUP(A43,CU_OR!A42:M67,12,FALSE) ->  | M43: =NPV(datosB!$E$6,Formulario5_UC!O43:BG43) ->  | BK43: =NPV(datosB!$E$6,Formulario5_UC!$BL43:$DD43) ->  | BL43: =+PMT(datosB!$E$6,$F43,-$K43*$L43) -> 
A44: =Formulario2!$A$4 -> 0 | E44: =VLOOKUP($D44,UC_Res015!$B$3:$D$5000,3,FALSE) ->  | F44: =VLOOKUP($D44,UC_Res015!$B$3:$F$5000,2,FALSE) ->  | G44: =VLOOKUP($D44,UC_Res015!$B$3:$F$5000,4,FALSE) ->  | I44: 0 | L44: =VLOOKUP(A44,CU_OR!A43:M68,12,FALSE) ->  | M44: =NPV(datosB!$E$6,Formulario5_UC!O44:BG44) ->  | BK44: =NPV(datosB!$E$6,Formulario5_UC!$BL44:$DD44) ->  | BL44: =+PMT(datosB!$E$6,$F44,-$K44*$L44) ->  | CS44: =IF(CS$3<=$F44,$BL44,"") -> 
A45: =Formulario2!$A$4 -> 0 | E45: =VLOOKUP($D45,UC_Res015!$B$3:$D$5000,3,FALSE) ->  | F45: =VLOOKUP($D45,UC_Res015!$B$3:$F$5000,2,FALSE) ->  | G45: =VLOOKUP($D45,UC_Res015!$B$3:$F$5000,4,FALSE) ->  | I45: 0 | L45: =VLOOKUP(A45,CU_OR!A44:M69,12,FALSE) ->  | M45: =NPV(datosB!$E$6,Formulario5_UC!O45:BG45) ->  | BK45: =NPV(datosB!$E$6,Formulario5_UC!$BL45:$DD45) ->  | BL45: =+PMT(datosB!$E$6,$F45,-$K45*$L45) ->  | CR45: =IF(CR$3<=$F45,$BL45,"") -> 
A46: =Formulario2!$A$4 -> 0 | E46: =VLOOKUP($D46,UC_Res015!$B$3:$D$5000,3,FALSE) ->  | F46: =VLOOKUP($D46,UC_Res015!$B$3:$F$5000,2,FALSE) ->  | G46: =VLOOKUP($D46,UC_Res015!$B$3:$F$5000,4,FALSE) ->  | I46: 0 | L46: =VLOOKUP(A46,CU_OR!A45:M70,12,FALSE) ->  | M46: =NPV(datosB!$E$6,Formulario5_UC!O46:BG46) ->  | AU46: =IF(AU$3<=$F46,0,"") ->  | BK46: =NPV(datosB!$E$6,Formulario5_UC!$BL46:$DD46) ->  | BL46: =+PMT(datosB!$E$6,$F46,-$K46*$L46) -> 

Sheet Formulario6_Res
A1: Formulario 6. Información de los proyectos
AI2: N1 | AR2: N2
A3: Operador de Red que reporta | B3: Código Proyecto | C3: Nombre del proyecto | D3: Tipo | E3: Zona | G3: Está dispuesto a realizar el proyecto? | H3: Responsable de la financiación de acometidas y medidores | I3: Inicio de ejecución de la inversión mmm/dd/yyyy | J3: finalización de ejecución de la inversión mmm/dd/yyyy | K3: puesta en marcha del proyecto mmm/dd/yyyy | M3: Viviendas a beneficiarse del Py | N3: Demanda Anual del Py kWh | O3: Incremento anual en la Demanda del proyecto | P3: Código de Subestación donde se conectará el py | Q3: Código Circuito donde se conectará el py | R3: Nodo Eléctrico donde se conectará el py | S3: Distancia al Nodo eléctrico al cual se conectará [km] | T3: Nivel de tensión donde se conectará el proyecto | U3: Red de MT Km | V3: Red de BT Km | W3: Cantidad de transformadores | Y3: CU_CREG $/kWh | Z3: En que departamento se llevará la mayor parte del py? | AC3: AOM OR_Creg | AD3: AOM Nivel 1_Creg | AF3: Inversión total $ | AG3: AOM total $ | AI3: Inversión Nivel 1 $ | AJ3: AOM Nivel 1 $ | AK3: Perdidas reconocidas en N1 | AL3: Dda del proyecto a 30 años | AM3: Costo Anual Equivalente N1 | AN3: AOM anual nivel 1 | AO3: Costo Medio Nivel 1 $/kWh | AP3: D1 aprobado CREG | AR3: Inversión Nivel 2 $ | AS3: AOM Nivel 2 $ | AT3: Perdidas reconocidas en N2 | AU3: Dda del proyecto a 30 años | AV3: Costo Anual Equivalente N2 | AW3: AOM anual nivel 2 | AX3: Costo Medio Nivel 2 $/kWh | AY3: D2 aprobado CREG | BI3: $/Vivienda | BK3: CU_Proyecto $/kWh | BL3: % Impacto en el cargo aprobado por la CREG | BM3: Relación Beneficio/Costo RBC | BN3: COM VP/Vpmun | BO3: IRBC | BP3: IPT | BQ3: OED | BR3: OEP | CB3: Demanda N1 | CC3: 1 | CD3: 2 | CE3: 3 | CF3: 4 | CG3: 5 | CH3: 6 | CI3: 7 | CJ3: 8 | CK3: 9 | CL3: 10 | CM3: 11 | CN3: 12 | CO3: 13 | CP3: 14 | CQ3: 15 | CR3: 16 | CS3: 17 | CT3: 18 | CU3: 19 | CV3: 20 | CW3: 21 | CX3: 22 | CY3: 23 | CZ3: 24 | DA3: 25 | DB3: 26 | DC3: 27 | DD3: 28 | DE3: 29 | DF3: 30 | DG3: 31 | DH3: 32 | DI3: 33 | DJ3: 34 | DK3: 35 | DL3: 36 | DM3: 37 | DN3: 38 | DO3: 39 | DP3: 40 | DQ3: 41 | DR3: 42 | DS3: 43 | DT3: 44 | DU3: 45 | DX3: Demanda N2 | DY3: 1 | DZ3: 2 | EA3: 3 | EB3: 4 | EC3: 5 | ED3: 6 | EE3: 7 | EF3: 8 | EG3: 9 | EH3: 10 | EI3: 11 | EJ3: 12 | EK3: 13 | EL3: 14 | EM3: 15 | EN3: 16 | EO3: 17 | EP3: 18 | EQ3: 19 | ER3: 20 | ES3: 21 | ET3: 22 | EU3: 23 | EV3: 24 | EW3: 25 | EX3: 26 | EY3: 27 | EZ3: 28 | FA3: 29 | FB3: 30 | FC3: 31 | FD3: 32 | FE3: 33 | FF3: 34 | FG3: 35 | FH3: 36 | FI3: 37 | FJ3: 38 | FK3: 39 | FL3: 40 | FM3: 41 | FN3: 42 | FO3: 43 | FP3: 44 | FQ3: 45
I4: 2019-01-31 | J4: 2019-06-11 | K4: 2019-11-12 | M4: =SUMIFS(Formulario3!$O$3:$O$50000,Formulario3!$R$3:$R$50000,Formulario6_Res!$B4) -> 0 | N4: =SUMIFS(Formulario3!$V$3:$V$50000,Formulario3!$R$3:$R$50000,Formulario6_Res!$B4)*datosB!$E$7 -> 0 | O4: 0 | Y4: =VLOOKUP($A4,CU_OR!$A$3:$Z$31,11,FALSE) ->  | AC4: =VLOOKUP($A4,CU_OR!$A$3:$M$31,12,FALSE) ->  | AD4: =VLOOKUP($A4,CU_OR!$A$3:$M$31,13,FALSE) ->  | AF4: =+AI4+AR4+BA4 -> 0 | AG4: =+AJ4+AS4+BB4 ->  | AI4: =SUMIFS(Formulario5_UC!$M$4:$M$29994,Formulario5_UC!$B$4:$B$29994,Formulario6_Res!$B4,Formulario5_UC!$C$4:$C$29994,Formulario6_Res!$AI$2) -> 0 | AJ4: =SUMIFS(Formulario5_UC!$BK$4:$BK$29994,Formulario5_UC!$B$4:$B$29994,Formulario6_Res!$B4,Formulario5_UC!$C$4:$C$29994,Formulario6_Res!$AI$2)*0+AN4+AS4 ->  | AK4: =VLOOKUP(A$4,CU_OR!$A$3:$Z$31,15,FALSE) ->  | AL4: =$CB4 ->  | AM4: =PMT(datosB!$E$6,datosB!$E$13,-Formulario6_Res!$AI4) -> 0 | AN4: =+VLOOKUP(A$4,CU_OR!$A$3:$Z$31,13,FALSE)*$N4 ->  | AO4: =+($AM4+$AN4)/($N4*(1+$AK4)) ->  | AP4: =VLOOKUP($A4,CU_OR!$A$3:$M$31,7,FALSE) ->  | AR4: =SUMIFS(Formulario5_UC!$M$4:$M$29994,Formulario5_UC!$B$4:$B$29994,Formulario6_Res!$B4,Formulario5_UC!$C$4:$C$29994,Formulario6_Res!$AR$2) -> 0 | AS4: =SUMIFS(Formulario5_UC!$BK$4:$BK$29994,Formulario5_UC!$B$4:$B$29994,Formulario6_Res!$B4,Formulario5_UC!$C$4:$C$29994,Formulario6_Res!$AR$2) -> 0 | AT4: =VLOOKUP(A$4,CU_OR!$A$3:$Z$31,16,FALSE) ->  | AU4: =$DX4 ->  | AV4: =PMT(datosB!$E$6,datosB!$E$14,-Formulario6_Res!$AR4) -> 0 | AW4: =PMT(datosB!$E$6,datosB!$E$14,-Formulario6_Res!$AS4) -> 0 | AX4: =+(AV4+AW4)/(N4*(1+$AT4)) ->  | AY4: =VLOOKUP($A4,CU_OR!$A$3:$M$31,6,FALSE) ->  | BI4: =+$AF4/$M4 ->  | BK4: =VLOOKUP(A$4,CU_OR!$A$3:$Z$31,18,FALSE)+AX4+AO4 ->  | BL4: =+(BK4-$Y4)/$Y4 ->  | BM4: =+IFERROR(AA4/BK4,0) -> 0 | BN4: =M4/$M$514 ->  | BO4: =+BM4/$BM$514 ->  | BP4: =0.5*BN4+0.5*BO4 ->  | CB4: =SUM(CC4:DU4) ->  | CC4: =+$N4*(1+$AK4) ->  | CD4: =IF(CD$3<=datosB!$E$9,$CC4*(1+$AK$4)*(1+$O$4),"") ->  | CE4: =IF(CE$3<=datosB!$E$9,$CD4*(1+$AK$4)*(1+$O$4),"") ->  | CF4: =IF(CF$3<=datosB!$E$9,$CE4*(1+$AK$4)*(1+$O$4),"") ->  | CG4: =IF(CG$3<=datosB!$E$9,$CE4*(1+$AK$4)*(1+$O$4),"") ->  | CH4: =IF(CH$3<=datosB!$E$9,$CE4*(1+$AK$4)*(1+$O$4),"") ->  | CI4: =IF(CI$3<=datosB!$E$9,$CE4*(1+$AK$4)*(1+$O$4),"") ->  | CJ4: =IF(CJ$3<=datosB!$E$9,$CE4*(1+$AK$4)*(1+$O$4),"") ->  | CK4: =IF(CK$3<=datosB!$E$9,$CE4*(1+$AK$4)*(1+$O$4),"") ->  | CL4: =IF(CL$3<=datosB!$E$9,$CE4*(1+$AK$4)*(1+$O$4),"") ->  | CM4: =IF(CM$3<=datosB!$E$9,$CE4*(1+$AK$4)*(1+$O$4),"") ->  | CN4: =IF(CN$3<=datosB!$E$9,$CE4*(1+$AK$4)*(1+$O$4),"") ->  | CO4: =IF(CO$3<=datosB!$E$9,$CE4*(1+$AK$4)*(1+$O$4),"") ->  | CP4: =IF(CP$3<=datosB!$E$9,$CE4*(1+$AK$4)*(1+$O$4),"") ->  | CQ4: =IF(CQ$3<=datosB!$E$9,$CE4*(1+$AK$4)*(1+$O$4),"") ->  | CR4: =IF(CR$3<=datosB!$E$9,$CE4*(1+$AK$4)*(1+$O$4),"") ->  | CS4: =IF(CS$3<=datosB!$E$9,$CE4*(1+$AK$4)*(1+$O$4),"") ->  | CT4: =IF(CT$3<=datosB!$E$9,$CE4*(1+$AK$4)*(1+$O$4),"") ->  | CU4: =IF(CU$3<=datosB!$E$9,$CE4*(1+$AK$4)*(1+$O$4),"") ->  | CV4: =IF(CV$3<=datosB!$E$9,$CE4*(1+$AK$4)*(1+$O$4),"") ->  | CW4: =IF(CW$3<=datosB!$E$9,$CE4*(1+$AK$4)*(1+$O$4),"") ->  | CX4: =IF(CX$3<=datosB!$E$9,$CE4*(1+$AK$4)*(1+$O$4),"") ->  | CY4: =IF(CY$3<=datosB!$E$9,$CE4*(1+$AK$4)*(1+$O$4),"") ->  | CZ4: =IF(CZ$3<=datosB!$E$9,$CE4*(1+$AK$4)*(1+$O$4),"") ->  | DA4: =IF(DA$3<=datosB!$E$9,$CE4*(1+$AK$4)*(1+$O$4),"") ->  | DB4: =IF(DB$3<=datosB!$E$9,$CE4*(1+$AK$4)*(1+$O$4),"") ->  | DC4: =IF(DC$3<=datosB!$E$9,$CE4*(1+$AK$4)*(1+$O$4),"") ->  | DD4: =IF(DD$3<=datosB!$E$9,$CE4*(1+$AK$4)*(1+$O$4),"") ->  | DE4: =IF(DE$3<=datosB!$E$9,$CE4*(1+$AK$4)*(1+$O$4),"") ->  | DF4: =IF(DF$3<=datosB!$E$9,$CE4*(1+$AK$4)*(1+$O$4),"") ->  | DG4: =IF(DG$3<=datosB!$E$9,$CE4*(1+$AK$4)*(1+$O$4),"") ->  | DH4: =IF(DH$3<=datosB!$E$9,$CE4*(1+$AK$4)*(1+$O$4),"") ->  | DI4: =IF(DI$3<=datosB!$E$9,$CE4*(1+$AK$4)*(1+$O$4),"") ->  | DJ4: =IF(DJ$3<=datosB!$E$9,$CE4*(1+$AK$4)*(1+$O$4),"") ->  | DK4: =IF(DK$3<=datosB!$E$9,$CE4*(1+$AK$4)*(1+$O$4),"") ->  | DL4: =IF(DL$3<=datosB!$E$9,$CE4*(1+$AK$4)*(1+$O$4),"") ->  | DM4: =IF(DM$3<=datosB!$E$9,$CE4*(1+$AK$4)*(1+$O$4),"") ->  | DN4: =IF(DN$3<=datosB!$E$9,$CE4*(1+$AK$4)*(1+$O$4),"") ->  | DO4: =IF(DO$3<=datosB!$E$9,$CE4*(1+$AK$4)*(1+$O$4),"") ->  | DP4: =IF(DP$3<=datosB!$E$9,$CE4*(1+$AK$4)*(1+$O$4),"") ->  | DQ4: =IF(DQ$3<=datosB!$E$9,$CE4*(1+$AK$4)*(1+$O$4),"") ->  | DR4: =IF(DR$3<=datosB!$E$9,$CE4*(1+$AK$4)*(1+$O$4),"") ->  | DS4: =IF(DS$3<=datosB!$E$9,$CE4*(1+$AK$4)*(1+$O$4),"") ->  | DT4: =IF(DT$3<=datosB!$E$9,$CE4*(1+$AK$4)*(1+$O$4),"") ->  | DU4: =IF(DU$3<=datosB!$E$9,$CE4*(1+$AK$4)*(1+$O$4),"") ->  | DX4: =SUM(DY4:FQ4) ->  | DY4: =+$N4*(1+$AT4) ->  | DZ4: =IF(DZ$3<=datosB!$E$9,$DY4*(1+$AT$4)*(1+$O$4),"") ->  | EA4: =IF(EA$3<=datosB!$E$9,DZ4*(1+$AT$4)*(1+$O$4),"") ->  | EB4: =IF(EB$3<=datosB!$E$9,EA4*(1+$AT$4)*(1+$O$4),"") ->  | EC4: =IF(EC$3<=datosB!$E$9,EB4*(1+$AT$4)*(1+$O$4),"") ->  | ED4: =IF(ED$3<=datosB!$E$9,EC4*(1+$AT$4)*(1+$O$4),"") ->  | EE4: =IF(EE$3<=datosB!$E$9,ED4*(1+$AT$4)*(1+$O$4),"") ->  | EF4: =IF(EF$3<=datosB!$E$9,EE4*(1+$AT$4)*(1+$O$4),"") ->  | EG4: =IF(EG$3<=datosB!$E$9,EF4*(1+$AT$4)*(1+$O$4),"") ->  | EH4: =IF(EH$3<=datosB!$E$9,EG4*(1+$AT$4)*(1+$O$4),"") ->  | EI4: =IF(EI$3<=datosB!$E$9,EH4*(1+$AT$4)*(1+$O$4),"") ->  | EJ4: =IF(EJ$3<=datosB!$E$9,EI4*(1+$AT$4)*(1+$O$4),"") ->  | EK4: =IF(EK$3<=datosB!$E$9,EJ4*(1+$AT$4)*(1+$O$4),"") ->  | EL4: =IF(EL$3<=datosB!$E$9,EK4*(1+$AT$4)*(1+$O$4),"") ->  | EM4: =IF(EM$3<=datosB!$E$9,EL4*(1+$AT$4)*(1+$O$4),"") ->  | EN4: =IF(EN$3<=datosB!$E$9,EM4*(1+$AT$4)*(1+$O$4),"") ->  | EO4: =IF(EO$3<=datosB!$E$9,EN4*(1+$AT$4)*(1+$O$4),"") ->  | EP4: =IF(EP$3<=datosB!$E$9,EO4*(1+$AT$4)*(1+$O$4),"") ->  | EQ4: =IF(EQ$3<=datosB!$E$9,EP4*(1+$AT$4)*(1+$O$4),"") ->  | ER4: =IF(ER$3<=datosB!$E$9,EQ4*(1+$AT$4)*(1+$O$4),"") ->  | ES4: =IF(ES$3<=datosB!$E$9,ER4*(1+$AT$4)*(1+$O$4),"") ->  | ET4: =IF(ET$3<=datosB!$E$9,ES4*(1+$AT$4)*(1+$O$4),"") ->  | EU4: =IF(EU$3<=datosB!$E$9,ET4*(1+$AT$4)*(1+$O$4),"") ->  | EV4: =IF(EV$3<=datosB!$E$9,EU4*(1+$AT$4)*(1+$O$4),"") ->  | EW4: =IF(EW$3<=datosB!$E$9,EV4*(1+$AT$4)*(1+$O$4),"") ->  | EX4: =IF(EX$3<=datosB!$E$9,EW4*(1+$AT$4)*(1+$O$4),"") ->  | EY4: =IF(EY$3<=datosB!$E$9,EX4*(1+$AT$4)*(1+$O$4),"") ->  | EZ4: =IF(EZ$3<=datosB!$E$9,EY4*(1+$AT$4)*(1+$O$4),"") ->  | FA4: =IF(FA$3<=datosB!$E$9,EZ4*(1+$AT$4)*(1+$O$4),"") ->  | FB4: =IF(FB$3<=datosB!$E$9,FA4*(1+$AT$4)*(1+$O$4),"") ->  | FC4: =IF(FC$3<=datosB!$E$9,FB4*(1+$AT$4)*(1+$O$4),"") ->  | FD4: =IF(FD$3<=datosB!$E$9,FC4*(1+$AT$4)*(1+$O$4),"") ->  | FE4: =IF(FE$3<=datosB!$E$9,FD4*(1+$AT$4)*(1+$O$4),"") ->  | FF4: =IF(FF$3<=datosB!$E$9,FE4*(1+$AT$4)*(1+$O$4),"") ->  | FG4: =IF(FG$3<=datosB!$E$9,FF4*(1+$AT$4)*(1+$O$4),"") ->  | FH4: =IF(FH$3<=datosB!$E$9,FG4*(1+$AT$4)*(1+$O$4),"") ->  | FI4: =IF(FI$3<=datosB!$E$9,FH4*(1+$AT$4)*(1+$O$4),"") ->  | FJ4: =IF(FJ$3<=datosB!$E$9,FI4*(1+$AT$4)*(1+$O$4),"") ->  | FK4: =IF(FK$3<=datosB!$E$9,FJ4*(1+$AT$4)*(1+$O$4),"") ->  | FL4: =IF(FL$3<=datosB!$E$9,FK4*(1+$AT$4)*(1+$O$4),"") ->  | FM4: =IF(FM$3<=datosB!$E$9,FL4*(1+$AT$4)*(1+$O$4),"") ->  | FN4: =IF(FN$3<=datosB!$E$9,FM4*(1+$AT$4)*(1+$O$4),"") ->  | FO4: =IF(FO$3<=datosB!$E$9,FN4*(1+$AT$4)*(1+$O$4),"") ->  | FP4: =IF(FP$3<=datosB!$E$9,FO4*(1+$AT$4)*(1+$O$4),"") ->  | FQ4: =IF(FQ$3<=datosB!$E$9,FP4*(1+$AT$4)*(1+$O$4),"") -> 
I5: 2019-01-31 | J5: 2019-06-11 | K5: 2019-11-12 | M5: =SUMIFS(Formulario3!$O$3:$O$50000,Formulario3!$R$3:$R$50000,Formulario6_Res!$B5) -> 0 | N5: =SUMIFS(Formulario3!$V$3:$V$50000,Formulario3!$R$3:$R$50000,Formulario6_Res!$B5)*datosB!$E$7 -> 0 | O5: 0 | Y5: =VLOOKUP($A5,CU_OR!$A$3:$Z$31,11,FALSE) ->  | AC5: =VLOOKUP($A5,CU_OR!$A$3:$M$31,12,FALSE) ->  | AD5: =VLOOKUP($A5,CU_OR!$A$3:$M$31,13,FALSE) ->  | AF5: =+AI5+AR5+BA5 -> 0 | AG5: =+AJ5+AS5+BB5 ->  | AI5: =SUMIFS(Formulario5_UC!$M$4:$M$29994,Formulario5_UC!$B$4:$B$29994,Formulario6_Res!$B5,Formulario5_UC!$C$4:$C$29994,Formulario6_Res!$AI$2) -> 0 | AJ5: =SUMIFS(Formulario5_UC!$BK$4:$BK$29994,Formulario5_UC!$B$4:$B$29994,Formulario6_Res!$B5,Formulario5_UC!$C$4:$C$29994,Formulario6_Res!$AI$2)*0+AN5+AS5 ->  | AK5: =VLOOKUP(A$4,CU_OR!$A$3:$Z$31,15,FALSE) ->  | AL5: =$CB5 ->  | AM5: =PMT(datosB!$E$6,datosB!$E$13,-Formulario6_Res!$AI5) -> 0 | AN5: =+VLOOKUP(A$4,CU_OR!$A$3:$Z$31,13,FALSE)*$N5 ->  | AO5: =+($AM5+$AN5)/($N5*(1+$AK5)) ->  | AP5: =VLOOKUP($A5,CU_OR!$A$3:$M$31,7,FALSE) ->  | AR5: =SUMIFS(Formulario5_UC!$M$4:$M$29994,Formulario5_UC!$B$4:$B$29994,Formulario6_Res!$B5,Formulario5_UC!$C$4:$C$29994,Formulario6_Res!$AR$2) -> 0 | AS5: =SUMIFS(Formulario5_UC!$BK$4:$BK$29994,Formulario5_UC!$B$4:$B$29994,Formulario6_Res!$B5,Formulario5_UC!$C$4:$C$29994,Formulario6_Res!$AR$2) -> 0 | AT5: =VLOOKUP(A$4,CU_OR!$A$3:$Z$31,16,FALSE) ->  | AU5: =$DX5 ->  | AV5: =PMT(datosB!$E$6,datosB!$E$14,-Formulario6_Res!$AR5) -> 0 | AW5: =PMT(datosB!$E$6,datosB!$E$14,-Formulario6_Res!$AS5) -> 0 | AX5: =+(AV5+AW5)/(N5*(1+$AT5)) ->  | AY5: =VLOOKUP($A5,CU_OR!$A$3:$M$31,6,FALSE) ->  | BI5: =+$AF5/$M5 ->  | BK5: =VLOOKUP(A$4,CU_OR!$A$3:$Z$31,18,FALSE)+AX5+AO5 ->  | BL5: =+(BK5-$Y5)/$Y5 ->  | BM5: =+IFERROR(AA5/BK5,0) -> 0 | BN5: =M5/$M$514 ->  | BO5: =+BM5/$BM$514 ->  | BP5: =0.5*BN5+0.5*BO5 ->  | CB5: =SUM(CC5:DU5) ->  | CC5: =+$N5*(1+$AK5) ->  | CD5: =IF(CD$3<=datosB!$E$9,$CC5*(1+$AK$4)*(1+$O$4),"") ->  | CE5: =IF(CE$3<=datosB!$E$9,$CD5*(1+$AK$4)*(1+$O$4),"") ->  | CF5: =IF(CF$3<=datosB!$E$9,$CE5*(1+$AK$4)*(1+$O$4),"") ->  | CG5: =IF(CG$3<=datosB!$E$9,$CE5*(1+$AK$4)*(1+$O$4),"") ->  | CH5: =IF(CH$3<=datosB!$E$9,$CE5*(1+$AK$4)*(1+$O$4),"") ->  | CI5: =IF(CI$3<=datosB!$E$9,$CE5*(1+$AK$4)*(1+$O$4),"") ->  | CJ5: =IF(CJ$3<=datosB!$E$9,$CE5*(1+$AK$4)*(1+$O$4),"") ->  | CK5: =IF(CK$3<=datosB!$E$9,$CE5*(1+$AK$4)*(1+$O$4),"") ->  | CL5: =IF(CL$3<=datosB!$E$9,$CE5*(1+$AK$4)*(1+$O$4),"") ->  | CM5: =IF(CM$3<=datosB!$E$9,$CE5*(1+$AK$4)*(1+$O$4),"") ->  | CN5: =IF(CN$3<=datosB!$E$9,$CE5*(1+$AK$4)*(1+$O$4),"") ->  | CO5: =IF(CO$3<=datosB!$E$9,$CE5*(1+$AK$4)*(1+$O$4),"") ->  | CP5: =IF(CP$3<=datosB!$E$9,$CE5*(1+$AK$4)*(1+$O$4),"") ->  | CQ5: =IF(CQ$3<=datosB!$E$9,$CE5*(1+$AK$4)*(1+$O$4),"") ->  | CR5: =IF(CR$3<=datosB!$E$9,$CE5*(1+$AK$4)*(1+$O$4),"") ->  | CS5: =IF(CS$3<=datosB!$E$9,$CE5*(1+$AK$4)*(1+$O$4),"") ->  | CT5: =IF(CT$3<=datosB!$E$9,$CE5*(1+$AK$4)*(1+$O$4),"") ->  | CU5: =IF(CU$3<=datosB!$E$9,$CE5*(1+$AK$4)*(1+$O$4),"") ->  | CV5: =IF(CV$3<=datosB!$E$9,$CE5*(1+$AK$4)*(1+$O$4),"") ->  | CW5: =IF(CW$3<=datosB!$E$9,$CE5*(1+$AK$4)*(1+$O$4),"") ->  | CX5: =IF(CX$3<=datosB!$E$9,$CE5*(1+$AK$4)*(1+$O$4),"") ->  | CY5: =IF(CY$3<=datosB!$E$9,$CE5*(1+$AK$4)*(1+$O$4),"") ->  | CZ5: =IF(CZ$3<=datosB!$E$9,$CE5*(1+$AK$4)*(1+$O$4),"") ->  | DA5: =IF(DA$3<=datosB!$E$9,$CE5*(1+$AK$4)*(1+$O$4),"") ->  | DB5: =IF(DB$3<=datosB!$E$9,$CE5*(1+$AK$4)*(1+$O$4),"") ->  | DC5: =IF(DC$3<=datosB!$E$9,$CE5*(1+$AK$4)*(1+$O$4),"") ->  | DD5: =IF(DD$3<=datosB!$E$9,$CE5*(1+$AK$4)*(1+$O$4),"") ->  | DE5: =IF(DE$3<=datosB!$E$9,$CE5*(1+$AK$4)*(1+$O$4),"") ->  | DF5: =IF(DF$3<=datosB!$E$9,$CE5*(1+$AK$4)*(1+$O$4),"") ->  | DG5: =IF(DG$3<=datosB!$E$9,$CE5*(1+$AK$4)*(1+$O$4),"") ->  | DH5: =IF(DH$3<=datosB!$E$9,$CE5*(1+$AK$4)*(1+$O$4),"") ->  | DI5: =IF(DI$3<=datosB!$E$9,$CE5*(1+$AK$4)*(1+$O$4),"") ->  | DJ5: =IF(DJ$3<=datosB!$E$9,$CE5*(1+$AK$4)*(1+$O$4),"") ->  | DK5: =IF(DK$3<=datosB!$E$9,$CE5*(1+$AK$4)*(1+$O$4),"") ->  | DL5: =IF(DL$3<=datosB!$E$9,$CE5*(1+$AK$4)*(1+$O$4),"") ->  | DM5: =IF(DM$3<=datosB!$E$9,$CE5*(1+$AK$4)*(1+$O$4),"") ->  | DN5: =IF(DN$3<=datosB!$E$9,$CE5*(1+$AK$4)*(1+$O$4),"") ->  | DO5: =IF(DO$3<=datosB!$E$9,$CE5*(1+$AK$4)*(1+$O$4),"") ->  | DP5: =IF(DP$3<=datosB!$E$9,$CE5*(1+$AK$4)*(1+$O$4),"") ->  | DQ5: =IF(DQ$3<=datosB!$E$9,$CE5*(1+$AK$4)*(1+$O$4),"") ->  | DR5: =IF(DR$3<=datosB!$E$9,$CE5*(1+$AK$4)*(1+$O$4),"") ->  | DS5: =IF(DS$3<=datosB!$E$9,$CE5*(1+$AK$4)*(1+$O$4),"") ->  | DT5: =IF(DT$3<=datosB!$E$9,$CE5*(1+$AK$4)*(1+$O$4),"") ->  | DU5: =IF(DU$3<=datosB!$E$9,$CE5*(1+$AK$4)*(1+$O$4),"") ->  | DX5: =SUM(DY5:FQ5) ->  | DY5: =+$N5*(1+$AT5) ->  | DZ5: =IF(DZ$3<=datosB!$E$9,$DY5*(1+$AT$4)*(1+$O$4),"") ->  | EA5: =IF(EA$3<=datosB!$E$9,DZ5*(1+$AT$4)*(1+$O$4),"") ->  | EB5: =IF(EB$3<=datosB!$E$9,EA5*(1+$AT$4)*(1+$O$4),"") ->  | EC5: =IF(EC$3<=datosB!$E$9,EB5*(1+$AT$4)*(1+$O$4),"") ->  | ED5: =IF(ED$3<=datosB!$E$9,EC5*(1+$AT$4)*(1+$O$4),"") ->  | EE5: =IF(EE$3<=datosB!$E$9,ED5*(1+$AT$4)*(1+$O$4),"") ->  | EF5: =IF(EF$3<=datosB!$E$9,EE5*(1+$AT$4)*(1+$O$4),"") ->  | EG5: =IF(EG$3<=datosB!$E$9,EF5*(1+$AT$4)*(1+$O$4),"") ->  | EH5: =IF(EH$3<=datosB!$E$9,EG5*(1+$AT$4)*(1+$O$4),"") ->  | EI5: =IF(EI$3<=datosB!$E$9,EH5*(1+$AT$4)*(1+$O$4),"") ->  | EJ5: =IF(EJ$3<=datosB!$E$9,EI5*(1+$AT$4)*(1+$O$4),"") ->  | EK5: =IF(EK$3<=datosB!$E$9,EJ5*(1+$AT$4)*(1+$O$4),"") ->  | EL5: =IF(EL$3<=datosB!$E$9,EK5*(1+$AT$4)*(1+$O$4),"") ->  | EM5: =IF(EM$3<=datosB!$E$9,EL5*(1+$AT$4)*(1+$O$4),"") ->  | EN5: =IF(EN$3<=datosB!$E$9,EM5*(1+$AT$4)*(1+$O$4),"") ->  | EO5: =IF(EO$3<=datosB!$E$9,EN5*(1+$AT$4)*(1+$O$4),"") ->  | EP5: =IF(EP$3<=datosB!$E$9,EO5*(1+$AT$4)*(1+$O$4),"") ->  | EQ5: =IF(EQ$3<=datosB!$E$9,EP5*(1+$AT$4)*(1+$O$4),"") ->  | ER5: =IF(ER$3<=datosB!$E$9,EQ5*(1+$AT$4)*(1+$O$4),"") ->  | ES5: =IF(ES$3<=datosB!$E$9,ER5*(1+$AT$4)*(1+$O$4),"") ->  | ET5: =IF(ET$3<=datosB!$E$9,ES5*(1+$AT$4)*(1+$O$4),"") ->  | EU5: =IF(EU$3<=datosB!$E$9,ET5*(1+$AT$4)*(1+$O$4),"") ->  | EV5: =IF(EV$3<=datosB!$E$9,EU5*(1+$AT$4)*(1+$O$4),"") ->  | EW5: =IF(EW$3<=datosB!$E$9,EV5*(1+$AT$4)*(1+$O$4),"") ->  | EX5: =IF(EX$3<=datosB!$E$9,EW5*(1+$AT$4)*(1+$O$4),"") ->  | EY5: =IF(EY$3<=datosB!$E$9,EX5*(1+$AT$4)*(1+$O$4),"") ->  | EZ5: =IF(EZ$3<=datosB!$E$9,EY5*(1+$AT$4)*(1+$O$4),"") ->  | FA5: =IF(FA$3<=datosB!$E$9,EZ5*(1+$AT$4)*(1+$O$4),"") ->  | FB5: =IF(FB$3<=datosB!$E$9,FA5*(1+$AT$4)*(1+$O$4),"") ->  | FC5: =IF(FC$3<=datosB!$E$9,FB5*(1+$AT$4)*(1+$O$4),"") ->  | FD5: =IF(FD$3<=datosB!$E$9,FC5*(1+$AT$4)*(1+$O$4),"") ->  | FE5: =IF(FE$3<=datosB!$E$9,FD5*(1+$AT$4)*(1+$O$4),"") ->  | FF5: =IF(FF$3<=datosB!$E$9,FE5*(1+$AT$4)*(1+$O$4),"") ->  | FG5: =IF(FG$3<=datosB!$E$9,FF5*(1+$AT$4)*(1+$O$4),"") ->  | FH5: =IF(FH$3<=datosB!$E$9,FG5*(1+$AT$4)*(1+$O$4),"") ->  | FI5: =IF(FI$3<=datosB!$E$9,FH5*(1+$AT$4)*(1+$O$4),"") ->  | FJ5: =IF(FJ$3<=datosB!$E$9,FI5*(1+$AT$4)*(1+$O$4),"") ->  | FK5: =IF(FK$3<=datosB!$E$9,FJ5*(1+$AT$4)*(1+$O$4),"") ->  | FL5: =IF(FL$3<=datosB!$E$9,FK5*(1+$AT$4)*(1+$O$4),"") ->  | FM5: =IF(FM$3<=datosB!$E$9,FL5*(1+$AT$4)*(1+$O$4),"") ->  | FN5: =IF(FN$3<=datosB!$E$9,FM5*(1+$AT$4)*(1+$O$4),"") ->  | FO5: =IF(FO$3<=datosB!$E$9,FN5*(1+$AT$4)*(1+$O$4),"") ->  | FP5: =IF(FP$3<=datosB!$E$9,FO5*(1+$AT$4)*(1+$O$4),"") ->  | FQ5: =IF(FQ$3<=datosB!$E$9,FP5*(1+$AT$4)*(1+$O$4),"") -> 
A6: CODENSA | M6: =SUMIFS(Formulario3!$O$3:$O$50000,Formulario3!$R$3:$R$50000,Formulario6_Res!$B6) -> 0 | N6: =SUMIFS(Formulario3!$V$3:$V$50000,Formulario3!$R$3:$R$50000,Formulario6_Res!$B6)*datosB!$E$7 -> 0 | O6: 0 | Y6: =VLOOKUP($A6,CU_OR!$A$3:$Z$31,11,FALSE) -> 469.226695 | AC6: =VLOOKUP($A6,CU_OR!$A$3:$M$31,12,FALSE) -> 0.0244 | AD6: =VLOOKUP($A6,CU_OR!$A$3:$M$31,13,FALSE) -> 9.815286885 | AF6: =+AI6+AR6+BA6 -> 0 | AG6: =+AJ6+AS6+BB6 ->  | AI6: =SUMIFS(Formulario5_UC!$M$4:$M$29994,Formulario5_UC!$B$4:$B$29994,Formulario6_Res!$B6,Formulario5_UC!$C$4:$C$29994,Formulario6_Res!$AI$2) -> 0 | AJ6: =SUMIFS(Formulario5_UC!$BK$4:$BK$29994,Formulario5_UC!$B$4:$B$29994,Formulario6_Res!$B6,Formulario5_UC!$C$4:$C$29994,Formulario6_Res!$AI$2)*0+AN6+AS6 ->  | AK6: =VLOOKUP(A$4,CU_OR!$A$3:$Z$31,15,FALSE) ->  | AL6: =$CB6 ->  | AM6: =PMT(datosB!$E$6,datosB!$E$13,-Formulario6_Res!$AI6) -> 0 | AN6: =+VLOOKUP(A$4,CU_OR!$A$3:$Z$31,13,FALSE)*$N6 ->  | AO6: =+($AM6+$AN6)/($N6*(1+$AK6)) ->  | AP6: =VLOOKUP($A6,CU_OR!$A$3:$M$31,7,FALSE) -> 49.13213552 | AR6: =SUMIFS(Formulario5_UC!$M$4:$M$29994,Formulario5_UC!$B$4:$B$29994,Formulario6_Res!$B6,Formulario5_UC!$C$4:$C$29994,Formulario6_Res!$AR$2) -> 0 | AS6: =SUMIFS(Formulario5_UC!$BK$4:$BK$29994,Formulario5_UC!$B$4:$B$29994,Formulario6_Res!$B6,Formulario5_UC!$C$4:$C$29994,Formulario6_Res!$AR$2) -> 0 | AT6: =VLOOKUP(A$4,CU_OR!$A$3:$Z$31,16,FALSE) ->  | AU6: =$DX6 ->  | AV6: =PMT(datosB!$E$6,datosB!$E$14,-Formulario6_Res!$AR6) -> 0 | AW6: =PMT(datosB!$E$6,datosB!$E$14,-Formulario6_Res!$AS6) -> 0 | AX6: =+(AV6+AW6)/(N6*(1+$AT6)) ->  | AY6: =VLOOKUP($A6,CU_OR!$A$3:$M$31,6,FALSE) -> 65.17149256 | BI6: =+$AF6/$M6 ->  | BK6: =VLOOKUP(A$4,CU_OR!$A$3:$Z$31,18,FALSE)+AX6+AO6 ->  | CB6: =SUM(CC6:DU6) ->  | CC6: =+$N6*(1+$AK6) ->  | CD6: =IF(CD$3<=datosB!$E$9,$CC6*(1+$AK$4)*(1+$O$4),"") ->  | CE6: =IF(CE$3<=datosB!$E$9,$CD6*(1+$AK$4)*(1+$O$4),"") ->  | CF6: =IF(CF$3<=datosB!$E$9,$CE6*(1+$AK$4)*(1+$O$4),"") ->  | CG6: =IF(CG$3<=datosB!$E$9,$CE6*(1+$AK$4)*(1+$O$4),"") ->  | CH6: =IF(CH$3<=datosB!$E$9,$CE6*(1+$AK$4)*(1+$O$4),"") ->  | CI6: =IF(CI$3<=datosB!$E$9,$CE6*(1+$AK$4)*(1+$O$4),"") ->  | CJ6: =IF(CJ$3<=datosB!$E$9,$CE6*(1+$AK$4)*(1+$O$4),"") ->  | CK6: =IF(CK$3<=datosB!$E$9,$CE6*(1+$AK$4)*(1+$O$4),"") ->  | CL6: =IF(CL$3<=datosB!$E$9,$CE6*(1+$AK$4)*(1+$O$4),"") ->  | CM6: =IF(CM$3<=datosB!$E$9,$CE6*(1+$AK$4)*(1+$O$4),"") ->  | CN6: =IF(CN$3<=datosB!$E$9,$CE6*(1+$AK$4)*(1+$O$4),"") ->  | CO6: =IF(CO$3<=datosB!$E$9,$CE6*(1+$AK$4)*(1+$O$4),"") ->  | CP6: =IF(CP$3<=datosB!$E$9,$CE6*(1+$AK$4)*(1+$O$4),"") ->  | CQ6: =IF(CQ$3<=datosB!$E$9,$CE6*(1+$AK$4)*(1+$O$4),"") ->  | CR6: =IF(CR$3<=datosB!$E$9,$CE6*(1+$AK$4)*(1+$O$4),"") ->  | CS6: =IF(CS$3<=datosB!$E$9,$CE6*(1+$AK$4)*(1+$O$4),"") ->  | CT6: =IF(CT$3<=datosB!$E$9,$CE6*(1+$AK$4)*(1+$O$4),"") ->  | CU6: =IF(CU$3<=datosB!$E$9,$CE6*(1+$AK$4)*(1+$O$4),"") ->  | CV6: =IF(CV$3<=datosB!$E$9,$CE6*(1+$AK$4)*(1+$O$4),"") ->  | CW6: =IF(CW$3<=datosB!$E$9,$CE6*(1+$AK$4)*(1+$O$4),"") ->  | CX6: =IF(CX$3<=datosB!$E$9,$CE6*(1+$AK$4)*(1+$O$4),"") ->  | CY6: =IF(CY$3<=datosB!$E$9,$CE6*(1+$AK$4)*(1+$O$4),"") ->  | CZ6: =IF(CZ$3<=datosB!$E$9,$CE6*(1+$AK$4)*(1+$O$4),"") ->  | DA6: =IF(DA$3<=datosB!$E$9,$CE6*(1+$AK$4)*(1+$O$4),"") ->  | DB6: =IF(DB$3<=datosB!$E$9,$CE6*(1+$AK$4)*(1+$O$4),"") ->  | DC6: =IF(DC$3<=datosB!$E$9,$CE6*(1+$AK$4)*(1+$O$4),"") ->  | DD6: =IF(DD$3<=datosB!$E$9,$CE6*(1+$AK$4)*(1+$O$4),"") ->  | DE6: =IF(DE$3<=datosB!$E$9,$CE6*(1+$AK$4)*(1+$O$4),"") ->  | DF6: =IF(DF$3<=datosB!$E$9,$CE6*(1+$AK$4)*(1+$O$4),"") ->  | DG6: =IF(DG$3<=datosB!$E$9,$CE6*(1+$AK$4)*(1+$O$4),"") ->  | DH6: =IF(DH$3<=datosB!$E$9,$CE6*(1+$AK$4)*(1+$O$4),"") ->  | DI6: =IF(DI$3<=datosB!$E$9,$CE6*(1+$AK$4)*(1+$O$4),"") ->  | DJ6: =IF(DJ$3<=datosB!$E$9,$CE6*(1+$AK$4)*(1+$O$4),"") ->  | DK6: =IF(DK$3<=datosB!$E$9,$CE6*(1+$AK$4)*(1+$O$4),"") ->  | DL6: =IF(DL$3<=datosB!$E$9,$CE6*(1+$AK$4)*(1+$O$4),"") ->  | DM6: =IF(DM$3<=datosB!$E$9,$CE6*(1+$AK$4)*(1+$O$4),"") ->  | DN6: =IF(DN$3<=datosB!$E$9,$CE6*(1+$AK$4)*(1+$O$4),"") ->  | DO6: =IF(DO$3<=datosB!$E$9,$CE6*(1+$AK$4)*(1+$O$4),"") ->  | DP6: =IF(DP$3<=datosB!$E$9,$CE6*(1+$AK$4)*(1+$O$4),"") ->  | DQ6: =IF(DQ$3<=datosB!$E$9,$CE6*(1+$AK$4)*(1+$O$4),"") ->  | DR6: =IF(DR$3<=datosB!$E$9,$CE6*(1+$AK$4)*(1+$O$4),"") ->  | DS6: =IF(DS$3<=datosB!$E$9,$CE6*(1+$AK$4)*(1+$O$4),"") ->  | DT6: =IF(DT$3<=datosB!$E$9,$CE6*(1+$AK$4)*(1+$O$4),"") ->  | DU6: =IF(DU$3<=datosB!$E$9,$CE6*(1+$AK$4)*(1+$O$4),"") ->  | DX6: =SUM(DY6:FQ6) ->  | DY6: =+$N6*(1+$AT6) ->  | DZ6: =IF(DZ$3<=datosB!$E$9,$DY6*(1+$AT$4)*(1+$O$4),"") ->  | EA6: =IF(EA$3<=datosB!$E$9,DZ6*(1+$AT$4)*(1+$O$4),"") ->  | EB6: =IF(EB$3<=datosB!$E$9,EA6*(1+$AT$4)*(1+$O$4),"") ->  | EC6: =IF(EC$3<=datosB!$E$9,EB6*(1+$AT$4)*(1+$O$4),"") ->  | ED6: =IF(ED$3<=datosB!$E$9,EC6*(1+$AT$4)*(1+$O$4),"") ->  | EE6: =IF(EE$3<=datosB!$E$9,ED6*(1+$AT$4)*(1+$O$4),"") ->  | EF6: =IF(EF$3<=datosB!$E$9,EE6*(1+$AT$4)*(1+$O$4),"") ->  | EG6: =IF(EG$3<=datosB!$E$9,EF6*(1+$AT$4)*(1+$O$4),"") ->  | EH6: =IF(EH$3<=datosB!$E$9,EG6*(1+$AT$4)*(1+$O$4),"") ->  | EI6: =IF(EI$3<=datosB!$E$9,EH6*(1+$AT$4)*(1+$O$4),"") ->  | EJ6: =IF(EJ$3<=datosB!$E$9,EI6*(1+$AT$4)*(1+$O$4),"") ->  | EK6: =IF(EK$3<=datosB!$E$9,EJ6*(1+$AT$4)*(1+$O$4),"") ->  | EL6: =IF(EL$3<=datosB!$E$9,EK6*(1+$AT$4)*(1+$O$4),"") ->  | EM6: =IF(EM$3<=datosB!$E$9,EL6*(1+$AT$4)*(1+$O$4),"") ->  | EN6: =IF(EN$3<=datosB!$E$9,EM6*(1+$AT$4)*(1+$O$4),"") ->  | EO6: =IF(EO$3<=datosB!$E$9,EN6*(1+$AT$4)*(1+$O$4),"") ->  | EP6: =IF(EP$3<=datosB!$E$9,EO6*(1+$AT$4)*(1+$O$4),"") ->  | EQ6: =IF(EQ$3<=datosB!$E$9,EP6*(1+$AT$4)*(1+$O$4),"") ->  | ER6: =IF(ER$3<=datosB!$E$9,EQ6*(1+$AT$4)*(1+$O$4),"") ->  | ES6: =IF(ES$3<=datosB!$E$9,ER6*(1+$AT$4)*(1+$O$4),"") ->  | ET6: =IF(ET$3<=datosB!$E$9,ES6*(1+$AT$4)*(1+$O$4),"") ->  | EU6: =IF(EU$3<=datosB!$E$9,ET6*(1+$AT$4)*(1+$O$4),"") ->  | EV6: =IF(EV$3<=datosB!$E$9,EU6*(1+$AT$4)*(1+$O$4),"") ->  | EW6: =IF(EW$3<=datosB!$E$9,EV6*(1+$AT$4)*(1+$O$4),"") ->  | EX6: =IF(EX$3<=datosB!$E$9,EW6*(1+$AT$4)*(1+$O$4),"") ->  | EY6: =IF(EY$3<=datosB!$E$9,EX6*(1+$AT$4)*(1+$O$4),"") ->  | EZ6: =IF(EZ$3<=datosB!$E$9,EY6*(1+$AT$4)*(1+$O$4),"") ->  | FA6: =IF(FA$3<=datosB!$E$9,EZ6*(1+$AT$4)*(1+$O$4),"") ->  | FB6: =IF(FB$3<=datosB!$E$9,FA6*(1+$AT$4)*(1+$O$4),"") ->  | FC6: =IF(FC$3<=datosB!$E$9,FB6*(1+$AT$4)*(1+$O$4),"") ->  | FD6: =IF(FD$3<=datosB!$E$9,FC6*(1+$AT$4)*(1+$O$4),"") ->  | FE6: =IF(FE$3<=datosB!$E$9,FD6*(1+$AT$4)*(1+$O$4),"") ->  | FF6: =IF(FF$3<=datosB!$E$9,FE6*(1+$AT$4)*(1+$O$4),"") ->  | FG6: =IF(FG$3<=datosB!$E$9,FF6*(1+$AT$4)*(1+$O$4),"") ->  | FH6: =IF(FH$3<=datosB!$E$9,FG6*(1+$AT$4)*(1+$O$4),"") ->  | FI6: =IF(FI$3<=datosB!$E$9,FH6*(1+$AT$4)*(1+$O$4),"") ->  | FJ6: =IF(FJ$3<=datosB!$E$9,FI6*(1+$AT$4)*(1+$O$4),"") ->  | FK6: =IF(FK$3<=datosB!$E$9,FJ6*(1+$AT$4)*(1+$O$4),"") ->  | FL6: =IF(FL$3<=datosB!$E$9,FK6*(1+$AT$4)*(1+$O$4),"") ->  | FM6: =IF(FM$3<=datosB!$E$9,FL6*(1+$AT$4)*(1+$O$4),"") ->  | FN6: =IF(FN$3<=datosB!$E$9,FM6*(1+$AT$4)*(1+$O$4),"") ->  | FO6: =IF(FO$3<=datosB!$E$9,FN6*(1+$AT$4)*(1+$O$4),"") ->  | FP6: =IF(FP$3<=datosB!$E$9,FO6*(1+$AT$4)*(1+$O$4),"") ->  | FQ6: =IF(FQ$3<=datosB!$E$9,FP6*(1+$AT$4)*(1+$O$4),"") -> 
M7: =SUMIFS(Formulario3!$O$3:$O$50000,Formulario3!$R$3:$R$50000,Formulario6_Res!$B7) -> 0 | N7: =SUMIFS(Formulario3!$V$3:$V$50000,Formulario3!$R$3:$R$50000,Formulario6_Res!$B7)*datosB!$E$7 -> 0 | O7: 0 | Y7: =VLOOKUP($A7,CU_OR!$A$3:$Z$31,11,FALSE) ->  | AC7: =VLOOKUP($A7,CU_OR!$A$3:$M$31,12,FALSE) ->  | AD7: =VLOOKUP($A7,CU_OR!$A$3:$M$31,13,FALSE) ->  | AF7: 0 | AI7: =SUMIFS(Formulario5_UC!$M$4:$M$29994,Formulario5_UC!$B$4:$B$29994,Formulario6_Res!$B7,Formulario5_UC!$C$4:$C$29994,Formulario6_Res!$AI$2) -> 0 | AJ7: =SUMIFS(Formulario5_UC!$BK$4:$BK$29994,Formulario5_UC!$B$4:$B$29994,Formulario6_Res!$B7,Formulario5_UC!$C$4:$C$29994,Formulario6_Res!$AI$2)*0+AN7+AS7 ->  | AK7: =VLOOKUP(A$4,CU_OR!$A$3:$Z$31,15,FALSE) ->  | AM7: =PMT(datosB!$E$6,datosB!$E$13,-Formulario6_Res!$AI7) -> 0 | AN7: =+VLOOKUP(A$4,CU_OR!$A$3:$Z$31,13,FALSE)*$N7*0+(N7*CU_OR!M28) ->  | AO7: =+($AM7+$AN7)/($N7*(1+$AK7)) ->  | AP7: =VLOOKUP($A7,CU_OR!$A$3:$M$31,7,FALSE) ->  | AR7: =SUMIFS(Formulario5_UC!$M$4:$M$29994,Formulario5_UC!$B$4:$B$29994,Formulario6_Res!$B7,Formulario5_UC!$C$4:$C$29994,Formulario6_Res!$AR$2) -> 0 | AS7: =SUMIFS(Formulario5_UC!$BK$4:$BK$29994,Formulario5_UC!$B$4:$B$29994,Formulario6_Res!$B7,Formulario5_UC!$C$4:$C$29994,Formulario6_Res!$AR$2) -> 0 | AT7: =VLOOKUP(A$4,CU_OR!$A$3:$Z$31,16,FALSE) ->  | AV7: =PMT(datosB!$E$6,datosB!$E$14,-Formulario6_Res!$AR7) -> 0 | AW7: =PMT(datosB!$E$6,datosB!$E$14,-Formulario6_Res!$AS7) -> 0 | AY7: =VLOOKUP($A7,CU_OR!$A$3:$M$31,6,FALSE) ->  | BK7: =VLOOKUP(A$4,CU_OR!$A$3:$Z$31,18,FALSE)+AX7+AO7 ->  | CD7: =IF(CD$3<=datosB!$E$9,$CC7*(1+$AK$4)*(1+$O$4),"") ->  | CE7: =IF(CE$3<=datosB!$E$9,$CD7*(1+$AK$4)*(1+$O$4),"") ->  | CF7: =IF(CF$3<=datosB!$E$9,$CE7*(1+$AK$4)*(1+$O$4),"") ->  | CG7: =IF(CG$3<=datosB!$E$9,$CE7*(1+$AK$4)*(1+$O$4),"") ->  | CH7: =IF(CH$3<=datosB!$E$9,$CE7*(1+$AK$4)*(1+$O$4),"") ->  | CI7: =IF(CI$3<=datosB!$E$9,$CE7*(1+$AK$4)*(1+$O$4),"") ->  | CJ7: =IF(CJ$3<=datosB!$E$9,$CE7*(1+$AK$4)*(1+$O$4),"") ->  | CK7: =IF(CK$3<=datosB!$E$9,$CE7*(1+$AK$4)*(1+$O$4),"") ->  | CL7: =IF(CL$3<=datosB!$E$9,$CE7*(1+$AK$4)*(1+$O$4),"") ->  | CM7: =IF(CM$3<=datosB!$E$9,$CE7*(1+$AK$4)*(1+$O$4),"") ->  | CN7: =IF(CN$3<=datosB!$E$9,$CE7*(1+$AK$4)*(1+$O$4),"") ->  | CO7: =IF(CO$3<=datosB!$E$9,$CE7*(1+$AK$4)*(1+$O$4),"") ->  | CP7: =IF(CP$3<=datosB!$E$9,$CE7*(1+$AK$4)*(1+$O$4),"") ->  | CQ7: =IF(CQ$3<=datosB!$E$9,$CE7*(1+$AK$4)*(1+$O$4),"") ->  | CR7: =IF(CR$3<=datosB!$E$9,$CE7*(1+$AK$4)*(1+$O$4),"") ->  | CS7: =IF(CS$3<=datosB!$E$9,$CE7*(1+$AK$4)*(1+$O$4),"") ->  | CT7: =IF(CT$3<=datosB!$E$9,$CE7*(1+$AK$4)*(1+$O$4),"") ->  | CU7: =IF(CU$3<=datosB!$E$9,$CE7*(1+$AK$4)*(1+$O$4),"") ->  | CV7: =IF(CV$3<=datosB!$E$9,$CE7*(1+$AK$4)*(1+$O$4),"") ->  | CW7: =IF(CW$3<=datosB!$E$9,$CE7*(1+$AK$4)*(1+$O$4),"") ->  | CX7: =IF(CX$3<=datosB!$E$9,$CE7*(1+$AK$4)*(1+$O$4),"") ->  | CY7: =IF(CY$3<=datosB!$E$9,$CE7*(1+$AK$4)*(1+$O$4),"") ->  | CZ7: =IF(CZ$3<=datosB!$E$9,$CE7*(1+$AK$4)*(1+$O$4),"") ->  | DA7: =IF(DA$3<=datosB!$E$9,$CE7*(1+$AK$4)*(1+$O$4),"") ->  | DB7: =IF(DB$3<=datosB!$E$9,$CE7*(1+$AK$4)*(1+$O$4),"") ->  | DC7: =IF(DC$3<=datosB!$E$9,$CE7*(1+$AK$4)*(1+$O$4),"") ->  | DD7: =IF(DD$3<=datosB!$E$9,$CE7*(1+$AK$4)*(1+$O$4),"") ->  | DE7: =IF(DE$3<=datosB!$E$9,$CE7*(1+$AK$4)*(1+$O$4),"") ->  | DF7: =IF(DF$3<=datosB!$E$9,$CE7*(1+$AK$4)*(1+$O$4),"") ->  | DG7: =IF(DG$3<=datosB!$E$9,$CE7*(1+$AK$4)*(1+$O$4),"") ->  | DH7: =IF(DH$3<=datosB!$E$9,$CE7*(1+$AK$4)*(1+$O$4),"") ->  | DI7: =IF(DI$3<=datosB!$E$9,$CE7*(1+$AK$4)*(1+$O$4),"") ->  | DJ7: =IF(DJ$3<=datosB!$E$9,$CE7*(1+$AK$4)*(1+$O$4),"") ->  | DK7: =IF(DK$3<=datosB!$E$9,$CE7*(1+$AK$4)*(1+$O$4),"") ->  | DL7: =IF(DL$3<=datosB!$E$9,$CE7*(1+$AK$4)*(1+$O$4),"") ->  | DM7: =IF(DM$3<=datosB!$E$9,$CE7*(1+$AK$4)*(1+$O$4),"") ->  | DN7: =IF(DN$3<=datosB!$E$9,$CE7*(1+$AK$4)*(1+$O$4),"") ->  | DO7: =IF(DO$3<=datosB!$E$9,$CE7*(1+$AK$4)*(1+$O$4),"") ->  | DP7: =IF(DP$3<=datosB!$E$9,$CE7*(1+$AK$4)*(1+$O$4),"") ->  | DQ7: =IF(DQ$3<=datosB!$E$9,$CE7*(1+$AK$4)*(1+$O$4),"") ->  | DR7: =IF(DR$3<=datosB!$E$9,$CE7*(1+$AK$4)*(1+$O$4),"") ->  | DS7: =IF(DS$3<=datosB!$E$9,$CE7*(1+$AK$4)*(1+$O$4),"") ->  | DT7: =IF(DT$3<=datosB!$E$9,$CE7*(1+$AK$4)*(1+$O$4),"") ->  | DU7: =IF(DU$3<=datosB!$E$9,$CE7*(1+$AK$4)*(1+$O$4),"") ->  | DZ7: =IF(DZ$3<=datosB!$E$9,$DY7*(1+$AT$4)*(1+$O$4),"") ->  | EA7: =IF(EA$3<=datosB!$E$9,DZ7*(1+$AT$4)*(1+$O$4),"") ->  | EB7: =IF(EB$3<=datosB!$E$9,EA7*(1+$AT$4)*(1+$O$4),"") ->  | EC7: =IF(EC$3<=datosB!$E$9,EB7*(1+$AT$4)*(1+$O$4),"") ->  | ED7: =IF(ED$3<=datosB!$E$9,EC7*(1+$AT$4)*(1+$O$4),"") ->  | EE7: =IF(EE$3<=datosB!$E$9,ED7*(1+$AT$4)*(1+$O$4),"") ->  | EF7: =IF(EF$3<=datosB!$E$9,EE7*(1+$AT$4)*(1+$O$4),"") ->  | EG7: =IF(EG$3<=datosB!$E$9,EF7*(1+$AT$4)*(1+$O$4),"") ->  | EH7: =IF(EH$3<=datosB!$E$9,EG7*(1+$AT$4)*(1+$O$4),"") ->  | EI7: =IF(EI$3<=datosB!$E$9,EH7*(1+$AT$4)*(1+$O$4),"") ->  | EJ7: =IF(EJ$3<=datosB!$E$9,EI7*(1+$AT$4)*(1+$O$4),"") ->  | EK7: =IF(EK$3<=datosB!$E$9,EJ7*(1+$AT$4)*(1+$O$4),"") ->  | EL7: =IF(EL$3<=datosB!$E$9,EK7*(1+$AT$4)*(1+$O$4),"") ->  | EM7: =IF(EM$3<=datosB!$E$9,EL7*(1+$AT$4)*(1+$O$4),"") ->  | EN7: =IF(EN$3<=datosB!$E$9,EM7*(1+$AT$4)*(1+$O$4),"") ->  | EO7: =IF(EO$3<=datosB!$E$9,EN7*(1+$AT$4)*(1+$O$4),"") ->  | EP7: =IF(EP$3<=datosB!$E$9,EO7*(1+$AT$4)*(1+$O$4),"") ->  | EQ7: =IF(EQ$3<=datosB!$E$9,EP7*(1+$AT$4)*(1+$O$4),"") ->  | ER7: =IF(ER$3<=datosB!$E$9,EQ7*(1+$AT$4)*(1+$O$4),"") ->  | ES7: =IF(ES$3<=datosB!$E$9,ER7*(1+$AT$4)*(1+$O$4),"") ->  | ET7: =IF(ET$3<=datosB!$E$9,ES7*(1+$AT$4)*(1+$O$4),"") ->  | EU7: =IF(EU$3<=datosB!$E$9,ET7*(1+$AT$4)*(1+$O$4),"") ->  | EV7: =IF(EV$3<=datosB!$E$9,EU7*(1+$AT$4)*(1+$O$4),"") ->  | EW7: =IF(EW$3<=datosB!$E$9,EV7*(1+$AT$4)*(1+$O$4),"") ->  | EX7: =IF(EX$3<=datosB!$E$9,EW7*(1+$AT$4)*(1+$O$4),"") ->  | EY7: =IF(EY$3<=datosB!$E$9,EX7*(1+$AT$4)*(1+$O$4),"") ->  | EZ7: =IF(EZ$3<=datosB!$E$9,EY7*(1+$AT$4)*(1+$O$4),"") ->  | FA7: =IF(FA$3<=datosB!$E$9,EZ7*(1+$AT$4)*(1+$O$4),"") ->  | FB7: =IF(FB$3<=datosB!$E$9,FA7*(1+$AT$4)*(1+$O$4),"") ->  | FC7: =IF(FC$3<=datosB!$E$9,FB7*(1+$AT$4)*(1+$O$4),"") ->  | FD7: =IF(FD$3<=datosB!$E$9,FC7*(1+$AT$4)*(1+$O$4),"") ->  | FE7: =IF(FE$3<=datosB!$E$9,FD7*(1+$AT$4)*(1+$O$4),"") ->  | FF7: =IF(FF$3<=datosB!$E$9,FE7*(1+$AT$4)*(1+$O$4),"") ->  | FG7: =IF(FG$3<=datosB!$E$9,FF7*(1+$AT$4)*(1+$O$4),"") ->  | FH7: =IF(FH$3<=datosB!$E$9,FG7*(1+$AT$4)*(1+$O$4),"") ->  | FI7: =IF(FI$3<=datosB!$E$9,FH7*(1+$AT$4)*(1+$O$4),"") ->  | FJ7: =IF(FJ$3<=datosB!$E$9,FI7*(1+$AT$4)*(1+$O$4),"") ->  | FK7: =IF(FK$3<=datosB!$E$9,FJ7*(1+$AT$4)*(1+$O$4),"") ->  | FL7: =IF(FL$3<=datosB!$E$9,FK7*(1+$AT$4)*(1+$O$4),"") ->  | FM7: =IF(FM$3<=datosB!$E$9,FL7*(1+$AT$4)*(1+$O$4),"") ->  | FN7: =IF(FN$3<=datosB!$E$9,FM7*(1+$AT$4)*(1+$O$4),"") ->  | FO7: =IF(FO$3<=datosB!$E$9,FN7*(1+$AT$4)*(1+$O$4),"") ->  | FP7: =IF(FP$3<=datosB!$E$9,FO7*(1+$AT$4)*(1+$O$4),"") ->  | FQ7: =IF(FQ$3<=datosB!$E$9,FP7*(1+$AT$4)*(1+$O$4),"") -> 
M8: =SUMIFS(Formulario3!$O$3:$O$50000,Formulario3!$R$3:$R$50000,Formulario6_Res!$B8) -> 0 | N8: =SUMIFS(Formulario3!$V$3:$V$50000,Formulario3!$R$3:$R$50000,Formulario6_Res!$B8)*datosB!$E$7 -> 0 | O8: 0 | Y8: =VLOOKUP($A8,CU_OR!$A$3:$Z$31,11,FALSE) ->  | AC8: =VLOOKUP($A8,CU_OR!$A$3:$M$31,12,FALSE) ->  | AD8: =VLOOKUP($A8,CU_OR!$A$3:$M$31,13,FALSE) ->  | AF8: 0 | AI8: =SUMIFS(Formulario5_UC!$M$4:$M$29994,Formulario5_UC!$B$4:$B$29994,Formulario6_Res!$B8,Formulario5_UC!$C$4:$C$29994,Formulario6_Res!$AI$2) -> 0 | AJ8: =SUMIFS(Formulario5_UC!$BK$4:$BK$29994,Formulario5_UC!$B$4:$B$29994,Formulario6_Res!$B8,Formulario5_UC!$C$4:$C$29994,Formulario6_Res!$AI$2)*0+AN8+AS8 ->  | AK8: =VLOOKUP(A$4,CU_OR!$A$3:$Z$31,15,FALSE) ->  | AM8: =PMT(datosB!$E$6,datosB!$E$13,-Formulario6_Res!$AI8) -> 0 | AN8: =+VLOOKUP(A$4,CU_OR!$A$3:$Z$31,13,FALSE)*$N8*0+(N8*CU_OR!M29) ->  | AP8: =VLOOKUP($A8,CU_OR!$A$3:$M$31,7,FALSE) ->  | AR8: =SUMIFS(Formulario5_UC!$M$4:$M$29994,Formulario5_UC!$B$4:$B$29994,Formulario6_Res!$B8,Formulario5_UC!$C$4:$C$29994,Formulario6_Res!$AR$2) -> 0 | AS8: =SUMIFS(Formulario5_UC!$BK$4:$BK$29994,Formulario5_UC!$B$4:$B$29994,Formulario6_Res!$B8,Formulario5_UC!$C$4:$C$29994,Formulario6_Res!$AR$2) -> 0 | AT8: =VLOOKUP(A$4,CU_OR!$A$3:$Z$31,16,FALSE) ->  | AV8: =PMT(datosB!$E$6,datosB!$E$14,-Formulario6_Res!$AR8) -> 0 | AW8: =PMT(datosB!$E$6,datosB!$E$14,-Formulario6_Res!$AS8) -> 0 | AY8: =VLOOKUP($A8,CU_OR!$A$3:$M$31,6,FALSE) ->  | BK8: =VLOOKUP(A$4,CU_OR!$A$3:$Z$31,18,FALSE)+AX8+AO8 ->  | CD8: =IF(CD$3<=datosB!$E$9,$CC8*(1+$AK$4)*(1+$O$4),"") ->  | CE8: =IF(CE$3<=datosB!$E$9,$CD8*(1+$AK$4)*(1+$O$4),"") ->  | CF8: =IF(CF$3<=datosB!$E$9,$CE8*(1+$AK$4)*(1+$O$4),"") ->  | CG8: =IF(CG$3<=datosB!$E$9,$CE8*(1+$AK$4)*(1+$O$4),"") ->  | CH8: =IF(CH$3<=datosB!$E$9,$CE8*(1+$AK$4)*(1+$O$4),"") ->  | CI8: =IF(CI$3<=datosB!$E$9,$CE8*(1+$AK$4)*(1+$O$4),"") ->  | CJ8: =IF(CJ$3<=datosB!$E$9,$CE8*(1+$AK$4)*(1+$O$4),"") ->  | CK8: =IF(CK$3<=datosB!$E$9,$CE8*(1+$AK$4)*(1+$O$4),"") ->  | CL8: =IF(CL$3<=datosB!$E$9,$CE8*(1+$AK$4)*(1+$O$4),"") ->  | CM8: =IF(CM$3<=datosB!$E$9,$CE8*(1+$AK$4)*(1+$O$4),"") ->  | CN8: =IF(CN$3<=datosB!$E$9,$CE8*(1+$AK$4)*(1+$O$4),"") ->  | CO8: =IF(CO$3<=datosB!$E$9,$CE8*(1+$AK$4)*(1+$O$4),"") ->  | CP8: =IF(CP$3<=datosB!$E$9,$CE8*(1+$AK$4)*(1+$O$4),"") ->  | CQ8: =IF(CQ$3<=datosB!$E$9,$CE8*(1+$AK$4)*(1+$O$4),"") ->  | CR8: =IF(CR$3<=datosB!$E$9,$CE8*(1+$AK$4)*(1+$O$4),"") ->  | CS8: =IF(CS$3<=datosB!$E$9,$CE8*(1+$AK$4)*(1+$O$4),"") ->  | CT8: =IF(CT$3<=datosB!$E$9,$CE8*(1+$AK$4)*(1+$O$4),"") ->  | CU8: =IF(CU$3<=datosB!$E$9,$CE8*(1+$AK$4)*(1+$O$4),"") ->  | CV8: =IF(CV$3<=datosB!$E$9,$CE8*(1+$AK$4)*(1+$O$4),"") ->  | CW8: =IF(CW$3<=datosB!$E$9,$CE8*(1+$AK$4)*(1+$O$4),"") ->  | CX8: =IF(CX$3<=datosB!$E$9,$CE8*(1+$AK$4)*(1+$O$4),"") ->  | CY8: =IF(CY$3<=datosB!$E$9,$CE8*(1+$AK$4)*(1+$O$4),"") ->  | CZ8: =IF(CZ$3<=datosB!$E$9,$CE8*(1+$AK$4)*(1+$O$4),"") ->  | DA8: =IF(DA$3<=datosB!$E$9,$CE8*(1+$AK$4)*(1+$O$4),"") ->  | DB8: =IF(DB$3<=datosB!$E$9,$CE8*(1+$AK$4)*(1+$O$4),"") ->  | DC8: =IF(DC$3<=datosB!$E$9,$CE8*(1+$AK$4)*(1+$O$4),"") ->  | DD8: =IF(DD$3<=datosB!$E$9,$CE8*(1+$AK$4)*(1+$O$4),"") ->  | DE8: =IF(DE$3<=datosB!$E$9,$CE8*(1+$AK$4)*(1+$O$4),"") ->  | DF8: =IF(DF$3<=datosB!$E$9,$CE8*(1+$AK$4)*(1+$O$4),"") ->  | DG8: =IF(DG$3<=datosB!$E$9,$CE8*(1+$AK$4)*(1+$O$4),"") ->  | DH8: =IF(DH$3<=datosB!$E$9,$CE8*(1+$AK$4)*(1+$O$4),"") ->  | DI8: =IF(DI$3<=datosB!$E$9,$CE8*(1+$AK$4)*(1+$O$4),"") ->  | DJ8: =IF(DJ$3<=datosB!$E$9,$CE8*(1+$AK$4)*(1+$O$4),"") ->  | DK8: =IF(DK$3<=datosB!$E$9,$CE8*(1+$AK$4)*(1+$O$4),"") ->  | DL8: =IF(DL$3<=datosB!$E$9,$CE8*(1+$AK$4)*(1+$O$4),"") ->  | DM8: =IF(DM$3<=datosB!$E$9,$CE8*(1+$AK$4)*(1+$O$4),"") ->  | DN8: =IF(DN$3<=datosB!$E$9,$CE8*(1+$AK$4)*(1+$O$4),"") ->  | DO8: =IF(DO$3<=datosB!$E$9,$CE8*(1+$AK$4)*(1+$O$4),"") ->  | DP8: =IF(DP$3<=datosB!$E$9,$CE8*(1+$AK$4)*(1+$O$4),"") ->  | DQ8: =IF(DQ$3<=datosB!$E$9,$CE8*(1+$AK$4)*(1+$O$4),"") ->  | DR8: =IF(DR$3<=datosB!$E$9,$CE8*(1+$AK$4)*(1+$O$4),"") ->  | DS8: =IF(DS$3<=datosB!$E$9,$CE8*(1+$AK$4)*(1+$O$4),"") ->  | DT8: =IF(DT$3<=datosB!$E$9,$CE8*(1+$AK$4)*(1+$O$4),"") ->  | DU8: =IF(DU$3<=datosB!$E$9,$CE8*(1+$AK$4)*(1+$O$4),"") ->  | DZ8: =IF(DZ$3<=datosB!$E$9,$DY8*(1+$AT$4)*(1+$O$4),"") ->  | EA8: =IF(EA$3<=datosB!$E$9,DZ8*(1+$AT$4)*(1+$O$4),"") ->  | EB8: =IF(EB$3<=datosB!$E$9,EA8*(1+$AT$4)*(1+$O$4),"") ->  | EC8: =IF(EC$3<=datosB!$E$9,EB8*(1+$AT$4)*(1+$O$4),"") ->  | ED8: =IF(ED$3<=datosB!$E$9,EC8*(1+$AT$4)*(1+$O$4),"") ->  | EE8: =IF(EE$3<=datosB!$E$9,ED8*(1+$AT$4)*(1+$O$4),"") ->  | EF8: =IF(EF$3<=datosB!$E$9,EE8*(1+$AT$4)*(1+$O$4),"") ->  | EG8: =IF(EG$3<=datosB!$E$9,EF8*(1+$AT$4)*(1+$O$4),"") ->  | EH8: =IF(EH$3<=datosB!$E$9,EG8*(1+$AT$4)*(1+$O$4),"") ->  | EI8: =IF(EI$3<=datosB!$E$9,EH8*(1+$AT$4)*(1+$O$4),"") ->  | EJ8: =IF(EJ$3<=datosB!$E$9,EI8*(1+$AT$4)*(1+$O$4),"") ->  | EK8: =IF(EK$3<=datosB!$E$9,EJ8*(1+$AT$4)*(1+$O$4),"") ->  | EL8: =IF(EL$3<=datosB!$E$9,EK8*(1+$AT$4)*(1+$O$4),"") ->  | EM8: =IF(EM$3<=datosB!$E$9,EL8*(1+$AT$4)*(1+$O$4),"") ->  | EN8: =IF(EN$3<=datosB!$E$9,EM8*(1+$AT$4)*(1+$O$4),"") ->  | EO8: =IF(EO$3<=datosB!$E$9,EN8*(1+$AT$4)*(1+$O$4),"") ->  | EP8: =IF(EP$3<=datosB!$E$9,EO8*(1+$AT$4)*(1+$O$4),"") ->  | EQ8: =IF(EQ$3<=datosB!$E$9,EP8*(1+$AT$4)*(1+$O$4),"") ->  | ER8: =IF(ER$3<=datosB!$E$9,EQ8*(1+$AT$4)*(1+$O$4),"") ->  | ES8: =IF(ES$3<=datosB!$E$9,ER8*(1+$AT$4)*(1+$O$4),"") ->  | ET8: =IF(ET$3<=datosB!$E$9,ES8*(1+$AT$4)*(1+$O$4),"") ->  | EU8: =IF(EU$3<=datosB!$E$9,ET8*(1+$AT$4)*(1+$O$4),"") ->  | EV8: =IF(EV$3<=datosB!$E$9,EU8*(1+$AT$4)*(1+$O$4),"") ->  | EW8: =IF(EW$3<=datosB!$E$9,EV8*(1+$AT$4)*(1+$O$4),"") ->  | EX8: =IF(EX$3<=datosB!$E$9,EW8*(1+$AT$4)*(1+$O$4),"") ->  | EY8: =IF(EY$3<=datosB!$E$9,EX8*(1+$AT$4)*(1+$O$4),"") ->  | EZ8: =IF(EZ$3<=datosB!$E$9,EY8*(1+$AT$4)*(1+$O$4),"") ->  | FA8: =IF(FA$3<=datosB!$E$9,EZ8*(1+$AT$4)*(1+$O$4),"") ->  | FB8: =IF(FB$3<=datosB!$E$9,FA8*(1+$AT$4)*(1+$O$4),"") ->  | FC8: =IF(FC$3<=datosB!$E$9,FB8*(1+$AT$4)*(1+$O$4),"") ->  | FD8: =IF(FD$3<=datosB!$E$9,FC8*(1+$AT$4)*(1+$O$4),"") ->  | FE8: =IF(FE$3<=datosB!$E$9,FD8*(1+$AT$4)*(1+$O$4),"") ->  | FF8: =IF(FF$3<=datosB!$E$9,FE8*(1+$AT$4)*(1+$O$4),"") ->  | FG8: =IF(FG$3<=datosB!$E$9,FF8*(1+$AT$4)*(1+$O$4),"") ->  | FH8: =IF(FH$3<=datosB!$E$9,FG8*(1+$AT$4)*(1+$O$4),"") ->  | FI8: =IF(FI$3<=datosB!$E$9,FH8*(1+$AT$4)*(1+$O$4),"") ->  | FJ8: =IF(FJ$3<=datosB!$E$9,FI8*(1+$AT$4)*(1+$O$4),"") ->  | FK8: =IF(FK$3<=datosB!$E$9,FJ8*(1+$AT$4)*(1+$O$4),"") ->  | FL8: =IF(FL$3<=datosB!$E$9,FK8*(1+$AT$4)*(1+$O$4),"") ->  | FM8: =IF(FM$3<=datosB!$E$9,FL8*(1+$AT$4)*(1+$O$4),"") ->  | FN8: =IF(FN$3<=datosB!$E$9,FM8*(1+$AT$4)*(1+$O$4),"") ->  | FO8: =IF(FO$3<=datosB!$E$9,FN8*(1+$AT$4)*(1+$O$4),"") ->  | FP8: =IF(FP$3<=datosB!$E$9,FO8*(1+$AT$4)*(1+$O$4),"") ->  | FQ8: =IF(FQ$3<=datosB!$E$9,FP8*(1+$AT$4)*(1+$O$4),"") -> 
M9: =SUMIFS(Formulario3!$O$3:$O$50000,Formulario3!$R$3:$R$50000,Formulario6_Res!$B9) -> 0 | N9: =SUMIFS(Formulario3!$V$3:$V$50000,Formulario3!$R$3:$R$50000,Formulario6_Res!$B9)*datosB!$E$7 -> 0 | O9: 0 | Y9: =VLOOKUP($A9,CU_OR!$A$3:$Z$31,11,FALSE) ->  | AC9: =VLOOKUP($A9,CU_OR!$A$3:$M$31,12,FALSE) ->  | AD9: =VLOOKUP($A9,CU_OR!$A$3:$M$31,13,FALSE) ->  | AF9: 0 | AI9: =SUMIFS(Formulario5_UC!$M$4:$M$29994,Formulario5_UC!$B$4:$B$29994,Formulario6_Res!$B9,Formulario5_UC!$C$4:$C$29994,Formulario6_Res!$AI$2) -> 0 | AJ9: =SUMIFS(Formulario5_UC!$BK$4:$BK$29994,Formulario5_UC!$B$4:$B$29994,Formulario6_Res!$B9,Formulario5_UC!$C$4:$C$29994,Formulario6_Res!$AI$2)*0+AN9+AS9 ->  | AK9: =VLOOKUP(A$4,CU_OR!$A$3:$Z$31,15,FALSE) ->  | AM9: =PMT(datosB!$E$6,datosB!$E$13,-Formulario6_Res!$AI9) -> 0 | AN9: =+VLOOKUP(A$4,CU_OR!$A$3:$Z$31,13,FALSE)*$N9*0+(N9*CU_OR!M30) ->  | AP9: =VLOOKUP($A9,CU_OR!$A$3:$M$31,7,FALSE) ->  | AR9: =SUMIFS(Formulario5_UC!$M$4:$M$29994,Formulario5_UC!$B$4:$B$29994,Formulario6_Res!$B9,Formulario5_UC!$C$4:$C$29994,Formulario6_Res!$AR$2) -> 0 | AS9: =SUMIFS(Formulario5_UC!$BK$4:$BK$29994,Formulario5_UC!$B$4:$B$29994,Formulario6_Res!$B9,Formulario5_UC!$C$4:$C$29994,Formulario6_Res!$AR$2) -> 0 | AT9: =VLOOKUP(A$4,CU_OR!$A$3:$Z$31,16,FALSE) ->  | AV9: =PMT(datosB!$E$6,datosB!$E$14,-Formulario6_Res!$AR9) -> 0 | AW9: =PMT(datosB!$E$6,datosB!$E$14,-Formulario6_Res!$AS9) -> 0 | AY9: =VLOOKUP($A9,CU_OR!$A$3:$M$31,6,FALSE) ->  | BK9: =VLOOKUP(A$4,CU_OR!$A$3:$Z$31,18,FALSE)+AX9+AO9 ->  | CD9: =IF(CD$3<=datosB!$E$9,$CC9*(1+$AK$4)*(1+$O$4),"") ->  | CE9: =IF(CE$3<=datosB!$E$9,$CD9*(1+$AK$4)*(1+$O$4),"") ->  | CF9: =IF(CF$3<=datosB!$E$9,$CE9*(1+$AK$4)*(1+$O$4),"") ->  | CG9: =IF(CG$3<=datosB!$E$9,$CE9*(1+$AK$4)*(1+$O$4),"") ->  | CH9: =IF(CH$3<=datosB!$E$9,$CE9*(1+$AK$4)*(1+$O$4),"") ->  | CI9: =IF(CI$3<=datosB!$E$9,$CE9*(1+$AK$4)*(1+$O$4),"") ->  | CJ9: =IF(CJ$3<=datosB!$E$9,$CE9*(1+$AK$4)*(1+$O$4),"") ->  | CK9: =IF(CK$3<=datosB!$E$9,$CE9*(1+$AK$4)*(1+$O$4),"") ->  | CL9: =IF(CL$3<=datosB!$E$9,$CE9*(1+$AK$4)*(1+$O$4),"") ->  | CM9: =IF(CM$3<=datosB!$E$9,$CE9*(1+$AK$4)*(1+$O$4),"") ->  | CN9: =IF(CN$3<=datosB!$E$9,$CE9*(1+$AK$4)*(1+$O$4),"") ->  | CO9: =IF(CO$3<=datosB!$E$9,$CE9*(1+$AK$4)*(1+$O$4),"") ->  | CP9: =IF(CP$3<=datosB!$E$9,$CE9*(1+$AK$4)*(1+$O$4),"") ->  | CQ9: =IF(CQ$3<=datosB!$E$9,$CE9*(1+$AK$4)*(1+$O$4),"") ->  | CR9: =IF(CR$3<=datosB!$E$9,$CE9*(1+$AK$4)*(1+$O$4),"") ->  | CS9: =IF(CS$3<=datosB!$E$9,$CE9*(1+$AK$4)*(1+$O$4),"") ->  | CT9: =IF(CT$3<=datosB!$E$9,$CE9*(1+$AK$4)*(1+$O$4),"") ->  | CU9: =IF(CU$3<=datosB!$E$9,$CE9*(1+$AK$4)*(1+$O$4),"") ->  | CV9: =IF(CV$3<=datosB!$E$9,$CE9*(1+$AK$4)*(1+$O$4),"") ->  | CW9: =IF(CW$3<=datosB!$E$9,$CE9*(1+$AK$4)*(1+$O$4),"") ->  | CX9: =IF(CX$3<=datosB!$E$9,$CE9*(1+$AK$4)*(1+$O$4),"") ->  | CY9: =IF(CY$3<=datosB!$E$9,$CE9*(1+$AK$4)*(1+$O$4),"") ->  | CZ9: =IF(CZ$3<=datosB!$E$9,$CE9*(1+$AK$4)*(1+$O$4),"") ->  | DA9: =IF(DA$3<=datosB!$E$9,$CE9*(1+$AK$4)*(1+$O$4),"") ->  | DB9: =IF(DB$3<=datosB!$E$9,$CE9*(1+$AK$4)*(1+$O$4),"") ->  | DC9: =IF(DC$3<=datosB!$E$9,$CE9*(1+$AK$4)*(1+$O$4),"") ->  | DD9: =IF(DD$3<=datosB!$E$9,$CE9*(1+$AK$4)*(1+$O$4),"") ->  | DE9: =IF(DE$3<=datosB!$E$9,$CE9*(1+$AK$4)*(1+$O$4),"") ->  | DF9: =IF(DF$3<=datosB!$E$9,$CE9*(1+$AK$4)*(1+$O$4),"") ->  | DG9: =IF(DG$3<=datosB!$E$9,$CE9*(1+$AK$4)*(1+$O$4),"") ->  | DH9: =IF(DH$3<=datosB!$E$9,$CE9*(1+$AK$4)*(1+$O$4),"") ->  | DI9: =IF(DI$3<=datosB!$E$9,$CE9*(1+$AK$4)*(1+$O$4),"") ->  | DJ9: =IF(DJ$3<=datosB!$E$9,$CE9*(1+$AK$4)*(1+$O$4),"") ->  | DK9: =IF(DK$3<=datosB!$E$9,$CE9*(1+$AK$4)*(1+$O$4),"") ->  | DL9: =IF(DL$3<=datosB!$E$9,$CE9*(1+$AK$4)*(1+$O$4),"") ->  | DM9: =IF(DM$3<=datosB!$E$9,$CE9*(1+$AK$4)*(1+$O$4),"") ->  | DN9: =IF(DN$3<=datosB!$E$9,$CE9*(1+$AK$4)*(1+$O$4),"") ->  | DO9: =IF(DO$3<=datosB!$E$9,$CE9*(1+$AK$4)*(1+$O$4),"") ->  | DP9: =IF(DP$3<=datosB!$E$9,$CE9*(1+$AK$4)*(1+$O$4),"") ->  | DQ9: =IF(DQ$3<=datosB!$E$9,$CE9*(1+$AK$4)*(1+$O$4),"") ->  | DR9: =IF(DR$3<=datosB!$E$9,$CE9*(1+$AK$4)*(1+$O$4),"") ->  | DS9: =IF(DS$3<=datosB!$E$9,$CE9*(1+$AK$4)*(1+$O$4),"") ->  | DT9: =IF(DT$3<=datosB!$E$9,$CE9*(1+$AK$4)*(1+$O$4),"") ->  | DU9: =IF(DU$3<=datosB!$E$9,$CE9*(1+$AK$4)*(1+$O$4),"") ->  | DZ9: =IF(DZ$3<=datosB!$E$9,$DY9*(1+$AT$4)*(1+$O$4),"") ->  | EA9: =IF(EA$3<=datosB!$E$9,DZ9*(1+$AT$4)*(1+$O$4),"") ->  | EB9: =IF(EB$3<=datosB!$E$9,EA9*(1+$AT$4)*(1+$O$4),"") ->  | EC9: =IF(EC$3<=datosB!$E$9,EB9*(1+$AT$4)*(1+$O$4),"") ->  | ED9: =IF(ED$3<=datosB!$E$9,EC9*(1+$AT$4)*(1+$O$4),"") ->  | EE9: =IF(EE$3<=datosB!$E$9,ED9*(1+$AT$4)*(1+$O$4),"") ->  | EF9: =IF(EF$3<=datosB!$E$9,EE9*(1+$AT$4)*(1+$O$4),"") ->  | EG9: =IF(EG$3<=datosB!$E$9,EF9*(1+$AT$4)*(1+$O$4),"") ->  | EH9: =IF(EH$3<=datosB!$E$9,EG9*(1+$AT$4)*(1+$O$4),"") ->  | EI9: =IF(EI$3<=datosB!$E$9,EH9*(1+$AT$4)*(1+$O$4),"") ->  | EJ9: =IF(EJ$3<=datosB!$E$9,EI9*(1+$AT$4)*(1+$O$4),"") ->  | EK9: =IF(EK$3<=datosB!$E$9,EJ9*(1+$AT$4)*(1+$O$4),"") ->  | EL9: =IF(EL$3<=datosB!$E$9,EK9*(1+$AT$4)*(1+$O$4),"") ->  | EM9: =IF(EM$3<=datosB!$E$9,EL9*(1+$AT$4)*(1+$O$4),"") ->  | EN9: =IF(EN$3<=datosB!$E$9,EM9*(1+$AT$4)*(1+$O$4),"") ->  | EO9: =IF(EO$3<=datosB!$E$9,EN9*(1+$AT$4)*(1+$O$4),"") ->  | EP9: =IF(EP$3<=datosB!$E$9,EO9*(1+$AT$4)*(1+$O$4),"") ->  | EQ9: =IF(EQ$3<=datosB!$E$9,EP9*(1+$AT$4)*(1+$O$4),"") ->  | ER9: =IF(ER$3<=datosB!$E$9,EQ9*(1+$AT$4)*(1+$O$4),"") ->  | ES9: =IF(ES$3<=datosB!$E$9,ER9*(1+$AT$4)*(1+$O$4),"") ->  | ET9: =IF(ET$3<=datosB!$E$9,ES9*(1+$AT$4)*(1+$O$4),"") ->  | EU9: =IF(EU$3<=datosB!$E$9,ET9*(1+$AT$4)*(1+$O$4),"") ->  | EV9: =IF(EV$3<=datosB!$E$9,EU9*(1+$AT$4)*(1+$O$4),"") ->  | EW9: =IF(EW$3<=datosB!$E$9,EV9*(1+$AT$4)*(1+$O$4),"") ->  | EX9: =IF(EX$3<=datosB!$E$9,EW9*(1+$AT$4)*(1+$O$4),"") ->  | EY9: =IF(EY$3<=datosB!$E$9,EX9*(1+$AT$4)*(1+$O$4),"") ->  | EZ9: =IF(EZ$3<=datosB!$E$9,EY9*(1+$AT$4)*(1+$O$4),"") ->  | FA9: =IF(FA$3<=datosB!$E$9,EZ9*(1+$AT$4)*(1+$O$4),"") ->  | FB9: =IF(FB$3<=datosB!$E$9,FA9*(1+$AT$4)*(1+$O$4),"") ->  | FC9: =IF(FC$3<=datosB!$E$9,FB9*(1+$AT$4)*(1+$O$4),"") ->  | FD9: =IF(FD$3<=datosB!$E$9,FC9*(1+$AT$4)*(1+$O$4),"") ->  | FE9: =IF(FE$3<=datosB!$E$9,FD9*(1+$AT$4)*(1+$O$4),"") ->  | FF9: =IF(FF$3<=datosB!$E$9,FE9*(1+$AT$4)*(1+$O$4),"") ->  | FG9: =IF(FG$3<=datosB!$E$9,FF9*(1+$AT$4)*(1+$O$4),"") ->  | FH9: =IF(FH$3<=datosB!$E$9,FG9*(1+$AT$4)*(1+$O$4),"") ->  | FI9: =IF(FI$3<=datosB!$E$9,FH9*(1+$AT$4)*(1+$O$4),"") ->  | FJ9: =IF(FJ$3<=datosB!$E$9,FI9*(1+$AT$4)*(1+$O$4),"") ->  | FK9: =IF(FK$3<=datosB!$E$9,FJ9*(1+$AT$4)*(1+$O$4),"") ->  | FL9: =IF(FL$3<=datosB!$E$9,FK9*(1+$AT$4)*(1+$O$4),"") ->  | FM9: =IF(FM$3<=datosB!$E$9,FL9*(1+$AT$4)*(1+$O$4),"") ->  | FN9: =IF(FN$3<=datosB!$E$9,FM9*(1+$AT$4)*(1+$O$4),"") ->  | FO9: =IF(FO$3<=datosB!$E$9,FN9*(1+$AT$4)*(1+$O$4),"") ->  | FP9: =IF(FP$3<=datosB!$E$9,FO9*(1+$AT$4)*(1+$O$4),"") ->  | FQ9: =IF(FQ$3<=datosB!$E$9,FP9*(1+$AT$4)*(1+$O$4),"") -> 
M10: =SUMIFS(Formulario3!$O$3:$O$50000,Formulario3!$R$3:$R$50000,Formulario6_Res!$B10) -> 0 | N10: =SUMIFS(Formulario3!$V$3:$V$50000,Formulario3!$R$3:$R$50000,Formulario6_Res!$B10)*datosB!$E$7 -> 0 | O10: 0 | Y10: =VLOOKUP($A10,CU_OR!$A$3:$Z$31,11,FALSE) ->  | AC10: =VLOOKUP($A10,CU_OR!$A$3:$M$31,12,FALSE) ->  | AD10: =VLOOKUP($A10,CU_OR!$A$3:$M$31,13,FALSE) ->  | AF10: 0 | AI10: =SUMIFS(Formulario5_UC!$M$4:$M$29994,Formulario5_UC!$B$4:$B$29994,Formulario6_Res!$B10,Formulario5_UC!$C$4:$C$29994,Formulario6_Res!$AI$2) -> 0 | AJ10: =SUMIFS(Formulario5_UC!$BK$4:$BK$29994,Formulario5_UC!$B$4:$B$29994,Formulario6_Res!$B10,Formulario5_UC!$C$4:$C$29994,Formulario6_Res!$AI$2)*0+AN10+AS10 ->  | AK10: =VLOOKUP(A$4,CU_OR!$A$3:$Z$31,15,FALSE) ->  | AM10: =PMT(datosB!$E$6,datosB!$E$13,-Formulario6_Res!$AI10) -> 0 | AN10: =+VLOOKUP(A$4,CU_OR!$A$3:$Z$31,13,FALSE)*$N10*0+(N10*CU_OR!M31) ->  | AP10: =VLOOKUP($A10,CU_OR!$A$3:$M$31,7,FALSE) ->  | AR10: =SUMIFS(Formulario5_UC!$M$4:$M$29994,Formulario5_UC!$B$4:$B$29994,Formulario6_Res!$B10,Formulario5_UC!$C$4:$C$29994,Formulario6_Res!$AR$2) -> 0 | AS10: =SUMIFS(Formulario5_UC!$BK$4:$BK$29994,Formulario5_UC!$B$4:$B$29994,Formulario6_Res!$B10,Formulario5_UC!$C$4:$C$29994,Formulario6_Res!$AR$2) -> 0 | AT10: =VLOOKUP(A$4,CU_OR!$A$3:$Z$31,16,FALSE) ->  | AV10: =PMT(datosB!$E$6,datosB!$E$14,-Formulario6_Res!$AR10) -> 0 | AW10: =PMT(datosB!$E$6,datosB!$E$14,-Formulario6_Res!$AS10) -> 0 | AY10: =VLOOKUP($A10,CU_OR!$A$3:$M$31,6,FALSE) ->  | BK10: =VLOOKUP(A$4,CU_OR!$A$3:$Z$31,18,FALSE)+AX10+AO10 ->  | CD10: =IF(CD$3<=datosB!$E$9,$CC10*(1+$AK$4)*(1+$O$4),"") ->  | CE10: =IF(CE$3<=datosB!$E$9,$CD10*(1+$AK$4)*(1+$O$4),"") ->  | CF10: =IF(CF$3<=datosB!$E$9,$CE10*(1+$AK$4)*(1+$O$4),"") ->  | CG10: =IF(CG$3<=datosB!$E$9,$CE10*(1+$AK$4)*(1+$O$4),"") ->  | CH10: =IF(CH$3<=datosB!$E$9,$CE10*(1+$AK$4)*(1+$O$4),"") ->  | CI10: =IF(CI$3<=datosB!$E$9,$CE10*(1+$AK$4)*(1+$O$4),"") ->  | CJ10: =IF(CJ$3<=datosB!$E$9,$CE10*(1+$AK$4)*(1+$O$4),"") ->  | CK10: =IF(CK$3<=datosB!$E$9,$CE10*(1+$AK$4)*(1+$O$4),"") ->  | CL10: =IF(CL$3<=datosB!$E$9,$CE10*(1+$AK$4)*(1+$O$4),"") ->  | CM10: =IF(CM$3<=datosB!$E$9,$CE10*(1+$AK$4)*(1+$O$4),"") ->  | CN10: =IF(CN$3<=datosB!$E$9,$CE10*(1+$AK$4)*(1+$O$4),"") ->  | CO10: =IF(CO$3<=datosB!$E$9,$CE10*(1+$AK$4)*(1+$O$4),"") ->  | CP10: =IF(CP$3<=datosB!$E$9,$CE10*(1+$AK$4)*(1+$O$4),"") ->  | CQ10: =IF(CQ$3<=datosB!$E$9,$CE10*(1+$AK$4)*(1+$O$4),"") ->  | CR10: =IF(CR$3<=datosB!$E$9,$CE10*(1+$AK$4)*(1+$O$4),"") ->  | CS10: =IF(CS$3<=datosB!$E$9,$CE10*(1+$AK$4)*(1+$O$4),"") ->  | CT10: =IF(CT$3<=datosB!$E$9,$CE10*(1+$AK$4)*(1+$O$4),"") ->  | CU10: =IF(CU$3<=datosB!$E$9,$CE10*(1+$AK$4)*(1+$O$4),"") ->  | CV10: =IF(CV$3<=datosB!$E$9,$CE10*(1+$AK$4)*(1+$O$4),"") ->  | CW10: =IF(CW$3<=datosB!$E$9,$CE10*(1+$AK$4)*(1+$O$4),"") ->  | CX10: =IF(CX$3<=datosB!$E$9,$CE10*(1+$AK$4)*(1+$O$4),"") ->  | CY10: =IF(CY$3<=datosB!$E$9,$CE10*(1+$AK$4)*(1+$O$4),"") ->  | CZ10: =IF(CZ$3<=datosB!$E$9,$CE10*(1+$AK$4)*(1+$O$4),"") ->  | DA10: =IF(DA$3<=datosB!$E$9,$CE10*(1+$AK$4)*(1+$O$4),"") ->  | DB10: =IF(DB$3<=datosB!$E$9,$CE10*(1+$AK$4)*(1+$O$4),"") ->  | DC10: =IF(DC$3<=datosB!$E$9,$CE10*(1+$AK$4)*(1+$O$4),"") ->  | DD10: =IF(DD$3<=datosB!$E$9,$CE10*(1+$AK$4)*(1+$O$4),"") ->  | DE10: =IF(DE$3<=datosB!$E$9,$CE10*(1+$AK$4)*(1+$O$4),"") ->  | DF10: =IF(DF$3<=datosB!$E$9,$CE10*(1+$AK$4)*(1+$O$4),"") ->  | DG10: =IF(DG$3<=datosB!$E$9,$CE10*(1+$AK$4)*(1+$O$4),"") ->  | DH10: =IF(DH$3<=datosB!$E$9,$CE10*(1+$AK$4)*(1+$O$4),"") ->  | DI10: =IF(DI$3<=datosB!$E$9,$CE10*(1+$AK$4)*(1+$O$4),"") ->  | DJ10: =IF(DJ$3<=datosB!$E$9,$CE10*(1+$AK$4)*(1+$O$4),"") ->  | DK10: =IF(DK$3<=datosB!$E$9,$CE10*(1+$AK$4)*(1+$O$4),"") ->  | DL10: =IF(DL$3<=datosB!$E$9,$CE10*(1+$AK$4)*(1+$O$4),"") ->  | DM10: =IF(DM$3<=datosB!$E$9,$CE10*(1+$AK$4)*(1+$O$4),"") ->  | DN10: =IF(DN$3<=datosB!$E$9,$CE10*(1+$AK$4)*(1+$O$4),"") ->  | DO10: =IF(DO$3<=datosB!$E$9,$CE10*(1+$AK$4)*(1+$O$4),"") ->  | DP10: =IF(DP$3<=datosB!$E$9,$CE10*(1+$AK$4)*(1+$O$4),"") ->  | DQ10: =IF(DQ$3<=datosB!$E$9,$CE10*(1+$AK$4)*(1+$O$4),"") ->  | DR10: =IF(DR$3<=datosB!$E$9,$CE10*(1+$AK$4)*(1+$O$4),"") ->  | DS10: =IF(DS$3<=datosB!$E$9,$CE10*(1+$AK$4)*(1+$O$4),"") ->  | DT10: =IF(DT$3<=datosB!$E$9,$CE10*(1+$AK$4)*(1+$O$4),"") ->  | DU10: =IF(DU$3<=datosB!$E$9,$CE10*(1+$AK$4)*(1+$O$4),"") ->  | DZ10: =IF(DZ$3<=datosB!$E$9,$DY10*(1+$AT$4)*(1+$O$4),"") ->  | EA10: =IF(EA$3<=datosB!$E$9,DZ10*(1+$AT$4)*(1+$O$4),"") ->  | EB10: =IF(EB$3<=datosB!$E$9,EA10*(1+$AT$4)*(1+$O$4),"") ->  | EC10: =IF(EC$3<=datosB!$E$9,EB10*(1+$AT$4)*(1+$O$4),"") ->  | ED10: =IF(ED$3<=datosB!$E$9,EC10*(1+$AT$4)*(1+$O$4),"") ->  | EE10: =IF(EE$3<=datosB!$E$9,ED10*(1+$AT$4)*(1+$O$4),"") ->  | EF10: =IF(EF$3<=datosB!$E$9,EE10*(1+$AT$4)*(1+$O$4),"") ->  | EG10: =IF(EG$3<=datosB!$E$9,EF10*(1+$AT$4)*(1+$O$4),"") ->  | EH10: =IF(EH$3<=datosB!$E$9,EG10*(1+$AT$4)*(1+$O$4),"") ->  | EI10: =IF(EI$3<=datosB!$E$9,EH10*(1+$AT$4)*(1+$O$4),"") ->  | EJ10: =IF(EJ$3<=datosB!$E$9,EI10*(1+$AT$4)*(1+$O$4),"") ->  | EK10: =IF(EK$3<=datosB!$E$9,EJ10*(1+$AT$4)*(1+$O$4),"") ->  | EL10: =IF(EL$3<=datosB!$E$9,EK10*(1+$AT$4)*(1+$O$4),"") ->  | EM10: =IF(EM$3<=datosB!$E$9,EL10*(1+$AT$4)*(1+$O$4),"") ->  | EN10: =IF(EN$3<=datosB!$E$9,EM10*(1+$AT$4)*(1+$O$4),"") ->  | EO10: =IF(EO$3<=datosB!$E$9,EN10*(1+$AT$4)*(1+$O$4),"") ->  | EP10: =IF(EP$3<=datosB!$E$9,EO10*(1+$AT$4)*(1+$O$4),"") ->  | EQ10: =IF(EQ$3<=datosB!$E$9,EP10*(1+$AT$4)*(1+$O$4),"") ->  | ER10: =IF(ER$3<=datosB!$E$9,EQ10*(1+$AT$4)*(1+$O$4),"") ->  | ES10: =IF(ES$3<=datosB!$E$9,ER10*(1+$AT$4)*(1+$O$4),"") ->  | ET10: =IF(ET$3<=datosB!$E$9,ES10*(1+$AT$4)*(1+$O$4),"") ->  | EU10: =IF(EU$3<=datosB!$E$9,ET10*(1+$AT$4)*(1+$O$4),"") ->  | EV10: =IF(EV$3<=datosB!$E$9,EU10*(1+$AT$4)*(1+$O$4),"") ->  | EW10: =IF(EW$3<=datosB!$E$9,EV10*(1+$AT$4)*(1+$O$4),"") ->  | EX10: =IF(EX$3<=datosB!$E$9,EW10*(1+$AT$4)*(1+$O$4),"") ->  | EY10: =IF(EY$3<=datosB!$E$9,EX10*(1+$AT$4)*(1+$O$4),"") ->  | EZ10: =IF(EZ$3<=datosB!$E$9,EY10*(1+$AT$4)*(1+$O$4),"") ->  | FA10: =IF(FA$3<=datosB!$E$9,EZ10*(1+$AT$4)*(1+$O$4),"") ->  | FB10: =IF(FB$3<=datosB!$E$9,FA10*(1+$AT$4)*(1+$O$4),"") ->  | FC10: =IF(FC$3<=datosB!$E$9,FB10*(1+$AT$4)*(1+$O$4),"") ->  | FD10: =IF(FD$3<=datosB!$E$9,FC10*(1+$AT$4)*(1+$O$4),"") ->  | FE10: =IF(FE$3<=datosB!$E$9,FD10*(1+$AT$4)*(1+$O$4),"") ->  | FF10: =IF(FF$3<=datosB!$E$9,FE10*(1+$AT$4)*(1+$O$4),"") ->  | FG10: =IF(FG$3<=datosB!$E$9,FF10*(1+$AT$4)*(1+$O$4),"") ->  | FH10: =IF(FH$3<=datosB!$E$9,FG10*(1+$AT$4)*(1+$O$4),"") ->  | FI10: =IF(FI$3<=datosB!$E$9,FH10*(1+$AT$4)*(1+$O$4),"") ->  | FJ10: =IF(FJ$3<=datosB!$E$9,FI10*(1+$AT$4)*(1+$O$4),"") ->  | FK10: =IF(FK$3<=datosB!$E$9,FJ10*(1+$AT$4)*(1+$O$4),"") ->  | FL10: =IF(FL$3<=datosB!$E$9,FK10*(1+$AT$4)*(1+$O$4),"") ->  | FM10: =IF(FM$3<=datosB!$E$9,FL10*(1+$AT$4)*(1+$O$4),"") ->  | FN10: =IF(FN$3<=datosB!$E$9,FM10*(1+$AT$4)*(1+$O$4),"") ->  | FO10: =IF(FO$3<=datosB!$E$9,FN10*(1+$AT$4)*(1+$O$4),"") ->  | FP10: =IF(FP$3<=datosB!$E$9,FO10*(1+$AT$4)*(1+$O$4),"") ->  | FQ10: =IF(FQ$3<=datosB!$E$9,FP10*(1+$AT$4)*(1+$O$4),"") -> 
M11: =SUMIFS(Formulario3!$O$3:$O$50000,Formulario3!$R$3:$R$50000,Formulario6_Res!$B11) -> 0 | N11: =SUMIFS(Formulario3!$V$3:$V$50000,Formulario3!$R$3:$R$50000,Formulario6_Res!$B11)*datosB!$E$7 -> 0 | O11: 0 | Y11: =VLOOKUP($A11,CU_OR!$A$3:$Z$31,11,FALSE) ->  | AC11: =VLOOKUP($A11,CU_OR!$A$3:$M$31,12,FALSE) ->  | AD11: =VLOOKUP($A11,CU_OR!$A$3:$M$31,13,FALSE) ->  | AF11: 0 | AI11: =SUMIFS(Formulario5_UC!$M$4:$M$29994,Formulario5_UC!$B$4:$B$29994,Formulario6_Res!$B11,Formulario5_UC!$C$4:$C$29994,Formulario6_Res!$AI$2) -> 0 | AJ11: =SUMIFS(Formulario5_UC!$BK$4:$BK$29994,Formulario5_UC!$B$4:$B$29994,Formulario6_Res!$B11,Formulario5_UC!$C$4:$C$29994,Formulario6_Res!$AI$2)*0+AN11+AS11 ->  | AK11: =VLOOKUP(A$4,CU_OR!$A$3:$Z$31,15,FALSE) ->  | AM11: =PMT(datosB!$E$6,datosB!$E$13,-Formulario6_Res!$AI11) -> 0 | AN11: =+VLOOKUP(A$4,CU_OR!$A$3:$Z$31,13,FALSE)*$N11*0+(N11*CU_OR!M32) ->  | AP11: =VLOOKUP($A11,CU_OR!$A$3:$M$31,7,FALSE) ->  | AR11: =SUMIFS(Formulario5_UC!$M$4:$M$29994,Formulario5_UC!$B$4:$B$29994,Formulario6_Res!$B11,Formulario5_UC!$C$4:$C$29994,Formulario6_Res!$AR$2) -> 0 | AS11: =SUMIFS(Formulario5_UC!$BK$4:$BK$29994,Formulario5_UC!$B$4:$B$29994,Formulario6_Res!$B11,Formulario5_UC!$C$4:$C$29994,Formulario6_Res!$AR$2) -> 0 | AT11: =VLOOKUP(A$4,CU_OR!$A$3:$Z$31,16,FALSE) ->  | AV11: =PMT(datosB!$E$6,datosB!$E$14,-Formulario6_Res!$AR11) -> 0 | AW11: =PMT(datosB!$E$6,datosB!$E$14,-Formulario6_Res!$AS11) -> 0 | AY11: =VLOOKUP($A11,CU_OR!$A$3:$M$31,6,FALSE) ->  | BK11: =VLOOKUP(A$4,CU_OR!$A$3:$Z$31,18,FALSE)+AX11+AO11 ->  | CD11: =IF(CD$3<=datosB!$E$9,$CC11*(1+$AK$4)*(1+$O$4),"") ->  | CE11: =IF(CE$3<=datosB!$E$9,$CD11*(1+$AK$4)*(1+$O$4),"") ->  | CF11: =IF(CF$3<=datosB!$E$9,$CE11*(1+$AK$4)*(1+$O$4),"") ->  | CG11: =IF(CG$3<=datosB!$E$9,$CE11*(1+$AK$4)*(1+$O$4),"") ->  | CH11: =IF(CH$3<=datosB!$E$9,$CE11*(1+$AK$4)*(1+$O$4),"") ->  | CI11: =IF(CI$3<=datosB!$E$9,$CE11*(1+$AK$4)*(1+$O$4),"") ->  | CJ11: =IF(CJ$3<=datosB!$E$9,$CE11*(1+$AK$4)*(1+$O$4),"") ->  | CK11: =IF(CK$3<=datosB!$E$9,$CE11*(1+$AK$4)*(1+$O$4),"") ->  | CL11: =IF(CL$3<=datosB!$E$9,$CE11*(1+$AK$4)*(1+$O$4),"") ->  | CM11: =IF(CM$3<=datosB!$E$9,$CE11*(1+$AK$4)*(1+$O$4),"") ->  | CN11: =IF(CN$3<=datosB!$E$9,$CE11*(1+$AK$4)*(1+$O$4),"") ->  | CO11: =IF(CO$3<=datosB!$E$9,$CE11*(1+$AK$4)*(1+$O$4),"") ->  | CP11: =IF(CP$3<=datosB!$E$9,$CE11*(1+$AK$4)*(1+$O$4),"") ->  | CQ11: =IF(CQ$3<=datosB!$E$9,$CE11*(1+$AK$4)*(1+$O$4),"") ->  | CR11: =IF(CR$3<=datosB!$E$9,$CE11*(1+$AK$4)*(1+$O$4),"") ->  | CS11: =IF(CS$3<=datosB!$E$9,$CE11*(1+$AK$4)*(1+$O$4),"") ->  | CT11: =IF(CT$3<=datosB!$E$9,$CE11*(1+$AK$4)*(1+$O$4),"") ->  | CU11: =IF(CU$3<=datosB!$E$9,$CE11*(1+$AK$4)*(1+$O$4),"") ->  | CV11: =IF(CV$3<=datosB!$E$9,$CE11*(1+$AK$4)*(1+$O$4),"") ->  | CW11: =IF(CW$3<=datosB!$E$9,$CE11*(1+$AK$4)*(1+$O$4),"") ->  | CX11: =IF(CX$3<=datosB!$E$9,$CE11*(1+$AK$4)*(1+$O$4),"") ->  | CY11: =IF(CY$3<=datosB!$E$9,$CE11*(1+$AK$4)*(1+$O$4),"") ->  | CZ11: =IF(CZ$3<=datosB!$E$9,$CE11*(1+$AK$4)*(1+$O$4),"") ->  | DA11: =IF(DA$3<=datosB!$E$9,$CE11*(1+$AK$4)*(1+$O$4),"") ->  | DB11: =IF(DB$3<=datosB!$E$9,$CE11*(1+$AK$4)*(1+$O$4),"") ->  | DC11: =IF(DC$3<=datosB!$E$9,$CE11*(1+$AK$4)*(1+$O$4),"") ->  | DD11: =IF(DD$3<=datosB!$E$9,$CE11*(1+$AK$4)*(1+$O$4),"") ->  | DE11: =IF(DE$3<=datosB!$E$9,$CE11*(1+$AK$4)*(1+$O$4),"") ->  | DF11: =IF(DF$3<=datosB!$E$9,$CE11*(1+$AK$4)*(1+$O$4),"") ->  | DG11: =IF(DG$3<=datosB!$E$9,$CE11*(1+$AK$4)*(1+$O$4),"") ->  | DH11: =IF(DH$3<=datosB!$E$9,$CE11*(1+$AK$4)*(1+$O$4),"") ->  | DI11: =IF(DI$3<=datosB!$E$9,$CE11*(1+$AK$4)*(1+$O$4),"") ->  | DJ11: =IF(DJ$3<=datosB!$E$9,$CE11*(1+$AK$4)*(1+$O$4),"") ->  | DK11: =IF(DK$3<=datosB!$E$9,$CE11*(1+$AK$4)*(1+$O$4),"") ->  | DL11: =IF(DL$3<=datosB!$E$9,$CE11*(1+$AK$4)*(1+$O$4),"") ->  | DM11: =IF(DM$3<=datosB!$E$9,$CE11*(1+$AK$4)*(1+$O$4),"") ->  | DN11: =IF(DN$3<=datosB!$E$9,$CE11*(1+$AK$4)*(1+$O$4),"") ->  | DO11: =IF(DO$3<=datosB!$E$9,$CE11*(1+$AK$4)*(1+$O$4),"") ->  | DP11: =IF(DP$3<=datosB!$E$9,$CE11*(1+$AK$4)*(1+$O$4),"") ->  | DQ11: =IF(DQ$3<=datosB!$E$9,$CE11*(1+$AK$4)*(1+$O$4),"") ->  | DR11: =IF(DR$3<=datosB!$E$9,$CE11*(1+$AK$4)*(1+$O$4),"") ->  | DS11: =IF(DS$3<=datosB!$E$9,$CE11*(1+$AK$4)*(1+$O$4),"") ->  | DT11: =IF(DT$3<=datosB!$E$9,$CE11*(1+$AK$4)*(1+$O$4),"") ->  | DU11: =IF(DU$3<=datosB!$E$9,$CE11*(1+$AK$4)*(1+$O$4),"") ->  | DZ11: =IF(DZ$3<=datosB!$E$9,$DY11*(1+$AT$4)*(1+$O$4),"") ->  | EA11: =IF(EA$3<=datosB!$E$9,DZ11*(1+$AT$4)*(1+$O$4),"") ->  | EB11: =IF(EB$3<=datosB!$E$9,EA11*(1+$AT$4)*(1+$O$4),"") ->  | EC11: =IF(EC$3<=datosB!$E$9,EB11*(1+$AT$4)*(1+$O$4),"") ->  | ED11: =IF(ED$3<=datosB!$E$9,EC11*(1+$AT$4)*(1+$O$4),"") ->  | EE11: =IF(EE$3<=datosB!$E$9,ED11*(1+$AT$4)*(1+$O$4),"") ->  | EF11: =IF(EF$3<=datosB!$E$9,EE11*(1+$AT$4)*(1+$O$4),"") ->  | EG11: =IF(EG$3<=datosB!$E$9,EF11*(1+$AT$4)*(1+$O$4),"") ->  | EH11: =IF(EH$3<=datosB!$E$9,EG11*(1+$AT$4)*(1+$O$4),"") ->  | EI11: =IF(EI$3<=datosB!$E$9,EH11*(1+$AT$4)*(1+$O$4),"") ->  | EJ11: =IF(EJ$3<=datosB!$E$9,EI11*(1+$AT$4)*(1+$O$4),"") ->  | EK11: =IF(EK$3<=datosB!$E$9,EJ11*(1+$AT$4)*(1+$O$4),"") ->  | EL11: =IF(EL$3<=datosB!$E$9,EK11*(1+$AT$4)*(1+$O$4),"") ->  | EM11: =IF(EM$3<=datosB!$E$9,EL11*(1+$AT$4)*(1+$O$4),"") ->  | EN11: =IF(EN$3<=datosB!$E$9,EM11*(1+$AT$4)*(1+$O$4),"") ->  | EO11: =IF(EO$3<=datosB!$E$9,EN11*(1+$AT$4)*(1+$O$4),"") ->  | EP11: =IF(EP$3<=datosB!$E$9,EO11*(1+$AT$4)*(1+$O$4),"") ->  | EQ11: =IF(EQ$3<=datosB!$E$9,EP11*(1+$AT$4)*(1+$O$4),"") ->  | ER11: =IF(ER$3<=datosB!$E$9,EQ11*(1+$AT$4)*(1+$O$4),"") ->  | ES11: =IF(ES$3<=datosB!$E$9,ER11*(1+$AT$4)*(1+$O$4),"") ->  | ET11: =IF(ET$3<=datosB!$E$9,ES11*(1+$AT$4)*(1+$O$4),"") ->  | EU11: =IF(EU$3<=datosB!$E$9,ET11*(1+$AT$4)*(1+$O$4),"") ->  | EV11: =IF(EV$3<=datosB!$E$9,EU11*(1+$AT$4)*(1+$O$4),"") ->  | EW11: =IF(EW$3<=datosB!$E$9,EV11*(1+$AT$4)*(1+$O$4),"") ->  | EX11: =IF(EX$3<=datosB!$E$9,EW11*(1+$AT$4)*(1+$O$4),"") ->  | EY11: =IF(EY$3<=datosB!$E$9,EX11*(1+$AT$4)*(1+$O$4),"") ->  | EZ11: =IF(EZ$3<=datosB!$E$9,EY11*(1+$AT$4)*(1+$O$4),"") ->  | FA11: =IF(FA$3<=datosB!$E$9,EZ11*(1+$AT$4)*(1+$O$4),"") ->  | FB11: =IF(FB$3<=datosB!$E$9,FA11*(1+$AT$4)*(1+$O$4),"") ->  | FC11: =IF(FC$3<=datosB!$E$9,FB11*(1+$AT$4)*(1+$O$4),"") ->  | FD11: =IF(FD$3<=datosB!$E$9,FC11*(1+$AT$4)*(1+$O$4),"") ->  | FE11: =IF(FE$3<=datosB!$E$9,FD11*(1+$AT$4)*(1+$O$4),"") ->  | FF11: =IF(FF$3<=datosB!$E$9,FE11*(1+$AT$4)*(1+$O$4),"") ->  | FG11: =IF(FG$3<=datosB!$E$9,FF11*(1+$AT$4)*(1+$O$4),"") ->  | FH11: =IF(FH$3<=datosB!$E$9,FG11*(1+$AT$4)*(1+$O$4),"") ->  | FI11: =IF(FI$3<=datosB!$E$9,FH11*(1+$AT$4)*(1+$O$4),"") ->  | FJ11: =IF(FJ$3<=datosB!$E$9,FI11*(1+$AT$4)*(1+$O$4),"") ->  | FK11: =IF(FK$3<=datosB!$E$9,FJ11*(1+$AT$4)*(1+$O$4),"") ->  | FL11: =IF(FL$3<=datosB!$E$9,FK11*(1+$AT$4)*(1+$O$4),"") ->  | FM11: =IF(FM$3<=datosB!$E$9,FL11*(1+$AT$4)*(1+$O$4),"") ->  | FN11: =IF(FN$3<=datosB!$E$9,FM11*(1+$AT$4)*(1+$O$4),"") ->  | FO11: =IF(FO$3<=datosB!$E$9,FN11*(1+$AT$4)*(1+$O$4),"") ->  | FP11: =IF(FP$3<=datosB!$E$9,FO11*(1+$AT$4)*(1+$O$4),"") ->  | FQ11: =IF(FQ$3<=datosB!$E$9,FP11*(1+$AT$4)*(1+$O$4),"") -> 
M12: =SUMIFS(Formulario3!$O$3:$O$50000,Formulario3!$R$3:$R$50000,Formulario6_Res!$B12) -> 0 | N12: =SUMIFS(Formulario3!$V$3:$V$50000,Formulario3!$R$3:$R$50000,Formulario6_Res!$B12)*datosB!$E$7 -> 0 | O12: 0 | Y12: =VLOOKUP($A12,CU_OR!$A$3:$Z$31,11,FALSE) ->  | AC12: =VLOOKUP($A12,CU_OR!$A$3:$M$31,12,FALSE) ->  | AD12: =VLOOKUP($A12,CU_OR!$A$3:$M$31,13,FALSE) ->  | AF12: 0 | AI12: =SUMIFS(Formulario5_UC!$M$4:$M$29994,Formulario5_UC!$B$4:$B$29994,Formulario6_Res!$B12,Formulario5_UC!$C$4:$C$29994,Formulario6_Res!$AI$2) -> 0 | AJ12: =SUMIFS(Formulario5_UC!$BK$4:$BK$29994,Formulario5_UC!$B$4:$B$29994,Formulario6_Res!$B12,Formulario5_UC!$C$4:$C$29994,Formulario6_Res!$AI$2)*0+AN12+AS12 ->  | AK12: =VLOOKUP(A$4,CU_OR!$A$3:$Z$31,15,FALSE) ->  | AM12: =PMT(datosB!$E$6,datosB!$E$13,-Formulario6_Res!$AI12) -> 0 | AN12: =+VLOOKUP(A$4,CU_OR!$A$3:$Z$31,13,FALSE)*$N12*0+(N12*CU_OR!M33) ->  | AP12: =VLOOKUP($A12,CU_OR!$A$3:$M$31,7,FALSE) ->  | AR12: =SUMIFS(Formulario5_UC!$M$4:$M$29994,Formulario5_UC!$B$4:$B$29994,Formulario6_Res!$B12,Formulario5_UC!$C$4:$C$29994,Formulario6_Res!$AR$2) -> 0 | AS12: =SUMIFS(Formulario5_UC!$BK$4:$BK$29994,Formulario5_UC!$B$4:$B$29994,Formulario6_Res!$B12,Formulario5_UC!$C$4:$C$29994,Formulario6_Res!$AR$2) -> 0 | AT12: =VLOOKUP(A$4,CU_OR!$A$3:$Z$31,16,FALSE) ->  | AV12: =PMT(datosB!$E$6,datosB!$E$14,-Formulario6_Res!$AR12) -> 0 | AW12: =PMT(datosB!$E$6,datosB!$E$14,-Formulario6_Res!$AS12) -> 0 | AY12: =VLOOKUP($A12,CU_OR!$A$3:$M$31,6,FALSE) ->  | BK12: =VLOOKUP(A$4,CU_OR!$A$3:$Z$31,18,FALSE)+AX12+AO12 ->  | CD12: =IF(CD$3<=datosB!$E$9,$CC12*(1+$AK$4)*(1+$O$4),"") ->  | CE12: =IF(CE$3<=datosB!$E$9,$CD12*(1+$AK$4)*(1+$O$4),"") ->  | CF12: =IF(CF$3<=datosB!$E$9,$CE12*(1+$AK$4)*(1+$O$4),"") ->  | CG12: =IF(CG$3<=datosB!$E$9,$CE12*(1+$AK$4)*(1+$O$4),"") ->  | CH12: =IF(CH$3<=datosB!$E$9,$CE12*(1+$AK$4)*(1+$O$4),"") ->  | CI12: =IF(CI$3<=datosB!$E$9,$CE12*(1+$AK$4)*(1+$O$4),"") ->  | CJ12: =IF(CJ$3<=datosB!$E$9,$CE12*(1+$AK$4)*(1+$O$4),"") ->  | CK12: =IF(CK$3<=datosB!$E$9,$CE12*(1+$AK$4)*(1+$O$4),"") ->  | CL12: =IF(CL$3<=datosB!$E$9,$CE12*(1+$AK$4)*(1+$O$4),"") ->  | CM12: =IF(CM$3<=datosB!$E$9,$CE12*(1+$AK$4)*(1+$O$4),"") ->  | CN12: =IF(CN$3<=datosB!$E$9,$CE12*(1+$AK$4)*(1+$O$4),"") ->  | CO12: =IF(CO$3<=datosB!$E$9,$CE12*(1+$AK$4)*(1+$O$4),"") ->  | CP12: =IF(CP$3<=datosB!$E$9,$CE12*(1+$AK$4)*(1+$O$4),"") ->  | CQ12: =IF(CQ$3<=datosB!$E$9,$CE12*(1+$AK$4)*(1+$O$4),"") ->  | CR12: =IF(CR$3<=datosB!$E$9,$CE12*(1+$AK$4)*(1+$O$4),"") ->  | CS12: =IF(CS$3<=datosB!$E$9,$CE12*(1+$AK$4)*(1+$O$4),"") ->  | CT12: =IF(CT$3<=datosB!$E$9,$CE12*(1+$AK$4)*(1+$O$4),"") ->  | CU12: =IF(CU$3<=datosB!$E$9,$CE12*(1+$AK$4)*(1+$O$4),"") ->  | CV12: =IF(CV$3<=datosB!$E$9,$CE12*(1+$AK$4)*(1+$O$4),"") ->  | CW12: =IF(CW$3<=datosB!$E$9,$CE12*(1+$AK$4)*(1+$O$4),"") ->  | CX12: =IF(CX$3<=datosB!$E$9,$CE12*(1+$AK$4)*(1+$O$4),"") ->  | CY12: =IF(CY$3<=datosB!$E$9,$CE12*(1+$AK$4)*(1+$O$4),"") ->  | CZ12: =IF(CZ$3<=datosB!$E$9,$CE12*(1+$AK$4)*(1+$O$4),"") ->  | DA12: =IF(DA$3<=datosB!$E$9,$CE12*(1+$AK$4)*(1+$O$4),"") ->  | DB12: =IF(DB$3<=datosB!$E$9,$CE12*(1+$AK$4)*(1+$O$4),"") ->  | DC12: =IF(DC$3<=datosB!$E$9,$CE12*(1+$AK$4)*(1+$O$4),"") ->  | DD12: =IF(DD$3<=datosB!$E$9,$CE12*(1+$AK$4)*(1+$O$4),"") ->  | DE12: =IF(DE$3<=datosB!$E$9,$CE12*(1+$AK$4)*(1+$O$4),"") ->  | DF12: =IF(DF$3<=datosB!$E$9,$CE12*(1+$AK$4)*(1+$O$4),"") ->  | DG12: =IF(DG$3<=datosB!$E$9,$CE12*(1+$AK$4)*(1+$O$4),"") ->  | DH12: =IF(DH$3<=datosB!$E$9,$CE12*(1+$AK$4)*(1+$O$4),"") ->  | DI12: =IF(DI$3<=datosB!$E$9,$CE12*(1+$AK$4)*(1+$O$4),"") ->  | DJ12: =IF(DJ$3<=datosB!$E$9,$CE12*(1+$AK$4)*(1+$O$4),"") ->  | DK12: =IF(DK$3<=datosB!$E$9,$CE12*(1+$AK$4)*(1+$O$4),"") ->  | DL12: =IF(DL$3<=datosB!$E$9,$CE12*(1+$AK$4)*(1+$O$4),"") ->  | DM12: =IF(DM$3<=datosB!$E$9,$CE12*(1+$AK$4)*(1+$O$4),"") ->  | DN12: =IF(DN$3<=datosB!$E$9,$CE12*(1+$AK$4)*(1+$O$4),"") ->  | DO12: =IF(DO$3<=datosB!$E$9,$CE12*(1+$AK$4)*(1+$O$4),"") ->  | DP12: =IF(DP$3<=datosB!$E$9,$CE12*(1+$AK$4)*(1+$O$4),"") ->  | DQ12: =IF(DQ$3<=datosB!$E$9,$CE12*(1+$AK$4)*(1+$O$4),"") ->  | DR12: =IF(DR$3<=datosB!$E$9,$CE12*(1+$AK$4)*(1+$O$4),"") ->  | DS12: =IF(DS$3<=datosB!$E$9,$CE12*(1+$AK$4)*(1+$O$4),"") ->  | DT12: =IF(DT$3<=datosB!$E$9,$CE12*(1+$AK$4)*(1+$O$4),"") ->  | DU12: =IF(DU$3<=datosB!$E$9,$CE12*(1+$AK$4)*(1+$O$4),"") ->  | DZ12: =IF(DZ$3<=datosB!$E$9,$DY12*(1+$AT$4)*(1+$O$4),"") ->  | EA12: =IF(EA$3<=datosB!$E$9,DZ12*(1+$AT$4)*(1+$O$4),"") ->  | EB12: =IF(EB$3<=datosB!$E$9,EA12*(1+$AT$4)*(1+$O$4),"") ->  | EC12: =IF(EC$3<=datosB!$E$9,EB12*(1+$AT$4)*(1+$O$4),"") ->  | ED12: =IF(ED$3<=datosB!$E$9,EC12*(1+$AT$4)*(1+$O$4),"") ->  | EE12: =IF(EE$3<=datosB!$E$9,ED12*(1+$AT$4)*(1+$O$4),"") ->  | EF12: =IF(EF$3<=datosB!$E$9,EE12*(1+$AT$4)*(1+$O$4),"") ->  | EG12: =IF(EG$3<=datosB!$E$9,EF12*(1+$AT$4)*(1+$O$4),"") ->  | EH12: =IF(EH$3<=datosB!$E$9,EG12*(1+$AT$4)*(1+$O$4),"") ->  | EI12: =IF(EI$3<=datosB!$E$9,EH12*(1+$AT$4)*(1+$O$4),"") ->  | EJ12: =IF(EJ$3<=datosB!$E$9,EI12*(1+$AT$4)*(1+$O$4),"") ->  | EK12: =IF(EK$3<=datosB!$E$9,EJ12*(1+$AT$4)*(1+$O$4),"") ->  | EL12: =IF(EL$3<=datosB!$E$9,EK12*(1+$AT$4)*(1+$O$4),"") ->  | EM12: =IF(EM$3<=datosB!$E$9,EL12*(1+$AT$4)*(1+$O$4),"") ->  | EN12: =IF(EN$3<=datosB!$E$9,EM12*(1+$AT$4)*(1+$O$4),"") ->  | EO12: =IF(EO$3<=datosB!$E$9,EN12*(1+$AT$4)*(1+$O$4),"") ->  | EP12: =IF(EP$3<=datosB!$E$9,EO12*(1+$AT$4)*(1+$O$4),"") ->  | EQ12: =IF(EQ$3<=datosB!$E$9,EP12*(1+$AT$4)*(1+$O$4),"") ->  | ER12: =IF(ER$3<=datosB!$E$9,EQ12*(1+$AT$4)*(1+$O$4),"") ->  | ES12: =IF(ES$3<=datosB!$E$9,ER12*(1+$AT$4)*(1+$O$4),"") ->  | ET12: =IF(ET$3<=datosB!$E$9,ES12*(1+$AT$4)*(1+$O$4),"") ->  | EU12: =IF(EU$3<=datosB!$E$9,ET12*(1+$AT$4)*(1+$O$4),"") ->  | EV12: =IF(EV$3<=datosB!$E$9,EU12*(1+$AT$4)*(1+$O$4),"") ->  | EW12: =IF(EW$3<=datosB!$E$9,EV12*(1+$AT$4)*(1+$O$4),"") ->  | EX12: =IF(EX$3<=datosB!$E$9,EW12*(1+$AT$4)*(1+$O$4),"") ->  | EY12: =IF(EY$3<=datosB!$E$9,EX12*(1+$AT$4)*(1+$O$4),"") ->  | EZ12: =IF(EZ$3<=datosB!$E$9,EY12*(1+$AT$4)*(1+$O$4),"") ->  | FA12: =IF(FA$3<=datosB!$E$9,EZ12*(1+$AT$4)*(1+$O$4),"") ->  | FB12: =IF(FB$3<=datosB!$E$9,FA12*(1+$AT$4)*(1+$O$4),"") ->  | FC12: =IF(FC$3<=datosB!$E$9,FB12*(1+$AT$4)*(1+$O$4),"") ->  | FD12: =IF(FD$3<=datosB!$E$9,FC12*(1+$AT$4)*(1+$O$4),"") ->  | FE12: =IF(FE$3<=datosB!$E$9,FD12*(1+$AT$4)*(1+$O$4),"") ->  | FF12: =IF(FF$3<=datosB!$E$9,FE12*(1+$AT$4)*(1+$O$4),"") ->  | FG12: =IF(FG$3<=datosB!$E$9,FF12*(1+$AT$4)*(1+$O$4),"") ->  | FH12: =IF(FH$3<=datosB!$E$9,FG12*(1+$AT$4)*(1+$O$4),"") ->  | FI12: =IF(FI$3<=datosB!$E$9,FH12*(1+$AT$4)*(1+$O$4),"") ->  | FJ12: =IF(FJ$3<=datosB!$E$9,FI12*(1+$AT$4)*(1+$O$4),"") ->  | FK12: =IF(FK$3<=datosB!$E$9,FJ12*(1+$AT$4)*(1+$O$4),"") ->  | FL12: =IF(FL$3<=datosB!$E$9,FK12*(1+$AT$4)*(1+$O$4),"") ->  | FM12: =IF(FM$3<=datosB!$E$9,FL12*(1+$AT$4)*(1+$O$4),"") ->  | FN12: =IF(FN$3<=datosB!$E$9,FM12*(1+$AT$4)*(1+$O$4),"") ->  | FO12: =IF(FO$3<=datosB!$E$9,FN12*(1+$AT$4)*(1+$O$4),"") ->  | FP12: =IF(FP$3<=datosB!$E$9,FO12*(1+$AT$4)*(1+$O$4),"") ->  | FQ12: =IF(FQ$3<=datosB!$E$9,FP12*(1+$AT$4)*(1+$O$4),"") -> 
M13: =SUMIFS(Formulario3!$O$3:$O$50000,Formulario3!$R$3:$R$50000,Formulario6_Res!$B13) -> 0 | N13: =SUMIFS(Formulario3!$V$3:$V$50000,Formulario3!$R$3:$R$50000,Formulario6_Res!$B13)*datosB!$E$7 -> 0 | O13: 0 | Y13: =VLOOKUP($A13,CU_OR!$A$3:$Z$31,11,FALSE) ->  | AC13: =VLOOKUP($A13,CU_OR!$A$3:$M$31,12,FALSE) ->  | AD13: =VLOOKUP($A13,CU_OR!$A$3:$M$31,13,FALSE) ->  | AF13: 0 | AI13: =SUMIFS(Formulario5_UC!$M$4:$M$29994,Formulario5_UC!$B$4:$B$29994,Formulario6_Res!$B13,Formulario5_UC!$C$4:$C$29994,Formulario6_Res!$AI$2) -> 0 | AJ13: =SUMIFS(Formulario5_UC!$BK$4:$BK$29994,Formulario5_UC!$B$4:$B$29994,Formulario6_Res!$B13,Formulario5_UC!$C$4:$C$29994,Formulario6_Res!$AI$2)*0+AN13+AS13 ->  | AK13: =VLOOKUP(A$4,CU_OR!$A$3:$Z$31,15,FALSE) ->  | AM13: =PMT(datosB!$E$6,datosB!$E$13,-Formulario6_Res!$AI13) -> 0 | AN13: =+VLOOKUP(A$4,CU_OR!$A$3:$Z$31,13,FALSE)*$N13*0+(N13*CU_OR!M34) ->  | AP13: =VLOOKUP($A13,CU_OR!$A$3:$M$31,7,FALSE) ->  | AR13: =SUMIFS(Formulario5_UC!$M$4:$M$29994,Formulario5_UC!$B$4:$B$29994,Formulario6_Res!$B13,Formulario5_UC!$C$4:$C$29994,Formulario6_Res!$AR$2) -> 0 | AS13: =SUMIFS(Formulario5_UC!$BK$4:$BK$29994,Formulario5_UC!$B$4:$B$29994,Formulario6_Res!$B13,Formulario5_UC!$C$4:$C$29994,Formulario6_Res!$AR$2) -> 0 | AT13: =VLOOKUP(A$4,CU_OR!$A$3:$Z$31,16,FALSE) ->  | AV13: =PMT(datosB!$E$6,datosB!$E$14,-Formulario6_Res!$AR13) -> 0 | AW13: =PMT(datosB!$E$6,datosB!$E$14,-Formulario6_Res!$AS13) -> 0 | AY13: =VLOOKUP($A13,CU_OR!$A$3:$M$31,6,FALSE) ->  | BK13: =VLOOKUP(A$4,CU_OR!$A$3:$Z$31,18,FALSE)+AX13+AO13 ->  | CD13: =IF(CD$3<=datosB!$E$9,$CC13*(1+$AK$4)*(1+$O$4),"") ->  | CE13: =IF(CE$3<=datosB!$E$9,$CD13*(1+$AK$4)*(1+$O$4),"") ->  | CF13: =IF(CF$3<=datosB!$E$9,$CE13*(1+$AK$4)*(1+$O$4),"") ->  | CG13: =IF(CG$3<=datosB!$E$9,$CE13*(1+$AK$4)*(1+$O$4),"") ->  | CH13: =IF(CH$3<=datosB!$E$9,$CE13*(1+$AK$4)*(1+$O$4),"") ->  | CI13: =IF(CI$3<=datosB!$E$9,$CE13*(1+$AK$4)*(1+$O$4),"") ->  | CJ13: =IF(CJ$3<=datosB!$E$9,$CE13*(1+$AK$4)*(1+$O$4),"") ->  | CK13: =IF(CK$3<=datosB!$E$9,$CE13*(1+$AK$4)*(1+$O$4),"") ->  | CL13: =IF(CL$3<=datosB!$E$9,$CE13*(1+$AK$4)*(1+$O$4),"") ->  | CM13: =IF(CM$3<=datosB!$E$9,$CE13*(1+$AK$4)*(1+$O$4),"") ->  | CN13: =IF(CN$3<=datosB!$E$9,$CE13*(1+$AK$4)*(1+$O$4),"") ->  | CO13: =IF(CO$3<=datosB!$E$9,$CE13*(1+$AK$4)*(1+$O$4),"") ->  | CP13: =IF(CP$3<=datosB!$E$9,$CE13*(1+$AK$4)*(1+$O$4),"") ->  | CQ13: =IF(CQ$3<=datosB!$E$9,$CE13*(1+$AK$4)*(1+$O$4),"") ->  | CR13: =IF(CR$3<=datosB!$E$9,$CE13*(1+$AK$4)*(1+$O$4),"") ->  | CS13: =IF(CS$3<=datosB!$E$9,$CE13*(1+$AK$4)*(1+$O$4),"") ->  | CT13: =IF(CT$3<=datosB!$E$9,$CE13*(1+$AK$4)*(1+$O$4),"") ->  | CU13: =IF(CU$3<=datosB!$E$9,$CE13*(1+$AK$4)*(1+$O$4),"") ->  | CV13: =IF(CV$3<=datosB!$E$9,$CE13*(1+$AK$4)*(1+$O$4),"") ->  | CW13: =IF(CW$3<=datosB!$E$9,$CE13*(1+$AK$4)*(1+$O$4),"") ->  | CX13: =IF(CX$3<=datosB!$E$9,$CE13*(1+$AK$4)*(1+$O$4),"") ->  | CY13: =IF(CY$3<=datosB!$E$9,$CE13*(1+$AK$4)*(1+$O$4),"") ->  | CZ13: =IF(CZ$3<=datosB!$E$9,$CE13*(1+$AK$4)*(1+$O$4),"") ->  | DA13: =IF(DA$3<=datosB!$E$9,$CE13*(1+$AK$4)*(1+$O$4),"") ->  | DB13: =IF(DB$3<=datosB!$E$9,$CE13*(1+$AK$4)*(1+$O$4),"") ->  | DC13: =IF(DC$3<=datosB!$E$9,$CE13*(1+$AK$4)*(1+$O$4),"") ->  | DD13: =IF(DD$3<=datosB!$E$9,$CE13*(1+$AK$4)*(1+$O$4),"") ->  | DE13: =IF(DE$3<=datosB!$E$9,$CE13*(1+$AK$4)*(1+$O$4),"") ->  | DF13: =IF(DF$3<=datosB!$E$9,$CE13*(1+$AK$4)*(1+$O$4),"") ->  | DG13: =IF(DG$3<=datosB!$E$9,$CE13*(1+$AK$4)*(1+$O$4),"") ->  | DH13: =IF(DH$3<=datosB!$E$9,$CE13*(1+$AK$4)*(1+$O$4),"") ->  | DI13: =IF(DI$3<=datosB!$E$9,$CE13*(1+$AK$4)*(1+$O$4),"") ->  | DJ13: =IF(DJ$3<=datosB!$E$9,$CE13*(1+$AK$4)*(1+$O$4),"") ->  | DK13: =IF(DK$3<=datosB!$E$9,$CE13*(1+$AK$4)*(1+$O$4),"") ->  | DL13: =IF(DL$3<=datosB!$E$9,$CE13*(1+$AK$4)*(1+$O$4),"") ->  | DM13: =IF(DM$3<=datosB!$E$9,$CE13*(1+$AK$4)*(1+$O$4),"") ->  | DN13: =IF(DN$3<=datosB!$E$9,$CE13*(1+$AK$4)*(1+$O$4),"") ->  | DO13: =IF(DO$3<=datosB!$E$9,$CE13*(1+$AK$4)*(1+$O$4),"") ->  | DP13: =IF(DP$3<=datosB!$E$9,$CE13*(1+$AK$4)*(1+$O$4),"") ->  | DQ13: =IF(DQ$3<=datosB!$E$9,$CE13*(1+$AK$4)*(1+$O$4),"") ->  | DR13: =IF(DR$3<=datosB!$E$9,$CE13*(1+$AK$4)*(1+$O$4),"") ->  | DS13: =IF(DS$3<=datosB!$E$9,$CE13*(1+$AK$4)*(1+$O$4),"") ->  | DT13: =IF(DT$3<=datosB!$E$9,$CE13*(1+$AK$4)*(1+$O$4),"") ->  | DU13: =IF(DU$3<=datosB!$E$9,$CE13*(1+$AK$4)*(1+$O$4),"") ->  | DZ13: =IF(DZ$3<=datosB!$E$9,$DY13*(1+$AT$4)*(1+$O$4),"") ->  | EA13: =IF(EA$3<=datosB!$E$9,DZ13*(1+$AT$4)*(1+$O$4),"") ->  | EB13: =IF(EB$3<=datosB!$E$9,EA13*(1+$AT$4)*(1+$O$4),"") ->  | EC13: =IF(EC$3<=datosB!$E$9,EB13*(1+$AT$4)*(1+$O$4),"") ->  | ED13: =IF(ED$3<=datosB!$E$9,EC13*(1+$AT$4)*(1+$O$4),"") ->  | EE13: =IF(EE$3<=datosB!$E$9,ED13*(1+$AT$4)*(1+$O$4),"") ->  | EF13: =IF(EF$3<=datosB!$E$9,EE13*(1+$AT$4)*(1+$O$4),"") ->  | EG13: =IF(EG$3<=datosB!$E$9,EF13*(1+$AT$4)*(1+$O$4),"") ->  | EH13: =IF(EH$3<=datosB!$E$9,EG13*(1+$AT$4)*(1+$O$4),"") ->  | EI13: =IF(EI$3<=datosB!$E$9,EH13*(1+$AT$4)*(1+$O$4),"") ->  | EJ13: =IF(EJ$3<=datosB!$E$9,EI13*(1+$AT$4)*(1+$O$4),"") ->  | EK13: =IF(EK$3<=datosB!$E$9,EJ13*(1+$AT$4)*(1+$O$4),"") ->  | EL13: =IF(EL$3<=datosB!$E$9,EK13*(1+$AT$4)*(1+$O$4),"") ->  | EM13: =IF(EM$3<=datosB!$E$9,EL13*(1+$AT$4)*(1+$O$4),"") ->  | EN13: =IF(EN$3<=datosB!$E$9,EM13*(1+$AT$4)*(1+$O$4),"") ->  | EO13: =IF(EO$3<=datosB!$E$9,EN13*(1+$AT$4)*(1+$O$4),"") ->  | EP13: =IF(EP$3<=datosB!$E$9,EO13*(1+$AT$4)*(1+$O$4),"") ->  | EQ13: =IF(EQ$3<=datosB!$E$9,EP13*(1+$AT$4)*(1+$O$4),"") ->  | ER13: =IF(ER$3<=datosB!$E$9,EQ13*(1+$AT$4)*(1+$O$4),"") ->  | ES13: =IF(ES$3<=datosB!$E$9,ER13*(1+$AT$4)*(1+$O$4),"") ->  | ET13: =IF(ET$3<=datosB!$E$9,ES13*(1+$AT$4)*(1+$O$4),"") ->  | EU13: =IF(EU$3<=datosB!$E$9,ET13*(1+$AT$4)*(1+$O$4),"") ->  | EV13: =IF(EV$3<=datosB!$E$9,EU13*(1+$AT$4)*(1+$O$4),"") ->  | EW13: =IF(EW$3<=datosB!$E$9,EV13*(1+$AT$4)*(1+$O$4),"") ->  | EX13: =IF(EX$3<=datosB!$E$9,EW13*(1+$AT$4)*(1+$O$4),"") ->  | EY13: =IF(EY$3<=datosB!$E$9,EX13*(1+$AT$4)*(1+$O$4),"") ->  | EZ13: =IF(EZ$3<=datosB!$E$9,EY13*(1+$AT$4)*(1+$O$4),"") ->  | FA13: =IF(FA$3<=datosB!$E$9,EZ13*(1+$AT$4)*(1+$O$4),"") ->  | FB13: =IF(FB$3<=datosB!$E$9,FA13*(1+$AT$4)*(1+$O$4),"") ->  | FC13: =IF(FC$3<=datosB!$E$9,FB13*(1+$AT$4)*(1+$O$4),"") ->  | FD13: =IF(FD$3<=datosB!$E$9,FC13*(1+$AT$4)*(1+$O$4),"") ->  | FE13: =IF(FE$3<=datosB!$E$9,FD13*(1+$AT$4)*(1+$O$4),"") ->  | FF13: =IF(FF$3<=datosB!$E$9,FE13*(1+$AT$4)*(1+$O$4),"") ->  | FG13: =IF(FG$3<=datosB!$E$9,FF13*(1+$AT$4)*(1+$O$4),"") ->  | FH13: =IF(FH$3<=datosB!$E$9,FG13*(1+$AT$4)*(1+$O$4),"") ->  | FI13: =IF(FI$3<=datosB!$E$9,FH13*(1+$AT$4)*(1+$O$4),"") ->  | FJ13: =IF(FJ$3<=datosB!$E$9,FI13*(1+$AT$4)*(1+$O$4),"") ->  | FK13: =IF(FK$3<=datosB!$E$9,FJ13*(1+$AT$4)*(1+$O$4),"") ->  | FL13: =IF(FL$3<=datosB!$E$9,FK13*(1+$AT$4)*(1+$O$4),"") ->  | FM13: =IF(FM$3<=datosB!$E$9,FL13*(1+$AT$4)*(1+$O$4),"") ->  | FN13: =IF(FN$3<=datosB!$E$9,FM13*(1+$AT$4)*(1+$O$4),"") ->  | FO13: =IF(FO$3<=datosB!$E$9,FN13*(1+$AT$4)*(1+$O$4),"") ->  | FP13: =IF(FP$3<=datosB!$E$9,FO13*(1+$AT$4)*(1+$O$4),"") ->  | FQ13: =IF(FQ$3<=datosB!$E$9,FP13*(1+$AT$4)*(1+$O$4),"") -> 
M14: =SUMIFS(Formulario3!$O$3:$O$50000,Formulario3!$R$3:$R$50000,Formulario6_Res!$B14) -> 0 | N14: =SUMIFS(Formulario3!$V$3:$V$50000,Formulario3!$R$3:$R$50000,Formulario6_Res!$B14)*datosB!$E$7 -> 0 | O14: 0 | Y14: =VLOOKUP($A14,CU_OR!$A$3:$Z$31,11,FALSE) ->  | AC14: =VLOOKUP($A14,CU_OR!$A$3:$M$31,12,FALSE) ->  | AD14: =VLOOKUP($A14,CU_OR!$A$3:$M$31,13,FALSE) ->  | AF14: 0 | AI14: =SUMIFS(Formulario5_UC!$M$4:$M$29994,Formulario5_UC!$B$4:$B$29994,Formulario6_Res!$B14,Formulario5_UC!$C$4:$C$29994,Formulario6_Res!$AI$2) -> 0 | AJ14: =SUMIFS(Formulario5_UC!$BK$4:$BK$29994,Formulario5_UC!$B$4:$B$29994,Formulario6_Res!$B14,Formulario5_UC!$C$4:$C$29994,Formulario6_Res!$AI$2)*0+AN14+AS14 ->  | AK14: =VLOOKUP(A$4,CU_OR!$A$3:$Z$31,15,FALSE) ->  | AM14: =PMT(datosB!$E$6,datosB!$E$13,-Formulario6_Res!$AI14) -> 0 | AN14: =+VLOOKUP(A$4,CU_OR!$A$3:$Z$31,13,FALSE)*$N14*0+(N14*CU_OR!M35) ->  | AP14: =VLOOKUP($A14,CU_OR!$A$3:$M$31,7,FALSE) ->  | AR14: =SUMIFS(Formulario5_UC!$M$4:$M$29994,Formulario5_UC!$B$4:$B$29994,Formulario6_Res!$B14,Formulario5_UC!$C$4:$C$29994,Formulario6_Res!$AR$2) -> 0 | AS14: =SUMIFS(Formulario5_UC!$BK$4:$BK$29994,Formulario5_UC!$B$4:$B$29994,Formulario6_Res!$B14,Formulario5_UC!$C$4:$C$29994,Formulario6_Res!$AR$2) -> 0 | AT14: =VLOOKUP(A$4,CU_OR!$A$3:$Z$31,16,FALSE) ->  | AV14: =PMT(datosB!$E$6,datosB!$E$14,-Formulario6_Res!$AR14) -> 0 | AW14: =PMT(datosB!$E$6,datosB!$E$14,-Formulario6_Res!$AS14) -> 0 | AY14: =VLOOKUP($A14,CU_OR!$A$3:$M$31,6,FALSE) ->  | BK14: =VLOOKUP(A$4,CU_OR!$A$3:$Z$31,18,FALSE)+AX14+AO14 ->  | CD14: =IF(CD$3<=datosB!$E$9,$CC14*(1+$AK$4)*(1+$O$4),"") ->  | CE14: =IF(CE$3<=datosB!$E$9,$CD14*(1+$AK$4)*(1+$O$4),"") ->  | CF14: =IF(CF$3<=datosB!$E$9,$CE14*(1+$AK$4)*(1+$O$4),"") ->  | CG14: =IF(CG$3<=datosB!$E$9,$CE14*(1+$AK$4)*(1+$O$4),"") ->  | CH14: =IF(CH$3<=datosB!$E$9,$CE14*(1+$AK$4)*(1+$O$4),"") ->  | CI14: =IF(CI$3<=datosB!$E$9,$CE14*(1+$AK$4)*(1+$O$4),"") ->  | CJ14: =IF(CJ$3<=datosB!$E$9,$CE14*(1+$AK$4)*(1+$O$4),"") ->  | CK14: =IF(CK$3<=datosB!$E$9,$CE14*(1+$AK$4)*(1+$O$4),"") ->  | CL14: =IF(CL$3<=datosB!$E$9,$CE14*(1+$AK$4)*(1+$O$4),"") ->  | CM14: =IF(CM$3<=datosB!$E$9,$CE14*(1+$AK$4)*(1+$O$4),"") ->  | CN14: =IF(CN$3<=datosB!$E$9,$CE14*(1+$AK$4)*(1+$O$4),"") ->  | CO14: =IF(CO$3<=datosB!$E$9,$CE14*(1+$AK$4)*(1+$O$4),"") ->  | CP14: =IF(CP$3<=datosB!$E$9,$CE14*(1+$AK$4)*(1+$O$4),"") ->  | CQ14: =IF(CQ$3<=datosB!$E$9,$CE14*(1+$AK$4)*(1+$O$4),"") ->  | CR14: =IF(CR$3<=datosB!$E$9,$CE14*(1+$AK$4)*(1+$O$4),"") ->  | CS14: =IF(CS$3<=datosB!$E$9,$CE14*(1+$AK$4)*(1+$O$4),"") ->  | CT14: =IF(CT$3<=datosB!$E$9,$CE14*(1+$AK$4)*(1+$O$4),"") ->  | CU14: =IF(CU$3<=datosB!$E$9,$CE14*(1+$AK$4)*(1+$O$4),"") ->  | CV14: =IF(CV$3<=datosB!$E$9,$CE14*(1+$AK$4)*(1+$O$4),"") ->  | CW14: =IF(CW$3<=datosB!$E$9,$CE14*(1+$AK$4)*(1+$O$4),"") ->  | CX14: =IF(CX$3<=datosB!$E$9,$CE14*(1+$AK$4)*(1+$O$4),"") ->  | CY14: =IF(CY$3<=datosB!$E$9,$CE14*(1+$AK$4)*(1+$O$4),"") ->  | CZ14: =IF(CZ$3<=datosB!$E$9,$CE14*(1+$AK$4)*(1+$O$4),"") ->  | DA14: =IF(DA$3<=datosB!$E$9,$CE14*(1+$AK$4)*(1+$O$4),"") ->  | DB14: =IF(DB$3<=datosB!$E$9,$CE14*(1+$AK$4)*(1+$O$4),"") ->  | DC14: =IF(DC$3<=datosB!$E$9,$CE14*(1+$AK$4)*(1+$O$4),"") ->  | DD14: =IF(DD$3<=datosB!$E$9,$CE14*(1+$AK$4)*(1+$O$4),"") ->  | DE14: =IF(DE$3<=datosB!$E$9,$CE14*(1+$AK$4)*(1+$O$4),"") ->  | DF14: =IF(DF$3<=datosB!$E$9,$CE14*(1+$AK$4)*(1+$O$4),"") ->  | DG14: =IF(DG$3<=datosB!$E$9,$CE14*(1+$AK$4)*(1+$O$4),"") ->  | DH14: =IF(DH$3<=datosB!$E$9,$CE14*(1+$AK$4)*(1+$O$4),"") ->  | DI14: =IF(DI$3<=datosB!$E$9,$CE14*(1+$AK$4)*(1+$O$4),"") ->  | DJ14: =IF(DJ$3<=datosB!$E$9,$CE14*(1+$AK$4)*(1+$O$4),"") ->  | DK14: =IF(DK$3<=datosB!$E$9,$CE14*(1+$AK$4)*(1+$O$4),"") ->  | DL14: =IF(DL$3<=datosB!$E$9,$CE14*(1+$AK$4)*(1+$O$4),"") ->  | DM14: =IF(DM$3<=datosB!$E$9,$CE14*(1+$AK$4)*(1+$O$4),"") ->  | DN14: =IF(DN$3<=datosB!$E$9,$CE14*(1+$AK$4)*(1+$O$4),"") ->  | DO14: =IF(DO$3<=datosB!$E$9,$CE14*(1+$AK$4)*(1+$O$4),"") ->  | DP14: =IF(DP$3<=datosB!$E$9,$CE14*(1+$AK$4)*(1+$O$4),"") ->  | DQ14: =IF(DQ$3<=datosB!$E$9,$CE14*(1+$AK$4)*(1+$O$4),"") ->  | DR14: =IF(DR$3<=datosB!$E$9,$CE14*(1+$AK$4)*(1+$O$4),"") ->  | DS14: =IF(DS$3<=datosB!$E$9,$CE14*(1+$AK$4)*(1+$O$4),"") ->  | DT14: =IF(DT$3<=datosB!$E$9,$CE14*(1+$AK$4)*(1+$O$4),"") ->  | DU14: =IF(DU$3<=datosB!$E$9,$CE14*(1+$AK$4)*(1+$O$4),"") ->  | DZ14: =IF(DZ$3<=datosB!$E$9,$DY14*(1+$AT$4)*(1+$O$4),"") ->  | EA14: =IF(EA$3<=datosB!$E$9,DZ14*(1+$AT$4)*(1+$O$4),"") ->  | EB14: =IF(EB$3<=datosB!$E$9,EA14*(1+$AT$4)*(1+$O$4),"") ->  | EC14: =IF(EC$3<=datosB!$E$9,EB14*(1+$AT$4)*(1+$O$4),"") ->  | ED14: =IF(ED$3<=datosB!$E$9,EC14*(1+$AT$4)*(1+$O$4),"") ->  | EE14: =IF(EE$3<=datosB!$E$9,ED14*(1+$AT$4)*(1+$O$4),"") ->  | EF14: =IF(EF$3<=datosB!$E$9,EE14*(1+$AT$4)*(1+$O$4),"") ->  | EG14: =IF(EG$3<=datosB!$E$9,EF14*(1+$AT$4)*(1+$O$4),"") ->  | EH14: =IF(EH$3<=datosB!$E$9,EG14*(1+$AT$4)*(1+$O$4),"") ->  | EI14: =IF(EI$3<=datosB!$E$9,EH14*(1+$AT$4)*(1+$O$4),"") ->  | EJ14: =IF(EJ$3<=datosB!$E$9,EI14*(1+$AT$4)*(1+$O$4),"") ->  | EK14: =IF(EK$3<=datosB!$E$9,EJ14*(1+$AT$4)*(1+$O$4),"") ->  | EL14: =IF(EL$3<=datosB!$E$9,EK14*(1+$AT$4)*(1+$O$4),"") ->  | EM14: =IF(EM$3<=datosB!$E$9,EL14*(1+$AT$4)*(1+$O$4),"") ->  | EN14: =IF(EN$3<=datosB!$E$9,EM14*(1+$AT$4)*(1+$O$4),"") ->  | EO14: =IF(EO$3<=datosB!$E$9,EN14*(1+$AT$4)*(1+$O$4),"") ->  | EP14: =IF(EP$3<=datosB!$E$9,EO14*(1+$AT$4)*(1+$O$4),"") ->  | EQ14: =IF(EQ$3<=datosB!$E$9,EP14*(1+$AT$4)*(1+$O$4),"") ->  | ER14: =IF(ER$3<=datosB!$E$9,EQ14*(1+$AT$4)*(1+$O$4),"") ->  | ES14: =IF(ES$3<=datosB!$E$9,ER14*(1+$AT$4)*(1+$O$4),"") ->  | ET14: =IF(ET$3<=datosB!$E$9,ES14*(1+$AT$4)*(1+$O$4),"") ->  | EU14: =IF(EU$3<=datosB!$E$9,ET14*(1+$AT$4)*(1+$O$4),"") ->  | EV14: =IF(EV$3<=datosB!$E$9,EU14*(1+$AT$4)*(1+$O$4),"") ->  | EW14: =IF(EW$3<=datosB!$E$9,EV14*(1+$AT$4)*(1+$O$4),"") ->  | EX14: =IF(EX$3<=datosB!$E$9,EW14*(1+$AT$4)*(1+$O$4),"") ->  | EY14: =IF(EY$3<=datosB!$E$9,EX14*(1+$AT$4)*(1+$O$4),"") ->  | EZ14: =IF(EZ$3<=datosB!$E$9,EY14*(1+$AT$4)*(1+$O$4),"") ->  | FA14: =IF(FA$3<=datosB!$E$9,EZ14*(1+$AT$4)*(1+$O$4),"") ->  | FB14: =IF(FB$3<=datosB!$E$9,FA14*(1+$AT$4)*(1+$O$4),"") ->  | FC14: =IF(FC$3<=datosB!$E$9,FB14*(1+$AT$4)*(1+$O$4),"") ->  | FD14: =IF(FD$3<=datosB!$E$9,FC14*(1+$AT$4)*(1+$O$4),"") ->  | FE14: =IF(FE$3<=datosB!$E$9,FD14*(1+$AT$4)*(1+$O$4),"") ->  | FF14: =IF(FF$3<=datosB!$E$9,FE14*(1+$AT$4)*(1+$O$4),"") ->  | FG14: =IF(FG$3<=datosB!$E$9,FF14*(1+$AT$4)*(1+$O$4),"") ->  | FH14: =IF(FH$3<=datosB!$E$9,FG14*(1+$AT$4)*(1+$O$4),"") ->  | FI14: =IF(FI$3<=datosB!$E$9,FH14*(1+$AT$4)*(1+$O$4),"") ->  | FJ14: =IF(FJ$3<=datosB!$E$9,FI14*(1+$AT$4)*(1+$O$4),"") ->  | FK14: =IF(FK$3<=datosB!$E$9,FJ14*(1+$AT$4)*(1+$O$4),"") ->  | FL14: =IF(FL$3<=datosB!$E$9,FK14*(1+$AT$4)*(1+$O$4),"") ->  | FM14: =IF(FM$3<=datosB!$E$9,FL14*(1+$AT$4)*(1+$O$4),"") ->  | FN14: =IF(FN$3<=datosB!$E$9,FM14*(1+$AT$4)*(1+$O$4),"") ->  | FO14: =IF(FO$3<=datosB!$E$9,FN14*(1+$AT$4)*(1+$O$4),"") ->  | FP14: =IF(FP$3<=datosB!$E$9,FO14*(1+$AT$4)*(1+$O$4),"") ->  | FQ14: =IF(FQ$3<=datosB!$E$9,FP14*(1+$AT$4)*(1+$O$4),"") -> 
M15: =SUMIFS(Formulario3!$O$3:$O$50000,Formulario3!$R$3:$R$50000,Formulario6_Res!$B15) -> 0 | N15: =SUMIFS(Formulario3!$V$3:$V$50000,Formulario3!$R$3:$R$50000,Formulario6_Res!$B15)*datosB!$E$7 -> 0 | O15: 0 | Y15: =VLOOKUP($A15,CU_OR!$A$3:$Z$31,11,FALSE) ->  | AC15: =VLOOKUP($A15,CU_OR!$A$3:$M$31,12,FALSE) ->  | AD15: =VLOOKUP($A15,CU_OR!$A$3:$M$31,13,FALSE) ->  | AF15: 0 | AI15: =SUMIFS(Formulario5_UC!$M$4:$M$29994,Formulario5_UC!$B$4:$B$29994,Formulario6_Res!$B15,Formulario5_UC!$C$4:$C$29994,Formulario6_Res!$AI$2) -> 0 | AJ15: =SUMIFS(Formulario5_UC!$BK$4:$BK$29994,Formulario5_UC!$B$4:$B$29994,Formulario6_Res!$B15,Formulario5_UC!$C$4:$C$29994,Formulario6_Res!$AI$2)*0+AN15+AS15 ->  | AK15: =VLOOKUP(A$4,CU_OR!$A$3:$Z$31,15,FALSE) ->  | AM15: =PMT(datosB!$E$6,datosB!$E$13,-Formulario6_Res!$AI15) -> 0 | AN15: =+VLOOKUP(A$4,CU_OR!$A$3:$Z$31,13,FALSE)*$N15*0+(N15*CU_OR!M36) ->  | AP15: =VLOOKUP($A15,CU_OR!$A$3:$M$31,7,FALSE) ->  | AR15: =SUMIFS(Formulario5_UC!$M$4:$M$29994,Formulario5_UC!$B$4:$B$29994,Formulario6_Res!$B15,Formulario5_UC!$C$4:$C$29994,Formulario6_Res!$AR$2) -> 0 | AS15: =SUMIFS(Formulario5_UC!$BK$4:$BK$29994,Formulario5_UC!$B$4:$B$29994,Formulario6_Res!$B15,Formulario5_UC!$C$4:$C$29994,Formulario6_Res!$AR$2) -> 0 | AT15: =VLOOKUP(A$4,CU_OR!$A$3:$Z$31,16,FALSE) ->  | AV15: =PMT(datosB!$E$6,datosB!$E$14,-Formulario6_Res!$AR15) -> 0 | AW15: =PMT(datosB!$E$6,datosB!$E$14,-Formulario6_Res!$AS15) -> 0 | AY15: =VLOOKUP($A15,CU_OR!$A$3:$M$31,6,FALSE) ->  | BK15: =VLOOKUP(A$4,CU_OR!$A$3:$Z$31,18,FALSE)+AX15+AO15 ->  | CD15: =IF(CD$3<=datosB!$E$9,$CC15*(1+$AK$4)*(1+$O$4),"") ->  | CE15: =IF(CE$3<=datosB!$E$9,$CD15*(1+$AK$4)*(1+$O$4),"") ->  | CF15: =IF(CF$3<=datosB!$E$9,$CE15*(1+$AK$4)*(1+$O$4),"") ->  | CG15: =IF(CG$3<=datosB!$E$9,$CE15*(1+$AK$4)*(1+$O$4),"") ->  | CH15: =IF(CH$3<=datosB!$E$9,$CE15*(1+$AK$4)*(1+$O$4),"") ->  | CI15: =IF(CI$3<=datosB!$E$9,$CE15*(1+$AK$4)*(1+$O$4),"") ->  | CJ15: =IF(CJ$3<=datosB!$E$9,$CE15*(1+$AK$4)*(1+$O$4),"") ->  | CK15: =IF(CK$3<=datosB!$E$9,$CE15*(1+$AK$4)*(1+$O$4),"") ->  | CL15: =IF(CL$3<=datosB!$E$9,$CE15*(1+$AK$4)*(1+$O$4),"") ->  | CM15: =IF(CM$3<=datosB!$E$9,$CE15*(1+$AK$4)*(1+$O$4),"") ->  | CN15: =IF(CN$3<=datosB!$E$9,$CE15*(1+$AK$4)*(1+$O$4),"") ->  | CO15: =IF(CO$3<=datosB!$E$9,$CE15*(1+$AK$4)*(1+$O$4),"") ->  | CP15: =IF(CP$3<=datosB!$E$9,$CE15*(1+$AK$4)*(1+$O$4),"") ->  | CQ15: =IF(CQ$3<=datosB!$E$9,$CE15*(1+$AK$4)*(1+$O$4),"") ->  | CR15: =IF(CR$3<=datosB!$E$9,$CE15*(1+$AK$4)*(1+$O$4),"") ->  | CS15: =IF(CS$3<=datosB!$E$9,$CE15*(1+$AK$4)*(1+$O$4),"") ->  | CT15: =IF(CT$3<=datosB!$E$9,$CE15*(1+$AK$4)*(1+$O$4),"") ->  | CU15: =IF(CU$3<=datosB!$E$9,$CE15*(1+$AK$4)*(1+$O$4),"") ->  | CV15: =IF(CV$3<=datosB!$E$9,$CE15*(1+$AK$4)*(1+$O$4),"") ->  | CW15: =IF(CW$3<=datosB!$E$9,$CE15*(1+$AK$4)*(1+$O$4),"") ->  | CX15: =IF(CX$3<=datosB!$E$9,$CE15*(1+$AK$4)*(1+$O$4),"") ->  | CY15: =IF(CY$3<=datosB!$E$9,$CE15*(1+$AK$4)*(1+$O$4),"") ->  | CZ15: =IF(CZ$3<=datosB!$E$9,$CE15*(1+$AK$4)*(1+$O$4),"") ->  | DA15: =IF(DA$3<=datosB!$E$9,$CE15*(1+$AK$4)*(1+$O$4),"") ->  | DB15: =IF(DB$3<=datosB!$E$9,$CE15*(1+$AK$4)*(1+$O$4),"") ->  | DC15: =IF(DC$3<=datosB!$E$9,$CE15*(1+$AK$4)*(1+$O$4),"") ->  | DD15: =IF(DD$3<=datosB!$E$9,$CE15*(1+$AK$4)*(1+$O$4),"") ->  | DE15: =IF(DE$3<=datosB!$E$9,$CE15*(1+$AK$4)*(1+$O$4),"") ->  | DF15: =IF(DF$3<=datosB!$E$9,$CE15*(1+$AK$4)*(1+$O$4),"") ->  | DG15: =IF(DG$3<=datosB!$E$9,$CE15*(1+$AK$4)*(1+$O$4),"") ->  | DH15: =IF(DH$3<=datosB!$E$9,$CE15*(1+$AK$4)*(1+$O$4),"") ->  | DI15: =IF(DI$3<=datosB!$E$9,$CE15*(1+$AK$4)*(1+$O$4),"") ->  | DJ15: =IF(DJ$3<=datosB!$E$9,$CE15*(1+$AK$4)*(1+$O$4),"") ->  | DK15: =IF(DK$3<=datosB!$E$9,$CE15*(1+$AK$4)*(1+$O$4),"") ->  | DL15: =IF(DL$3<=datosB!$E$9,$CE15*(1+$AK$4)*(1+$O$4),"") ->  | DM15: =IF(DM$3<=datosB!$E$9,$CE15*(1+$AK$4)*(1+$O$4),"") ->  | DN15: =IF(DN$3<=datosB!$E$9,$CE15*(1+$AK$4)*(1+$O$4),"") ->  | DO15: =IF(DO$3<=datosB!$E$9,$CE15*(1+$AK$4)*(1+$O$4),"") ->  | DP15: =IF(DP$3<=datosB!$E$9,$CE15*(1+$AK$4)*(1+$O$4),"") ->  | DQ15: =IF(DQ$3<=datosB!$E$9,$CE15*(1+$AK$4)*(1+$O$4),"") ->  | DR15: =IF(DR$3<=datosB!$E$9,$CE15*(1+$AK$4)*(1+$O$4),"") ->  | DS15: =IF(DS$3<=datosB!$E$9,$CE15*(1+$AK$4)*(1+$O$4),"") ->  | DT15: =IF(DT$3<=datosB!$E$9,$CE15*(1+$AK$4)*(1+$O$4),"") ->  | DU15: =IF(DU$3<=datosB!$E$9,$CE15*(1+$AK$4)*(1+$O$4),"") ->  | DZ15: =IF(DZ$3<=datosB!$E$9,$DY15*(1+$AT$4)*(1+$O$4),"") ->  | EA15: =IF(EA$3<=datosB!$E$9,DZ15*(1+$AT$4)*(1+$O$4),"") ->  | EB15: =IF(EB$3<=datosB!$E$9,EA15*(1+$AT$4)*(1+$O$4),"") ->  | EC15: =IF(EC$3<=datosB!$E$9,EB15*(1+$AT$4)*(1+$O$4),"") ->  | ED15: =IF(ED$3<=datosB!$E$9,EC15*(1+$AT$4)*(1+$O$4),"") ->  | EE15: =IF(EE$3<=datosB!$E$9,ED15*(1+$AT$4)*(1+$O$4),"") ->  | EF15: =IF(EF$3<=datosB!$E$9,EE15*(1+$AT$4)*(1+$O$4),"") ->  | EG15: =IF(EG$3<=datosB!$E$9,EF15*(1+$AT$4)*(1+$O$4),"") ->  | EH15: =IF(EH$3<=datosB!$E$9,EG15*(1+$AT$4)*(1+$O$4),"") ->  | EI15: =IF(EI$3<=datosB!$E$9,EH15*(1+$AT$4)*(1+$O$4),"") ->  | EJ15: =IF(EJ$3<=datosB!$E$9,EI15*(1+$AT$4)*(1+$O$4),"") ->  | EK15: =IF(EK$3<=datosB!$E$9,EJ15*(1+$AT$4)*(1+$O$4),"") ->  | EL15: =IF(EL$3<=datosB!$E$9,EK15*(1+$AT$4)*(1+$O$4),"") ->  | EM15: =IF(EM$3<=datosB!$E$9,EL15*(1+$AT$4)*(1+$O$4),"") ->  | EN15: =IF(EN$3<=datosB!$E$9,EM15*(1+$AT$4)*(1+$O$4),"") ->  | EO15: =IF(EO$3<=datosB!$E$9,EN15*(1+$AT$4)*(1+$O$4),"") ->  | EP15: =IF(EP$3<=datosB!$E$9,EO15*(1+$AT$4)*(1+$O$4),"") ->  | EQ15: =IF(EQ$3<=datosB!$E$9,EP15*(1+$AT$4)*(1+$O$4),"") ->  | ER15: =IF(ER$3<=datosB!$E$9,EQ15*(1+$AT$4)*(1+$O$4),"") ->  | ES15: =IF(ES$3<=datosB!$E$9,ER15*(1+$AT$4)*(1+$O$4),"") ->  | ET15: =IF(ET$3<=datosB!$E$9,ES15*(1+$AT$4)*(1+$O$4),"") ->  | EU15: =IF(EU$3<=datosB!$E$9,ET15*(1+$AT$4)*(1+$O$4),"") ->  | EV15: =IF(EV$3<=datosB!$E$9,EU15*(1+$AT$4)*(1+$O$4),"") ->  | EW15: =IF(EW$3<=datosB!$E$9,EV15*(1+$AT$4)*(1+$O$4),"") ->  | EX15: =IF(EX$3<=datosB!$E$9,EW15*(1+$AT$4)*(1+$O$4),"") ->  | EY15: =IF(EY$3<=datosB!$E$9,EX15*(1+$AT$4)*(1+$O$4),"") ->  | EZ15: =IF(EZ$3<=datosB!$E$9,EY15*(1+$AT$4)*(1+$O$4),"") ->  | FA15: =IF(FA$3<=datosB!$E$9,EZ15*(1+$AT$4)*(1+$O$4),"") ->  | FB15: =IF(FB$3<=datosB!$E$9,FA15*(1+$AT$4)*(1+$O$4),"") ->  | FC15: =IF(FC$3<=datosB!$E$9,FB15*(1+$AT$4)*(1+$O$4),"") ->  | FD15: =IF(FD$3<=datosB!$E$9,FC15*(1+$AT$4)*(1+$O$4),"") ->  | FE15: =IF(FE$3<=datosB!$E$9,FD15*(1+$AT$4)*(1+$O$4),"") ->  | FF15: =IF(FF$3<=datosB!$E$9,FE15*(1+$AT$4)*(1+$O$4),"") ->  | FG15: =IF(FG$3<=datosB!$E$9,FF15*(1+$AT$4)*(1+$O$4),"") ->  | FH15: =IF(FH$3<=datosB!$E$9,FG15*(1+$AT$4)*(1+$O$4),"") ->  | FI15: =IF(FI$3<=datosB!$E$9,FH15*(1+$AT$4)*(1+$O$4),"") ->  | FJ15: =IF(FJ$3<=datosB!$E$9,FI15*(1+$AT$4)*(1+$O$4),"") ->  | FK15: =IF(FK$3<=datosB!$E$9,FJ15*(1+$AT$4)*(1+$O$4),"") ->  | FL15: =IF(FL$3<=datosB!$E$9,FK15*(1+$AT$4)*(1+$O$4),"") ->  | FM15: =IF(FM$3<=datosB!$E$9,FL15*(1+$AT$4)*(1+$O$4),"") ->  | FN15: =IF(FN$3<=datosB!$E$9,FM15*(1+$AT$4)*(1+$O$4),"") ->  | FO15: =IF(FO$3<=datosB!$E$9,FN15*(1+$AT$4)*(1+$O$4),"") ->  | FP15: =IF(FP$3<=datosB!$E$9,FO15*(1+$AT$4)*(1+$O$4),"") ->  | FQ15: =IF(FQ$3<=datosB!$E$9,FP15*(1+$AT$4)*(1+$O$4),"") -> 
M16: =SUMIFS(Formulario3!$O$3:$O$50000,Formulario3!$R$3:$R$50000,Formulario6_Res!$B16) -> 0 | N16: =SUMIFS(Formulario3!$V$3:$V$50000,Formulario3!$R$3:$R$50000,Formulario6_Res!$B16)*datosB!$E$7 -> 0 | O16: 0 | Y16: =VLOOKUP($A16,CU_OR!$A$3:$Z$31,11,FALSE) ->  | AC16: =VLOOKUP($A16,CU_OR!$A$3:$M$31,12,FALSE) ->  | AD16: =VLOOKUP($A16,CU_OR!$A$3:$M$31,13,FALSE) ->  | AF16: 0 | AI16: =SUMIFS(Formulario5_UC!$M$4:$M$29994,Formulario5_UC!$B$4:$B$29994,Formulario6_Res!$B16,Formulario5_UC!$C$4:$C$29994,Formulario6_Res!$AI$2) -> 0 | AJ16: =SUMIFS(Formulario5_UC!$BK$4:$BK$29994,Formulario5_UC!$B$4:$B$29994,Formulario6_Res!$B16,Formulario5_UC!$C$4:$C$29994,Formulario6_Res!$AI$2)*0+AN16+AS16 ->  | AK16: =VLOOKUP(A$4,CU_OR!$A$3:$Z$31,15,FALSE) ->  | AM16: =PMT(datosB!$E$6,datosB!$E$13,-Formulario6_Res!$AI16) -> 0 | AN16: =+VLOOKUP(A$4,CU_OR!$A$3:$Z$31,13,FALSE)*$N16*0+(N16*CU_OR!M37) ->  | AP16: =VLOOKUP($A16,CU_OR!$A$3:$M$31,7,FALSE) ->  | AR16: =SUMIFS(Formulario5_UC!$M$4:$M$29994,Formulario5_UC!$B$4:$B$29994,Formulario6_Res!$B16,Formulario5_UC!$C$4:$C$29994,Formulario6_Res!$AR$2) -> 0 | AS16: =SUMIFS(Formulario5_UC!$BK$4:$BK$29994,Formulario5_UC!$B$4:$B$29994,Formulario6_Res!$B16,Formulario5_UC!$C$4:$C$29994,Formulario6_Res!$AR$2) -> 0 | AT16: =VLOOKUP(A$4,CU_OR!$A$3:$Z$31,16,FALSE) ->  | AV16: =PMT(datosB!$E$6,datosB!$E$14,-Formulario6_Res!$AR16) -> 0 | AW16: =PMT(datosB!$E$6,datosB!$E$14,-Formulario6_Res!$AS16) -> 0 | AY16: =VLOOKUP($A16,CU_OR!$A$3:$M$31,6,FALSE) ->  | BK16: =VLOOKUP(A$4,CU_OR!$A$3:$Z$31,18,FALSE)+AX16+AO16 ->  | CD16: =IF(CD$3<=datosB!$E$9,$CC16*(1+$AK$4)*(1+$O$4),"") ->  | CE16: =IF(CE$3<=datosB!$E$9,$CD16*(1+$AK$4)*(1+$O$4),"") ->  | CF16: =IF(CF$3<=datosB!$E$9,$CE16*(1+$AK$4)*(1+$O$4),"") ->  | CG16: =IF(CG$3<=datosB!$E$9,$CE16*(1+$AK$4)*(1+$O$4),"") ->  | CH16: =IF(CH$3<=datosB!$E$9,$CE16*(1+$AK$4)*(1+$O$4),"") ->  | CI16: =IF(CI$3<=datosB!$E$9,$CE16*(1+$AK$4)*(1+$O$4),"") ->  | CJ16: =IF(CJ$3<=datosB!$E$9,$CE16*(1+$AK$4)*(1+$O$4),"") ->  | CK16: =IF(CK$3<=datosB!$E$9,$CE16*(1+$AK$4)*(1+$O$4),"") ->  | CL16: =IF(CL$3<=datosB!$E$9,$CE16*(1+$AK$4)*(1+$O$4),"") ->  | CM16: =IF(CM$3<=datosB!$E$9,$CE16*(1+$AK$4)*(1+$O$4),"") ->  | CN16: =IF(CN$3<=datosB!$E$9,$CE16*(1+$AK$4)*(1+$O$4),"") ->  | CO16: =IF(CO$3<=datosB!$E$9,$CE16*(1+$AK$4)*(1+$O$4),"") ->  | CP16: =IF(CP$3<=datosB!$E$9,$CE16*(1+$AK$4)*(1+$O$4),"") ->  | CQ16: =IF(CQ$3<=datosB!$E$9,$CE16*(1+$AK$4)*(1+$O$4),"") ->  | CR16: =IF(CR$3<=datosB!$E$9,$CE16*(1+$AK$4)*(1+$O$4),"") ->  | CS16: =IF(CS$3<=datosB!$E$9,$CE16*(1+$AK$4)*(1+$O$4),"") ->  | CT16: =IF(CT$3<=datosB!$E$9,$CE16*(1+$AK$4)*(1+$O$4),"") ->  | CU16: =IF(CU$3<=datosB!$E$9,$CE16*(1+$AK$4)*(1+$O$4),"") ->  | CV16: =IF(CV$3<=datosB!$E$9,$CE16*(1+$AK$4)*(1+$O$4),"") ->  | CW16: =IF(CW$3<=datosB!$E$9,$CE16*(1+$AK$4)*(1+$O$4),"") ->  | CX16: =IF(CX$3<=datosB!$E$9,$CE16*(1+$AK$4)*(1+$O$4),"") ->  | CY16: =IF(CY$3<=datosB!$E$9,$CE16*(1+$AK$4)*(1+$O$4),"") ->  | CZ16: =IF(CZ$3<=datosB!$E$9,$CE16*(1+$AK$4)*(1+$O$4),"") ->  | DA16: =IF(DA$3<=datosB!$E$9,$CE16*(1+$AK$4)*(1+$O$4),"") ->  | DB16: =IF(DB$3<=datosB!$E$9,$CE16*(1+$AK$4)*(1+$O$4),"") ->  | DC16: =IF(DC$3<=datosB!$E$9,$CE16*(1+$AK$4)*(1+$O$4),"") ->  | DD16: =IF(DD$3<=datosB!$E$9,$CE16*(1+$AK$4)*(1+$O$4),"") ->  | DE16: =IF(DE$3<=datosB!$E$9,$CE16*(1+$AK$4)*(1+$O$4),"") ->  | DF16: =IF(DF$3<=datosB!$E$9,$CE16*(1+$AK$4)*(1+$O$4),"") ->  | DG16: =IF(DG$3<=datosB!$E$9,$CE16*(1+$AK$4)*(1+$O$4),"") ->  | DH16: =IF(DH$3<=datosB!$E$9,$CE16*(1+$AK$4)*(1+$O$4),"") ->  | DI16: =IF(DI$3<=datosB!$E$9,$CE16*(1+$AK$4)*(1+$O$4),"") ->  | DJ16: =IF(DJ$3<=datosB!$E$9,$CE16*(1+$AK$4)*(1+$O$4),"") ->  | DK16: =IF(DK$3<=datosB!$E$9,$CE16*(1+$AK$4)*(1+$O$4),"") ->  | DL16: =IF(DL$3<=datosB!$E$9,$CE16*(1+$AK$4)*(1+$O$4),"") ->  | DM16: =IF(DM$3<=datosB!$E$9,$CE16*(1+$AK$4)*(1+$O$4),"") ->  | DN16: =IF(DN$3<=datosB!$E$9,$CE16*(1+$AK$4)*(1+$O$4),"") ->  | DO16: =IF(DO$3<=datosB!$E$9,$CE16*(1+$AK$4)*(1+$O$4),"") ->  | DP16: =IF(DP$3<=datosB!$E$9,$CE16*(1+$AK$4)*(1+$O$4),"") ->  | DQ16: =IF(DQ$3<=datosB!$E$9,$CE16*(1+$AK$4)*(1+$O$4),"") ->  | DR16: =IF(DR$3<=datosB!$E$9,$CE16*(1+$AK$4)*(1+$O$4),"") ->  | DS16: =IF(DS$3<=datosB!$E$9,$CE16*(1+$AK$4)*(1+$O$4),"") ->  | DT16: =IF(DT$3<=datosB!$E$9,$CE16*(1+$AK$4)*(1+$O$4),"") ->  | DU16: =IF(DU$3<=datosB!$E$9,$CE16*(1+$AK$4)*(1+$O$4),"") ->  | DZ16: =IF(DZ$3<=datosB!$E$9,$DY16*(1+$AT$4)*(1+$O$4),"") ->  | EA16: =IF(EA$3<=datosB!$E$9,DZ16*(1+$AT$4)*(1+$O$4),"") ->  | EB16: =IF(EB$3<=datosB!$E$9,EA16*(1+$AT$4)*(1+$O$4),"") ->  | EC16: =IF(EC$3<=datosB!$E$9,EB16*(1+$AT$4)*(1+$O$4),"") ->  | ED16: =IF(ED$3<=datosB!$E$9,EC16*(1+$AT$4)*(1+$O$4),"") ->  | EE16: =IF(EE$3<=datosB!$E$9,ED16*(1+$AT$4)*(1+$O$4),"") ->  | EF16: =IF(EF$3<=datosB!$E$9,EE16*(1+$AT$4)*(1+$O$4),"") ->  | EG16: =IF(EG$3<=datosB!$E$9,EF16*(1+$AT$4)*(1+$O$4),"") ->  | EH16: =IF(EH$3<=datosB!$E$9,EG16*(1+$AT$4)*(1+$O$4),"") ->  | EI16: =IF(EI$3<=datosB!$E$9,EH16*(1+$AT$4)*(1+$O$4),"") ->  | EJ16: =IF(EJ$3<=datosB!$E$9,EI16*(1+$AT$4)*(1+$O$4),"") ->  | EK16: =IF(EK$3<=datosB!$E$9,EJ16*(1+$AT$4)*(1+$O$4),"") ->  | EL16: =IF(EL$3<=datosB!$E$9,EK16*(1+$AT$4)*(1+$O$4),"") ->  | EM16: =IF(EM$3<=datosB!$E$9,EL16*(1+$AT$4)*(1+$O$4),"") ->  | EN16: =IF(EN$3<=datosB!$E$9,EM16*(1+$AT$4)*(1+$O$4),"") ->  | EO16: =IF(EO$3<=datosB!$E$9,EN16*(1+$AT$4)*(1+$O$4),"") ->  | EP16: =IF(EP$3<=datosB!$E$9,EO16*(1+$AT$4)*(1+$O$4),"") ->  | EQ16: =IF(EQ$3<=datosB!$E$9,EP16*(1+$AT$4)*(1+$O$4),"") ->  | ER16: =IF(ER$3<=datosB!$E$9,EQ16*(1+$AT$4)*(1+$O$4),"") ->  | ES16: =IF(ES$3<=datosB!$E$9,ER16*(1+$AT$4)*(1+$O$4),"") ->  | ET16: =IF(ET$3<=datosB!$E$9,ES16*(1+$AT$4)*(1+$O$4),"") ->  | EU16: =IF(EU$3<=datosB!$E$9,ET16*(1+$AT$4)*(1+$O$4),"") ->  | EV16: =IF(EV$3<=datosB!$E$9,EU16*(1+$AT$4)*(1+$O$4),"") ->  | EW16: =IF(EW$3<=datosB!$E$9,EV16*(1+$AT$4)*(1+$O$4),"") ->  | EX16: =IF(EX$3<=datosB!$E$9,EW16*(1+$AT$4)*(1+$O$4),"") ->  | EY16: =IF(EY$3<=datosB!$E$9,EX16*(1+$AT$4)*(1+$O$4),"") ->  | EZ16: =IF(EZ$3<=datosB!$E$9,EY16*(1+$AT$4)*(1+$O$4),"") ->  | FA16: =IF(FA$3<=datosB!$E$9,EZ16*(1+$AT$4)*(1+$O$4),"") ->  | FB16: =IF(FB$3<=datosB!$E$9,FA16*(1+$AT$4)*(1+$O$4),"") ->  | FC16: =IF(FC$3<=datosB!$E$9,FB16*(1+$AT$4)*(1+$O$4),"") ->  | FD16: =IF(FD$3<=datosB!$E$9,FC16*(1+$AT$4)*(1+$O$4),"") ->  | FE16: =IF(FE$3<=datosB!$E$9,FD16*(1+$AT$4)*(1+$O$4),"") ->  | FF16: =IF(FF$3<=datosB!$E$9,FE16*(1+$AT$4)*(1+$O$4),"") ->  | FG16: =IF(FG$3<=datosB!$E$9,FF16*(1+$AT$4)*(1+$O$4),"") ->  | FH16: =IF(FH$3<=datosB!$E$9,FG16*(1+$AT$4)*(1+$O$4),"") ->  | FI16: =IF(FI$3<=datosB!$E$9,FH16*(1+$AT$4)*(1+$O$4),"") ->  | FJ16: =IF(FJ$3<=datosB!$E$9,FI16*(1+$AT$4)*(1+$O$4),"") ->  | FK16: =IF(FK$3<=datosB!$E$9,FJ16*(1+$AT$4)*(1+$O$4),"") ->  | FL16: =IF(FL$3<=datosB!$E$9,FK16*(1+$AT$4)*(1+$O$4),"") ->  | FM16: =IF(FM$3<=datosB!$E$9,FL16*(1+$AT$4)*(1+$O$4),"") ->  | FN16: =IF(FN$3<=datosB!$E$9,FM16*(1+$AT$4)*(1+$O$4),"") ->  | FO16: =IF(FO$3<=datosB!$E$9,FN16*(1+$AT$4)*(1+$O$4),"") ->  | FP16: =IF(FP$3<=datosB!$E$9,FO16*(1+$AT$4)*(1+$O$4),"") ->  | FQ16: =IF(FQ$3<=datosB!$E$9,FP16*(1+$AT$4)*(1+$O$4),"") -> 
M17: =SUMIFS(Formulario3!$O$3:$O$50000,Formulario3!$R$3:$R$50000,Formulario6_Res!$B17) -> 0 | N17: =SUMIFS(Formulario3!$V$3:$V$50000,Formulario3!$R$3:$R$50000,Formulario6_Res!$B17)*datosB!$E$7 -> 0 | O17: 0 | Y17: =VLOOKUP($A17,CU_OR!$A$3:$Z$31,11,FALSE) ->  | AC17: =VLOOKUP($A17,CU_OR!$A$3:$M$31,12,FALSE) ->  | AD17: =VLOOKUP($A17,CU_OR!$A$3:$M$31,13,FALSE) ->  | AF17: 0 | AI17: =SUMIFS(Formulario5_UC!$M$4:$M$29994,Formulario5_UC!$B$4:$B$29994,Formulario6_Res!$B17,Formulario5_UC!$C$4:$C$29994,Formulario6_Res!$AI$2) -> 0 | AJ17: =SUMIFS(Formulario5_UC!$BK$4:$BK$29994,Formulario5_UC!$B$4:$B$29994,Formulario6_Res!$B17,Formulario5_UC!$C$4:$C$29994,Formulario6_Res!$AI$2)*0+AN17+AS17 ->  | AK17: =VLOOKUP(A$4,CU_OR!$A$3:$Z$31,15,FALSE) ->  | AM17: =PMT(datosB!$E$6,datosB!$E$13,-Formulario6_Res!$AI17) -> 0 | AN17: =+VLOOKUP(A$4,CU_OR!$A$3:$Z$31,13,FALSE)*$N17*0+(N17*CU_OR!M38) ->  | AP17: =VLOOKUP($A17,CU_OR!$A$3:$M$31,7,FALSE) ->  | AR17: =SUMIFS(Formulario5_UC!$M$4:$M$29994,Formulario5_UC!$B$4:$B$29994,Formulario6_Res!$B17,Formulario5_UC!$C$4:$C$29994,Formulario6_Res!$AR$2) -> 0 | AS17: =SUMIFS(Formulario5_UC!$BK$4:$BK$29994,Formulario5_UC!$B$4:$B$29994,Formulario6_Res!$B17,Formulario5_UC!$C$4:$C$29994,Formulario6_Res!$AR$2) -> 0 | AT17: =VLOOKUP(A$4,CU_OR!$A$3:$Z$31,16,FALSE) ->  | AV17: =PMT(datosB!$E$6,datosB!$E$14,-Formulario6_Res!$AR17) -> 0 | AW17: =PMT(datosB!$E$6,datosB!$E$14,-Formulario6_Res!$AS17) -> 0 | AY17: =VLOOKUP($A17,CU_OR!$A$3:$M$31,6,FALSE) ->  | BK17: =VLOOKUP(A$4,CU_OR!$A$3:$Z$31,18,FALSE)+AX17+AO17 ->  | CD17: =IF(CD$3<=datosB!$E$9,$CC17*(1+$AK$4)*(1+$O$4),"") ->  | CE17: =IF(CE$3<=datosB!$E$9,$CD17*(1+$AK$4)*(1+$O$4),"") ->  | CF17: =IF(CF$3<=datosB!$E$9,$CE17*(1+$AK$4)*(1+$O$4),"") ->  | CG17: =IF(CG$3<=datosB!$E$9,$CE17*(1+$AK$4)*(1+$O$4),"") ->  | CH17: =IF(CH$3<=datosB!$E$9,$CE17*(1+$AK$4)*(1+$O$4),"") ->  | CI17: =IF(CI$3<=datosB!$E$9,$CE17*(1+$AK$4)*(1+$O$4),"") ->  | CJ17: =IF(CJ$3<=datosB!$E$9,$CE17*(1+$AK$4)*(1+$O$4),"") ->  | CK17: =IF(CK$3<=datosB!$E$9,$CE17*(1+$AK$4)*(1+$O$4),"") ->  | CL17: =IF(CL$3<=datosB!$E$9,$CE17*(1+$AK$4)*(1+$O$4),"") ->  | CM17: =IF(CM$3<=datosB!$E$9,$CE17*(1+$AK$4)*(1+$O$4),"") ->  | CN17: =IF(CN$3<=datosB!$E$9,$CE17*(1+$AK$4)*(1+$O$4),"") ->  | CO17: =IF(CO$3<=datosB!$E$9,$CE17*(1+$AK$4)*(1+$O$4),"") ->  | CP17: =IF(CP$3<=datosB!$E$9,$CE17*(1+$AK$4)*(1+$O$4),"") ->  | CQ17: =IF(CQ$3<=datosB!$E$9,$CE17*(1+$AK$4)*(1+$O$4),"") ->  | CR17: =IF(CR$3<=datosB!$E$9,$CE17*(1+$AK$4)*(1+$O$4),"") ->  | CS17: =IF(CS$3<=datosB!$E$9,$CE17*(1+$AK$4)*(1+$O$4),"") ->  | CT17: =IF(CT$3<=datosB!$E$9,$CE17*(1+$AK$4)*(1+$O$4),"") ->  | CU17: =IF(CU$3<=datosB!$E$9,$CE17*(1+$AK$4)*(1+$O$4),"") ->  | CV17: =IF(CV$3<=datosB!$E$9,$CE17*(1+$AK$4)*(1+$O$4),"") ->  | CW17: =IF(CW$3<=datosB!$E$9,$CE17*(1+$AK$4)*(1+$O$4),"") ->  | CX17: =IF(CX$3<=datosB!$E$9,$CE17*(1+$AK$4)*(1+$O$4),"") ->  | CY17: =IF(CY$3<=datosB!$E$9,$CE17*(1+$AK$4)*(1+$O$4),"") ->  | CZ17: =IF(CZ$3<=datosB!$E$9,$CE17*(1+$AK$4)*(1+$O$4),"") ->  | DA17: =IF(DA$3<=datosB!$E$9,$CE17*(1+$AK$4)*(1+$O$4),"") ->  | DB17: =IF(DB$3<=datosB!$E$9,$CE17*(1+$AK$4)*(1+$O$4),"") ->  | DC17: =IF(DC$3<=datosB!$E$9,$CE17*(1+$AK$4)*(1+$O$4),"") ->  | DD17: =IF(DD$3<=datosB!$E$9,$CE17*(1+$AK$4)*(1+$O$4),"") ->  | DE17: =IF(DE$3<=datosB!$E$9,$CE17*(1+$AK$4)*(1+$O$4),"") ->  | DF17: =IF(DF$3<=datosB!$E$9,$CE17*(1+$AK$4)*(1+$O$4),"") ->  | DG17: =IF(DG$3<=datosB!$E$9,$CE17*(1+$AK$4)*(1+$O$4),"") ->  | DH17: =IF(DH$3<=datosB!$E$9,$CE17*(1+$AK$4)*(1+$O$4),"") ->  | DI17: =IF(DI$3<=datosB!$E$9,$CE17*(1+$AK$4)*(1+$O$4),"") ->  | DJ17: =IF(DJ$3<=datosB!$E$9,$CE17*(1+$AK$4)*(1+$O$4),"") ->  | DK17: =IF(DK$3<=datosB!$E$9,$CE17*(1+$AK$4)*(1+$O$4),"") ->  | DL17: =IF(DL$3<=datosB!$E$9,$CE17*(1+$AK$4)*(1+$O$4),"") ->  | DM17: =IF(DM$3<=datosB!$E$9,$CE17*(1+$AK$4)*(1+$O$4),"") ->  | DN17: =IF(DN$3<=datosB!$E$9,$CE17*(1+$AK$4)*(1+$O$4),"") ->  | DO17: =IF(DO$3<=datosB!$E$9,$CE17*(1+$AK$4)*(1+$O$4),"") ->  | DP17: =IF(DP$3<=datosB!$E$9,$CE17*(1+$AK$4)*(1+$O$4),"") ->  | DQ17: =IF(DQ$3<=datosB!$E$9,$CE17*(1+$AK$4)*(1+$O$4),"") ->  | DR17: =IF(DR$3<=datosB!$E$9,$CE17*(1+$AK$4)*(1+$O$4),"") ->  | DS17: =IF(DS$3<=datosB!$E$9,$CE17*(1+$AK$4)*(1+$O$4),"") ->  | DT17: =IF(DT$3<=datosB!$E$9,$CE17*(1+$AK$4)*(1+$O$4),"") ->  | DU17: =IF(DU$3<=datosB!$E$9,$CE17*(1+$AK$4)*(1+$O$4),"") ->  | DZ17: =IF(DZ$3<=datosB!$E$9,$DY17*(1+$AT$4)*(1+$O$4),"") ->  | EA17: =IF(EA$3<=datosB!$E$9,DZ17*(1+$AT$4)*(1+$O$4),"") ->  | EB17: =IF(EB$3<=datosB!$E$9,EA17*(1+$AT$4)*(1+$O$4),"") ->  | EC17: =IF(EC$3<=datosB!$E$9,EB17*(1+$AT$4)*(1+$O$4),"") ->  | ED17: =IF(ED$3<=datosB!$E$9,EC17*(1+$AT$4)*(1+$O$4),"") ->  | EE17: =IF(EE$3<=datosB!$E$9,ED17*(1+$AT$4)*(1+$O$4),"") ->  | EF17: =IF(EF$3<=datosB!$E$9,EE17*(1+$AT$4)*(1+$O$4),"") ->  | EG17: =IF(EG$3<=datosB!$E$9,EF17*(1+$AT$4)*(1+$O$4),"") ->  | EH17: =IF(EH$3<=datosB!$E$9,EG17*(1+$AT$4)*(1+$O$4),"") ->  | EI17: =IF(EI$3<=datosB!$E$9,EH17*(1+$AT$4)*(1+$O$4),"") ->  | EJ17: =IF(EJ$3<=datosB!$E$9,EI17*(1+$AT$4)*(1+$O$4),"") ->  | EK17: =IF(EK$3<=datosB!$E$9,EJ17*(1+$AT$4)*(1+$O$4),"") ->  | EL17: =IF(EL$3<=datosB!$E$9,EK17*(1+$AT$4)*(1+$O$4),"") ->  | EM17: =IF(EM$3<=datosB!$E$9,EL17*(1+$AT$4)*(1+$O$4),"") ->  | EN17: =IF(EN$3<=datosB!$E$9,EM17*(1+$AT$4)*(1+$O$4),"") ->  | EO17: =IF(EO$3<=datosB!$E$9,EN17*(1+$AT$4)*(1+$O$4),"") ->  | EP17: =IF(EP$3<=datosB!$E$9,EO17*(1+$AT$4)*(1+$O$4),"") ->  | EQ17: =IF(EQ$3<=datosB!$E$9,EP17*(1+$AT$4)*(1+$O$4),"") ->  | ER17: =IF(ER$3<=datosB!$E$9,EQ17*(1+$AT$4)*(1+$O$4),"") ->  | ES17: =IF(ES$3<=datosB!$E$9,ER17*(1+$AT$4)*(1+$O$4),"") ->  | ET17: =IF(ET$3<=datosB!$E$9,ES17*(1+$AT$4)*(1+$O$4),"") ->  | EU17: =IF(EU$3<=datosB!$E$9,ET17*(1+$AT$4)*(1+$O$4),"") ->  | EV17: =IF(EV$3<=datosB!$E$9,EU17*(1+$AT$4)*(1+$O$4),"") ->  | EW17: =IF(EW$3<=datosB!$E$9,EV17*(1+$AT$4)*(1+$O$4),"") ->  | EX17: =IF(EX$3<=datosB!$E$9,EW17*(1+$AT$4)*(1+$O$4),"") ->  | EY17: =IF(EY$3<=datosB!$E$9,EX17*(1+$AT$4)*(1+$O$4),"") ->  | EZ17: =IF(EZ$3<=datosB!$E$9,EY17*(1+$AT$4)*(1+$O$4),"") ->  | FA17: =IF(FA$3<=datosB!$E$9,EZ17*(1+$AT$4)*(1+$O$4),"") ->  | FB17: =IF(FB$3<=datosB!$E$9,FA17*(1+$AT$4)*(1+$O$4),"") ->  | FC17: =IF(FC$3<=datosB!$E$9,FB17*(1+$AT$4)*(1+$O$4),"") ->  | FD17: =IF(FD$3<=datosB!$E$9,FC17*(1+$AT$4)*(1+$O$4),"") ->  | FE17: =IF(FE$3<=datosB!$E$9,FD17*(1+$AT$4)*(1+$O$4),"") ->  | FF17: =IF(FF$3<=datosB!$E$9,FE17*(1+$AT$4)*(1+$O$4),"") ->  | FG17: =IF(FG$3<=datosB!$E$9,FF17*(1+$AT$4)*(1+$O$4),"") ->  | FH17: =IF(FH$3<=datosB!$E$9,FG17*(1+$AT$4)*(1+$O$4),"") ->  | FI17: =IF(FI$3<=datosB!$E$9,FH17*(1+$AT$4)*(1+$O$4),"") ->  | FJ17: =IF(FJ$3<=datosB!$E$9,FI17*(1+$AT$4)*(1+$O$4),"") ->  | FK17: =IF(FK$3<=datosB!$E$9,FJ17*(1+$AT$4)*(1+$O$4),"") ->  | FL17: =IF(FL$3<=datosB!$E$9,FK17*(1+$AT$4)*(1+$O$4),"") ->  | FM17: =IF(FM$3<=datosB!$E$9,FL17*(1+$AT$4)*(1+$O$4),"") ->  | FN17: =IF(FN$3<=datosB!$E$9,FM17*(1+$AT$4)*(1+$O$4),"") ->  | FO17: =IF(FO$3<=datosB!$E$9,FN17*(1+$AT$4)*(1+$O$4),"") ->  | FP17: =IF(FP$3<=datosB!$E$9,FO17*(1+$AT$4)*(1+$O$4),"") ->  | FQ17: =IF(FQ$3<=datosB!$E$9,FP17*(1+$AT$4)*(1+$O$4),"") -> 
M18: =SUMIFS(Formulario3!$O$3:$O$50000,Formulario3!$R$3:$R$50000,Formulario6_Res!$B18) -> 0 | N18: =SUMIFS(Formulario3!$V$3:$V$50000,Formulario3!$R$3:$R$50000,Formulario6_Res!$B18)*datosB!$E$7 -> 0 | O18: 0 | Y18: =VLOOKUP($A18,CU_OR!$A$3:$Z$31,11,FALSE) ->  | AC18: =VLOOKUP($A18,CU_OR!$A$3:$M$31,12,FALSE) ->  | AD18: =VLOOKUP($A18,CU_OR!$A$3:$M$31,13,FALSE) ->  | AF18: 0 | AI18: =SUMIFS(Formulario5_UC!$M$4:$M$29994,Formulario5_UC!$B$4:$B$29994,Formulario6_Res!$B18,Formulario5_UC!$C$4:$C$29994,Formulario6_Res!$AI$2) -> 0 | AJ18: =SUMIFS(Formulario5_UC!$BK$4:$BK$29994,Formulario5_UC!$B$4:$B$29994,Formulario6_Res!$B18,Formulario5_UC!$C$4:$C$29994,Formulario6_Res!$AI$2)*0+AN18+AS18 ->  | AK18: =VLOOKUP(A$4,CU_OR!$A$3:$Z$31,15,FALSE) ->  | AM18: =PMT(datosB!$E$6,datosB!$E$13,-Formulario6_Res!$AI18) -> 0 | AN18: =+VLOOKUP(A$4,CU_OR!$A$3:$Z$31,13,FALSE)*$N18*0+(N18*CU_OR!M39) ->  | AP18: =VLOOKUP($A18,CU_OR!$A$3:$M$31,7,FALSE) ->  | AR18: =SUMIFS(Formulario5_UC!$M$4:$M$29994,Formulario5_UC!$B$4:$B$29994,Formulario6_Res!$B18,Formulario5_UC!$C$4:$C$29994,Formulario6_Res!$AR$2) -> 0 | AS18: =SUMIFS(Formulario5_UC!$BK$4:$BK$29994,Formulario5_UC!$B$4:$B$29994,Formulario6_Res!$B18,Formulario5_UC!$C$4:$C$29994,Formulario6_Res!$AR$2) -> 0 | AT18: =VLOOKUP(A$4,CU_OR!$A$3:$Z$31,16,FALSE) ->  | AV18: =PMT(datosB!$E$6,datosB!$E$14,-Formulario6_Res!$AR18) -> 0 | AW18: =PMT(datosB!$E$6,datosB!$E$14,-Formulario6_Res!$AS18) -> 0 | AY18: =VLOOKUP($A18,CU_OR!$A$3:$M$31,6,FALSE) ->  | BK18: =VLOOKUP(A$4,CU_OR!$A$3:$Z$31,18,FALSE)+AX18+AO18 ->  | CD18: =IF(CD$3<=datosB!$E$9,$CC18*(1+$AK$4)*(1+$O$4),"") ->  | CE18: =IF(CE$3<=datosB!$E$9,$CD18*(1+$AK$4)*(1+$O$4),"") ->  | CF18: =IF(CF$3<=datosB!$E$9,$CE18*(1+$AK$4)*(1+$O$4),"") ->  | CG18: =IF(CG$3<=datosB!$E$9,$CE18*(1+$AK$4)*(1+$O$4),"") ->  | CH18: =IF(CH$3<=datosB!$E$9,$CE18*(1+$AK$4)*(1+$O$4),"") ->  | CI18: =IF(CI$3<=datosB!$E$9,$CE18*(1+$AK$4)*(1+$O$4),"") ->  | CJ18: =IF(CJ$3<=datosB!$E$9,$CE18*(1+$AK$4)*(1+$O$4),"") ->  | CK18: =IF(CK$3<=datosB!$E$9,$CE18*(1+$AK$4)*(1+$O$4),"") ->  | CL18: =IF(CL$3<=datosB!$E$9,$CE18*(1+$AK$4)*(1+$O$4),"") ->  | CM18: =IF(CM$3<=datosB!$E$9,$CE18*(1+$AK$4)*(1+$O$4),"") ->  | CN18: =IF(CN$3<=datosB!$E$9,$CE18*(1+$AK$4)*(1+$O$4),"") ->  | CO18: =IF(CO$3<=datosB!$E$9,$CE18*(1+$AK$4)*(1+$O$4),"") ->  | CP18: =IF(CP$3<=datosB!$E$9,$CE18*(1+$AK$4)*(1+$O$4),"") ->  | CQ18: =IF(CQ$3<=datosB!$E$9,$CE18*(1+$AK$4)*(1+$O$4),"") ->  | CR18: =IF(CR$3<=datosB!$E$9,$CE18*(1+$AK$4)*(1+$O$4),"") ->  | CS18: =IF(CS$3<=datosB!$E$9,$CE18*(1+$AK$4)*(1+$O$4),"") ->  | CT18: =IF(CT$3<=datosB!$E$9,$CE18*(1+$AK$4)*(1+$O$4),"") ->  | CU18: =IF(CU$3<=datosB!$E$9,$CE18*(1+$AK$4)*(1+$O$4),"") ->  | CV18: =IF(CV$3<=datosB!$E$9,$CE18*(1+$AK$4)*(1+$O$4),"") ->  | CW18: =IF(CW$3<=datosB!$E$9,$CE18*(1+$AK$4)*(1+$O$4),"") ->  | CX18: =IF(CX$3<=datosB!$E$9,$CE18*(1+$AK$4)*(1+$O$4),"") ->  | CY18: =IF(CY$3<=datosB!$E$9,$CE18*(1+$AK$4)*(1+$O$4),"") ->  | CZ18: =IF(CZ$3<=datosB!$E$9,$CE18*(1+$AK$4)*(1+$O$4),"") ->  | DA18: =IF(DA$3<=datosB!$E$9,$CE18*(1+$AK$4)*(1+$O$4),"") ->  | DB18: =IF(DB$3<=datosB!$E$9,$CE18*(1+$AK$4)*(1+$O$4),"") ->  | DC18: =IF(DC$3<=datosB!$E$9,$CE18*(1+$AK$4)*(1+$O$4),"") ->  | DD18: =IF(DD$3<=datosB!$E$9,$CE18*(1+$AK$4)*(1+$O$4),"") ->  | DE18: =IF(DE$3<=datosB!$E$9,$CE18*(1+$AK$4)*(1+$O$4),"") ->  | DF18: =IF(DF$3<=datosB!$E$9,$CE18*(1+$AK$4)*(1+$O$4),"") ->  | DG18: =IF(DG$3<=datosB!$E$9,$CE18*(1+$AK$4)*(1+$O$4),"") ->  | DH18: =IF(DH$3<=datosB!$E$9,$CE18*(1+$AK$4)*(1+$O$4),"") ->  | DI18: =IF(DI$3<=datosB!$E$9,$CE18*(1+$AK$4)*(1+$O$4),"") ->  | DJ18: =IF(DJ$3<=datosB!$E$9,$CE18*(1+$AK$4)*(1+$O$4),"") ->  | DK18: =IF(DK$3<=datosB!$E$9,$CE18*(1+$AK$4)*(1+$O$4),"") ->  | DL18: =IF(DL$3<=datosB!$E$9,$CE18*(1+$AK$4)*(1+$O$4),"") ->  | DM18: =IF(DM$3<=datosB!$E$9,$CE18*(1+$AK$4)*(1+$O$4),"") ->  | DN18: =IF(DN$3<=datosB!$E$9,$CE18*(1+$AK$4)*(1+$O$4),"") ->  | DO18: =IF(DO$3<=datosB!$E$9,$CE18*(1+$AK$4)*(1+$O$4),"") ->  | DP18: =IF(DP$3<=datosB!$E$9,$CE18*(1+$AK$4)*(1+$O$4),"") ->  | DQ18: =IF(DQ$3<=datosB!$E$9,$CE18*(1+$AK$4)*(1+$O$4),"") ->  | DR18: =IF(DR$3<=datosB!$E$9,$CE18*(1+$AK$4)*(1+$O$4),"") ->  | DS18: =IF(DS$3<=datosB!$E$9,$CE18*(1+$AK$4)*(1+$O$4),"") ->  | DT18: =IF(DT$3<=datosB!$E$9,$CE18*(1+$AK$4)*(1+$O$4),"") ->  | DU18: =IF(DU$3<=datosB!$E$9,$CE18*(1+$AK$4)*(1+$O$4),"") ->  | DZ18: =IF(DZ$3<=datosB!$E$9,$DY18*(1+$AT$4)*(1+$O$4),"") ->  | EA18: =IF(EA$3<=datosB!$E$9,DZ18*(1+$AT$4)*(1+$O$4),"") ->  | EB18: =IF(EB$3<=datosB!$E$9,EA18*(1+$AT$4)*(1+$O$4),"") ->  | EC18: =IF(EC$3<=datosB!$E$9,EB18*(1+$AT$4)*(1+$O$4),"") ->  | ED18: =IF(ED$3<=datosB!$E$9,EC18*(1+$AT$4)*(1+$O$4),"") ->  | EE18: =IF(EE$3<=datosB!$E$9,ED18*(1+$AT$4)*(1+$O$4),"") ->  | EF18: =IF(EF$3<=datosB!$E$9,EE18*(1+$AT$4)*(1+$O$4),"") ->  | EG18: =IF(EG$3<=datosB!$E$9,EF18*(1+$AT$4)*(1+$O$4),"") ->  | EH18: =IF(EH$3<=datosB!$E$9,EG18*(1+$AT$4)*(1+$O$4),"") ->  | EI18: =IF(EI$3<=datosB!$E$9,EH18*(1+$AT$4)*(1+$O$4),"") ->  | EJ18: =IF(EJ$3<=datosB!$E$9,EI18*(1+$AT$4)*(1+$O$4),"") ->  | EK18: =IF(EK$3<=datosB!$E$9,EJ18*(1+$AT$4)*(1+$O$4),"") ->  | EL18: =IF(EL$3<=datosB!$E$9,EK18*(1+$AT$4)*(1+$O$4),"") ->  | EM18: =IF(EM$3<=datosB!$E$9,EL18*(1+$AT$4)*(1+$O$4),"") ->  | EN18: =IF(EN$3<=datosB!$E$9,EM18*(1+$AT$4)*(1+$O$4),"") ->  | EO18: =IF(EO$3<=datosB!$E$9,EN18*(1+$AT$4)*(1+$O$4),"") ->  | EP18: =IF(EP$3<=datosB!$E$9,EO18*(1+$AT$4)*(1+$O$4),"") ->  | EQ18: =IF(EQ$3<=datosB!$E$9,EP18*(1+$AT$4)*(1+$O$4),"") ->  | ER18: =IF(ER$3<=datosB!$E$9,EQ18*(1+$AT$4)*(1+$O$4),"") ->  | ES18: =IF(ES$3<=datosB!$E$9,ER18*(1+$AT$4)*(1+$O$4),"") ->  | ET18: =IF(ET$3<=datosB!$E$9,ES18*(1+$AT$4)*(1+$O$4),"") ->  | EU18: =IF(EU$3<=datosB!$E$9,ET18*(1+$AT$4)*(1+$O$4),"") ->  | EV18: =IF(EV$3<=datosB!$E$9,EU18*(1+$AT$4)*(1+$O$4),"") ->  | EW18: =IF(EW$3<=datosB!$E$9,EV18*(1+$AT$4)*(1+$O$4),"") ->  | EX18: =IF(EX$3<=datosB!$E$9,EW18*(1+$AT$4)*(1+$O$4),"") ->  | EY18: =IF(EY$3<=datosB!$E$9,EX18*(1+$AT$4)*(1+$O$4),"") ->  | EZ18: =IF(EZ$3<=datosB!$E$9,EY18*(1+$AT$4)*(1+$O$4),"") ->  | FA18: =IF(FA$3<=datosB!$E$9,EZ18*(1+$AT$4)*(1+$O$4),"") ->  | FB18: =IF(FB$3<=datosB!$E$9,FA18*(1+$AT$4)*(1+$O$4),"") ->  | FC18: =IF(FC$3<=datosB!$E$9,FB18*(1+$AT$4)*(1+$O$4),"") ->  | FD18: =IF(FD$3<=datosB!$E$9,FC18*(1+$AT$4)*(1+$O$4),"") ->  | FE18: =IF(FE$3<=datosB!$E$9,FD18*(1+$AT$4)*(1+$O$4),"") ->  | FF18: =IF(FF$3<=datosB!$E$9,FE18*(1+$AT$4)*(1+$O$4),"") ->  | FG18: =IF(FG$3<=datosB!$E$9,FF18*(1+$AT$4)*(1+$O$4),"") ->  | FH18: =IF(FH$3<=datosB!$E$9,FG18*(1+$AT$4)*(1+$O$4),"") ->  | FI18: =IF(FI$3<=datosB!$E$9,FH18*(1+$AT$4)*(1+$O$4),"") ->  | FJ18: =IF(FJ$3<=datosB!$E$9,FI18*(1+$AT$4)*(1+$O$4),"") ->  | FK18: =IF(FK$3<=datosB!$E$9,FJ18*(1+$AT$4)*(1+$O$4),"") ->  | FL18: =IF(FL$3<=datosB!$E$9,FK18*(1+$AT$4)*(1+$O$4),"") ->  | FM18: =IF(FM$3<=datosB!$E$9,FL18*(1+$AT$4)*(1+$O$4),"") ->  | FN18: =IF(FN$3<=datosB!$E$9,FM18*(1+$AT$4)*(1+$O$4),"") ->  | FO18: =IF(FO$3<=datosB!$E$9,FN18*(1+$AT$4)*(1+$O$4),"") ->  | FP18: =IF(FP$3<=datosB!$E$9,FO18*(1+$AT$4)*(1+$O$4),"") ->  | FQ18: =IF(FQ$3<=datosB!$E$9,FP18*(1+$AT$4)*(1+$O$4),"") -> 
M19: =SUMIFS(Formulario3!$O$3:$O$50000,Formulario3!$R$3:$R$50000,Formulario6_Res!$B19) -> 0 | N19: =SUMIFS(Formulario3!$V$3:$V$50000,Formulario3!$R$3:$R$50000,Formulario6_Res!$B19)*datosB!$E$7 -> 0 | O19: 0 | Y19: =VLOOKUP($A19,CU_OR!$A$3:$Z$31,11,FALSE) ->  | AC19: =VLOOKUP($A19,CU_OR!$A$3:$M$31,12,FALSE) ->  | AD19: =VLOOKUP($A19,CU_OR!$A$3:$M$31,13,FALSE) ->  | AF19: 0 | AI19: =SUMIFS(Formulario5_UC!$M$4:$M$29994,Formulario5_UC!$B$4:$B$29994,Formulario6_Res!$B19,Formulario5_UC!$C$4:$C$29994,Formulario6_Res!$AI$2) -> 0 | AJ19: =SUMIFS(Formulario5_UC!$BK$4:$BK$29994,Formulario5_UC!$B$4:$B$29994,Formulario6_Res!$B19,Formulario5_UC!$C$4:$C$29994,Formulario6_Res!$AI$2)*0+AN19+AS19 ->  | AK19: =VLOOKUP(A$4,CU_OR!$A$3:$Z$31,15,FALSE) ->  | AM19: =PMT(datosB!$E$6,datosB!$E$13,-Formulario6_Res!$AI19) -> 0 | AN19: =+VLOOKUP(A$4,CU_OR!$A$3:$Z$31,13,FALSE)*$N19*0+(N19*CU_OR!M40) ->  | AP19: =VLOOKUP($A19,CU_OR!$A$3:$M$31,7,FALSE) ->  | AR19: =SUMIFS(Formulario5_UC!$M$4:$M$29994,Formulario5_UC!$B$4:$B$29994,Formulario6_Res!$B19,Formulario5_UC!$C$4:$C$29994,Formulario6_Res!$AR$2) -> 0 | AS19: =SUMIFS(Formulario5_UC!$BK$4:$BK$29994,Formulario5_UC!$B$4:$B$29994,Formulario6_Res!$B19,Formulario5_UC!$C$4:$C$29994,Formulario6_Res!$AR$2) -> 0 | AT19: =VLOOKUP(A$4,CU_OR!$A$3:$Z$31,16,FALSE) ->  | AV19: =PMT(datosB!$E$6,datosB!$E$14,-Formulario6_Res!$AR19) -> 0 | AW19: =PMT(datosB!$E$6,datosB!$E$14,-Formulario6_Res!$AS19) -> 0 | AY19: =VLOOKUP($A19,CU_OR!$A$3:$M$31,6,FALSE) ->  | BK19: =VLOOKUP(A$4,CU_OR!$A$3:$Z$31,18,FALSE)+AX19+AO19 ->  | CD19: =IF(CD$3<=datosB!$E$9,$CC19*(1+$AK$4)*(1+$O$4),"") ->  | CE19: =IF(CE$3<=datosB!$E$9,$CD19*(1+$AK$4)*(1+$O$4),"") ->  | CF19: =IF(CF$3<=datosB!$E$9,$CE19*(1+$AK$4)*(1+$O$4),"") ->  | CG19: =IF(CG$3<=datosB!$E$9,$CE19*(1+$AK$4)*(1+$O$4),"") ->  | CH19: =IF(CH$3<=datosB!$E$9,$CE19*(1+$AK$4)*(1+$O$4),"") ->  | CI19: =IF(CI$3<=datosB!$E$9,$CE19*(1+$AK$4)*(1+$O$4),"") ->  | CJ19: =IF(CJ$3<=datosB!$E$9,$CE19*(1+$AK$4)*(1+$O$4),"") ->  | CK19: =IF(CK$3<=datosB!$E$9,$CE19*(1+$AK$4)*(1+$O$4),"") ->  | CL19: =IF(CL$3<=datosB!$E$9,$CE19*(1+$AK$4)*(1+$O$4),"") ->  | CM19: =IF(CM$3<=datosB!$E$9,$CE19*(1+$AK$4)*(1+$O$4),"") ->  | CN19: =IF(CN$3<=datosB!$E$9,$CE19*(1+$AK$4)*(1+$O$4),"") ->  | CO19: =IF(CO$3<=datosB!$E$9,$CE19*(1+$AK$4)*(1+$O$4),"") ->  | CP19: =IF(CP$3<=datosB!$E$9,$CE19*(1+$AK$4)*(1+$O$4),"") ->  | CQ19: =IF(CQ$3<=datosB!$E$9,$CE19*(1+$AK$4)*(1+$O$4),"") ->  | CR19: =IF(CR$3<=datosB!$E$9,$CE19*(1+$AK$4)*(1+$O$4),"") ->  | CS19: =IF(CS$3<=datosB!$E$9,$CE19*(1+$AK$4)*(1+$O$4),"") ->  | CT19: =IF(CT$3<=datosB!$E$9,$CE19*(1+$AK$4)*(1+$O$4),"") ->  | CU19: =IF(CU$3<=datosB!$E$9,$CE19*(1+$AK$4)*(1+$O$4),"") ->  | CV19: =IF(CV$3<=datosB!$E$9,$CE19*(1+$AK$4)*(1+$O$4),"") ->  | CW19: =IF(CW$3<=datosB!$E$9,$CE19*(1+$AK$4)*(1+$O$4),"") ->  | CX19: =IF(CX$3<=datosB!$E$9,$CE19*(1+$AK$4)*(1+$O$4),"") ->  | CY19: =IF(CY$3<=datosB!$E$9,$CE19*(1+$AK$4)*(1+$O$4),"") ->  | CZ19: =IF(CZ$3<=datosB!$E$9,$CE19*(1+$AK$4)*(1+$O$4),"") ->  | DA19: =IF(DA$3<=datosB!$E$9,$CE19*(1+$AK$4)*(1+$O$4),"") ->  | DB19: =IF(DB$3<=datosB!$E$9,$CE19*(1+$AK$4)*(1+$O$4),"") ->  | DC19: =IF(DC$3<=datosB!$E$9,$CE19*(1+$AK$4)*(1+$O$4),"") ->  | DD19: =IF(DD$3<=datosB!$E$9,$CE19*(1+$AK$4)*(1+$O$4),"") ->  | DE19: =IF(DE$3<=datosB!$E$9,$CE19*(1+$AK$4)*(1+$O$4),"") ->  | DF19: =IF(DF$3<=datosB!$E$9,$CE19*(1+$AK$4)*(1+$O$4),"") ->  | DG19: =IF(DG$3<=datosB!$E$9,$CE19*(1+$AK$4)*(1+$O$4),"") ->  | DH19: =IF(DH$3<=datosB!$E$9,$CE19*(1+$AK$4)*(1+$O$4),"") ->  | DI19: =IF(DI$3<=datosB!$E$9,$CE19*(1+$AK$4)*(1+$O$4),"") ->  | DJ19: =IF(DJ$3<=datosB!$E$9,$CE19*(1+$AK$4)*(1+$O$4),"") ->  | DK19: =IF(DK$3<=datosB!$E$9,$CE19*(1+$AK$4)*(1+$O$4),"") ->  | DL19: =IF(DL$3<=datosB!$E$9,$CE19*(1+$AK$4)*(1+$O$4),"") ->  | DM19: =IF(DM$3<=datosB!$E$9,$CE19*(1+$AK$4)*(1+$O$4),"") ->  | DN19: =IF(DN$3<=datosB!$E$9,$CE19*(1+$AK$4)*(1+$O$4),"") ->  | DO19: =IF(DO$3<=datosB!$E$9,$CE19*(1+$AK$4)*(1+$O$4),"") ->  | DP19: =IF(DP$3<=datosB!$E$9,$CE19*(1+$AK$4)*(1+$O$4),"") ->  | DQ19: =IF(DQ$3<=datosB!$E$9,$CE19*(1+$AK$4)*(1+$O$4),"") ->  | DR19: =IF(DR$3<=datosB!$E$9,$CE19*(1+$AK$4)*(1+$O$4),"") ->  | DS19: =IF(DS$3<=datosB!$E$9,$CE19*(1+$AK$4)*(1+$O$4),"") ->  | DT19: =IF(DT$3<=datosB!$E$9,$CE19*(1+$AK$4)*(1+$O$4),"") ->  | DU19: =IF(DU$3<=datosB!$E$9,$CE19*(1+$AK$4)*(1+$O$4),"") ->  | DZ19: =IF(DZ$3<=datosB!$E$9,$DY19*(1+$AT$4)*(1+$O$4),"") ->  | EA19: =IF(EA$3<=datosB!$E$9,DZ19*(1+$AT$4)*(1+$O$4),"") ->  | EB19: =IF(EB$3<=datosB!$E$9,EA19*(1+$AT$4)*(1+$O$4),"") ->  | EC19: =IF(EC$3<=datosB!$E$9,EB19*(1+$AT$4)*(1+$O$4),"") ->  | ED19: =IF(ED$3<=datosB!$E$9,EC19*(1+$AT$4)*(1+$O$4),"") ->  | EE19: =IF(EE$3<=datosB!$E$9,ED19*(1+$AT$4)*(1+$O$4),"") ->  | EF19: =IF(EF$3<=datosB!$E$9,EE19*(1+$AT$4)*(1+$O$4),"") ->  | EG19: =IF(EG$3<=datosB!$E$9,EF19*(1+$AT$4)*(1+$O$4),"") ->  | EH19: =IF(EH$3<=datosB!$E$9,EG19*(1+$AT$4)*(1+$O$4),"") ->  | EI19: =IF(EI$3<=datosB!$E$9,EH19*(1+$AT$4)*(1+$O$4),"") ->  | EJ19: =IF(EJ$3<=datosB!$E$9,EI19*(1+$AT$4)*(1+$O$4),"") ->  | EK19: =IF(EK$3<=datosB!$E$9,EJ19*(1+$AT$4)*(1+$O$4),"") ->  | EL19: =IF(EL$3<=datosB!$E$9,EK19*(1+$AT$4)*(1+$O$4),"") ->  | EM19: =IF(EM$3<=datosB!$E$9,EL19*(1+$AT$4)*(1+$O$4),"") ->  | EN19: =IF(EN$3<=datosB!$E$9,EM19*(1+$AT$4)*(1+$O$4),"") ->  | EO19: =IF(EO$3<=datosB!$E$9,EN19*(1+$AT$4)*(1+$O$4),"") ->  | EP19: =IF(EP$3<=datosB!$E$9,EO19*(1+$AT$4)*(1+$O$4),"") ->  | EQ19: =IF(EQ$3<=datosB!$E$9,EP19*(1+$AT$4)*(1+$O$4),"") ->  | ER19: =IF(ER$3<=datosB!$E$9,EQ19*(1+$AT$4)*(1+$O$4),"") ->  | ES19: =IF(ES$3<=datosB!$E$9,ER19*(1+$AT$4)*(1+$O$4),"") ->  | ET19: =IF(ET$3<=datosB!$E$9,ES19*(1+$AT$4)*(1+$O$4),"") ->  | EU19: =IF(EU$3<=datosB!$E$9,ET19*(1+$AT$4)*(1+$O$4),"") ->  | EV19: =IF(EV$3<=datosB!$E$9,EU19*(1+$AT$4)*(1+$O$4),"") ->  | EW19: =IF(EW$3<=datosB!$E$9,EV19*(1+$AT$4)*(1+$O$4),"") ->  | EX19: =IF(EX$3<=datosB!$E$9,EW19*(1+$AT$4)*(1+$O$4),"") ->  | EY19: =IF(EY$3<=datosB!$E$9,EX19*(1+$AT$4)*(1+$O$4),"") ->  | EZ19: =IF(EZ$3<=datosB!$E$9,EY19*(1+$AT$4)*(1+$O$4),"") ->  | FA19: =IF(FA$3<=datosB!$E$9,EZ19*(1+$AT$4)*(1+$O$4),"") ->  | FB19: =IF(FB$3<=datosB!$E$9,FA19*(1+$AT$4)*(1+$O$4),"") ->  | FC19: =IF(FC$3<=datosB!$E$9,FB19*(1+$AT$4)*(1+$O$4),"") ->  | FD19: =IF(FD$3<=datosB!$E$9,FC19*(1+$AT$4)*(1+$O$4),"") ->  | FE19: =IF(FE$3<=datosB!$E$9,FD19*(1+$AT$4)*(1+$O$4),"") ->  | FF19: =IF(FF$3<=datosB!$E$9,FE19*(1+$AT$4)*(1+$O$4),"") ->  | FG19: =IF(FG$3<=datosB!$E$9,FF19*(1+$AT$4)*(1+$O$4),"") ->  | FH19: =IF(FH$3<=datosB!$E$9,FG19*(1+$AT$4)*(1+$O$4),"") ->  | FI19: =IF(FI$3<=datosB!$E$9,FH19*(1+$AT$4)*(1+$O$4),"") ->  | FJ19: =IF(FJ$3<=datosB!$E$9,FI19*(1+$AT$4)*(1+$O$4),"") ->  | FK19: =IF(FK$3<=datosB!$E$9,FJ19*(1+$AT$4)*(1+$O$4),"") ->  | FL19: =IF(FL$3<=datosB!$E$9,FK19*(1+$AT$4)*(1+$O$4),"") ->  | FM19: =IF(FM$3<=datosB!$E$9,FL19*(1+$AT$4)*(1+$O$4),"") ->  | FN19: =IF(FN$3<=datosB!$E$9,FM19*(1+$AT$4)*(1+$O$4),"") ->  | FO19: =IF(FO$3<=datosB!$E$9,FN19*(1+$AT$4)*(1+$O$4),"") ->  | FP19: =IF(FP$3<=datosB!$E$9,FO19*(1+$AT$4)*(1+$O$4),"") ->  | FQ19: =IF(FQ$3<=datosB!$E$9,FP19*(1+$AT$4)*(1+$O$4),"") -> 
